Workbook

Sheet 0_Taula Farratges (hidden)
A1: Nom del farratge | B1: MS % | C1: UFL | D1: UFV | E1: MNT_PB | F1: PDIA | G1: PDI | H1: BPR | I1: UEL | J1: UEB | K1: UEM | L1: NI ref | M1: dMO | N1: MOD | O1: EE | P1: FB | Q1: NDF | R1: ADF | S1: Lignina | T1: cendres | U1: Ca | V1: P | W1: Mg | X1: Cl | Y1: K | Z1: Na | AA1: S | AB1: Co | AC1: Cu | AD1: Mo | AE1: MIDÓ | AF1: Fe | AG1: Mn | AH1: Se | AI1: Zn | AJ1: Vit A | AK1: Vit D | AL1: Vit E | AM1: AG | AN1: DT_N | AO1: PF | AP1: MOF
A3: ENSITJAT Alfals Inici botons florals prefenificat | B3: 33.5 | C3: 0.84 | D3: 0.76 | E3: 206 | F3: 32 | G3: 78 | H3: 79 | I3: 0.9797376592 | J3: 0.97 | K3: 1.11 | L3: 2.4 | M3: 0.66 | N3: 583 | O3: 40 | P3: 292 | Q3: 472 | R3: 313 | S3: 64.3 | T3: 117 | U3: 3.8 | V3: 1.7 | W3: 2.3 | AJ3: 3000 | AK3: 200 | AL3: 5 | AM3: 26.4988 | AN3: 0.83 | AO3: 80 | AP3: 550.6914111
A4: ENSITJAT Alfals abans floració prefenificat | B4: 33.5 | C4: 0.9478567903 | D4: 0.9046584391 | E4: 198.2 | F4: 21.802 | G4: 61.32585238 | H4: 64.24775046 | I4: 0.9937421911 | J4: 0.9777668498 | K4: 1.121023222 | L4: 2.403858178 | M4: 0.707306 | N4: 605.0295524 | O4: 18.7 | P4: 249.7 | Q4: 424.6 | R4: 336.1 | S4: 65.9 | T4: 144.6 | U4: 3.84 | V4: 1.82 | AJ4: 3000 | AK4: 200 | AL4: 5 | AM4: 25.2206 | AN4: 0.8 | AO4: 80 | AP4: 534.6627196
A5: ENSITJAT Alfals botons florals prefenificat | B5: 33.5 | C5: 0.79 | D5: 0.7 | E5: 193 | F5: 29 | G5: 74 | H5: 70 | I5: 1.01 | J5: 1 | K5: 1.15 | L5: 2.3 | M5: 0.64 | N5: 568 | O5: 39 | P5: 308 | Q5: 482 | R5: 324 | T5: 112 | U5: 3.8 | V5: 1.7 | W5: 2.3
A6: ENSITJAT Alfals rebrots floració prefenificat | B6: 33.5 | C6: 0.78 | D6: 0.69 | E6: 198 | F6: 27.79205 | G6: 74 | H6: 74 | I6: 1.01 | J6: 1 | K6: 1.1 | L6: 2.4 | M6: 0.63 | N6: 564 | O6: 39 | P6: 319 | Q6: 488 | R6: 331 | S6: 61.9 | T6: 105 | U6: 3.6 | V6: 1.5 | W6: 1.8 | AJ6: 3000 | AK6: 200 | AL6: 5 | AM6: 27.0051 | AN6: 0.79 | AO6: 80 | AP6: 551.9218578
A7: ENSITJAT Blat de moro Lletós | B7: 25 | C7: 0.9421569565 | D7: 0.8895769703 | E7: 80 | F7: 12 | G7: 61 | H7: -29 | I7: 1.080663836 | J7: 1.21 | K7: 1.28 | L7: 1.4 | M7: 0.71 | N7: 674 | O7: 31 | P7: 228 | Q7: 446 | R7: 235 | S7: 30.4 | T7: 50 | U7: 0.8 | V7: 1.3 | W7: 1.2 | AE7: 193 | AM7: 24 | AN7: 0.75 | AO7: 100 | AP7: 588.3446
A8: ENSITJAT Blat de moro Lletós-pastós | B8: 27.5 | C8: 0.9460784782 | D8: 0.8997884851 | E8: 79 | F8: 12 | G8: 61 | H8: -30.5 | I8: 1.046979863 | J8: 1.16 | K8: 1.279261934 | L8: 1.4 | M8: 0.7135 | N8: 680 | O8: 31 | P8: 217.5 | Q8: 429.5 | R8: 222.5 | S8: 29.85 | T8: 48.5 | U8: 0.8 | V8: 1.3 | W8: 1.2 | AE8: 282 | AM8: 24 | AN8: 0.75 | AO8: 125 | AP8: 608.5998
A9: ENSITJAT Blat de moro Pastós | B9: 30 | C9: 0.95 | D9: 0.91 | E9: 78 | F9: 12 | G9: 61 | H9: -32 | I9: 1.01329589 | J9: 1.11 | K9: 1.278523867 | L9: 1.4 | M9: 0.717 | N9: 686 | O9: 31 | P9: 207 | Q9: 413 | R9: 210 | S9: 29.3 | T9: 47 | U9: 0.8 | V9: 1.3 | W9: 1.2 | AE9: 234 | AM9: 24 | AN9: 0.75 | AO9: 80 | AP9: 619.39492
A10: ENSITJAT Blat de moro Pastós-vidriós | B10: 32.5 | C10: 0.9570058234 | D10: 0.9127317295 | E10: 77 | F10: 12 | G10: 61.5 | H10: -33.5 | I10: 0.9816479448 | J10: 1.075 | K10: 1.279261934 | L10: 1.4 | M10: 0.7235 | N10: 688 | O10: 31 | P10: 203.5 | Q10: 406.5 | R10: 207 | S10: 27.9 | T10: 45.5 | U10: 0.8 | V10: 1.3 | W10: 1.2 | AE10: 278 | AM10: 24 | AN10: 0.75 | AO10: 100 | AP10: 612.5872382
A11: ENSITJAT Blat de moro Vidriós | B11: 35 | C11: 0.9640116468 | D11: 0.9154634589 | E11: 76 | F11: 12 | G11: 62 | H11: -35 | I11: 0.95 | J11: 1.04 | K11: 1.28 | L11: 1.4 | M11: 0.73 | N11: 690 | O11: 31 | P11: 200 | Q11: 400 | R11: 204 | S11: 26.5 | T11: 44 | U11: 0.8 | V11: 1.3 | W11: 1.2 | AE11: 322 | AM11: 24 | AN11: 0.75 | AO11: 80 | AP11: 601.7570275
A12: Ensitjat blat de moro vidriós > 35% MS | B12: 41.5 | C12: 0.95 | D12: 0.91 | E12: 79 | F12: 12 | G12: 63 | H12: -33 | I12: 0.9 | J12: 0.96 | K12: 1.28 | L12: 1.4 | M12: 0.72 | N12: 690 | O12: 31 | P12: 202 | Q12: 403 | R12: 204 | T12: 41 | U12: 0.8 | V12: 1.3 | W12: 1.2
A13: Ensitjat blat de moro, espigues completes (Pastone) | B13: 53 | C13: 1,08 | E13: 83 | F13: 27 | G13: 78 | H13: -42 | I13: 0,97 | L13: 1,4 | M13: 0.78 | N13: 768.16 | O13: 31 | P13: 90 | Q13: 318 | R13: 104 | T13: 19 | U13: 0.8 | V13: 1.26 | W13: 1.5 | AE13: 400 | AM13: 24 | AN13: 0.63 | AO13: 0.87
A14: ENSITJAT Blat Lletós-pastós | B14: 35 | C14: 0.69 | D14: 0.6 | E14: 98 | F14: 17 | G14: 62 | H14: -12 | I14: 1.01 | J14: 1.01 | K14: 1.36 | L14: 2 | M14: 0.59 | N14: 526 | O14: 25 | P14: 267 | Q14: 522 | R14: 313 | T14: 108 | U14: 1.6 | V14: 1.7 | W14: 1.4
A15: ENSITJAT Civada Lletós-pastós | B15: 31 | C15: 0.6642411484 | D15: 0.5695207363 | E15: 96.6 | F15: 18.9336 | G15: 47.97507469 | H15: -17.51123621 | I15: 1.154955419 | J15: 1.282660589 | K15: 1.791224433 | L15: 1.504435061 | M15: 0.56 | N15: 508.704 | O15: 45 | P15: 333.4 | Q15: 600.1 | R15: 385.3 | S15: 49.3 | T15: 91.6 | U15: 1.6 | V15: 1.7 | AC15: 5 | AD15: 0.13 | AG15: 30 | AJ15: 5000 | AK15: 200 | AL15: 5 | AM15: 19 | AN15: 0.72 | AO15: 80 | AP15: 433.84195
A16: ENSITJAT Enclova Botons Florals a Floració, Bolles | B16: 27.16 | C16: 0.754603903 | D16: 0.6728644459 | E16: 140.9 | F16: 16.27395 | G16: 57.0350509 | H16: 33.42177985 | I16: 1.075441606 | J16: 1.126048654 | K16: 1.267021205 | L16: 2.126863251 | M16: 0.60143 | N16: 526.25125 | O16: 27 | P16: 353.5 | Q16: 537.2 | R16: 351.6765 | T16: 125 | U16: 3.6 | V16: 2.1 | AM16: 20.4647 | AN16: 0.79 | AO16: 150 | AP16: 306.2478463
A17: ENSITJAT Enclova Inici Floració a Fructificació | B17: 19.66 | C17: 0.7669925154 | D17: 0.6858718121 | E17: 135.6 | F17: 15.6618 | G17: 56.90934942 | H17: 28.47470403 | I17: 1.080492689 | J17: 1.135321292 | K17: 1.273160331 | L17: 2.116607605 | M17: 0.605612 | N17: 535.7243752 | O17: 27 | P17: 349.4 | Q17: 589.3 | R17: 349.3026 | T17: 115.4 | U17: 3.6 | V17: 2.1 | AM17: 20.0248 | AN17: 0.79 | AO17: 150 | AP17: 316.8191373
A18: ENSITJAT Ordi Lletós-pastós | B18: 35 | C18: 0.73 | D18: 0.64 | E18: 81 | F18: 14 | G18: 60 | H18: -27 | I18: 1.06 | J18: 1.1 | K18: 1.36 | L18: 2 | M18: 0.59 | N18: 549 | O18: 25 | P18: 200 | Q18: 449 | R18: 249 | T18: 70 | U18: 1.3 | V18: 1.5 | W18: 1.8
A19: ENSITJAT Prat natural pla, gramínies en gran part | B19: 48 | C19: 0.9301076693 | D19: 0.8656931921 | E19: 114.3 | F19: 15.0876 | G19: 51.5305866 | H19: -5.252929949 | I19: 1.131789867 | J19: 1.229566374 | K19: 1.638343115 | L19: 1.644820804 | M19: 0.668711 | N19: 599.165056 | O19: 22.2 | P19: 311.3 | Q19: 584.2 | R19: 385 | T19: 104 | U19: 3.48 | V19: 1.82 | AJ19: 8000 | AK19: 200 | AL19: 5 | AM19: 18.2569 | AN19: 0.78 | AO19: 115 | AP19: 535.9795542
A20: ENSITJAT Raigràs italià 1 setmana abans inici espigat prefenificat | B20: 33.5 | C20: 0.9154038958 | D20: 0.8723292381 | E20: 123 | F20: 17 | G20: 67 | H20: 5 | I20: 1.05 | J20: 1.07 | K20: 1.35 | L20: 2 | M20: 0.73 | N20: 649.7 | O20: 36 | P20: 246 | Q20: 510 | R20: 275 | T20: 110 | U20: 1.84 | V20: 1.56 | AJ20: 8000 | AK20: 200 | AL20: 5 | AM20: 19 | AN20: 0.79 | AO20: 80 | AP20: 588.49475
A21: ENSITJAT Raigràs italià Final espigat prefenificat | B21: 33.5 | C21: 0.78 | D21: 0.71 | E21: 95 | F21: 12 | G21: 59 | H21: -14 | I21: 1.11 | J21: 1.18 | K21: 1.62 | L21: 1.7 | M21: 0.66 | N21: 594.66 | O21: 33 | P21: 297 | Q21: 571 | R21: 327 | T21: 99 | U21: 1.84 | V21: 1.38 | AJ21: 8000 | AK21: 200 | AL21: 5 | AM21: 17 | AN21: 0.79 | AO21: 80 | AP21: 534.52605
A22: ENSITJAT Raigràs italià Inici espigat prefenificat | B22: 33.5 | C22: 0.88 | D22: 0.82 | E22: 117 | F22: 16 | G22: 65 | H22: 1 | I22: 1.06 | J22: 1.08 | K22: 1.39 | L22: 1.9 | M22: 0.706043 | N22: 631.9 | O22: 35 | P22: 254 | Q22: 520 | R22: 283 | T22: 110 | U22: 1.84 | V22: 1.56 | AJ22: 8000 | AK22: 200 | AL22: 5 | AM22: 19 | AN22: 0.79 | AO22: 80 | AP22: 570.0426753
A23: ENSITJAT Sorgo Pastós | B23: 24 | C23: 0.8946611737 | D23: 0.8448988526 | E23: 102.3 | F23: 26.4957 | G23: 67.48794219 | H23: -32.54844063 | I23: 1.126297354 | J23: 1.216028017 | K23: 1.608406605 | L23: 1.675435074 | M23: 0.701 | N23: 644.7097 | O23: 25 | P23: 293.4 | Q23: 586.4 | R23: 346.8 | S23: 42.4 | T23: 80.3 | U23: 2.24 | V23: 1.584 | AJ23: 5000 | AK23: 200 | AL23: 5 | AM23: 19 | AN23: 0.63 | AO23: 80 | AP23: 572.00891
A24: ENSITJAT Triticale lletós | B24: 28.1 | C24: 0.7185428841 | D24: 0.6315093177 | E24: 99.8 | F24: 19.5608 | G24: 51.20239422 | H24: -17.39059614 | I24: 1.146293336 | J24: 1.262798213 | K24: 1.742230253 | L24: 1.546742077 | M24: 0.5903225806 | N24: 537.6067742 | O24: 46.6 | P24: 329.3 | Q24: 589.7 | R24: 373.5 | S24: 46.2 | T24: 89.3 | U24: 1.96 | V24: 1.914 | AJ24: 5000 | AK24: 200 | AL24: 5 | AM24: 19 | AN24: 0.72 | AO24: 80 | AP24: 464.2085694
A25: FENC Alfals Botons florals | B25: 85 | C25: 0.72 | D25: 0.63 | E25: 174 | F25: 39 | G25: 86 | H25: 37 | I25: 1.03 | J25: 1.04 | K25: 1.2 | L25: 2.2 | M25: 0.6 | N25: 544 | O25: 26 | P25: 351 | Q25: 548 | R25: 352 | T25: 93 | U25: 3.8 | V25: 1.4 | W25: 2.5 | AC25: 7.1 | AG25: 29 | AI25: 24.6 | AJ25: 45000 | AK25: 400 | AL25: 10 | AM25: 21.823 | AN25: 0.72 | AP25: 344.9931188
A26: FENC Alfals Floració | B26: 85 | C26: 0.66 | D26: 0.56 | E26: 163 | F26: 36 | G26: 82 | H26: 30 | I26: 1.04 | J26: 1.05 | K26: 1.23 | L26: 2.2 | M26: 0.57 | N26: 521 | O26: 25 | P26: 374 | Q26: 564 | R26: 367 | T26: 85 | U26: 3.6 | V26: 1.3 | W26: 2.5 | AJ26: 45000 | AK26: 400 | AL26: 10 | AM26: 20.91 | AN26: 0.72 | AP26: 324.6684585
A27: FENC Alfals floració (Catalunya) | B27: 89 | C27: 0.7804774848 | D27: 0.7084236384 | E27: 174.5 | F27: 36.645 | G27: 73.40253262 | H27: 36.23664732 | I27: 1.017963166 | J27: 1.029102189 | K27: 1.286335584 | L27: 2.094928316 | M27: 0.623962 | N27: 555.950142 | O27: 19.8 | P27: 271.5 | Q27: 446.6 | R27: 316.7 | S27: 69.1 | T27: 109 | U27: 3.8 | V27: 1.3 | AB27: 0.1 | AC27: 4.6 | AD27: 0.6 | AG27: 42.9 | AH27: 0.03 | AI27: 21.3 | AJ27: 45000 | AK27: 400 | AL27: 10 | AM27: 22.1135 | AN27: 0.72 | AP27: 466.3887716
A28: FENC Alfals Inici vegetació | B28: 85 | C28: 0.7631700038 | D28: 0.6873563 | E28: 168.5 | F28: 35.385 | G28: 71.39879666 | H28: 32.37218784 | I28: 1.027253066 | J28: 1.045286018 | K28: 1.31089825 | L28: 2.055675061 | M28: 0.612562 | N28: 548.9168082 | O28: 21.2 | P28: 283.4 | Q28: 483.1 | R28: 326.7 | S28: 69.3 | T28: 103.9 | U28: 3.75 | V28: 1.68 | AB28: 0.1 | AC28: 4.6 | AD28: 0.6 | AG28: 42.9 | AH28: 0.03 | AI28: 21.3 | AJ28: 45000 | AK28: 400 | AL28: 10 | AM28: 21.6155 | AN28: 0.72 | AP28: 460.0530203
A29: FENC Alfals rebrots (Catalunya) | B29: 89 | C29: 0.8220547044 | D29: 0.7561386752 | E29: 179.3 | F29: 37.653 | G29: 76.25857889 | H29: 38.09099042 | I29: 1.006503009 | J29: 1.009490389 | K29: 1.256671417 | L29: 2.14437983 | M29: 0.64471 | N29: 577.982515 | O29: 19.8 | P29: 259.6 | Q29: 442.1 | R29: 298.5 | S29: 65.8 | T29: 103.5 | U29: 3.3 | V29: 1.54 | AB29: 0.1 | AC29: 4.6 | AD29: 0.6 | AG29: 42.9 | AH29: 0.03 | AI29: 21.3 | AJ29: 45000 | AK29: 400 | AL29: 10 | AM29: 22.5119 | AN29: 0.72 | AP29: 488.6649455
A30: FENC Alfals rebrots de floració | B30: 85 | C30: 0.71 | D30: 0.62 | E30: 177 | F30: 38 | G30: 85 | H30: 39 | I30: 1.03 | J30: 1.04 | K30: 1.17 | L30: 2.3 | M30: 0.6 | N30: 548 | O30: 26 | P30: 361 | Q30: 555 | R30: 359 | T30: 86 | U30: 3.3 | V30: 1.3 | W30: 2 | AB30: 0.1 | AC30: 4.6 | AD30: 0.6 | AG30: 42.9 | AH30: 0.03 | AI30: 21.3 | AJ30: 45000 | AK30: 400 | AL30: 10 | AM30: 22.072 | AN30: 0.72 | AP30: 334.8526972
A31: FENC Alfals Sense especificar (estiu) IAMZ | B31: 90 | C31: 0.8027529859 | D31: 0.732612327 | E31: 187 | F31: 39.27 | G31: 76.69014372 | H31: 44.68883486 | I31: 1.004731173 | J31: 1.006321977 | K31: 1.25219197 | L31: 2.152050886 | M31: 0.631828 | N31: 566.117888 | O31: 25 | P31: 284 | Q31: 583.76 | R31: 309.8 | T31: 104 | U31: 3.8 | V31: 1.3 | AJ31: 45000 | AK31: 400 | AL31: 10 | AM31: 23.151 | AN31: 0.72 | AP31: 474.0078601
A32: FENC Alfals Sense especificar (primavera) IAMZ | B32: 90 | C32: 0.8022678479 | D32: 0.7359621515 | E32: 171 | F32: 35.91 | G32: 73.93543875 | H32: 32.77416797 | I32: 1.014835798 | J32: 1.023836553 | K32: 1.278138126 | L32: 2.108364335 | M32: 0.64072 | N32: 567.0372 | O32: 25 | P32: 300 | Q32: 394 | R32: 302 | T32: 115 | U32: 3.8 | V32: 1.3 | AJ32: 45000 | AK32: 400 | AL32: 10 | AM32: 21.823 | AN32: 0.72 | AP32: 479.4969685
A33: FENC Bromo Final vegetació | B33: 85 | C33: 0.7641928518 | D33: 0.6935543947 | E33: 100 | F33: 20.3 | G33: 58.49315002 | H33: -20.42784718 | I33: 1.083509489 | J33: 1.149054212 | K33: 1.470370044 | L33: 1.832722892 | M33: 0.62749 | N33: 564.741 | O33: 34 | P33: 320 | Q33: 640 | R33: 333 | T33: 100 | U33: 1.24 | V33: 2.03 | AJ33: 50000 | AK33: 50 | AL33: 5 | AM33: 15.93 | AN33: 0.71 | AP33: 494.5458579
A34: FENC Civada Floració | B34: 90 | C34: 0.6748031786 | D34: 0.5822746186 | E34: 140 | F34: 33.32 | G34: 65.22813994 | H34: 6.340615698 | I34: 1.074914591 | J34: 1.131741987 | K34: 1.444961085 | L34: 1.864950459 | M34: 0.55566 | N34: 509.54022 | O34: 33 | P34: 320 | Q34: 620 | R34: 390 | S34: 60 | T34: 83 | U34: 2.52 | V34: 0.66 | AJ34: 50000 | AK34: 50 | AL34: 5 | AM34: 19.25 | AN34: 0.66 | AP34: 419.8801711
A35: FENC Civada Inici espigat | B35: 90 | C35: 0.7865238981 | D35: 0.7057522891 | E35: 175 | F35: 41.65 | G35: 77.97898436 | H35: 25.71188765 | I35: 1.023756676 | J35: 1.039063255 | K35: 1.301625956 | L35: 2.070318916 | M35: 0.60695 | N35: 567.49825 | O35: 26 | P35: 290 | Q35: 580 | R35: 350 | S35: 40 | T35: 65 | U35: 2.52 | V35: 0.66 | AJ35: 50000 | AK35: 50 | AL35: 5 | AM35: 22.155 | AN35: 0.66 | AP35: 471.7400882
A36: FENC Dàctil Floració | B36: 85 | C36: 0.6267609342 | D36: 0.5315550907 | E36: 88 | F36: 17.248 | G36: 48.36165599 | H36: -22.60508827 | I36: 1.134465219 | J36: 1.249296501 | K36: 1.633810149 | L36: 1.649384319 | M36: 0.537152 | N36: 491.49408 | O36: 27 | P36: 372 | Q36: 684.08 | R36: 404 | T36: 85 | U36: 0.92 | V36: 1.26 | AJ36: 50000 | AK36: 50 | AL36: 5 | AM36: 14.934 | AN36: 0.72 | AP36: 418.5686824
A37: FENC Enclova Final floració | B37: 87.6 | C37: 0.7974276922 | D37: 0.7271766252 | E37: 143 | F37: 30.03 | G37: 68.40600963 | H37: 11.57181812 | I37: 1.041902847 | J37: 1.071676354 | K37: 1.350515054 | L37: 1.995372678 | M37: 0.63274 | N37: 575.16066 | O37: 13.5 | P37: 287 | Q37: 414 | R37: 309 | T37: 91 | U37: 0.36 | V37: 0.21 | AJ37: 45000 | AK37: 400 | AL37: 10 | AM37: 19.499 | AN37: 0.72 | AP37: 493.9941847
A38: FENC Festuca Floració | B38: 88.2 | C38: 0.7394322088 | D38: 0.6592885094 | E38: 116 | F38: 23.548 | G38: 59.75765181 | H38: -7.64311645 | I38: 1.079354117 | J38: 1.140751809 | K38: 1.457997654 | L38: 1.848275155 | M38: 0.6004725 | N38: 550.6332825 | O38: 27 | P38: 331 | Q38: 637.34 | R38: 354.45 | T38: 83 | U38: 0.92 | V38: 1.26 | AJ38: 50000 | AK38: 50 | AL38: 5 | AM38: 17.258 | AN38: 0.71 | AP38: 474.7304096
A39: FENC Ordi Espigat | B39: 78.5 | C39: 0.5919301713 | D39: 0.4925934379 | E39: 112 | F39: 26.656 | G39: 55.09811221 | H39: -9.266789075 | I39: 1.11967543 | J39: 1.218703295 | K39: 1.584554034 | L39: 1.700655693 | M39: 0.514628 | N39: 464.709084 | O39: 12.5 | P39: 285 | Q39: 584.9 | R39: 422 | T39: 97 | U39: 1.18 | V39: 1.65 | W39: 1.6 | Y39: 14.15 | Z39: 1.75 | AA39: 1.7 | AB39: 0.07 | AC39: 24 | AF39: 101 | AG39: 27 | AH39: 0.16 | AI39: 48 | AM39: 16.926 | AN39: 0.66 | AP39: 379.9275254
A40: FENC Ordi Inici espigat | B40: 83.7 | C40: 0.7873403043 | D40: 0.7263260237 | E40: 108 | F40: 25.704 | G40: 65.002965 | H40: -20.29450546 | I40: 1.065656642 | J40: 1.11556277 | K40: 1.417509819 | L40: 1.901066789 | M40: 0.653002 | N40: 570.723748 | O40: 12.5 | P40: 285 | Q40: 584.9 | R40: 313 | T40: 126 | U40: 1.18 | V40: 1.65 | W40: 1.6 | Y40: 14.15 | Z40: 1.75 | AA40: 1.7 | AB40: 0.07 | AC40: 24 | AF40: 101 | AG40: 27 | AH40: 0.16 | AI40: 48 | AJ40: 50000 | AK40: 50 | AL40: 5 | AM40: 16.594 | AN40: 0.66 | AP40: 496.5856114
A41: FENC Ordi Lletós | B41: 90 | C41: 0.7063206172 | D41: 0.6214014901 | E41: 135 | F41: 32.13 | G41: 65.96134992 | H41: 1.60549777 | I41: 1.06938303 | J41: 1.121640879 | K41: 1.428604953 | L41: 1.886302322 | M41: 0.58099 | N41: 526.37694 | O41: 12.5 | P41: 285 | Q41: 610 | R41: 370 | T41: 94 | U41: 1.44 | V41: 1.584 | W41: 1.6 | Y41: 14.15 | Z41: 1.75 | AA41: 1.7 | AB41: 0.07 | AC41: 24 | AF41: 101 | AG41: 27 | AH41: 0.16 | AI41: 48 | AJ41: 50000 | AK41: 50 | AL41: 5 | AM41: 18.835 | AN41: 0.66 | AP41: 439.8400866
A42: FENC Ordi Vidriós | B42: 76.3 | C42: 0.7403468234 | D42: 0.6622083638 | E42: 99 | F42: 23.562 | G42: 60.20475676 | H42: -25.00432611 | I42: 1.093450987 | J42: 1.167979739 | K42: 1.500772141 | L42: 1.795596257 | M42: 0.605886 | N42: 554.38569 | O42: 12.5 | P42: 285 | Q42: 584.9 | R42: 350 | T42: 85 | U42: 1.44 | V42: 1.584 | W42: 1.8 | Y42: 11.8 | Z42: 1.4 | AA42: 1.7 | AB42: 0.07 | AC42: 24 | AF42: 101 | AG42: 27 | AH42: 0.16 | AI42: 48 | AJ42: 50000 | AK42: 50 | AL42: 5 | AM42: 15.847 | AN42: 0.66 | AP42: 479.4760238
A43: FENC Raigràs italià Espigat | B43: 85 | C43: 0.7551388452 | D43: 0.682416558 | E43: 79 | F43: 13.825 | G43: 52.18563094 | H43: -32.77260482 | I43: 1.106265531 | J43: 1.193403103 | K43: 1.540819033 | L43: 1.74892754 | M43: 0.622116 | N43: 566.12556 | O43: 26 | P43: 307 | Q43: 609.98 | R43: 337 | T43: 90 | U43: 1.6 | V43: 1.61 | W43: 2 | Y43: 20 | Z43: 2 | AC43: 4.9 | AG43: 110 | AI43: 26.5 | AJ43: 50000 | AK43: 50 | AL43: 5 | AM43: 14.187 | AN43: 0.75 | AP43: 502.8178696
A44: FENC Raigràs italià Floració | B44: 85 | C44: 0.6767027483 | D44: 0.590716319 | E44: 52 | F44: 10.92 | G44: 45.71239642 | H44: -52.98300282 | I44: 1.155610109 | J44: 1.294411723 | K44: 1.707296002 | L44: 1.578391115 | M44: 0.574748 | N44: 528.76816 | O44: 24 | P44: 344 | Q44: 652.16 | R44: 374 | T44: 80 | U44: 1.6 | V44: 1.26 | AJ44: 50000 | AK44: 50 | AL44: 5 | AM44: 11.946 | AN44: 0.7 | AP44: 466.1057416
A45: FENC Raigràs italià rebrots d'espigat amb fulles | B45: 85 | C45: 0.8845575231 | D45: 0.835550182 | E45: 107 | F45: 23.219 | G45: 65.95615613 | H45: -22.33097018 | I45: 1.050313537 | J45: 1.087684312 | K45: 1.37366381 | L45: 1.961746987 | M45: 0.69441 | N45: 629.13546 | O45: 29 | P45: 256 | Q45: 567 | R45: 291 | T45: 94 | U45: 1.6 | V45: 1.89 | W45: 2 | Y45: 20 | Z45: 2 | AJ45: 50000 | AK45: 50 | AL45: 5 | AM45: 16.511 | AN45: 0.69 | AP45: 560.3751069
A46: FENC Trèvol blanc Vegetatiu | B46: 90 | C46: 0.7981872668 | D46: 0.7236613654 | E46: 220 | F46: 56.1 | G46: 91.79713043 | H46: 57.22036526 | I46: 0.9822368086 | J46: 0.9683089799 | K46: 1.196312677 | L46: 2.252572334 | M46: 0.6202 | N46: 557.5598 | O46: 27 | P46: 212 | Q46: 360 | R46: 320 | S46: 70 | T46: 101 | U46: 3.1 | V46: 1.6 | W46: 4.3 | X46: 3.2 | Y46: 16.2 | Z46: 1.9 | AA46: 1.7 | AB46: 0.16 | AC46: 11 | AF46: 184 | AG46: 73 | AI46: 17 | AJ46: 45000 | AK46: 400 | AL46: 10 | AM46: 25.89 | AN46: 0.66 | AP46: 446.5874095
A47: FENC Trèvol violeta Final floració | B47: 89 | C47: 0.7112930165 | D47: 0.6233057215 | E47: 160 | F47: 40.8 | G47: 73.88731868 | H47: 18.87200844 | I47: 1.049059571 | J47: 1.083978186 | K47: 1.370545909 | L47: 1.966209831 | M47: 0.5746 | N47: 525.759 | O47: 28 | P47: 288 | Q47: 460 | R47: 360 | S47: 80 | T47: 85 | U47: 3.1 | V47: 1.6 | AJ47: 45000 | AK47: 400 | AL47: 10 | AM47: 20.91 | AN47: 0.66 | AP47: 429.1792985
A48: FENC Veça (< 20%)-Civada tall precoç INRA | B48: 81 | C48: 0.74 | D48: 0.66 | E48: 129 | F48: 29 | G48: 81 | H48: -31.06451623 | I48: 1.031870043 | J48: 1.053472022 | K48: 1.21 | L48: 2.23 | M48: 0.7 | N48: 870 | P48: 270 | Q48: 575 | R48: 308 | T48: 130 | U48: 2.756 | V48: 0.988 | AN48: 0.64 | AP48: 803.2617
A49: FENC Veça (>50%)-Civada tall precoç INRA | B49: 84 | C49: 0.73 | D49: 0.65 | E49: 158 | F49: 42 | G49: 93 | H49: -18.58155175 | I49: 1.020408163 | J49: 1.024501769 | K49: 0.86 | L49: 3.13 | M49: 0.68 | N49: 881 | P49: 333 | Q49: 674 | R49: 378 | T49: 119 | U49: 3.01 | V49: 1.415 | AN49: 0.6 | AP49: 799.8825
A50: FENC Veça (>50%)-Civada tall tardà INRA | B50: 81 | C50: 0.65 | D50: 0.55 | E50: 123 | F50: 31 | G50: 81 | H50: -43.47657607 | I50: 1.07880684 | J50: 1.128333036 | K50: 0.89 | L50: 3.02 | M50: 0.61 | N50: 929 | P50: 268 | Q50: 584 | R50: 309 | T50: 71 | U50: 3.01 | V50: 1.415 | AN50: 0.6 | AP50: 854.0553
A51: FENC Veça (20-50%)-Civada tall precoç INRA | B51: 79 | C51: 0.72 | D51: 0.65 | E51: 104 | F51: 24 | G51: 75 | H51: -50.30615175 | I51: 1.065092359 | J51: 1.108776844 | K51: 1.21 | L51: 2.23 | M51: 0.68 | N51: 897 | P51: 280 | Q51: 595 | R51: 323 | T51: 103 | U51: 2.756 | V51: 0.988 | AN51: 0.63 | AP51: 833.8825
A52: FENC Veça (20-50%)-Civada tall tardà INRA | B52: 82 | C52: 0.64 | D52: 0.55 | E52: 99 | F52: 23 | G52: 72 | H52: -53.56774055 | I52: 1.090181359 | J52: 1.155366373 | K52: 1.39 | L52: 1.94 | M52: 0.63 | N52: 901 | P52: 333 | Q52: 675 | R52: 385 | T52: 99 | U52: 3.01 | V52: 1.415 | AN52: 0.63 | AP52: 835.4345
A53: FENC Veça Botons | B53: 92 | C53: 0.7602900998 | D53: 0.6840692248 | E53: 217 | F53: 55.335 | G53: 89.49619547 | H53: 56.93371672 | I53: 0.9884905805 | J53: 0.9786155001 | K53: 1.211628532 | L53: 2.224098202 | M53: 0.6088 | N53: 533.9176 | O53: 25 | P53: 244 | Q53: 470 | R53: 330 | T53: 123 | U53: 3.7 | V53: 2.3 | AJ53: 45000 | AK53: 400 | AL53: 10 | AM53: 25.641 | AN53: 0.66 | AP53: 423.0359288
A54: FENC Veça Final floració | B54: 85 | C54: 0.9139505759 | D54: 0.8625564777 | E54: 197 | F54: 50.235 | G54: 92.18452814 | H54: 36.48201349 | I54: 0.9773405656 | J54: 0.960845548 | K54: 1.184313609 | L54: 2.275394642 | M54: 0.688144 | N54: 623.458464 | O54: 25 | P54: 232 | Q54: 524.48 | R54: 260.4 | T54: 94 | U54: 3.5 | V54: 2.17 | AJ54: 45000 | AK54: 400 | AL54: 10 | AM54: 23.981 | AN54: 0.66 | AP54: 523.89411
A55: FENC Veça Fructificació | B55: 91 | C55: 0.8320963568 | D55: 0.7657742026 | E55: 186 | F55: 47.43 | G55: 85.84481608 | H55: 32.08838466 | I55: 1.000806021 | J55: 0.9997563541 | K55: 1.242213475 | L55: 2.169337956 | M55: 0.64528 | N55: 583.33312 | O55: 20 | P55: 236 | Q55: 453 | R55: 298 | T55: 96 | U55: 3.5 | V55: 2.1 | AJ55: 45000 | AK55: 400 | AL55: 10 | AM55: 23.068 | AN55: 0.66 | AP55: 484.0280298
A56: FENC Veça Inici botons | B56: 91.4 | C56: 0.9721214262 | D56: 0.932227536 | E56: 196 | F56: 49.98 | G56: 94.63849626 | H56: 33.46866561 | I56: 0.9680489979 | J56: 0.9458914147 | K56: 1.16210933 | L56: 2.318870324 | M56: 0.718468 | N56: 653.80588 | O56: 25 | P56: 204 | Q56: 492.56 | R56: 233.8 | T56: 90 | U56: 3.5 | V56: 2.1 | AJ56: 45000 | AK56: 400 | AL56: 10 | AM56: 23.898 | AN56: 0.66 | AP56: 556.6249568
A57: FENC Veça Inici floració | B57: 90 | C57: 0.7518572372 | D57: 0.6734733305 | E57: 225 | F57: 57.375 | G57: 90.85954176 | H57: 62.84705998 | I57: 0.9844856593 | J57: 0.9718713426 | K57: 1.201833094 | L57: 2.242225526 | M57: 0.60196 | N57: 527.91892 | O57: 25 | P57: 244 | Q57: 538.16 | R57: 336 | T57: 123 | U57: 3.5 | V57: 2.1 | AJ57: 45000 | AK57: 400 | AL57: 10 | AM57: 26.305 | AN57: 0.66 | AP57: 414.2272603
A58: FENC Veça Pastós | B58: 90.2 | C58: 0.9492342693 | D58: 0.908971077 | E58: 188 | F58: 47.94 | G58: 91.99944958 | H58: 28.96923571 | I58: 0.9750278921 | J58: 0.9572930027 | K58: 1.178699078 | L58: 2.286233093 | M58: 0.71596 | N58: 640.7842 | O58: 20 | P58: 278 | Q58: 576.92 | R58: 236 | T58: 105 | U58: 3.5 | V58: 2.1 | AJ58: 45000 | AK58: 400 | AL58: 10 | AM58: 23.234 | AN58: 0.66 | AP58: 545.7686271
A59: PALLA blat | B59: 88 | C59: 0.5448944996 | D59: 0.4422046337 | E59: 35 | F59: 7.84 | G59: 35.75192835 | H59: -59.96328956 | I59: 1.215855774 | J59: 1.428129804 | K59: 1.940357448 | L59: 1.388806399 | M59: 0.49196 | N59: 452.6032 | O59: 15 | P59: 420 | Q59: 738.8 | R59: 439 | T59: 80 | U59: 0.8 | V59: 0.66 | W59: 1.4 | Y59: 16.5 | Z59: 2.1 | AM59: 10.535 | AN59: 0.68 | AP59: 387.9456129
A60: PALLA Blat de moro rostoll | B60: 85 | C60: 0.6529503033 | D60: 0.5611555319 | E60: 59 | F60: 14.042 | G60: 47.1604761 | H60: -49.08081739 | I60: 1.157472222 | J60: 1.298062411 | K60: 1.714069322 | L60: 1.572153941 | M60: 0.554526 | N60: 514.600128 | O60: 13 | P60: 344 | Q60: 670 | R60: 390 | S60: 110 | T60: 72 | U60: 2.28 | V60: 0.66 | W60: 1.4 | Y60: 16.5 | Z60: 2.1 | AJ60: 50000 | AK60: 50 | AL60: 5 | AM60: 12.527 | AN60: 0.66 | AP60: 447.1601862
A61: PALLA Blat tractada amoniac | B61: 88 | C61: 0.565316952 | D61: 0.4605385981 | E61: 100 | F61: 22.4 | G61: 49.60791438 | H61: -16.60686793 | I61: 1.141925732 | J61: 1.264114285 | K61: 1.659586355 | L61: 1.623766568 | M61: 0.49287 | N61: 453.4404 | O61: 15 | P61: 420 | Q61: 738.8 | R61: 439 | T61: 80 | U61: 0.8 | V61: 0.7 | AM61: 15.93 | AN61: 0.66 | AP61: 371.8618627
A62: PALLA Civada | B62: 88 | C62: 0.5381272518 | D62: 0.4366356893 | E62: 32 | F62: 7.392 | G62: 35.09975274 | H62: -62.00686823 | I62: 1.219499726 | J62: 1.436733453 | K62: 1.955627715 | L62: 1.377962083 | M62: 0.491918 | N62: 447.64538 | O62: 15 | P62: 420 | Q62: 738.8 | R62: 439 | T62: 90 | U62: 1.4 | V62: 0.66 | AJ62: 50000 | AK62: 50 | AL62: 5 | AM62: 10.286 | AN62: 0.67 | AP62: 383.5447598
A63: PALLA Ordi | B63: 88 | C63: 0.54583885 | D63: 0.4430524613 | E63: 38 | F63: 8.512 | G63: 36.3914354 | H63: -57.86991626 | I63: 1.212233533 | J63: 1.419628584 | K63: 1.925323806 | L63: 1.399650714 | M63: 0.492002 | N63: 452.64184 | O63: 12.5 | P63: 420 | Q63: 738.8 | R63: 439 | T63: 80 | U63: 1.4 | V63: 0.66 | W63: 1.4 | Y63: 16.5 | Z63: 2.1 | AC63: 3.1 | AG63: 17.6 | AI63: 7.3 | AJ63: 50000 | AK63: 50 | AL63: 5 | AM63: 10.784 | AN63: 0.68 | AP63: 387.2032859
A64: PALLA Ordi tractada amoniac | B64: 88 | C64: 0.565316952 | D64: 0.4605385981 | E64: 100 | F64: 22.4 | G64: 49.60791438 | H64: -16.60686793 | I64: 1.141925732 | J64: 1.264114285 | K64: 1.659586355 | L64: 1.623766568 | M64: 0.49287 | N64: 453.4404 | O64: 12.5 | P64: 420 | Q64: 738.8 | R64: 439 | T64: 80 | U64: 1.4 | V64: 0.66 | AM64: 15.93 | AN64: 0.66 | AP64: 371.8618627
A65: VERD Alfals Inici botons florals | B65: 18.83 | C65: 0.8954507068 | D65: 0.8453932124 | E65: 196.7 | F65: 33.93075 | G65: 74.37573864 | H65: 59.44643611 | I65: 0.9783295072 | J65: 0.9618149826 | K65: 0.9515972519 | L65: 2.83185017 | M65: 0.674826 | N65: 585.2091072 | O65: 22.6 | P65: 277.4 | Q65: 442.1 | R65: 334.4 | S65: 74.3 | T65: 132.8 | U65: 4.8 | V65: 1.9 | AC65: 8.8 | AD65: 1.3 | AG65: 26.7 | AI65: 32.3 | AJ65: 120000 | AK65: 20 | AL65: 100 | AM65: 20.3135 | AN65: 0.77 | AP65: 502.6782183
A66: VERD Alfals Vegetatiu 30 cm | B66: 14.4 | C66: 1.057970395 | D66: 1.037917837 | E66: 246 | F66: 40.59 | G66: 87.13790609 | H66: 95.11408255 | I66: 0.9343019937 | J66: 0.8904932233 | K66: 0.8622791436 | L66: 3.125183834 | M66: 0.75199 | N66: 654.98329 | O66: 33 | P66: 201 | Q66: 489.14 | R66: 259 | T66: 129 | U66: 4.8 | V66: 2.6 | AC66: 8.8 | AD66: 1.3 | AG66: 26.7 | AI66: 32.3 | AJ66: 120000 | AK66: 20 | AL66: 100 | AM66: 25.49 | AN66: 0.78 | AP66: 568.7888379
A67: VERD Blat de moro Pastós | B67: 30.7 | C67: 1.336519373 | D67: 1.297656969 | E67: 77.4 | F67: 13.932 | G67: 58.79146932 | H67: -42.36519209 | I67: 1.02870768 | J67: 1.049139944 | K67: 1.066392013 | L67: 1.4 | M67: 0.720464135 | N67: 687.4668776 | O67: 23.8 | P67: 208 | Q67: 454.4 | R67: 243.9 | S67: 29.5 | T67: 45.8 | U67: 0.9 | V67: 1.3 | AA67: 1.1 | AE67: 271 | AF67: 160 | AJ67: 80000 | AK67: 30 | AL67: 20 | AM67: 15.357 | AN67: 0.76 | AP67: 630.3086521
A68: VERD Civada Floració | B68: 17.7 | C68: 0.8229420319 | D68: 0.7662555366 | E68: 101 | F68: 18.9375 | G68: 59.89304518 | H68: -17.97919135 | I68: 1.102855944 | J68: 1.190232315 | K68: 1.265754423 | L68: 2.128991841 | M68: 0.66 | N68: 594 | O68: 32 | P68: 333 | Q68: 639.62 | R68: 364 | T68: 100 | U68: 1.6 | V68: 1.98 | AJ68: 80000 | AK68: 30 | AL68: 20 | AM68: 17.835 | AN68: 0.75 | AP68: 526.5534262
A69: VERD Civada Inici allargament tiges | B69: 14.9 | C69: 1.064086631 | D69: 1.064854725 | E69: 120 | F69: 26.1 | G69: 78.54094724 | H69: -13.57775696 | I69: 1.020791557 | J69: 1.034988504 | K69: 1.047364373 | L69: 2.572916273 | M69: 0.8100113766 | N69: 712 | O69: 34 | P69: 230 | Q69: 522.2 | R69: 257 | T69: 121 | U69: 2 | V69: 2.64 | AJ69: 80000 | AK69: 30 | AL69: 20 | AM69: 19.83 | AN69: 0.74 | AP69: 646.839457
A70: VERD Civada Inici espigat | B70: 20.6 | C70: 0.9133309306 | D70: 0.8741939522 | E70: 102 | F70: 19.89 | G70: 65.21758227 | H70: -21.9507916 | I70: 1.060258573 | J70: 1.1072336 | K70: 1.146303874 | L70: 2.350843351 | M70: 0.7104972376 | N70: 643 | O70: 32 | P70: 302 | Q70: 604.28 | R70: 331 | T70: 95 | U70: 1.8 | V70: 2.31 | AJ70: 80000 | AK70: 30 | AL70: 20 | AM70: 17.94 | AN70: 0.74 | AP70: 578.0360445
A71: VERD Civada Lletós-pastós | B71: 31.8 | C71: 0.735658448 | D71: 0.6565506562 | E71: 67 | F71: 12.5625 | G71: 48.69970816 | H71: -40.32371469 | I71: 1.10231487 | J71: 1.18914327 | K71: 1.26414502 | L71: 2.131702295 | M71: 0.5894396552 | N71: 547 | O71: 25 | P71: 270 | Q71: 567.8 | R71: 298 | T71: 72 | U71: 1.4 | V71: 1.65 | AJ71: 80000 | AK71: 30 | AL71: 20 | AM71: 14.265 | AN71: 0.75 | AP71: 482.6664074
A72: VERD Civada Pastós | B72: 38.3 | C72: 0.7072537332 | D72: 0.6232506884 | E72: 63 | F72: 12.285 | G72: 46.82400532 | H72: -42.66801408 | I72: 1.085210225 | J72: 1.155186303 | K72: 1.214532939 | L72: 2.218779543 | M72: 0.5698924731 | N72: 530 | O72: 25 | P72: 263 | Q72: 559.82 | R72: 291 | T72: 70 | U72: 1.2 | V72: 1.65 | AJ72: 80000 | AK72: 30 | AL72: 20 | AM72: 13.845 | AN72: 0.74 | AP72: 464.7846187
A73: VERD Enclova Botons | B73: 11 | C73: 0.9871458131 | D73: 0.9668537027 | E73: 199 | F73: 40.2975 | G73: 86.21303252 | H73: 49.55476384 | I73: 0.9828422118 | J73: 0.9693798556 | K73: 0.9612993691 | L73: 2.803269123 | M73: 0.753 | N73: 637.791 | O73: 27 | P73: 200 | Q73: 488 | R73: 230 | T73: 153 | U73: 3.3 | V73: 2.1 | AJ73: 120000 | AK73: 20 | AL73: 100 | AM73: 20.555 | AN73: 0.73 | AP73: 554.1757463
A74: VERD Enclova Botons florals, 1r any | B74: 13.77 | C74: 0.9661408557 | D74: 0.9305393291 | E74: 168.9 | F74: 34.20225 | G74: 86.94535264 | H74: 26.68590212 | I74: 1.000730959 | J74: 0.9998558827 | K74: 1.000844288 | L74: 2.692507587 | M74: 0.717953 | N74: 645.1525658 | O74: 27 | P74: 234.7 | Q74: 348.5 | R74: 330.4 | T74: 101.4 | U74: 3.6 | V74: 2.1 | AM74: 17.3945 | AN74: 0.73 | AP74: 566.6355756
A75: VERD Enclova Botons Florals, 2n any | B75: 12.51 | C75: 0.8951169505 | D75: 0.8483103437 | E75: 168.9 | F75: 34.20225 | G75: 85.02746379 | H75: 29.68260345 | I75: 1.021257856 | J75: 1.035817512 | K75: 1.048474402 | L75: 2.570192304 | M75: 0.686441 | N75: 605.6468943 | O75: 27 | P75: 265.9 | Q75: 382.3 | R75: 352.4 | T75: 117.7 | U75: 3.6 | V75: 2.1 | AM75: 17.3945 | AN75: 0.73 | AP75: 524.9568365
A76: VERD Enclova Final floració | B76: 15.3 | C76: 0.8276145297 | D76: 0.7672213764 | E76: 152 | F76: 29.64 | G76: 68.69210074 | H76: 20.9161303 | I76: 1.041416423 | J76: 1.072209943 | K76: 1.097775658 | L76: 2.454764615 | M76: 0.64695 | N76: 574.4916 | O76: 21 | P76: 305 | Q76: 607.7 | R76: 329.75 | T76: 112 | U76: 2.7 | V76: 3.5 | AJ76: 120000 | AK76: 20 | AL76: 100 | AM76: 15.62 | AN76: 0.74 | AP76: 496.437687
A77: VERD Enclova Floració | B77: 13.5 | C77: 0.8566351193 | D77: 0.8059033998 | E77: 155 | F77: 30.225 | G77: 70.91503133 | H77: 22.20440079 | I77: 1.033625341 | J77: 1.058015117 | K77: 1.078411657 | L77: 2.498842463 | M77: 0.67321 | N77: 586.36591 | O77: 23 | P77: 279 | Q77: 578.06 | R77: 305.05 | T77: 129 | U77: 3.6 | V77: 2.1 | AJ77: 120000 | AK77: 20 | AL77: 100 | AM77: 15.935 | AN77: 0.74 | AP77: 509.3963728
A78: VERD Enclova Floració, 1r any | B78: 14.92 | C78: 0.8896999035 | D78: 0.8413566291 | E78: 162.4 | F78: 31.668 | G78: 82.56252045 | H78: 26.45331179 | I78: 1.017849675 | J78: 1.029771407 | K78: 1.040391915 | L78: 2.590159344 | M78: 0.682098 | N78: 604.6116672 | O78: 23 | P78: 270.2 | Q78: 390.1 | R78: 346.3 | T78: 113.6 | U78: 2.7 | V78: 3.5 | AM78: 16.712 | AN78: 0.74 | AP78: 526.4629793
A79: VERD Enclova Floració, 2n any | B79: 17.12 | C79: 0.8321434211 | D79: 0.7722857657 | E79: 141.1 | F79: 27.5145 | G79: 77.40801428 | H79: 12.25538394 | I79: 1.04040746 | J79: 1.070362352 | K79: 1.095245434 | L79: 2.460435584 | M79: 0.64897 | N79: 579.984489 | O79: 23 | P79: 303 | Q79: 452.6 | R79: 406.5 | T79: 106.3 | U79: 2.7 | V79: 3.5 | AM79: 14.4755 | AN79: 0.74 | AP79: 504.7095418
A80: VERD Enclova Fructificació, 1r any | B80: 18.93 | C80: 0.7740194666 | D80: 0.7050334795 | E80: 130.8 | F80: 25.506 | G80: 74.01316404 | H80: 6.799556184 | I80: 1.056133358 | J80: 1.099480224 | K80: 1.135467666 | L80: 2.373278359 | M80: 0.618165 | N80: 549.4868685 | O80: 21 | P80: 333.5 | Q80: 519.6 | R80: 450.7 | T80: 111.1 | U80: 2.7 | V80: 3.5 | AM80: 13.394 | AN80: 0.74 | AP80: 474.5819724
A81: VERD Enclova Fructificació, 2n any | B81: 20.03 | C81: 0.7714311913 | D81: 0.6990913505 | E81: 135.4 | F81: 26.403 | G81: 74.79356037 | H81: 10.38574942 | I81: 1.052200861 | J81: 1.092134028 | K81: 1.125249773 | L81: 2.394829046 | M81: 0.609681 | N81: 548.6519319 | O81: 21 | P81: 341.9 | Q81: 491.1 | R81: 452.9 | T81: 100.1 | U81: 2.7 | V81: 3.5 | AM81: 13.877 | AN81: 0.74 | AP81: 472.0479914
A82: VERD Enclova fulla, 1r any | B82: 11 | C82: 1.096854529 | D82: 1.092315415 | E82: 233.5 | F82: 47.28375 | G82: 101.4759961 | H82: 71.57961546 | I82: 0.9440674911 | J82: 0.9059343706 | K82: 0.8812924975 | L82: 3.057759878 | M82: 0.789865 | N82: 687.814442 | O82: 27 | P82: 163.5 | Q82: 249.6 | R82: 234.1 | T82: 129.2 | U82: 3.3 | V82: 2.1 | AM82: 24.1775 | AN82: 0.73 | AP82: 598.1277405
A83: VERD Enclova fulla, 2n any | B83: 11 | C83: 1.099747568 | D83: 1.095573936 | E83: 240.5 | F83: 48.70125 | G83: 102.775997 | H83: 76.87320774 | I83: 0.9385770623 | J83: 0.8972271293 | K83: 0.8705493025 | L83: 3.095494801 | M83: 0.790269 | N83: 686.9808417 | O83: 27 | P83: 163.1 | Q83: 272.8 | R83: 253.3 | T83: 130.7 | U83: 3.3 | V83: 2.1 | AM83: 24.9125 | AN83: 0.73 | AP83: 595.5743013
A84: VERD Enclova gemmes florals, 1r any | B84: 11.91 | C84: 0.971662067 | D84: 0.9400058138 | E84: 170.3 | F84: 34.48575 | G84: 87.26725566 | H84: 27.64789741 | I84: 1.00280174 | J84: 1.003435006 | K84: 1.005537317 | L84: 2.679941156 | M84: 0.727447 | N84: 645.6819572 | O84: 27 | P84: 225.3 | Q84: 323.9 | R84: 304.2 | T84: 112.4 | U84: 3.6 | V84: 2.1 | AM84: 17.5415 | AN84: 0.73 | AP84: 567.4701334
A85: VERD Enclova gemmes florals,2n any | B85: 12.06 | C85: 0.9414798783 | D85: 0.9030186208 | E85: 177.4 | F85: 35.9235 | G85: 87.76027264 | H85: 34.30704275 | I85: 1.00595395 | J85: 1.008904022 | K85: 1.012728493 | L85: 2.660911447 | M85: 0.709469 | N85: 628.1638526 | O85: 27 | P85: 243.1 | Q85: 360.2 | R85: 330.5 | T85: 114.6 | U85: 3.6 | V85: 2.1 | AM85: 18.287 | AN85: 0.73 | AP85: 546.9396001
A86: VERD Enclova Inici Floració, 1r any | B86: 14.5 | C86: 0.9196215428 | D86: 0.8756744961 | E86: 167 | F86: 32.565 | G86: 84.17295987 | H86: 28.74256271 | I86: 1.010019035 | J86: 1.015994101 | K86: 1.022087499 | L86: 2.63654613 | M86: 0.695127 | N86: 620.3313348 | O86: 23 | P86: 257.3 | Q86: 366 | R86: 334.1 | T86: 107.6 | U86: 3.6 | V86: 2.1 | AM86: 17.195 | AN86: 0.74 | AP86: 541.967139
A87: VERD Enclova Inici Floració, 2n any | B87: 15.37 | C87: 0.8688196702 | D87: 0.8142223989 | E87: 151.5 | F87: 29.5425 | G87: 80.22335033 | H87: 18.72117137 | I87: 1.03172308 | J87: 1.054574304 | K87: 1.073743818 | L87: 2.50970557 | M87: 0.666039 | N87: 598.4360415 | O87: 23 | P87: 286.1 | Q87: 406 | R87: 371.5 | T87: 101.5 | U87: 3.6 | V87: 2.1 | AM87: 15.5675 | AN87: 0.74 | AP87: 521.8195916
A88: VERD Enclova tija fulla, 1r any | B88: 11.5 | C88: 1.018584209 | D88: 0.9979952283 | E88: 186 | F88: 37.665 | G88: 91.19718606 | H88: 37.93595928 | I88: 0.988232989 | J88: 0.9784811434 | K88: 0.9730315989 | L88: 2.76946899 | M88: 0.754515 | N88: 664.0486515 | O88: 27 | P88: 198.5 | Q88: 280.5 | R88: 269.9 | T88: 119.9 | U88: 3.3 | V88: 2.1 | AM88: 19.19 | AN88: 0.73 | AP88: 583.7835984
A89: VERD Enclova tija fulla, 2n any | B89: 10.03 | C89: 1.027185591 | D89: 1.007222315 | E89: 206.5 | F89: 41.81625 | G89: 95.04208597 | H89: 53.3796313 | I89: 0.9734076994 | J89: 0.9536197806 | K89: 0.9411371114 | L89: 2.863324384 | M89: 0.755121 | N89: 662.4676533 | O89: 27 | P89: 197.9 | Q89: 311.2 | R89: 290.4 | T89: 122.7 | U89: 3.3 | V89: 2.1 | AM89: 21.3425 | AN89: 0.73 | AP89: 577.1261293
A90: VERD Raigràs italià 1 setmana abans inici espigat | B90: 16.4 | C90: 0.95 | D90: 0.92 | E90: 112 | F90: 24 | G90: 79 | H90: -18 | I90: 1.01 | J90: 1.02 | K90: 1.02 | L90: 2.6 | M90: 0.75 | N90: 663.3721 | O90: 33 | P90: 230 | Q90: 495 | R90: 255 | T90: 101 | U90: 1.7 | V90: 1.6 | W90: 1.4 | Y90: 30 | Z90: 3 | AA90: 1 | AC90: 6 | AG90: 80 | AI90: 23 | AJ90: 80000 | AK90: 30 | AL90: 20 | AM90: 18.99 | AN90: 0.73 | AP90: 597.0361265
A91: VERD Raigràs italià Espiga a 10 cm | B91: 15.8 | C91: 1.073514419 | D91: 1.069426873 | E91: 168 | F91: 26.46 | G91: 77.8462145 | H91: 31.10451486 | I91: 0.9910346389 | J91: 0.9832391547 | K91: 0.9791911182 | L91: 2.752047879 | M91: 0.79572 | N91: 705.00792 | O91: 39 | P91: 188 | Q91: 474.32 | R91: 213 | T91: 114 | U91: 1.8 | V91: 2.1 | W91: 1.7 | Y91: 30 | Z91: 3 | AA91: 1 | AC91: 8.1 | AG91: 85.1 | AM91: 24.87 | AN91: 0.79 | AP91: 636.2376237
A92: VERD Raigràs italià Espigat | B92: 17.8 | C92: 0.8818407587 | D92: 0.8377966687 | E92: 88 | F92: 19.14 | G92: 63.38289694 | H92: -34.0522143 | I92: 1.091434895 | J92: 1.167439208 | K92: 1.232308365 | L92: 2.186774769 | M92: 0.69765 | N92: 629.97795 | O92: 30 | P92: 265 | Q92: 562.1 | R92: 293 | T92: 97 | U92: 1.8 | V92: 1.5 | AC92: 5 | AG92: 79.6 | AI92: 23.8 | AJ92: 80000 | AK92: 30 | AL92: 20 | AM92: 16.47 | AN92: 0.71 | AP92: 565.5384465
A93: VERD Raigràs italià Final espigat | B93: 20.4 | C93: 0.8544008851 | D93: 0.8031831803 | E93: 80 | F93: 17.4 | G93: 60.32551195 | H93: -38.91893425 | I93: 1.096771795 | J93: 1.178039486 | K93: 1.247801042 | L93: 2.15962381 | M93: 0.67756 | N93: 617.93472 | O93: 29 | P93: 284 | Q93: 583.76 | R93: 313 | T93: 88 | U93: 1.8 | V93: 1.5 | W93: 2.3 | Y93: 26 | Z93: 1.5 | AJ93: 80000 | AK93: 30 | AL93: 20 | AM93: 15.63 | AN93: 0.71 | AP93: 554.2271801
A94: VERD Raigràs italià Floració | B94: 27.5 | C94: 0.8068536711 | D94: 0.7469697818 | E94: 60 | F94: 13.5 | G94: 54.39933876 | H94: -52.28407859 | I94: 1.094509341 | J94: 1.173534971 | K94: 1.241204453 | L94: 2.171101492 | M94: 0.64963 | N94: 595.06108 | O94: 27 | P94: 307 | Q94: 609.98 | R94: 337 | T94: 84 | U94: 1.8 | V94: 1.2 | AJ94: 80000 | AK94: 30 | AL94: 20 | AM94: 13.53 | AN94: 0.7 | AP94: 534.2709123
A95: VERD Raigràs italià Fulla primavera | B95: 15.1 | C95: 1.1 | D95: 1.09899354 | E95: 191 | F95: 34.38 | G95: 86.07504607 | H95: 44.12488481 | I95: 0.9708980146 | J95: 0.9494630462 | K95: 0.9358514742 | L95: 2.879496281 | M95: 0.81287 | N95: 704.75829 | O95: 43 | P95: 178 | Q95: 462.92 | R95: 203 | T95: 133 | U95: 2 | V95: 2.4 | W95: 1.7 | Y95: 30 | Z95: 3 | AC95: 8.1 | AG95: 85.1 | AM95: 27.285 | AN95: 0.76 | AP95: 628.165719
A96: VERD Raigràs italià Fulla tardor/hivern | B96: 16.6 | C96: 0.987525423 | D96: 0.968623439 | E96: 190 | F96: 37.05 | G96: 83.72930525 | H96: 43.99629972 | I96: 0.9908485486 | J96: 0.9829225231 | K96: 0.9787806617 | L96: 2.753201964 | M96: 0.75792 | N96: 649.53744 | O96: 41 | P96: 238 | Q96: 531.32 | R96: 265 | T96: 143 | U96: 2.28 | V96: 2.58 | AM96: 27.18 | AN96: 0.74 | AP96: 566.5326882
A97: VERD Raigràs italià Inici espigat | B97: 16.5 | C97: 0.9368495611 | D97: 0.9041024886 | E97: 105 | F97: 21.2625 | G97: 67.81242603 | H97: -21.5953848 | I97: 1.067222853 | J97: 1.120433875 | K97: 1.164876603 | L97: 2.313361632 | M97: 0.72817 | N97: 654.62483 | O97: 32 | P97: 238 | Q97: 531.32 | R97: 265 | T97: 101 | U97: 1.8 | V97: 1.8 | W97: 1.7 | Y97: 30 | Z97: 3 | AA97: 1 | AC97: 5 | AG97: 80 | AI97: 23 | AJ97: 80000 | AK97: 30 | AL97: 20 | AM97: 18.255 | AN97: 0.73 | AP97: 589.3655744
A98: VERD Raigràs italià Inici floració | B98: 24 | C98: 0.8342394507 | D98: 0.7793634604 | E98: 70 | F98: 15.225 | G98: 57.3422064 | H98: -45.48047731 | I98: 1.094099952 | J98: 1.172721579 | K98: 1.240015355 | L98: 2.173183444 | M98: 0.66587 | N98: 608.60518 | O98: 28 | P98: 293 | Q98: 594.02 | R98: 322 | T98: 86 | U98: 1.8 | V98: 1.2 | AJ98: 80000 | AK98: 30 | AL98: 20 | AM98: 14.58 | AN98: 0.71 | AP98: 546.7382102
A99: VERD Triticale Lletós-pastós | B99: 40.51 | C99: 0.7866308836 | D99: 0.7130740068 | E99: 71.9 | F99: 13.48125 | G99: 51.74268223 | H99: -38.67729114 | I99: 1.046395966 | J99: 1.081369429 | K99: 1.110363008 | L99: 2.426936796 | M99: 0.6102620087 | N99: 574.9278384 | O99: 14.8 | P99: 299 | Q99: 618.4 | R99: 350.1 | S99: 43.5 | T99: 57.9 | U99: 1.16 | V99: 0.99 | W99: 2.7 | Y99: 25 | Z99: 1.7 | AA99: 3 | AC99: 8.6 | AD99: 0.44 | AG99: 43.9 | AI99: 24.1 | AJ99: 80000 | AK99: 30 | AL99: 20 | AM99: 14.7795 | AN99: 0.75 | AP99: 510.8802662
A100: Ensitjat RGI Campabadal | B100: 24,05 | C100: 0.7393415388 | D100: 0.6548606873 | E100: 117.6 | F100: 11.466 | G100: 55.31628223 | H100: 17.24393402 | I100: 1.240837281 | J100: 1.434561467 | K100: 1.55122274 | L100: 1.73719787 | M100: 0.59726 | N100: 532.994824 | O100: 26 | P100: 358 | Q100: 630.3 | R100: 427.3 | T100: 107.6 | U100: 2 | V100: 1.8 | AM100: 18.5308 | AN100: 0.85 | AO100: 95 | AP100: 373.3806117
A101: Ensitjat BM Campabadal | B101: 34,51 | C101: 0.979101499 | D101: 0.9343387196 | E101: 71.8 | F101: 12.565 | G101: 60.82282172 | H101: -35.75284643 | I101: 0.9788151623 | J101: 1.063090444 | K101: 1.284420211 | L101: 1.4 | M101: 0.7101910828 | N101: 671.7697452 | O101: 35 | P101: 195.9 | Q101: 378.1 | R101: 211.2 | T101: 54.1 | U101: 1.44 | V101: 1.61 | AE101: 278 | AM101: 24 | AN101: 0.75 | AO101: 100 | AP101: 469.1633718
A102: Pastone | B102: 53 | C102: 1,08 | E102: 83 | F102: 27 | G102: 78 | H102: -42 | I102: 0,97 | L102: 1,4 | M102: 0.78 | N102: 768.16 | O102: 31 | P102: 90 | Q102: 318 | R102: 104 | T102: 19 | U102: 0.8 | V102: 1.26 | W102: 1.5 | AE102: 400 | AM102: 24 | AN102: 0.63 | AO102: 0.87
A103: EBM prova explotació 1 | B103: 34,51 | C103: 0.9617928143 | D103: 0.9133466942 | E103: 71.8 | F103: 12.565 | G103: 61.04182378 | H103: -36.09503715 | I103: 0.9944120404 | J103: 1.078267186 | K103: 1.304256824 | L103: 1.4 | M103: 0.7008046463 | N103: 662.8911149 | O103: 35 | P103: 195.9 | Q103: 378.1 | R103: 211.2 | T103: 54.1 | U103: 0.8 | V103: 1.26 | W103: 1.2 | AM103: 24 | AN103: 0.75 | AO103: 80 | AP103: 473.9226307
A104: E raigràs prova explotació 1 | B104: 24,05 | C104: 0.7393415388 | D104: 0.6548606873 | E104: 117.6 | F104: 11.466 | G104: 55.31628223 | H104: 17.24393402 | I104: 1.240837281 | J104: 1.434561467 | K104: 1.55122274 | L104: 1.73719787 | M104: 0.59726 | N104: 532.994824 | O104: 26 | P104: 358 | Q104: 630.3 | R104: 427.3 | T104: 107.6 | U104: 1.84 | V104: 1.56 | W104: 1.5 | AM104: 18.5308 | AN104: 0.85 | AO104: 95 | AP104: 373.3806117
A105: F Alfals prova explotació 1 | B105: 85,31 | C105: 0.8002702327 | D105: 0.7269201699 | E105: 189.7 | F105: 39.837 | G105: 88.27897802 | H105: 46.69340934 | I105: 1.005119196 | J105: 1.006911491 | K105: 1.253199261 | L105: 2.150321122 | M105: 0.6244636 | N105: 566.4509316 | O105: 25 | P105: 290.8 | Q105: 591.512 | R105: 316.26 | T105: 92.9 | U105: 3.75 | V105: 1.44 | W105: 2.5 | AM105: 23.3751 | AN105: 0.72 | AP105: 473.1653777
A106: Ensitjat blat de moro moises | B106: 34,14 | C106: 0.9880808024 | D106: 0.9429082876 | E106: 75 | F106: 13.125 | G106: 61.63450478 | H106: -33.74610122 | I106: 0.9824749708 | J106: 1.068176595 | K106: 1.284420211 | L106: 1.4 | M106: 0.7101910828 | N106: 677.3802548 | O106: 35 | P106: 174.8201439 | Q106: 420 | R106: 256.9 | T106: 46.2 | U106: 1.2 | V106: 1.61 | AM106: 24 | AN106: 0.75 | AO106: 100 | AP106: 474.6328403
A107: Ensitjat ordi SG | B107: 26,9 | C107: 0.7491819423 | D107: 0.6635064542 | E107: 110.5 | F107: 21.658 | G107: 66.70521997 | H107: -5.026281205 | I107: 1.132099884 | J107: 1.233221694 | K107: 1.69763915 | L107: 1.587369636 | M107: 0.6 | N107: 554.22 | O107: 30 | P107: 320.9 | Q107: 584.199 | R107: 366.273 | T107: 76.3 | U107: 1.6 | V107: 1.32 | AM107: 19 | AN107: 0.72 | AO107: 80 | AP107: 399.39195
A108: Fenc Graminies SG | B108: 83 | C108: 0.5002944594 | D108: 0.3905711571 | E108: 75 | F108: 13.125 | G108: 55.61263329 | H108: -24.33692702 | I108: 1.188081043 | J108: 1.363499085 | K108: 1.828866905 | L108: 1.473470175 | M108: 0.453912 | N108: 417.825996 | O108: 26 | P108: 452 | Q108: 775.28 | R108: 469.4 | T108: 79.5 | U108: 4.8 | V108: 2.4 | AM108: 13.855 | AN108: 0.75 | AP108: 343.7681088
A109: Ensitjat raigràs italià primer cicle Moises_22 | B109: 25,1 | C109: 0.7467018162 | D109: 0.6588544918 | E109: 157.7 | F109: 15.37575 | G109: 58.72459543 | H109: 52.11242902 | I109: 1.187970696 | J109: 1.319362583 | K109: 1.462790435 | L109: 1.842219347 | M109: 0.5905643564 | N109: 527.9645347 | O109: 31.1 | P109: 362.3762376 | Q109: 626 | R109: 324.5 | S109: 34.8 | T109: 106 | U109: 0.8 | V109: 1.2 | AM109: 21.8591 | AN109: 0.85 | AO109: 95 | AP109: 362.483602
A110: EBM JDsci | B110: 32 | C110: 0.9836403578 | D110: 0.9386443784 | E110: 63 | F110: 11.025 | G110: 59.71655894 | H110: -43.03056085 | I110: 1.004191288 | J110: 1.098575718 | K110: 1.284420211 | L110: 1.4 | M110: 0.7101910828 | N110: 676.883121 | O110: 35 | P110: 153.2374101 | Q110: 390 | R110: 313 | T110: 46.9 | U110: 0.8 | V110: 1.26 | W110: 1.2 | AE110: 296 | AM110: 24 | AN110: 0.75 | AO110: 100 | AP110: 478.5891634
A111: F Alfals JDsci | B111: 92 | C111: 0.6024516086 | D111: 0.4990255921 | E111: 195 | F111: 40.95 | G111: 83.86852594 | H111: 59.13980321 | I111: 1.044118325 | J111: 1.074216122 | K111: 1.357027885 | L111: 1.985796217 | M111: 0.5062 | N111: 455.88372 | O111: 25 | P111: 232.5581395 | Q111: 470 | R111: 420 | T111: 99.4 | U111: 3.75 | V111: 1.44 | W111: 2.5 | AM111: 23.815 | AN111: 0.72 | AP111: 353.1320832
A112: ECV JDSci | B112: 51.9 | C112: 0.7886368414 | D112: 0.7084802496 | E112: 98 | F112: 15.533 | G112: 59.23483012 | H112: -8.984109557 | I112: 1.145040072 | J112: 1.259111751 | K112: 1.723057038 | L112: 1.566080868 | M112: 0.6125 | N112: 555.02475 | O112: 23 | P112: 384.5834599 | Q112: 538 | R112: 371 | T112: 93.85 | U112: 3.05 | V112: 1.77 | W112: 0.7 | AE112: 6 | AM112: 17.952 | AN112: 0.75 | AO112: 117.5 | AP112: 370.154514
A113: E Raigràs Nogué 2n dall | B113: 30 | C113: 0.882387884 | D113: 0.8036277461 | E113: 196.4 | F113: 17.676 | G113: 59.38485155 | H113: 87.56991946 | I113: 1.054471761 | J113: 1.083958758 | K113: 1.343813728 | L113: 2.005323196 | M113: 0.630461 | N113: 563.3169035 | O113: 26 | P113: 336.3 | Q113: 599.663 | R113: 359.485 | T113: 106.5 | U113: 1.84 | V113: 1.56 | W113: 1.5 | AM113: 25.0712 | AN113: 0.85 | AO113: 165 | AP113: 326.8439575
A114: Ensitjat raigràs Nogué 3 dall | B114: 29.4 | C114: 0.9126279827 | D114: 0.8620989761 | E114: 137 | F114: 16.44 | G114: 65.70439901 | H114: 18.42437655 | I114: 1.087774282 | J114: 1.141760599 | K114: 1.5224046 | L114: 1.770081908 | M114: 0.6986330275 | N114: 634.358789 | O114: 12.5 | P114: 291.7431193 | Q114: 578 | R114: 369 | S114: 48 | T114: 92 | U114: 1.84 | V114: 1.56 | W114: 1.3 | AM114: 20.141 | AN114: 0.8 | AO114: 80 | AP114: 491.0378783
A115: E Triticale raigràs Nogué | B115: 29 | C115: 0.8456376149 | D115: 0.783851773 | E115: 197 | F115: 28.368 | G115: 74.48088395 | H115: 63.46861883 | I115: 1.031606033 | J115: 1.042205327 | K115: 1.42464006 | L115: 1.894613662 | M115: 0.6589570493 | N115: 581.3978046 | O115: 18.75 | P115: 272.4 | Q115: 532.744 | R115: 309.004 | S115: 0 | T115: 117.7 | U115: 1.68 | V115: 1.77 | W115: 1.65 | AM115: 25.121 | AN115: 0.8 | AO115: 165 | AP115: 406.798258
A116: EBM Nogué | B116: 31 | C116: 1.000050365 | D116: 0.9576884132 | E116: 88 | F116: 15.4 | G116: 65.13774649 | H116: -25.91522889 | I116: 1.002843778 | J116: 1.101602542 | K116: 1.278523867 | L116: 1.4 | M116: 0.717 | N116: 680.433 | O116: 30 | P116: 232 | Q116: 413 | R116: 263 | S116: 30 | T116: 51 | U116: 0.8 | V116: 1.26 | W116: 1.2 | AE116: 315 | AM116: 24 | AN116: 0.75 | AO116: 80 | AP116: 501.324463
AU123: Falta valor MNT
AU124: Falta valor MNT
AU125: Falta valor MNT
AU126: Falta valor MNT
AU127: Falta valor MNT
AU128: Falta valor MNT
AU129: Falta valor MNT
AU130: Falta valor MNT
AU131: Falta valor MNT
AU132: Falta valor MNT
AU133: Falta valor MNT
AU134: Falta valor MNT
AU135: Falta valor MNT
AU136: Falta valor MNT
AU137: Falta valor MNT
AU138: Falta valor MNT
AU139: Falta valor MNT
AU147: 48.58
AU152: 39.5591592
AU153: Falta valor MNT
AU154: Falta valor MNT
AU155: 54.2661608
AU156: Falta valor MNT
AU157: Falta valor MNT
AU158: Falta valor MNT
AU159: Falta valor MNT
AU160: Falta valor MNT
AU161: 29.332
AU162: Falta valor MNT
AU163: 36.4
AU164: 58.0118952
AU165: 46.5085928
AU166: 35.032
AU167: Falta valor MNT
AU168: 34.405
AU169: Falta valor MNT
AU170: 36.856
AU171: 48.4945
AU172: Falta valor MNT
AU173: 43.3529543
AU175: 48.58
AU182: 49.4877872
AU183: Falta valor MNT
AU184: Falta valor MNT
AU185: Falta valor MNT
AU186: Falta valor MNT
AU187: 32.8542248
AU188: Falta valor MNT
AU189: Falta valor MNT
AU190: Falta valor MNT
AU191: Falta valor MNT
AU192: 42.9692528
AU193: Falta valor MNT
AU194: 48.4266152
AU196: 48.58
AU301: Falta valor MNT
AU302: Falta valor MNT
AU303: Falta valor MNT
AU304: Falta valor MNT
AU305: Falta valor MNT
AU306: Falta valor MNT
AU307: Falta valor MNT
AU308: Falta valor MNT
AU309: Falta valor MNT
AU310: Falta valor MNT
AU311: Falta valor MNT
AU312: Falta valor MNT
AU313: Falta valor MNT
AU314: Falta valor MNT
AU315: Falta valor MNT
AU316: Falta valor MNT
AU317: Falta valor MNT
AU318: Falta valor MNT
AU319: Falta valor MNT
AU320: Falta valor MNT
AU321: Falta valor MNT
AU322: Falta valor MNT
AU323: Falta valor MNT
AU324: Falta valor MNT
AU325: Falta valor MNT
AU326: Falta valor MNT
AU327: Falta valor MNT
AU328: Falta valor MNT
AU329: Falta valor MNT
AU330: Falta valor MNT
... 139 more rows

Sheet 0_Taula Concentrats (hidden)
A1: Nom del concentrat | B1: MS % | C1: UFL | D1: UFV | E1: MNT_PB | F1: PDIA | G1: PDI | H1: BPR | I1: UEL | J1: UEB | K1: UEM | L1: NI ref | M1: dMO | N1: MOD | O1: EE | P1: FB | Q1: NDF | R1: ADF | S1: Lignina | T1: cendres | U1: Ca | V1: P | W1: Mg | X1: Cl | Y1: K | Z1: Na | AA1: S | AB1: Co | AC1: Cu | AD1: Mo | AE1: MIDÓ | AF1: Fe | AG1: Mn | AH1: Se | AI1: Zn | AJ1: Vit A | AK1: Vit D | AL1: Vit E | AM1: AG | AN1: DT_N | AO1: PF | AP1: MOF
A3: Alfals deshidratat i aglomerats | B3: 90.2 | C3: 0.7398701174 | D3: 0.6738447078 | E3: 233 | F3: 68.64631679 | G3: 116.147103 | H3: 51.38002158 | I3: 0.3789 | L3: 2 | M3: 0.6658 | N3: 579.9118 | O3: 34 | P3: 237 | Q3: 405 | R3: 280 | S3: 76 | T3: 129 | U3: 3.84 | V3: 1.768 | AM3: =O3*0.5 -> 17 | AN3: =1-(F3/(E3*AO3)) -> 0.6663643659 | AO3: =(88.3+0.0371*E3-3.7*(10^-5)*(E3^2)-0.107*S3-0.00313*(100-N3))/100 -> 0.8830573093 | AP3: =N3-E3*(1-AN3)-O3 -> 468.1746973
A4: Blat de moro bagàs | B4: 88.1 | C4: 1.203463873 | D4: 1.20550115 | E4: 151 | F4: 56.28378672 | G4: 116.7748185 | H4: -22.64723712 | I4: 0.2876 | L4: 2 | M4: 0.850092 | N4: 833.940252 | O4: 34 | P4: 68 | Q4: 272 | R4: 78 | S4: 11 | T4: 19 | U4: 0.5 | V4: 3.7 | W4: 1.8 | Y4: 3.5 | Z4: 9.5 | AE4: 135 | AM4: =O4*0.75 -> 25.5 | AN4: 0.6042201418 | AO4: 0.9417869599 | AP4: =N4-E4*(1-AN4)-O4 -> 740.1774934
A5: Blat de moro espigots | B5: 90 | C5: 0.5231913971 | D5: 0.4115298955 | E5: 44 | F5: 14.39853914 | G5: 59.97738242 | H5: -62.53694262 | I5: 0.4692912 | L5: 2 | M5: 0.455276 | N5: 437.06496 | O5: 5 | P5: 302 | Q5: 822 | R5: 408 | S5: 38 | T5: 40 | U5: 0.66 | V5: 0.525 | AM5: 2 | AN5: 0.6232120323 | AO5: 0.8684978132 | AP5: =N5-E5*(1-AN5)-O5 -> 415.4862894
A6: Blat de moro extrussionat | B6: 90.3 | C6: 1.26592428 | D6: 1.305945141 | E6: 96.35 | F6: 55.42277845 | G6: 120.6512297 | H6: -82.39695502 | I6: 0.21464959 | L6: 2 | M6: 0.9181304 | N6: 904.9093222 | O6: 4.32 | P6: 2.55 | Q6: 12.18 | R6: 3.1 | S6: 0.55 | T6: 14.4 | U6: 0.165 | V6: 2.175 | W6: 1.4 | X6: 0.5 | Y6: 3.7 | Z6: 0.3 | AA6: 1.2 | AB6: 0.05 | AC6: 4 | AF6: 30 | AG6: 5 | AH6: 0.08 | AI6: 14 | AJ6: 1000 | AL6: 25 | AM6: =O6*0.85 -> 3.672 | AN6: 0.3880056001 | AO6: 0.9399161825 | AP6: =N6-E6*(1-AN6)-O6 -> 841.6236618
A7: Blat de moro flocs | B7: 89 | C7: 1.285459442 | D7: 1.315633547 | E7: 100 | F7: 41.4985065 | G7: 103.9464693 | H7: -59.77494194 | I7: 0.231567 | L7: 2 | M7: 0.88266 | N7: 868.53744 | O7: 43 | P7: 26 | Q7: 90 | R7: 30 | S7: 10 | T7: 16 | U7: 0.165 | V7: 2.175 | W7: 1.4 | X7: 0.5 | Y7: 3.7 | Z7: 0.3 | AA7: 1.2 | AB7: 0.05 | AC7: 4 | AF7: 30 | AG7: 5 | AH7: 0.08 | AI7: 14 | AJ7: 1000 | AL7: 25 | AM7: =O7*0.85 -> 36.55 | AN7: 0.5536620228 | AO7: 0.9297552219 | AP7: 780.9036423
A8: Blat de moro gluten feed | B8: 87.7 | C8: 1.056307439 | D8: 1.029893853 | E8: 216 | F8: 53.8646516 | G8: 111.0030461 | H8: 49.88125855 | I8: 0.3125 | L8: 2 | M8: 0.825072 | N8: 769.792176 | O8: 45 | P8: 88 | Q8: 343 | R8: 100 | S8: 13 | T8: 67 | U8: 1.65 | V8: 5.304 | W8: 3.5 | Y8: 10.25 | Z8: 7 | AE8: 205 | AJ8: 3000 | AL8: 14 | AM8: =O8*0.9 -> 40.5 | AN8: 0.7383081976 | AO8: 0.9529277751 | AP8: 668.2667467
A9: Blat de moro gluten meal | B9: 89.3 | C9: 1.647747782 | D9: 1.703959302 | E9: 661 | F9: 427.8502116 | G9: 474.6927582 | H9: 117.5185209 | I9: 0.4868 | L9: 2 | M9: 0.943652 | N9: 929.49722 | O9: 35 | P9: 21 | Q9: 107 | R9: 28 | S9: 6 | T9: 15 | U9: 0.11 | V9: 2.72 | AE9: 173 | AJ9: 14000 | AL9: 26 | AM9: =O9*0.8 -> 28 | AN9: 0.3436078323 | AO9: 0.986113493 | AP9: 460.6219971
A10: Blat de moro gra | B10: 86 | C10: 1.24475541 | D10: 1.26 | E10: 89 | F10: 43 | G10: 94 | H10: -53 | I10: 0.3291 | L10: 2 | M10: 0.882846 | N10: 870.486156 | O10: 43 | P10: 26 | Q10: 125 | R10: 31 | S10: 60 | T10: 14 | U10: 0.275 | V10: 2.175 | W10: 1.4 | Y10: 3.6 | Z10: 0.33 | AB10: 0.02 | AC10: 2.3 | AD10: 0.3 | AE10: 739 | AF10: 80 | AG10: 10.8 | AH10: 0.02 | AI10: 21.4 | AM10: =0.85*O10 -> 36.55 | AN10: 0.4465708975 | AO10: 0.8730044467 | AP10: 778.2309659
A11: Blat de moro hominyfeed (mescla segó, germèn i midó) | B11: 90 | C11: 1.153355136 | D11: 1.157966805 | E11: 114 | F11: 46.52415979 | G11: 107.3745235 | H11: -49.99869329 | I11: 0.2535785 | L11: 2 | M11: 0.837476 | N11: 816.5391 | O11: 19 | P11: 54 | Q11: 215 | R11: 65 | S11: 12 | T11: 25 | U11: 0.275 | V11: 4.275 | W11: 2.6 | X11: 0.6 | Y11: 6.5 | Z11: 0.9 | AA11: 0.3 | AB11: 0.06 | AC11: 15 | AF11: 75 | AG11: 16 | AH11: 0.11 | AI11: 3 | AM11: =O11*0.85 -> 16.15 | AN11: 0.5612101445 | AO11: 0.9300731538 | AP11: 747.5170565
A12: Blat de moro segó | B12: 88.3 | C12: 1.112973677 | D12: 1.10078662 | E12: 101 | F12: 43.23835933 | G12: 96.34428969 | H12: -50.71801618 | I12: 0.3706 | L12: 2 | M12: 0.707252 | N12: 669.060392 | O12: 40 | P12: 150 | Q12: 557 | R12: 164 | S12: 19 | T12: 54 | U12: 0.165 | V12: 1.875 | AE12: 392 | AM12: =O12*0.85 -> 34 | AN12: 0.5317077588 | AO12: 0.9141782203 | AP12: 581.7628756
A13: Blat de moro tortó de gèrmens a pressió | B13: 88.1 | C13: 1.17895975 | D13: 1.171602179 | E13: 146 | F13: 59.1015472 | G13: 113.8847817 | H13: -23.87880397 | I13: 0.2642698 | L13: 2 | M13: 0.801524 | N13: 763.050848 | O13: 82 | P13: 72 | Q13: 285 | R13: 82 | S13: 11 | T13: 48 | U13: 0.33 | V13: 3.525 | W13: 4.5 | Y13: 1.8 | Z13: 8.5 | AE13: 224 | AM13: =O13*0.8 -> 65.6 | AN13: 0.5685588128 | AO13: 0.9382625715 | AP13: 618.0604347
A14: Blat de moro tortó de gèrmens amb dissolvent | B14: 87.9 | C14: 1.041990023 | D14: 1.023538393 | E14: 135 | F14: 54.17190727 | G14: 111.6965778 | H14: -33.88229766 | I14: 0.2686721 | L14: 2 | M14: 0.79028 | N14: 752.34656 | O14: 17 | P14: 79 | Q14: 310 | R14: 89 | S14: 12 | T14: 48 | U14: 0.495 | V14: 3.75 | W14: 4.5 | Y14: 1.8 | Z14: 8.5 | AE14: 199 | AJ14: 1000 | AL14: 94 | AM14: =O14*0.75 -> 12.75 | AN14: 0.5703343944 | AO14: 0.9339201973 | AP14: 677.3417032
A15: Blat gra | B15: 87 | C15: 1.191513797 | D15: 1.205062577 | E15: 157 | F15: 33.00144942 | G15: 96.50582734 | H15: 5.8944095 | I15: 0.1714 | L15: 2 | M15: 0.87875 | N15: 861.175 | O15: 23 | P15: 29 | Q15: 146 | R15: 38 | S15: 12 | T15: 20 | U15: 0.275 | V15: 2.808 | AB15: 0.02 | AC15: 4.4 | AD15: 0.3 | AE15: 641 | AG15: 33.7 | AH15: 0.04 | AI15: 32.5 | AL15: 12 | AM15: =O15*0.75 -> 17.25 | AN15: 0.7771204339 | AO15: 0.9431116475 | AP15: 803.1829081
A16: Blat segó blat dur | B16: 87.7 | C16: 1.017694369 | D16: 0.9779078471 | E16: 167 | F16: 34.63114108 | G16: 88.47767853 | H16: 25.24478524 | I16: 0.3057772 | L16: 2 | M16: 0.731538 | N16: 692.034948 | O16: 58 | P16: 118 | Q16: 481 | R16: 148 | S16: 38 | T16: 54 | U16: 0.935 | V16: 7.8 | AC16: 10 | AE16: 223 | AF16: 200 | AG16: 90 | AI16: 80 | AJ16: 1000 | AL16: 21 | AM16: =O16*0.8 -> 46.4 | AN16: 0.7727450842 | AO16: 0.9125087639 | AP16: 596.0833771
A17: Cacau tortó | B17: 86.6 | C17: 0.9215256292 | D17: 0.8794694618 | E17: 232 | F17: 88.67087909 | G17: 140.270913 | H17: 25.81494705 | I17: 0.34659281 | L17: 2 | M17: 0.745465 | N17: 673.154895 | O17: 20 | P17: 161 | Q17: 363.86 | R17: 212.9 | S17: 47.29 | T17: 97 | U17: 1.43 | V17: 0.884 | AE17: 144 | AM17: =O17*0.75 -> 15 | AN17: 0.5829749087 | AO17: 0.9164965682 | AP17: 556.4050738
A18: Cacauet, tortó 48 | B18: 88.6 | C18: 1.194433583 | D18: 1.186516039 | E18: 524 | F18: 143.3022223 | G18: 198.101494 | H18: 261.736138 | I18: 0.2876 | L18: 2 | M18: 0.84376 | N18: 789.75936 | O18: 16 | P18: 77 | Q18: 150 | R18: 101 | S18: 26 | T18: 64 | U18: 0.99 | V18: 4.29 | W18: 3 | AB18: 0.3 | AC18: 14.5 | AD18: 1.7 | AE18: 87 | AF18: 450 | AG18: 47.5 | AH18: 0.11 | AI18: 61.5 | AM18: =O18*0.75 -> 12 | AN18: 0.7179423819 | AO18: 0.969580348 | AP18: 625.9611681
A19: Civada | B19: 87.4 | C19: 1.002754804 | D19: 0.9548146189 | E19: 111 | F19: 20.39754399 | G19: 75.33304787 | H19: -14.56672481 | I19: 0.3208 | L19: 2 | M19: 0.72867 | N19: 706.8099 | O19: 67 | P19: 135 | Q19: 336 | R19: 162 | S19: 27 | T19: 30 | U19: 0.55 | V19: 3 | W19: 1.75 | Y19: 4.3 | Z19: 0.5 | AB19: 0.02 | AC19: 3.5 | AD19: 0.7 | AE19: 419 | AG19: 38.4 | AH19: 0.04 | AI19: 25.2 | AL19: 15 | AM19: =O19*0.9 -> 60.3 | AN19: 0.7980031538 | AO19: 0.9097253799 | AP19: 617.3882501
A20: Clovella Soja | B20: 88.8 | C20: 1,08 | E20: 129 | F20: 38 | G20: 95 | H20: -32 | I20: 0,44 | L20: 2 | M20: 0,80 | N20: 957.6 | O20: 21 | P20: 391 | Q20: 652 | R20: 464 | S20: 24 | T20: 53 | U20: 3.08 | V20: 1.156 | W20: 2.5 | AE20: 57 | AM20: 20 | AN20: 0,56 | AO20: 0,67 | AP20: 879.84
A21: Coco tortó | B21: 90 | C21: 0.9709595673 | D21: 0.9339995141 | E21: 239 | F21: 87.26903545 | G21: 138.2098434 | H21: 30.48498753 | I21: 0.2876 | L21: 2 | M21: 0.71604 | N21: 660.18888 | O21: 18 | P21: 178 | Q21: 580 | R21: 316 | S21: 78 | T21: 78 | U21: 1.1 | V21: 4.488 | W21: 4 | Z21: 0.6 | AC21: 20 | AE21: 3 | AF21: 500 | AG21: 60 | AI21: 70 | AM21: =O21*0.9 -> 16.2 | AN21: =1-(F21/(E21*AO21)) -> 0.5872269422 | AO21: =(88.3+0.0371*E21-3.7*(10^-5)*(E21^2)-0.107*S21-0.00313*(100-N21))/100 -> 0.8846081419 | AP21: 543.5361192
A22: Colza, gra | B22: 89.9 | C22: 1.96875359 | D22: 2.026164505 | E22: 217 | F22: 41.88482236 | G22: 81.98060891 | H22: 90.24033351 | I22: 0.2959 | L22: 2 | M22: 0.84608 | N22: 798.69952 | O22: 457 | P22: 68 | Q22: 199 | R22: 116 | S22: 41 | T22: 56 | U22: 1.815 | V22: 3.763 | AE22: 39 | AM22: =O22*0.85 -> 388.45 | AN22: =1-(F22/(E22*AO22)) -> 0.7911253228 | AO22: =(88.3+0.0371*E22-3.7*(10^-5)*(E22^2)-0.107*S22-0.00313*(100-N22))/100 -> 0.924083365 | AP22: 296.3737151
A23: Colza, gra semiesclovellat | B23: 90 | C23: 2.006824385 | D23: 2.066056386 | E23: 217 | F23: 41.88482236 | G23: 80.92224091 | H23: 91.89403351 | I23: 0.2959 | L23: 2 | M23: 0.84608 | N23: 798.69952 | O23: 480 | P23: 68 | Q23: 115 | R23: 84 | S23: 41 | T23: 56 | U23: 1.815 | V23: 3.763 | AE23: 39 | AM23: =O23*0.79 -> 379.2 | AN23: =1-(F23/(E23*AO23)) -> 0.7911253228 | AO23: =(88.3+0.0371*E23-3.7*(10^-5)*(E23^2)-0.107*S23-0.00313*(100-N23))/100 -> 0.924083365 | AP23: 273.3737151
A24: Colza, turtó | B24: 90 | C24: 0.958005025 | D24: 0.9098593603 | E24: 418 | F24: 103.9119909 | G24: 155.8627084 | H24: 193.047004 | I24: 0.3125 | L24: 2 | M24: 0.7842 | N24: 704.9958 | O24: 26 | P24: 120 | Q24: 287 | R24: 182 | S24: 74 | T24: 101 | U24: 4.62 | V24: 8.804 | W24: 5.15 | Y24: 12.4 | Z24: 0.75 | AB24: 0.1 | AC24: 5.5 | AD24: 0.5 | AE24: 62 | AF24: 300 | AG24: 63.5 | AH24: 0.07 | AI24: 64.5 | AL24: 20 | AM24: =O24*0.8 -> 20.8 | AN24: =1-(F24/(E24*AO24)) -> 0.7277738088 | AO24: =(88.3+0.0371*E24-3.7*(10^-5)*(E24^2)-0.107*S24-0.00313*(100-N24))/100 -> 0.9131864885 | AP24: 565.2052521
A25: Colza, turtó tanné, curtit | B25: 89 | C25: 1.240309081 | D25: 1.253284486 | E25: 391 | F25: 143.4249536 | G25: 193.4731611 | H25: 118.7396757 | I25: 0.3374 | L25: 2 | M25: 0.77349 | N25: 713.93127 | O25: 26 | P25: 129 | Q25: 302 | R25: 193 | S25: 79 | T25: 77 | U25: 4.62 | V25: 8.804 | Y25: 12.4 | Z25: 0.75 | AB25: 0.1 | AC25: 5.5 | AD25: 0.5 | AE25: 68 | AF25: 300 | AG25: 63.5 | AH25: 0.07 | AI25: 64.5 | AM25: =O25*0.69 -> 17.94 | AN25: =1-(F25/(E25*AO25)) -> 0.5952070214 | AO25: =(88.3+0.0371*E25-3.7*(10^-5)*(E25^2)-0.107*S25-0.00313*(100-N25))/100 -> 0.9061810788 | AP25: 529.6572154
A26: concentrat 2 | B26: 87.574 | C26: 1.090118372 | E26: 189.16 | F26: 49.30348821 | G26: 109.2090454 | H26: 24.65196693 | I26: 0.218324 | L26: 1.98 | M26: 0.8301768 | N26: 803.1701184 | O26: 18.24 | P26: 57.83 | Q26: 200.5 | R26: 71.19 | S26: 14.54 | T26: 41.71 | U26: 2.6466 | V26: 2.97568 | W26: 1.75 | X26: 0.002 | Y26: 4.447 | Z26: 0.287 | AA26: 0.007 | AB26: 0.065 | AC26: 6.155 | AD26: 0.563 | AG26: 23.105 | AH26: 0.0369 | AI26: 31.205 | AJ26: 800 | AK26: 0 | AL26: 20 | AM26: 13.68 | AN26: 0.7243498484 | AP26: 732.7881357
A27: Concentrat producció1 | B27: 86.42 | C27: 1.214792769 | E27: 208.255 | F27: 75.91099939 | G27: 127.450858 | H27: 28.91678349 | I27: 0.31215618 | L27: 1.99 | M27: 0.86847447 | N27: 838.7279689 | O27: 36.485 | P27: 43.27 | Q27: 135.775 | R27: 52.745 | S27: 44.1 | T27: 39.405 | U27: 1.805375 | V27: 2.79922 | W27: 1.853 | X27: 0.001 | Y27: 8.5055 | Z27: 0.81785 | AA27: 0.0035 | AB27: 0.1039 | AC27: 6.7885 | AD27: 0.8985 | AG27: 20.616 | AH27: 0.0739 | AI27: 31.253 | AJ27: 0 | AK27: 0 | AL27: 2.1 | AM27: 30.35225 | AN27: 0.5149666548 | AP27: 701.2323496
A28: Cotó clovella | B28: 91 | C28: 0.3662081422 | D28: 0.2380788633 | E28: 81 | F28: 16.10308659 | G28: 54.6536023 | H28: -25.8351808 | I28: 0.65129486 | L28: 2 | M28: 0.323182 | N28: 309.608356 | O28: 19 | P28: 547 | Q28: 900 | R28: 697.4 | S28: 184.6 | T28: 42 | U28: 0.77 | V28: 0.693 | AM28: =O28*0.75 -> 14.25 | AN28: =1-(F28/(E28*AO28)) -> 0.7237543586 | AO28: =(88.3+0.0371*E28-3.7*(10^-5)*(E28^2)-0.107*S28-0.00313*(100-N28))/100 -> 0.7196621715 | AP28: 268.232459
A29: Cotó tortó dessoliat | B29: 89 | C29: 1.150192028 | D29: 1.125943813 | E29: 466 | F29: 160.9221094 | G29: 212.6445717 | H29: 184.5836527 | I29: 0.2994882 | L29: 2 | M29: 0.802196 | N29: 750.855456 | O29: 20 | P29: 127 | Q29: 232 | R29: 138 | S29: 32 | T29: 64 | U29: 2.585 | V29: 5.922 | W29: 5.2 | Y29: 15.2 | Z29: 0.4 | AE29: 32 | AM29: =O29*0.75 -> 15 | AN29: 0.6409096727 | AO29: 0.9616700558 | AP29: 563.5193635
A30: Cotó, gra | B30: 92 | C30: 1.105745464 | D30: 1.027155353 | E30: 220 | F30: 48.76444907 | G30: 91.65479282 | H30: 70.58383788 | I30: 0.5034 | L30: 2 | M30: 0.64652 | N30: 618.71964 | O30: 198 | P30: 276 | Q30: 456 | R30: 354 | S30: 105 | T30: 43 | U30: 1.155 | V30: 4.736 | AE30: 21 | AM30: =O30*0.95 -> 188.1 | AN30: 0.7394108541 | AO30: 0.8505979247 | AP30: 363.3900279
A31: Fajol gra | B31: 88 | C31: 1.000775785 | D31: 0.9661592102 | E31: 125 | F31: 34.09988724 | G31: 90.96989041 | H31: -20.55937996 | I31: 0.2129 | L31: 2 | M31: 0.74393 | N31: 726.81961 | O31: 28 | P31: 118 | Q31: 301 | R31: 158.9 | S31: 33.4 | T31: 23 | U31: 0.605 | V31: 2.775 | W31: 1.2 | X31: 0.5 | Y31: 5.1 | Z31: 0.6 | AA31: 1.6 | AB31: 0.06 | AC31: 11 | AF31: 50 | AG31: 38 | AI31: 10 | AM31: =O31*0.75 -> 21 | AN31: 0.6993867196 | AO31: 0.9074752038 | AP31: 661.2429499
A32: Fajol segones | B32: 89 | C32: 1.185521315 | D32: 1.168586189 | E32: 335 | F32: 98.39838218 | G32: 150.650279 | H32: 125.2564113 | I32: 0.2129 | L32: 2 | M32: 0.79562 | N32: 751.8609 | O32: 82 | P32: 83 | Q32: 251.39 | R32: 114.99 | S32: 22.61 | T32: 55 | U32: 0.275 | V32: 2.925 | AM32: =O32*0.8 -> 65.6 | AN32: 0.6946621902 | AO32: 0.9619722962 | AP32: 567.5727337
A33: Favó gra | B33: 86.9 | C33: 1.286607118 | D33: 1.320957789 | E33: 302 | F33: 51.43027974 | G33: 115.0698849 | H33: 130.983117 | I33: 0.1714 | L33: 2 | M33: 0.9143 | N33: 876.8137 | O33: 16 | P33: 90 | Q33: 171 | R33: 108 | S33: 24.7 | T33: 41 | U33: 0.715 | V33: 3.264 | W33: 1.6 | X33: 0.8 | Y33: 12 | Z33: 0.25 | AB33: 0.4 | AC33: 13.8 | AD33: 1 | AE33: 442 | AF33: 100 | AG33: 12.7 | AH33: 0.02 | AI33: 43.7 | AM33: =O33*0.8 -> 12.8 | AN33: 0.8224539482 | AO33: 0.9591817888 | AP33: 807.1947924
A34: Garrofer garrofa | B34: 87 | C34: 0.843494905 | D34: 0.8273952756 | E34: 58 | F34: 20.57803675 | G34: 81.08159627 | H34: -76.25681175 | I34: 0.288174289 | L34: 2 | M34: 0.8014563863 | N34: 771.8025 | O34: 11 | P34: 87 | Q34: 257.16 | R34: 120.01 | S34: 23.83 | T34: 37 | U34: 0.825 | V34: 0.408 | AM34: =O34*0.9 -> 9.9 | AN34: 0.6052595731 | AO34: 0.8988026382 | AP34: 737.9075552
A35: Garrofer polpa deshidratada sense grana, IAMZ | B35: 86 | C35: 0.8175571336 | D35: 0.8010099087 | E35: 56 | F35: 19.88740459 | G35: 81.02326077 | H35: -78.36477527 | I35: 0.286199543 | L35: 2 | M35: 0.8034925234 | N35: 773.7633 | O35: 0.1 | P35: 84.5 | Q35: 253.55 | R35: 116.87 | S35: 23.07 | T35: 37 | U35: 0.825 | V35: 0.408 | AE35: 16 | AM35: =O35*0.8 -> 0.08 | AN35: 0.6049783161 | AO35: 0.8990195713 | AP35: 751.5420857
A36: Gira-sol tortó esclovellat | B36: 91 | C36: 0.9910764189 | D36: 0.9439708695 | E36: 417 | F36: 80.25381508 | G36: 133.123438 | H36: 220.1112143 | I36: 0.3208 | L36: 2 | M36: 0.745917 | N36: 691.465059 | O36: 22 | P36: 176 | Q36: 299 | R36: 220 | S36: 70 | T36: 73 | U36: 2.09 | V36: 6.435 | W36: 5.5 | X36: 1.2 | Y36: 12 | Z36: 0.33 | AE36: 37 | AM36: =O36*0.75 -> 16.5 | AN36: 0.790120834 | AO36: 0.9169809263 | AP36: 581.9454468
A37: Gira-sol, gra | B37: 93 | C37: 1.708471184 | D37: 1.695156001 | E37: 174 | F37: 24.64749869 | G37: 60.41910651 | H37: 72.58686279 | I37: 0.2627 | L37: 2 | M37: 0.74312 | N37: 714.13832 | O37: 485 | P37: 164 | Q37: 294 | R37: 200 | S37: 56 | T37: 39 | U37: 0.99 | V37: 3.12 | AE37: 13 | AM37: =O37*0.95 -> 460.75 | AN37: 0.8418449238 | AO37: 0.8956544094 | AP37: 201.6193367
A38: Graminies deshidratades i aglomerades | B38: 91 | C38: 0.8289959418 | D38: 0.7851460594 | E38: 105 | F38: 26.82240135 | G38: 80.52058238 | H38: -29.85340787 | I38: 0.3818741 | L38: 2 | M38: 0.72207 | N38: 649.14093 | O38: 25 | P38: 238 | Q38: 508 | R38: 269 | S38: 73.08 | T38: 101 | U38: 2.365 | V38: 1.836 | AM38: =O38*0.5 -> 12.5 | AN38: 0.7018778114 | AO38: 0.8568682611 | AP38: 592.8381002
A39: Grassa vegetal, mantega de porc (tots els tipus) | B39: 99.9 | C39: 3.61 | D39: 3.94 | E39: 1e-07 | F39: 1e-07 | G39: 1e-07 | H39: -14 | I39: 0.25 | L39: 2 | M39: 0.9 | N39: 1e-07 | O39: 999 | P39: 1e-07 | Q39: 1e-07 | R39: 1e-07 | S39: 1e-07 | T39: 1e-07 | U39: 5.5e-08 | V39: 6.8e-08 | W39: 1e-07 | X39: 1e-07 | Y39: 1e-07 | Z39: 1e-07 | AA39: 1e-07 | AB39: 1e-07 | AC39: 1e-07 | AD39: 1e-07 | AF39: 1e-07 | AG39: 1e-07 | AH39: 1e-07 | AI39: 1e-07 | AJ39: 1300 | AK39: 1e-07 | AL39: 95 | AM39: =O39 -> 999 | AN39: 0 | AO39: 0
A40: Llentia gra | B40: 88 | C40: 1.292742572 | D40: 1.330655343 | E40: 281 | F40: 49.08181296 | G40: 113.199967 | H40: 113.2253843 | I40: 0.1714 | L40: 2 | M40: 0.91963 | N40: 886.52332 | O40: 19.3 | P40: 49 | Q40: 160 | R40: 72 | S40: 3 | T40: 36 | U40: 0.605 | V40: 3.06 | AE40: 463 | AM40: =O40*0.75 -> 14.475 | AN40: =1-(F40/(E40*AO40)) -> 0.8216657174 | AO40: =(88.3+0.0371*E40-3.7*(10^-5)*(E40^2)-0.107*S40-0.00313*(100-N40))/100 -> 0.9794436099 | AP40: 817.1113866
A41: Llevat cerveseria | B41: 93.3 | C41: 1.18 | D41: 1.17 | E41: 476 | F41: 87 | G41: 143 | H41: 278 | I41: 0.15 | L41: 2 | M41: 0.84 | N41: 756 | O41: 40 | P41: 21 | Q41: 88 | R41: 25 | S41: 7 | T41: 32 | U41: 1.65 | V41: 9.18 | W41: 2.4 | AM41: 32 | AN41: 0.815157707 | AO41: 0.98880568 | AP41: 628.0150685
A42: Llí, gra | B42: 90.3 | C42: 1.657583747 | D42: 1.660671498 | E42: 253 | F42: 51.01194867 | G42: 92.3191443 | H42: 111.0075068 | I42: 0.3208 | L42: 2 | M42: 0.780518 | N42: 743.3653432 | O42: 362 | P42: 101.9 | Q42: 244.7 | R42: 148.4 | S42: 62 | T42: 47.6 | U42: 2.314507198 | V42: 4.526024363 | W42: 3.986710963 | X42: 0.6644518272 | Y42: 7.973421927 | Z42: 0.7751937984 | AA42: 2.990033223 | AC42: 13.28903654 | AD42: 0.2214839424 | AE42: 60 | AF42: 163.8981174 | AG42: 32.11517165 | AI42: 49.83388704 | AM42: =O42*0.95 -> 343.9 | AN42: 0.7776919873 | AO42: 0.9069770052 | AP42: 325.121416
A43: Llinosa tortó dessoliat | B43: 89 | C43: 1.151871054 | D43: 1.134141167 | E43: 377 | F43: 129.4671117 | G43: 180.6322598 | H43: 120.744456 | I43: 0.3064061 | L43: 2 | M43: 0.803904 | N43: 752.454144 | O43: 58 | P43: 118 | Q43: 236 | R43: 149 | S43: 88 | T43: 64 | U43: 2.585 | V43: 6.298 | W43: 6.1 | Y43: 14 | Z43: 1.3 | AB43: 0.6 | AC43: 21 | AD43: 0.6 | AE43: 94 | AF43: 250 | AG43: 59 | AH43: 0.5 | AI43: 73 | AL43: 9 | AM43: =O43*0.75 -> 43.5 | AN43: 0.6169566624 | AO43: 0.8965410847 | AP43: 550.0468057
A44: Llobí (tramús) extrussionat | B44: 88 | C44: 1.52751288 | D44: 1.578192665 | E44: 406 | F44: 69.23209069 | G44: 127.7145253 | H44: 223.2811959 | I44: 0.1714 | L44: 2 | M44: 0.91027 | N44: 877.50028 | O44: 109 | P44: 121 | Q44: 214 | R44: 175 | S44: 34.4 | T44: 36 | U44: 1.1 | V44: 3.06 | W44: 1.7 | X44: 0.23 | Y44: 10 | Z44: 0.11 | AM44: =O44*0.77 -> 83.93 | AN44: 0.8224029302 | AO44: 0.9601644388 | AP44: 696.3958697
A45: Llobí (tramús) gra | B45: 86.7 | C45: 1.49857485 | D45: 1.544346092 | E45: 399 | F45: 69.09881582 | G45: 127.2670334 | H45: 218.10216 | I45: 0.1714 | L45: 2 | M45: 0.90507 | N45: 864.34185 | O45: 104 | P45: 161 | Q45: 229 | R45: 172 | S45: 17 | T45: 45 | U45: 1.1 | V45: 3.128 | W45: 2.5 | Y45: 9.5 | Z45: 0.55 | AM45: =O45*0.9 -> 93.6 | AN45: 0.822898728 | AO45: 0.9778585299 | AP45: 689.6784425
A46: Mandioca | B46: 85 | C46: 1.142097463 | D46: 1.174454355 | E46: 31 | F46: 10.10542253 | G46: 75.49002249 | H46: -97.45343744 | I46: 0.1216 | L46: 2 | M46: 0.91762 | N46: 861.64518 | O46: 8.2 | P46: 54 | Q46: 118 | R46: 59 | S46: 14.01 | T46: 61 | U46: 1.375 | V46: 0.68 | W46: 0.9 | Y46: 7.5 | Z46: 0.35 | AC46: 2 | AF46: 50 | AG46: 5 | AI46: 30 | AM46: =O46*0.8 -> 6.56 | AN46: 0.638999494 | AO46: 0.9029942241 | AP46: 842.2541643
A47: Margalló tortó (palmiste) | B47: 90 | C47: 0.8319475036 | D47: 0.7632996493 | E47: 206 | F47: 83.76805509 | G47: 136.5208369 | H47: -3.926221648 | I47: 0.4287 | L47: 2 | M47: 0.73056 | N47: 699.14592 | O47: 19 | P47: 167 | Q47: 632 | R47: 241 | S47: 103 | T47: 43 | U47: 1.705 | V47: 4.556 | AM47: =O47*0.9 -> 17.1 | AN47: 0.5228718322 | AO47: 0.8522679473 | AP47: 581.8575174
A48: Melassa canya | B48: 75 | C48: 0.8610639099 | D48: 0.8391616233 | E48: 45 | F48: 3.15 | G48: 61.811424 | H48: -64.008475 | I48: 0.04 | L48: 4 | M48: 0.8 | N48: 710.4 | O48: 12 | P48: 0 | Q48: 0 | R48: 0 | S48: 0 | T48: 112 | U48: 5.115 | V48: 0.748 | W48: 4.7 | X48: 27 | Y48: 33 | Z48: 1.7 | AM48: 12 | AN48: 0.93 | AO48: 1 | AP48: 695.25
A49: Melassa Remolatxa | B49: 76 | C49: 1.184004733 | D49: 1.207089514 | E49: 146 | F49: 10.22 | G49: 76.74012851 | H49: 17.6422992 | I49: 0.04 | L49: 3 | M49: 0.89 | N49: 878.252 | O49: 2 | P49: 0 | Q49: 0 | R49: 0 | S49: 0 | T49: 13.2 | U49: 1.925 | V49: 0.34 | W49: 16.5 | Y49: 55 | Z49: 12.5 | AM49: 2 | AN49: 0.93 | AO49: 1 | AP49: 866.032
A50: Mill gra | B50: 88 | C50: 1.009546491 | D50: 0.9776763056 | E50: 131 | F50: 35.90764594 | G50: 91.77812279 | H50: -15.03762007 | I50: 0.2129 | L50: 2 | M50: 0.752754 | N50: 721.138332 | O50: 42 | P50: 106 | Q50: 284.5 | R50: 143.86 | S50: 29.7 | T50: 42 | U50: 0.22 | V50: 2.4 | W50: 1.7 | X50: 0.34 | Y50: 4.66 | Z50: 0.45 | AM50: =0.9*O50 -> 37.8 | AN50: 0.6997481148 | AO50: =(88.3+0.0371*E50-3.7*(10^-5)*(E50^2)-0.107*S50-0.00313*(100-N50))/100 -> 0.9129140598 | AP50: 639.805335
A51: Mongeta gra | B51: 88 | C51: 1.269417567 | D51: 1.306008103 | E51: 257 | F51: 44.57202968 | G51: 108.5638422 | H51: 93.98279293 | I51: 0.1714 | L51: 2 | M51: 0.91937 | N51: 878.91772 | O51: 19 | P51: 51 | Q51: 162 | R51: 74 | S51: 3 | T51: 44 | U51: 0.715 | V51: 3.468 | W51: 1.6 | Y51: 14 | Z51: 0.4 | AM51: =O51*0.8 -> 15.2 | AN51: 0.8221354136 | AO51: 0.9750789946 | AP51: 814.2065213
A52: Oliva molinada "orujo" | B52: 89 | C52: 0.3555684594 | D52: 0.2315284959 | E52: 111 | F52: 37.77367179 | G52: 72.19608588 | H52: -21.36502202 | I52: 0.5864 | L52: 2 | M52: 0.33429 | N52: 306.87822 | O52: 74 | P52: 339 | Q52: 620.51 | R52: 456.32 | S52: 108.36 | T52: 82 | U52: 7.7 | V52: 2.312 | AM52: =O52*0.74 -> 54.76 | AN52: 0.5799513971 | AO52: 0.8101523183 | AP52: 186.2528251
A53: Oliva polpa d'extracció ("orujo"), IAMZ | B53: 87.6 | C53: 0.2835820822 | D53: 0.1630785602 | E53: 66 | F53: 20.21048157 | G53: 53.34965943 | H53: -38.25996541 | I53: 0.5864 | L53: 2 | M53: 0.26932 | N53: 252.89148 | O53: 74 | P53: 412 | Q53: 725.77 | R53: 527.95 | S53: 134.64 | T53: 61 | U53: 3.08 | V53: 0.612 | AM53: =O53*0.74 -> 54.76 | AN53: 0.6005460193 | AO53: 0.7665949833 | AP53: 152.5275173
A54: Oliva polpa sense extracció, IAMZ | B54: 68.5 | C54: 0.5285256608 | D54: 0.4118821932 | E54: 114 | F54: 44.70328847 | G54: 84.48223093 | H54: -28.4745976 | I54: 0.5864 | L54: 2 | M54: 0.458 | N54: 425.024 | O54: 74 | P54: 200 | Q54: 341 | R54: 295 | S54: 60.21 | T54: 72 | U54: 6.545 | V54: 1.088 | AM54: =O54*0.74 -> 54.76 | AN54: 0.5473115864 | AO54: 0.8662340312 | AP54: 299.4175209
A55: Ordi bagàs cerveseria fresc | B55: 20.5 | C55: 0.8640921799 | D55: 0.7703702942 | E55: 300 | F55: 129.9487159 | G55: 172.9796551 | H55: 53.5641575 | I55: 0.4951 | L55: 2 | M55: 0.6385 | N55: 606.575 | O55: 86 | P55: 150 | Q55: 525 | R55: 206 | S55: 47 | T55: 50 | U55: 1.815 | V55: 4.446 | W55: 1.6 | Y55: 0.7 | Z55: 1.6 | AB55: 0.08 | AC55: 22.2 | AD55: 0.5 | AE55: 64 | AG55: 38.5 | AH55: 0.06 | AI55: 85 | AL55: 29 | AM55: =O55*0.45 -> 38.7 | AN55: 0.5325076887 | AO55: 0.9265657975 | AP55: 380.3273066
A56: Ordi bagàs cerveseria sec | B56: 91.9 | C56: 0.871193565 | D56: 0.7805426295 | E56: 262.4 | F56: 107.6156328 | G56: 151.6383987 | H56: 35.09442835 | I56: 0.4951 | L56: 2 | M56: 0.62732 | N56: 601.348952 | O56: 79.9 | P56: 161.6 | Q56: 643.3 | R56: 236.4 | S56: 78.9 | T56: 41.4 | U56: 1.265 | V56: 4.914 | AB56: 0.08 | AC56: 22.2 | AD56: 0.5 | AE56: 64 | AG56: 38.5 | AH56: 0.06 | AI56: 85 | AL56: 29 | AM56: =O56*0.45 -> 35.955 | AN56: 0.5371850665 | AO56: 0.886143731 | AP56: 400.0063135
A57: Ordi gra | B57: 88.8 | C57: 1.078969989 | D57: 1.067752556 | E57: 112 | F57: 27.59508246 | G57: 89.46220189 | H57: -31.34737412 | I57: 0.2046 | L57: 2 | M57: 0.837328 | N57: 816.3948 | O57: 19 | P57: 54 | Q57: 215 | R57: 65 | S57: 12 | T57: 25 | U57: 0.44 | V57: 2.964 | W57: 1.3 | Y57: 5.55 | Z57: 0.35 | AB57: 0.01 | AC57: 4.1 | AD57: 0.3 | AE57: 600 | AF57: 90 | AG57: 17.6 | AH57: 0.02 | AI57: 24.4 | AJ57: 1000 | AL57: 25 | AM57: =0.75*O57 -> 14.25 | AN57: 0.7349259949 | AO57: 0.9294938772 | AP57: 767.7065114
A58: Ordi malta, gra germinat i eixugat | B58: 89.6 | C58: 0.8231856487 | D58: 0.7581965961 | E58: 255 | F58: 66.35502136 | G58: 127.2527654 | H58: 71.69727487 | I58: 0.2959 | L58: 2 | M58: 0.89925 | N58: 840.79875 | O58: 23 | P58: 10 | Q58: 94 | R58: 10 | S58: 6 | T58: 65 | U58: 1.485 | V58: 5.625 | AE58: 165 | AL58: 16 | AM58: =O58*0.45 -> 10.35 | AN58: 0.7318227862 | AO58: 0.9703127509 | AP58: 749.4135605
A59: Ordi segó | B59: 89 | C59: 0.7604950037 | D59: 0.683000715 | E59: 118 | F59: 25.13276462 | G59: 75.56717545 | H59: -8.043766921 | I59: 0.3630071 | L59: 2 | M59: 0.620602 | N59: 581.504074 | O59: 32 | P59: 187 | Q59: 539 | R59: 239 | S59: 28 | T59: 63 | U59: 0.44 | V59: 2.925 | AB59: 0.03 | AC59: 11.7 | AD59: 0.6 | AG59: 123 | AH59: 0.05 | AI59: 59 | AM59: =O59*0.8 -> 25.6 | AN59: 0.7651033494 | AO59: 0.9067371975 | AP59: 521.7862692
A60: Patata polpa-ITEB | B60: 17 | C60: 1.047562058 | D60: 1.040325904 | E60: 50 | F60: 15.36772122 | G60: 77.36979178 | H60: -80.57823525 | I60: 0.1216 | L60: 2 | M60: 0.8101 | N60: 789.8475 | O60: 2.5 | P60: 150 | Q60: 348 | R60: 199.09 | S60: 43.7 | T60: 25 | U60: 2.75 | V60: 0.34 | W60: 0.8 | X60: 6 | AM60: =O60*0.8 -> 2 | AN60: 0.6489216562 | AO60: 0.8754582267 | AP60: 769.7935828
A61: Patata-ITEB | B61: 13 | C61: 1.224039877 | D61: 1.270348111 | E61: 100 | F61: 34.23948908 | G61: 100.5831692 | H61: -56.86200025 | I61: 0.1216 | L61: 2 | M61: 0.9445 | N61: 901.9975 | O61: 0.8 | P61: 30 | Q61: 174.97 | R61: 48.46 | S61: 7.28 | T61: 45 | U61: 0.55 | V61: 1.36 | W61: 1 | X61: 22 | AM61: =O61*0.8 -> 0.64 | AN61: 0.6332974699 | AO61: 0.9337129217 | AP61: 864.527247
A62: Pèsol gra | B62: 85.7 | C62: 1.262578618 | D62: 1.297789954 | E62: 259 | F62: 44.91173193 | G62: 108.9957771 | H62: 95.45867945 | I62: 0.1714 | L62: 2 | M62: 0.91768 | N62: 877.30208 | O62: 15 | P62: 64 | Q62: 162 | R62: 74 | S62: 3 | T62: 44 | U62: 0.495 | V62: 3.128 | W62: 1.45 | Y62: 11 | Z62: 0.3 | AB62: 0.07 | AC62: 7.2 | AD62: 1.1 | AE62: 502 | AG62: 8 | AH62: 0.2 | AI62: 37 | AM62: =O62*0.8 -> 12 | AN62: 0.8222202176 | AO62: 0.9753885851 | AP62: 816.2571164
A63: Polpes (cítrics) | B63: 90 | C63: 1.09457765 | D63: 1.103551588 | E63: 70 | F63: 20.49453097 | G63: 82.57976854 | H63: -65.70818372 | I63: 0.2212 | L63: 2 | M63: 0.87931 | N63: 822.15485 | O63: 28 | P63: 137 | Q63: 223 | R63: 158 | S63: 14 | T63: 65 | U63: 4.6 | V63: 1.17 | AE63: 62 | AM63: =O63*0.6 -> 16.8 | AN63: 0.6799461392 | AO63: 0.9147804468 | AP63: 771.7510797
A64: Polpes (cítrics) ensitjades | B64: 21 | C64: 1.224764853 | D64: 1.238763409 | E64: 73 | F64: 20.57651646 | G64: 79.53725613 | H64: -58.87615574 | I64: 0.2212 | L64: 2 | M64: 0.87228 | N64: 824.3046 | O64: 97 | P64: 156 | Q64: 356.65 | R64: 206.62 | S64: 44.65 | T64: 55 | U64: 3.4 | V64: 0.9 | W64: 1.3 | Y64: 6.2 | Z64: 0.9 | AA64: 0.2 | AB64: 0.16 | AC64: 6 | AE64: 62 | AF64: 160 | AG64: 7 | AI64: 16 | AM64: =O64*0.6 -> 58.2 | AN64: 0.6807836781 | AO64: 0.883006504 | AP64: 704.0018085
A65: Poma deixalles | B65: 22 | C65: 1.10018865 | D65: 1.102760433 | E65: 23 | F65: 8.795543217 | G65: 71.56469958 | H65: -100.0868068 | I65: 0.4868 | L65: 2 | M65: 0.82908 | N65: 813.32748 | O65: 18 | P65: 68 | Q65: 229.76 | R65: 96.16 | S65: 18 | T65: 19 | U65: 0.5 | V65: 1.4 | W65: 0.7 | AM65: =O65*0.9 -> 16.2 | AN65: 0.5724362337 | AO65: 0.8944044201 | AP65: 785.4935134
A66: Poma molinada ("marc") deshidratada | B66: 94.1 | C66: 0.5535459391 | D66: 0.4298652377 | E66: 79 | F66: 22.41772409 | G66: 65.61179369 | H66: -39.82073375 | I66: 0.4868 | L66: 2 | M66: 0.44368 | N66: 435.25008 | O66: 39 | P66: 478 | Q66: 354 | R66: 610.79 | S66: 121 | T66: 19 | U66: 1.045 | V66: 1.088 | AM66: =O66*0.9 -> 35.1 | AN66: 0.6412637776 | AO66: 0.7910231575 | AP66: 367.9099184
A67: Poma residu deshidratat, NRC | B67: 89 | C67: 1.017592193 | D67: 0.9832011689 | E67: 49 | F67: 17.45620144 | G67: 73.71511167 | H67: -76.13454724 | I67: 0.4868 | L67: 2 | M67: 0.7332 | N67: 717.0696 | O67: 51 | P67: 170 | Q67: 376.83 | R67: 260 | S67: 50.24 | T67: 22 | U67: 0.715 | V67: 0.748 | W67: 0.7 | Y67: 4.6 | Z67: 1.2 | AA67: 0.2 | AC67: 10 | AF67: 300 | AG67: 7 | AM67: =O67*0.9 -> 45.9 | AN67: 0.5885548453 | AO67: 0.8658481085 | AP67: 645.9087874
A68: Raïm polpa | B68: 90 | C68: 0.3048901197 | D68: 0.1865548158 | E68: 120 | F68: 11.60850895 | G68: 48.20840292 | H68: -20.98733433 | I68: 0.5864 | L68: 2 | M68: 0.30492 | N68: 292.41828 | O68: 7 | P68: 372 | Q68: 754 | R68: 653 | S68: 499 | T68: 41 | U68: 4.4 | V68: 2.72 | AM68: =O68*0.75 -> 5.25 | AN68: 0.754650443 | AO68: 0.3942846922 | AP68: 255.9763332
A69: Raïm tortó de pinyols | B69: 89 | C69: 0.1623041941 | D69: 0.0678723051 | E69: 112 | F69: -1.654010677 | G69: 29.6262119 | H69: -16.03534777 | I69: 0.5864 | L69: 2 | M69: 0.18833 | N69: 181.17346 | O69: 16 | P69: 503 | Q69: 847 | R69: 751 | S69: 644 | T69: 38 | U69: 3.63 | V69: 0.884 | AM69: =O69*0.75 -> 12 | AN69: 1.063280888 | AO69: 0.2333714493 | AP69: =N69-E69*(1-AN69)-O69 -> 172.2609194
A70: Raïm vinassa sense pinyols | B70: 67 | C70: 0.6608050597 | D70: 0.5617156148 | E70: 172 | F70: 20.01576435 | G70: 59.87298187 | H70: -4.236902376 | I70: 0.5864 | L70: 2 | M70: 0.54433 | N70: 483.36504 | O70: 97 | P70: 103 | Q70: 777 | R70: 685 | S70: 536 | T70: 112 | U70: 3.3 | V70: 1.7 | AM70: =O70*0.75 -> 72.75 | AN70: 0.6891352988 | AO70: 0.3743452458 | AP70: 332.8963114
A71: Remolatxa polpes deshidratades | B71: 90 | C71: 1.025471629 | D71: 1.019108024 | E71: 98 | F71: 34.16981377 | G71: 94.98664694 | H71: -54.34630184 | I71: 0.2876 | L71: 2 | M71: 0.855001 | N71: 794.2104289 | O71: 9 | P71: 202.7 | Q71: 507.9 | R71: 302.1 | S71: 55.1 | T71: 71.1 | U71: 2.12 | V71: 0.68 | W71: 2.233333333 | X71: 0.4 | Y71: 4 | Z71: 2.233333333 | AA71: 2.2 | AB71: 0.09333333333 | AC71: 7.733333333 | AD71: 0.3 | AF71: 243 | AG71: 47.6 | AH71: 0.03 | AI71: 9.733333333 | AK71: 0.6 | AM71: 4 | AN71: 0.6031402548 | AO71: 0.8785763064 | AP71: 746.3181739
A72: Remolatxa polpes ensitjades | B72: 22 | C72: 1.00766597 | D72: 1.00149028 | E72: 98 | F72: 33.63126047 | G72: 93.73194347 | H72: -53.22731718 | I72: 0.2876 | L72: 2 | M72: 0.85378 | N72: 778.64736 | O72: 9 | P72: 206 | Q72: 428.74 | R72: 269.38 | S72: 62.22 | T72: 88 | U72: 2.6 | V72: 0.68 | AB72: 0.1 | AC72: 4.6 | AD72: 0.3 | AG72: 52.4 | AH72: 0.03 | AI72: 9.6 | AM72: =O72*0.5 -> 4.5 | AN72: 0.6057580172 | AO72: 0.8704707824 | AP72: 731.0116457
A73: Residu pa deshidratat, NRC | B73: 92 | C73: 1.096141567 | D73: 1.054875419 | E73: 107 | F73: 22.01612961 | G73: 70.4665579 | H73: -10.7237942 | I73: 0.294457 | L73: 2 | M73: 0.714218 | N73: 628.1690154 | O73: 127 | P73: 130 | Q73: 180 | R73: 130 | S73: 10 | T73: 44 | U73: 0.77 | V73: 1.768 | W73: 2.6 | X73: 16.1 | Y73: 5.3 | Z73: 12.4 | AA73: 0.2 | AB73: 1.05 | AC73: 5 | AF73: 31 | AG73: 71 | AI73: 16 | AJ73: 2000 | AL73: 45 | AN73: 0.7773884271 | AO73: 0.9242925602 | AP73: 477.3495771
A74: Segol gra | B74: 86.5 | C74: 1.19 | D74: 1.21 | E74: 97 | F74: 20 | G74: 81 | H74: -34.72904868 | I74: 0.2129 | L74: 2 | M74: 0.88214 | N74: 864.4972 | O74: 16.2 | P74: 26 | Q74: 132 | R74: 42 | S74: 14 | T74: 20 | U74: 0.385 | V74: 3 | W74: 1.35 | Y74: 5.25 | Z74: 0.3 | AB74: 0.03 | AC74: 4.5 | AD74: 0.2 | AE74: 620 | AG74: 55 | AH74: 0.03 | AI74: 30 | AL74: 17 | AM74: =0.75*O74 -> 12.15 | AN74: 0.7769651377 | AO74: 0.9244544324 | AP74: 826.6628184
A75: Soja tortó 44 | B75: 87.2 | C75: 1.165625863 | D75: 1.159793832 | E75: 488 | F75: 153.419998 | G75: 207.0695265 | H75: 219.1726116 | I75: 0.2781056 | L75: 2 | M75: 0.849655 | N75: 779.133635 | O75: 22 | P75: 84 | Q75: 163 | R75: 104 | S75: 8 | T75: 83 | U75: 1.87 | V75: 4.9 | W75: 2.7 | Y75: 20 | Z75: 1.95 | AB75: 0.3 | AC75: 17.1 | AD75: 2.3 | AE75: 68 | AF75: 200 | AG75: 43.7 | AH75: 0.2 | AI75: 54.6 | AL75: 7 | AM75: =O75*0.75 -> 16.5 | AN75: 0.6819996035 | AO75: 0.9886316028 | AP75: 601.9494415
A76: Soja tortó 46 | B76: 87.2 | C76: 1.204239972 | D76: 1.205333606 | E76: 505 | F76: 160.0692099 | G76: 214.4558798 | H76: 229.0708283 | I76: 0.2686721 | L76: 2 | M76: 0.863895 | N76: 799.102875 | O76: 20 | P76: 72 | Q76: 143 | R76: 89 | S76: 7 | T76: 75 | U76: 1.87 | V76: 5.18 | W76: 2.7 | Y76: 20 | Z76: 1.95 | AB76: 0.3 | AC76: 17.1 | AD76: 2.3 | AE76: 68 | AF76: 200 | AG76: 43.7 | AH76: 0.2 | AI76: 54.6 | AM76: =O76*0.75 -> 15 | AN76: 0.6799548883 | AO76: 0.99038767 | AP76: 617.4800936
A77: Soja tortó 48 | B77: 88.3 | C77: 1.223810674 | D77: 1.22687166 | E77: 520 | F77: 165.0816182 | G77: 219.3151576 | H77: 239.0600948 | I77: 0.2674143 | L77: 2 | M77: 0.867341 | N77: 804.025107 | O77: 23 | P77: 70 | Q77: 140 | R77: 87 | S77: 7 | T77: 73 | U77: 1.87 | V77: 5.46 | W77: 2.7 | Y77: 19.7 | Z77: 1.95 | AB77: 0.3 | AC77: 17.1 | AD77: 2.3 | AE77: 57 | AF77: 200 | AG77: 43.7 | AH77: 0.2 | AI77: 54.6 | AM77: =O77*0.75 -> 17.25 | AN77: 0.6794639687 | AO77: 0.9904179858 | AP77: 614.3463707
A78: Soja tortó 48 curtit "tanne" | B78: 88.8 | C78: 1.223810674 | D78: 1.22687166 | E78: 520 | F78: 165.0816182 | G78: 219.3151576 | H78: 239.0600948 | I78: 0.2674143 | L78: 2 | M78: 0.867341 | N78: 804.025107 | O78: 23 | P78: 70 | Q78: 140 | R78: 87 | S78: 7 | T78: 73 | U78: 1.87 | V78: 5.46 | AB78: 0.3 | AC78: 17.1 | AD78: 2.3 | AE78: 62 | AF78: 200 | AG78: 43.7 | AH78: 0.2 | AI78: 54.6 | AM78: =O78*0.66 -> 15.18 | AN78: 0.6794639687 | AO78: 0.9904179858 | AP78: 614.3463707
A79: Soja tortó 50 | B79: 87.8 | C79: 1.225744301 | D79: 1.225565004 | E79: 544 | F79: 172.4045434 | G79: 225.7154558 | H79: 256.1016993 | I79: 0.2498051 | L79: 2 | M79: 0.862027 | N79: 797.374975 | O79: 28 | P79: 77 | Q79: 102 | R79: 59 | S79: 6 | T79: 75 | U79: 1.65 | V79: 5.46 | W79: 2.7 | Y79: 19.7 | Z79: 1.95 | AB79: 0.3 | AC79: 17.1 | AD79: 2.3 | AE79: 62 | AF79: 200 | AG79: 43.7 | AH79: 0.2 | AI79: 54.6 | AM79: =O79*0.75 -> 21 | AN79: 0.6801163265 | AO79: 0.9907355167 | AP79: 595.3582566
A80: Soja, gra extrussionat | B80: 88 | C80: 1.485485602 | D80: 1.497390722 | E80: 402 | F80: 188.4323551 | G80: 238.0406285 | H80: 109.2870728 | I80: 0.3208 | L80: 2 | M80: 0.97179 | N80: 912.51081 | O80: 213 | P80: 74 | Q80: 146 | R80: 92 | S80: 7 | T80: 61 | U80: 1.54 | V80: 4.48 | AE80: 59 | AM80: =O80*0.95 -> 202.35 | AN80: 0.526666784 | AO80: 0.9902901084 | AP80: 509.2308572
A81: Soja, gra torrat | B81: 88.6 | C81: 1.490185728 | D81: 1.502445871 | E81: 397.3 | F81: 133.307895 | G81: 185.6891829 | H81: 158.2262376 | I81: 0.2959 | L81: 2 | M81: 0.975779 | N81: 918.5007727 | O81: 216.7 | P81: 63.2 | Q81: 132 | R81: 77.78 | S81: 13.5 | T81: 58.7 | U81: 1.986455982 | V81: 4.187358916 | W81: 2.595936795 | X81: 0.5643340858 | Y81: 20.76749436 | Z81: 0.9029345372 | AA81: 3.16027088 | AC81: 38.37471783 | AD81: 4.514672686 | AE81: 58 | AF81: 161.3995485 | AG81: 31.6027088 | AH81: 0.316027088 | AI81: 45.14672686 | AM81: =O81*0.95 -> 205.865 | AN81: 0.6587213001 | AO81: 0.9831688769 | AP81: 566.2107452
A82: Sorgo gra | B82: 86 | C82: 1.21 | D82: 1.23 | E82: 105 | F82: 47 | G82: 97.13096315 | H82: -48 | I82: 0.2129 | L82: 2 | M82: 0.884686 | N82: 869.646338 | O82: 37 | P82: 25 | Q82: 107 | R82: 49 | S82: 4 | T82: 17 | U82: 0.165 | V82: 2.4 | W82: 1.75 | Y82: 3.6 | Z82: 0.4 | AC82: 10 | AE82: 736 | AF82: 160 | AG82: 14 | AI82: 14 | AJ82: 14000 | AL82: 12 | AM82: =O82*0.9 -> 33.3 | AN82: 0.5226342292 | AO82: 0.9376856804 | AP82: 782.5229321
A83: Triticale gra | B83: 87.1 | C83: 1.191793332 | D83: 1.210362141 | E83: 130 | F83: 38.225488 | G83: 101.2965379 | H83: -26.94851539 | I83: 0.2129 | L83: 2 | M83: 0.87145 | N83: 852.2781 | O83: 17 | P83: 33 | Q83: 148 | R83: 40 | S83: 13 | T83: 22 | U83: 0.275 | V83: 3.45 | AM83: =O83*0.75 -> 12.75 | AN83: 0.6853862298 | AO83: 0.9346133045 | AP83: 794.3783099
A84: Urea | B84: 99 | C84: 0.26 | D84: 0.2 | E84: 2870 | F84: 1e-06 | G84: 71 | H84: 2557 | I84: 0.23 | L84: 2 | M84: 0.99 | N84: 1e-06 | O84: 1e-06 | P84: 1e-06 | Q84: 1e-06 | R84: 1e-06 | S84: 1e-06 | T84: 1e-06 | W84: 1e-06 | X84: 1e-06 | Y84: 1e-06 | Z84: 1e-06 | AA84: 1e-06 | AB84: 1e-06 | AC84: 1e-06 | AD84: 1e-06 | AF84: 1e-06 | AG84: 1e-06 | AH84: 1e-06 | AI84: 1e-06 | AJ84: 1e-06 | AK84: 1e-06 | AL84: 1e-06 | AM84: 0 | AN84: 0 | AO84: 0
A85: Concentrat normal | B85: 86.62 | C85: 1.191586838 | E85: 166.13 | F85: 63.79399959 | G85: 113.7939053 | H85: 3.024522329 | I85: 0.30902812 | L85: 1.94 | M85: 0.84972242 | N85: 826.1010671 | O85: 37.51 | P85: 36.82 | Q85: 128.85 | R85: 44.67 | S85: 47.8 | T85: 46.48 | U85: 3.49655 | V85: 2.86963 | W85: 1.898 | X85: 0.004 | Y85: 6.786 | Z85: 0.6581 | AA85: 0.014 | AB85: 0.0754 | AC85: 5.431 | AD85: 0.691 | AE85: 582.63 | AG85: 17.056 | AH85: 0.0554 | AI85: 27.398 | AJ85: 0 | AK85: 0 | AL85: 1.4 | AM85: 31.4435 | AN85: 0.4802595118 | AP85: 702.2465798
A86: Pinso 2,5 | B86: 83.41611085 | C86: 1.169187814 | E86: 132.8879439 | F86: 49.4130504 | G86: 97.95040291 | H86: -12.51047661 | I86: 0.2953762095 | L86: 1.888064354 | M86: 0.8242756019 | N86: 803.9909512 | O86: 39.49069284 | P86: 29.19228983 | Q86: 123.4978611 | R86: 36.73814247 | S86: 52.92981619 | U86: 3.49655 | V86: 2.86963 | X86: 0.00294017252 | Y86: 3.527480451 | Z86: 0.3136059813 | AA86: 0.01029060382 | AB86: 0.02107621764 | AC86: 2.303893956 | AD86: 0.2667630273 | AE86: 599.6641211 | AG86: 11.85026978 | AH86: 0.01959481052 | AI86: 20.45289279 | AJ86: 0 | AK86: 0 | AL86: 0 | AM86: 33.18618264 | AN86: 0.4612576175 | AP86: 709.2201622
A87: Pinso senzill | B87: 86.417 | C87: 1.072309114 | E87: 158.895 | F87: 65.17708515 | G87: 115.9641019 | H87: -13.45660121 | I87: 0.3344679409 | L87: 1.98 | M87: 0.806013945 | N87: 764.1023202 | O87: 31.185 | P87: 92.565 | Q87: 241.9857 | R87: 120.7305 | S87: 53.10855 | T87: 64.495 | U87: 2.299375 | V87: 1.514205 | W87: 0.833 | X87: 0.002 | Y87: 1.789 | Z87: 0.17035 | AA87: 0.007 | AB87: 0.0099 | AC87: 1.2585 | AD87: 0.1485 | AE87: 437.085 | AG87: 5.346 | AH87: 0.0099 | AI87: 10.593 | AJ87: 0 | AK87: 0 | AL87: 0 | AM87: 25.51725 | AN87: 0.5096251741 | AP87: 660.6448397
A88: Farina cotó JDsci | B88: 90 | C88: 1.178289792 | D88: 1.161938498 | E88: 460 | F88: 159.7011955 | G88: 212.1840663 | H88: 179.7955144 | I88: 0.3222459703 | L88: 2 | M88: 0.817286676 | N88: 764.9803287 | O88: 20 | P88: 112.2654 | Q88: 278 | R88: 175 | S88: 31.6500588 | T88: 64 | U88: 0.88 | V88: 3.654 | W88: 3.5 | AE88: 12 | AM88: 15 | AN88: 0.6 | AO88: 0.86794128 | AP88: 560.9803287
A89: T soja JDsci | B89: 89,8 | C89: 1.237123502 | D89: 1.252059563 | E89: 480 | F89: 165.5776773 | G89: 220.5294458 | H89: 197.5378618 | I89: 0.4204 | L89: 2 | M89: 0.893166144 | N89: 819.033354 | O89: 22 | P89: 42.2876 | Q89: 132 | R89: 100 | S89: 10.67017383 | T89: 83 | U89: 2.099166667 | V89: 4.911666667 | W89: 3.116666667 | AE89: 11 | AM89: 14.52 | AN89: 0.62 | AO89: 0.9077723538 | AP89: 614.633354
A90: Farina cotó i cotó Ració 2 Jdsci | B90: =(1.865*B29+1.2*B30)/(1.865+1.2) -> 90.17455139 | C90: =(1.865*C29+1.2*C30)/(1.865+1.2) -> 1.132790437 | D90: 1.087266439 | E90: 369.6867863 | F90: 117.0104643 | G90: 165.2750008 | H90: 139.9507725 | I90: 0.3793231625 | L90: =(1.865*L29+1.2*L30)/(1.865+1.2) -> 2 | M90: 0.7412461794 | N90: 699.1220207 | O90: 89.69004894 | P90: 185.3360522 | Q90: 319.6998369 | R90: 222.5676998 | S90: 60.58075041 | T90: 55.77814029 | U90: 2.025130506 | V90: 5.457660685 | W90: 3.16411093 | AE90: =(1.865*AE29+1.2*AE30)/(1.865+1.2) -> 27.69331158 | AM90: =(1.865*AM29+1.2*AM30)/(1.865+1.2) -> 82.77161501 | AN90: 0.6794745724 | AO90: 0.9181834139 | AP90: 485.1653006
A91: Farina cotó i cotó Ració 3 Jdsci | B91: =(4.165*B29+1.14*B30)/(4.165+1.14) -> 89.64467484 | C91: =(4.165*C29+1.14*C30)/(4.165+1.14) -> 1.140640834 | D91: 1.104715002 | E91: 413.1366635 | F91: 136.820369 | G91: 186.6448831 | H91: 160.0860488 | I91: 0.3433071353 | L91: =(4.165*L29+1.14*L30)/(4.165+1.14) -> 2 | M91: 0.7687425335 | N91: 722.4605775 | O91: 58.25070688 | P91: 159.0188501 | Q91: 280.135721 | R91: 184.4165881 | S91: 47.68708765 | T91: 59.48727615 | U91: 2.277704995 | V91: 5.667138549 | W91: 4.082563619 | AE91: =(4.165*AE29+1.14*AE30)/(4.165+1.14) -> 29.63619227 | AF91: 0 | AG91: 0 | AM91: 52.19773798 | AN91: 0.6620767503 | AO91: 0.9378015865 | AP91: 520.513248

Sheet 0_Taula Minerals-aa (hidden)
A1: Nom del mineral | B1: MS % | C1: UFL | D1: UFV | E1: MNT_PB | F1: PDIA | G1: PDI | H1: BPR | I1: UEL | J1: UEB | K1: UEM | L1: NI ref | M1: dMO | N1: MOD | O1: EE | P1: FB | Q1: NDF | R1: ADF | S1: Lignina | T1: cendres | U1: Ca | V1: P | W1: Mg | X1: Cl | Y1: K | Z1: Na | AA1: S | AB1: Co | AC1: Cu | AD1: Mo | AE1: MIDÓ | AF1: Fe | AG1: Mn | AH1: Se | AI1: Zn | AJ1: Vit A | AK1: Vit D | AL1: Vit E | AM1: AG | AN1: DT_N | AO1: PF | AP1: MOF
A3: Bicarbonat sòdic | B3: 99.7 | Z3: 270
A4: Carbonat càlcic | B4: 98 | T4: 955 | U4: 145.54 | W4: 14 | X4: 0.2 | Y4: 0.7 | Z4: 0.7 | AA4: 0.7 | AC4: 12 | AF4: 620
A5: Carbonat de cobalt | B5: 100 | AB5: 49
A6: Carbonat de manganès | B6: 100 | AG6: 47
A7: Carbonat de zinc | B7: 100 | AI7: 52
A8: Clorur potàssic | B8: 100 | Y8: 52
A9: Clorur sòdic | B9: 98 | X9: 570 | Z9: 360
A10: Farina d’ossos | B10: 100 | U10: 11.8 | V10: 10.2
A11: Fosfat bicàlcic | B11: 98.8 | T11: 836 | U11: 244 | V11: 122.4 | W11: 5 | X11: 0.4 | Y11: 1.2 | Z11: 0.8 | AA11: 11 | AC11: 15 | AF11: 7800
A12: Fosfat monocàlcic | B12: 98.8 | U12: 88.2 | V12: 155.04
A13: Fosfat sòdic | B13: 100 | V13: 13.6 | Z13: 19
A14: Fosfòric | B14: 100 | V14: 21.488
A15: Iodur potàssic | B15: 100 | AE15: 76
A16: Òxid de coure | B16: 100 | AC16: 80
A17: Òxid de manganès | B17: 100 | AG17: 77
A18: Òxid de zinc | B18: 100 | AI18: 80
A19: Òxid magnèsic | B19: 100 | U19: 30 | W19: 510
A20: Sulfat de cobalt | B20: 100 | AB20: 22
A21: Sulfat de coure | B21: 100 | AC21: 25
A22: Sulfat de zinc | B22: 100 | AI22: 23
A23: Sulfat magnèsic | B23: 100 | W23: 10 | AA23: 13
A24: Sulfat sòdic | B24: 100 | Z24: 32 | AA24: 22
AC35: <<

Sheet III_Ració calculada (hidden)
A1: =I_Necessitats!A174 -> Necessitats per a una vaca (segons dades individuals) | B1: Kg llet estàndard | C1: =TODAY() -> 2026-03-06 | D1: =I_Necessitats!A146 -> Dies de racionament | F1: =I_Necessitats!D146 ->  | G1: Racionament alimentari de vaques de llet Grup de remugants RAMON TRIAS TORRENT | L1: Valors de la formulació
A2: =I_Necessitats!A173 -> Lliure | B2: ='II_Plantejar Ració'!J11 -> 35.36581617 | C2: Grup de Remugants | K2: Nutrient | L2: Mínim | M2: Real | N2: Màxim | O2: V teòric | P2: /KgMS
T3: UEL
A4: Ingredients que entren a la ració | B4: Q mínima | C4: kg/vaca i dia | D4: Q màxima | E4: kg MS | F4: Cost ct €/ració i dia | G4: Ingredients que NO entren | K4: ='II_Plantejar Ració'!$H$14 -> MSI (kg/dia) | L4: ='II_Plantejar Ració'!I14 -> 23.45112811 | M4: ='II_Plantejar Ració'!K14 -> 12.96149919 | N4: ='II_Plantejar Ració'!J14 -> 28.66248991 | O4: ='II_Plantejar Ració'!E21 -> 25.96399557
A5: =IF(C5="","",CàlculsVL!B3) -> Ensitjat raigràs italià primer cicle Moises_22 | B5: =IF('II_Plantejar Ració'!D4<=0,"",'II_Plantejar Ració'!B4) -> 10 | C5: =IF('II_Plantejar Ració'!D4<=0,"",'II_Plantejar Ració'!D4) -> 10.50730486 | D5: =IF('II_Plantejar Ració'!D4<=0,"",'II_Plantejar Ració'!C4) -> 15 | E5: =IF('II_Plantejar Ració'!D4<=0,"",'II_Plantejar Ració'!E4) -> 2.63733352 | F5: =IF('II_Plantejar Ració'!D4<=0,"",'II_Plantejar Ració'!G4*C5) -> 84.0584389 | G5: =IF(C5="",IF(CàlculsVL!C3>1,CàlculsVL!B3,""),"") ->  | I5: Nitrogen urinari | K5: ='II_Plantejar Ració'!$H$15 -> %MS ració | M5: ='II_Plantejar Ració'!K15 -> 30.73827312 | Q5: ='II_Plantejar Ració'!M13 -> En alguns ingredients no hi consten els nutrients ...
A6: =IF(C6="","",CàlculsVL!B4) -> PALLA Ordi | B6: =IF('II_Plantejar Ració'!D5<=0,"",'II_Plantejar Ració'!B5) -> 2 | C6: =IF('II_Plantejar Ració'!D5<=0,"",'II_Plantejar Ració'!D5) -> 2 | D6: =IF('II_Plantejar Ració'!D5<=0,"",'II_Plantejar Ració'!C5) -> 2 | E6: =IF('II_Plantejar Ració'!D5<=0,"",'II_Plantejar Ració'!E5) -> 1.76 | F6: =IF('II_Plantejar Ració'!D5<=0,"",'II_Plantejar Ració'!G5*C6) -> 14 | G6: =IF(C6="",IF(CàlculsVL!C4>1,CàlculsVL!B4,""),"") ->  | I6: =IV_Respostes!B18 -> 202.5244361 | K6: =CàlculsVL!E1 -> UEL | L6: ='II_Plantejar Ració'!I16 -> 17.66469753 | M6: ='II_Plantejar Ració'!K16 -> 9.679253846 | N6: ='II_Plantejar Ració'!J16 -> 21.59018587 | O6: ='II_Plantejar Ració'!G21 -> 19.55752944 | P6: ='II_Plantejar Ració'!L16 -> 0.7467696217
A7: =IF(C7="","",CàlculsVL!B5) -> EBM Nogué | B7: =IF('II_Plantejar Ració'!D6<=0,"",'II_Plantejar Ració'!B6) -> 6 | C7: =IF('II_Plantejar Ració'!D6<=0,"",'II_Plantejar Ració'!D6) -> 6 | D7: =IF('II_Plantejar Ració'!D6<=0,"",'II_Plantejar Ració'!C6) -> 6 | E7: =IF('II_Plantejar Ració'!D6<=0,"",'II_Plantejar Ració'!E6) -> 1.86 | F7: =IF('II_Plantejar Ració'!D6<=0,"",'II_Plantejar Ració'!G6*C7) -> 48 | G7: =IF(C7="",IF(CàlculsVL!C5>1,CàlculsVL!B5,""),"") ->  | I7: =IV_Respostes!C16 -> Dins normalitat | K7: =CàlculsVL!F1 -> UFL | L7: ='II_Plantejar Ració'!I17 -> 20.79332612 | M7: ='II_Plantejar Ració'!K17 -> 10.42423752 | N7: ='II_Plantejar Ració'!J17 -> 25.41406526 | O7: ='II_Plantejar Ració'!G22 -> 21.92818974 | P7: ='II_Plantejar Ració'!L17 -> 0.8042462814
A8: =IF(C8="","",CàlculsVL!B6) -> ENSITJAT Alfals rebrots floració prefenificat | B8: =IF('II_Plantejar Ració'!D7<=0,"",'II_Plantejar Ració'!B7) -> 0 | C8: =IF('II_Plantejar Ració'!D7<=0,"",'II_Plantejar Ració'!D7) -> 2.409243216 | D8: =IF('II_Plantejar Ració'!D7<=0,"",'II_Plantejar Ració'!C7) -> 4 | E8: =IF('II_Plantejar Ració'!D7<=0,"",'II_Plantejar Ració'!E7) -> 0.8070964774 | F8: =IF('II_Plantejar Ració'!D7<=0,"",'II_Plantejar Ració'!G7*C8) -> 21.68318894 | G8: =IF(C8="",IF(CàlculsVL!C6>1,CàlculsVL!B6,""),"") ->  | I8: Nitrogen fecal | K8: =CàlculsVL!G1 -> PDI | L8: ='II_Plantejar Ració'!I18 -> 2293.636891 | M8: ='II_Plantejar Ració'!K18 -> 1056.391226 | N8: ='II_Plantejar Ració'!J18 -> 2803.333977 | O8: ='II_Plantejar Ració'!G23 -> 2398.027754 | P8: ='II_Plantejar Ració'!L18 -> 81.50224061
A9: =IF(C9="","",CàlculsVL!B7) -> Blat de moro gra | B9: =IF('II_Plantejar Ració'!D8<=0,"",'II_Plantejar Ració'!B8) -> 0 | C9: =IF('II_Plantejar Ració'!D8<=0,"",'II_Plantejar Ració'!D8) -> 0.04777853845 | D9: =IF('II_Plantejar Ració'!D8<=0,"",'II_Plantejar Ració'!C8) -> 10 | E9: =IF('II_Plantejar Ració'!D8<=0,"",'II_Plantejar Ració'!E8) -> 0.04108954307 | F9: =IF('II_Plantejar Ració'!D8<=0,"",'II_Plantejar Ració'!G8*C9) -> 1.194463461 | G9: =IF(C9="",IF(CàlculsVL!C7>1,CàlculsVL!B7,""),"") ->  | I9: =IV_Respostes!B27 -> 120.0918514 | K9: =CàlculsVL!H1 -> BPR | L9: ='II_Plantejar Ració'!I19 -> -9 | M9: ='II_Plantejar Ració'!L19 -> 19 | N9: ='II_Plantejar Ració'!J19 -> 0 | P9: ='II_Plantejar Ració'!L19 -> 19
A10: =IF(C10="","",CàlculsVL!B8) -> Soja tortó 44 | B10: =IF('II_Plantejar Ració'!D9<=0,"",'II_Plantejar Ració'!B9) -> 0 | C10: =IF('II_Plantejar Ració'!D9<=0,"",'II_Plantejar Ració'!D9) -> 0.2513099146 | D10: =IF('II_Plantejar Ració'!D9<=0,"",'II_Plantejar Ració'!C9) -> 6 | E10: =IF('II_Plantejar Ració'!D9<=0,"",'II_Plantejar Ració'!E9) -> 0.2191422456 | F10: =IF('II_Plantejar Ració'!D9<=0,"",'II_Plantejar Ració'!G9*C10) -> 9.549776756 | G10: =IF(C10="",IF(CàlculsVL!C8>1,CàlculsVL!B8,""),"") ->  | I10: =IV_Respostes!C22 -> Relació normal | K10: ='II_Plantejar Ració'!H20 -> NI | L10: ='II_Plantejar Ració'!I20 -> 1.696106011 | M10: ='II_Plantejar Ració'!K20 -> 1.851642741 | N10: ='II_Plantejar Ració'!J20 -> 1.696106011 | P10: ='II_Plantejar Ració'!L20 -> 1.851642741 | Q10: ='II_Plantejar Ració'!M20 -> 
A11: =IF(C11="","",CàlculsVL!B9) -> Polpes (cítrics) | B11: =IF('II_Plantejar Ració'!D10<=0,"",'II_Plantejar Ració'!B10) -> 0 | C11: =IF('II_Plantejar Ració'!D10<=0,"",'II_Plantejar Ració'!D10) -> 1.101952002 | D11: =IF('II_Plantejar Ració'!D10<=0,"",'II_Plantejar Ració'!C10) -> 5 | E11: =IF('II_Plantejar Ració'!D10<=0,"",'II_Plantejar Ració'!E10) -> 0.9917568022 | F11: =IF('II_Plantejar Ració'!D10<=0,"",'II_Plantejar Ració'!G10*C11) -> 2.754880006 | G11: =IF(C11="",IF(CàlculsVL!C9>1,CàlculsVL!B9,""),"") ->  | I11: Emissions de metà | K11: =CàlculsVL!J1 -> Ca | L11: ='II_Plantejar Ració'!I21 -> 52.56324824 | M11: ='II_Plantejar Ració'!K21 -> 194.7265612 | N11: ='II_Plantejar Ració'!J21 -> 64.24397007 | O11: =I_Necessitats!D151 -> 67.02426426 | P11: ='II_Plantejar Ració'!L21 -> 15.02345973 | Q11: ='II_Plantejar Ració'!M21 -> 
A12: =IF(C12="","",CàlculsVL!B10) -> Alfals deshidratat i aglomerats | B12: =IF('II_Plantejar Ració'!D11<=0,"",'II_Plantejar Ració'!B11) -> 0 | C12: =IF('II_Plantejar Ració'!D11<=0,"",'II_Plantejar Ració'!D11) -> 1.887012158 | D12: =IF('II_Plantejar Ració'!D11<=0,"",'II_Plantejar Ració'!C11) -> 4 | E12: =IF('II_Plantejar Ració'!D11<=0,"",'II_Plantejar Ració'!E11) -> 1.702084967 | F12: =IF('II_Plantejar Ració'!D11<=0,"",'II_Plantejar Ració'!G11*C12) -> 47.17530396 | G12: =IF(C12="",IF(CàlculsVL!C10>1,CàlculsVL!B10,""),"") ->  | I12: =IV_Respostes!B35 -> 236.8291944 | K12: =CàlculsVL!K1 -> P | L12: ='II_Plantejar Ració'!I22 -> 39.58993589 | M12: ='II_Plantejar Ració'!K22 -> 82.91610786 | N12: ='II_Plantejar Ració'!J22 -> 48.38769942 | O12: =I_Necessitats!D152 -> 54.78088965 | P12: ='II_Plantejar Ració'!L22 -> 6.397107823 | Q12: ='II_Plantejar Ració'!M22 -> 
A13: =IF(C13="","",CàlculsVL!B11) -> Grassa vegetal, mantega de porc (tots els tipus) | B13: =IF('II_Plantejar Ració'!D12<=0,"",'II_Plantejar Ració'!B12) -> 0 | C13: =IF('II_Plantejar Ració'!D12<=0,"",'II_Plantejar Ració'!D12) -> 0.1849679673 | D13: =IF('II_Plantejar Ració'!D12<=0,"",'II_Plantejar Ració'!C12) -> 1 | E13: =IF('II_Plantejar Ració'!D12<=0,"",'II_Plantejar Ració'!E12) -> 0.1847829993 | F13: =IF('II_Plantejar Ració'!D12<=0,"",'II_Plantejar Ració'!G12*C13) -> 17.20202096 | G13: =IF(C13="",IF(CàlculsVL!C11>1,CàlculsVL!B11,""),"") ->  | I13: =IV_Respostes!C34 -> Producció metà per kg MOD normal | K13: =CàlculsVL!AB1 -> PDIA | M13: ='II_Plantejar Ració'!K39 -> 521.7934566 | P13: ='II_Plantejar Ració'!L39 -> 40.25718391 | Q13: ='II_Plantejar Ració'!M39 -> 
A14: =IF(C14="","",CàlculsVL!B12) -> Ordi bagàs cerveseria fresc | B14: =IF('II_Plantejar Ració'!D13<=0,"",'II_Plantejar Ració'!B13) -> 0 | C14: =IF('II_Plantejar Ració'!D13<=0,"",'II_Plantejar Ració'!D13) -> 8.045617381 | D14: =IF('II_Plantejar Ració'!D13<=0,"",'II_Plantejar Ració'!C13) -> 12 | E14: =IF('II_Plantejar Ració'!D13<=0,"",'II_Plantejar Ració'!E13) -> 1.649351563 | F14: =IF('II_Plantejar Ració'!D13<=0,"",'II_Plantejar Ració'!G13*C14) -> 48.27370429 | G14: =IF(C14="",IF(CàlculsVL!C12>1,CàlculsVL!B12,""),"") ->  | I14: pH ruminal | K14: PDI/UFL | M14: ='II_Plantejar Ració'!K52 -> 101.3399036
A15: =IF(C15="","",CàlculsVL!B13) -> Colza, turtó | B15: =IF('II_Plantejar Ració'!D14<=0,"",'II_Plantejar Ració'!B14) -> 0 | C15: =IF('II_Plantejar Ració'!D14<=0,"",'II_Plantejar Ració'!D14) -> 0.3026093372 | D15: =IF('II_Plantejar Ració'!D14<=0,"",'II_Plantejar Ració'!C14) -> 3 | E15: =IF('II_Plantejar Ració'!D14<=0,"",'II_Plantejar Ració'!E14) -> 0.2723484035 | F15: =IF('II_Plantejar Ració'!D14<=0,"",'II_Plantejar Ració'!G14*C15) -> 9.078280115 | G15: =IF(C15="",IF(CàlculsVL!C13>1,CàlculsVL!B13,""),"") ->  | I15: =IV_Respostes!G4 -> 6.292086494 | K15: =CàlculsVL!AA1 -> MNT_PB | M15: ='II_Plantejar Ració'!K38 -> 1991.526859 | P15: ='II_Plantejar Ració'!L38 -> 153.649422 | Q15: ='II_Plantejar Ració'!M38 -> 
A16: =IF(C16="","",CàlculsVL!B14) ->  | B16: =IF('II_Plantejar Ració'!D15<=0,"",'II_Plantejar Ració'!B15) ->  | C16: =IF('II_Plantejar Ració'!D15<=0,"",'II_Plantejar Ració'!D15) ->  | D16: =IF('II_Plantejar Ració'!D15<=0,"",'II_Plantejar Ració'!C15) ->  | E16: =IF('II_Plantejar Ració'!D15<=0,"",'II_Plantejar Ració'!E15) ->  | F16: =IF('II_Plantejar Ració'!D15<=0,"",'II_Plantejar Ració'!G15*C16) ->  | G16: =IF(C16="",IF(CàlculsVL!C14>1,CàlculsVL!B14,""),"") ->  | I16: =IV_Respostes!H3 -> Sense risc acidosi | K16: =CàlculsVL!AF1 -> FB | M16: ='II_Plantejar Ració'!K43 -> 3222.716413 | P16: ='II_Plantejar Ració'!L43 -> 248.637628 | Q16: ='II_Plantejar Ració'!M43 -> FB
A17: =IF(C17="","",CàlculsVL!B15) -> Carbonat càlcic | B17: =IF('II_Plantejar Ració'!D16<=0,"",'II_Plantejar Ració'!B16) -> 0 | C17: =IF('II_Plantejar Ració'!D16<=0,"",'II_Plantejar Ració'!D16) -> 0.3536186844 | D17: =IF('II_Plantejar Ració'!D16<=0,"",'II_Plantejar Ració'!C16) -> 0.65 | E17: =IF('II_Plantejar Ració'!D16<=0,"",'II_Plantejar Ració'!E16) -> 0.3465463107 | F17: =IF('II_Plantejar Ració'!D16<=0,"",'II_Plantejar Ració'!G16*C17) -> 2.121712107 | G17: =IF(C17="",IF(CàlculsVL!C15>1,CàlculsVL!B15,""),"") ->  | K17: =CàlculsVL!AG1 -> NDF | M17: ='II_Plantejar Ració'!K44 -> 6008.737985 | P17: ='II_Plantejar Ració'!L44 -> 463.5835637 | Q17: ='II_Plantejar Ració'!M44 -> NDF
A18: =IF(C18="","",CàlculsVL!B16) -> Fosfat bicàlcic | B18: =IF('II_Plantejar Ració'!D17<=0,"",'II_Plantejar Ració'!B17) -> 0 | C18: =IF('II_Plantejar Ració'!D17<=0,"",'II_Plantejar Ració'!D17) -> 0.4959173652 | D18: =IF('II_Plantejar Ració'!D17<=0,"",'II_Plantejar Ració'!C17) -> 0.5 | E18: =IF('II_Plantejar Ració'!D17<=0,"",'II_Plantejar Ració'!E17) -> 0.4899663568 | F18: =IF('II_Plantejar Ració'!D17<=0,"",'II_Plantejar Ració'!G17*C18) -> 12.39793413 | G18: =IF(C18="",IF(CàlculsVL!C16>1,CàlculsVL!B16,""),"") ->  | K18: =CàlculsVL!AH1 -> ADF | M18: ='II_Plantejar Ració'!K45 -> 3431.463428 | P18: ='II_Plantejar Ració'!L45 -> 264.7427877 | Q18: ='II_Plantejar Ració'!M45 -> ADF
A19: =IF(C19="","",CàlculsVL!B17) ->  | B19: =IF('II_Plantejar Ració'!D18<=0,"",'II_Plantejar Ració'!B18) ->  | C19: =IF('II_Plantejar Ració'!D18<=0,"",'II_Plantejar Ració'!D18) ->  | D19: =IF('II_Plantejar Ració'!D18<=0,"",'II_Plantejar Ració'!C18) ->  | E19: =IF('II_Plantejar Ració'!D18<=0,"",'II_Plantejar Ració'!E18) ->  | F19: =IF('II_Plantejar Ració'!D18<=0,"",'II_Plantejar Ració'!G18*C19) ->  | K19: =CàlculsVL!AI1 -> Lignina | M19: ='II_Plantejar Ració'!K46 -> 442.6733471 | P19: ='II_Plantejar Ració'!L46 -> 34.15294331 | Q19: ='II_Plantejar Ració'!M46 -> 
A20: Totals | C20: =SUM(C5:C19) -> 33.58733143 | E20: =SUM(E5:E19) -> 12.96149919 | F20: ='II_Plantejar Ració'!K11 -> 317.4897036 | K20: NDF_Fa | M20: ='II_Plantejar Ració'!K53 -> 4191.465856 | P20: ='II_Plantejar Ració'!L53 -> 32.33781676
A21: =IF(M6>=L6,IF(M6<=N6,"Dins límits repleció","Excés repleció"),"Dèficit repleció") -> Dèficit repleció | C21: Fa % | D21: ='II_Plantejar Ració'!J9 -> 54.50318589 | K21: NDFD_Fa | M21: ='II_Plantejar Ració'!K54 -> 3121.765308
A22: =IF(M7>=L7,IF(M7<=N7,"Dins límits energia","Excés energia"),"Dèficit energia") -> Dèficit energia | C22: Co % | D22: ='II_Plantejar Ració'!M8*100 -> 45.49681411 | K22: NDFD_Fa %NDF_Fa | M22: ='II_Plantejar Ració'!K55 -> 74.47908237
A23: =IF(M8>=L8,IF(M8<=N8,"Dins límits proteïna","Excés proteïna"),"Dèficit proteïna") -> Dèficit proteïna | B23: No s'ha trobat una solució acceptable | K23: ADF/NDF | M23: ='II_Plantejar Ració'!K56 -> 0.5710788915
A24: =IF(M9>=L9,IF(M9<=N9,"Dins límits BPR","Excés BPR"),"Dèficit BPR") -> Excés BPR | K24: =CàlculsVL!U1 -> MIDÓ | M24: ='II_Plantejar Ració'!K32 -> 815.0998678 | O24: ='II_Plantejar Ració'!J32/(1+'II_Plantejar Ració'!$E$24/100) -> 0 | P24: ='II_Plantejar Ració'!L32 -> 62.88623376 | Q24: ='II_Plantejar Ració'!M32 -> Midó
A25: =IF(M11>=L11,IF(M11<=N11,"Dins límits Ca","Excés Ca"),"Dèficit Ca") -> Excés Ca | K25: =CàlculsVL!AE1 -> EE | M25: ='II_Plantejar Ració'!K42 -> 617.0494034 | P25: ='II_Plantejar Ració'!L42 -> 4.760632967 | Q25: ='II_Plantejar Ració'!M42 -> 
A26: =IF(M12>=L12,IF(M12<=N12,"Dins límits P","Excés P"),"Dèficit P") -> Excés P | K26: =CàlculsVL!L1 -> Mg | L26: ='II_Plantejar Ració'!I23 -> 11.70438518 | M26: ='II_Plantejar Ració'!K23 -> 18.14102001 | N26: ='II_Plantejar Ració'!J23 -> 14.30535967 | O26: ='II_Plantejar Ració'!J23/(1+'II_Plantejar Ració'!E24/100) -> 13.00487243 | P26: ='II_Plantejar Ració'!L23 -> 1.399608159 | Q26: ='II_Plantejar Ració'!M23 -> Mg
A27: MS segons contingut i característiques MO de la ració | B27: ='II_Plantejar Ració'!I57 -> 23.54404532 | C27: =ABS(B27-E20) -> 10.58254613 | K27: =CàlculsVL!M1 -> K | L27: ='II_Plantejar Ració'!I24 -> 120.1938518 | M27: ='II_Plantejar Ració'!K24 -> 38.93297563 | N27: ='II_Plantejar Ració'!J24 -> 146.9035967 | O27: ='II_Plantejar Ració'!J24/(1+'II_Plantejar Ració'!E24/100) -> 133.5487243 | P27: ='II_Plantejar Ració'!L24 -> 3.003740158 | Q27: ='II_Plantejar Ració'!M24 -> K
A28: MS segons previsions NRC | B28: ='II_Plantejar Ració'!E21 -> 25.96399557 | C28: =ABS(B28-E20) -> 13.00249638 | K28: =CàlculsVL!N1 -> Na | L28: ='II_Plantejar Ració'!I25 -> 28.81315555 | M28: ='II_Plantejar Ració'!K25 -> 7.614666253 | N28: ='II_Plantejar Ració'!J25 -> 35.216079 | O28: ='II_Plantejar Ració'!J25/(1+'II_Plantejar Ració'!$E$24/100) -> 32.01461728 | P28: ='II_Plantejar Ració'!L25 -> 0.5874834494 | Q28: ='II_Plantejar Ració'!M25 -> Na
K29: =CàlculsVL!O1 -> S | L29: ='II_Plantejar Ració'!I26 -> 23.33069854 | M29: ='II_Plantejar Ració'!K26 -> 5.632212361 | N29: ='II_Plantejar Ració'!J26 -> 28.51529822 | O29: ='II_Plantejar Ració'!J26/(1+'II_Plantejar Ració'!$E$24/100) -> 25.92299838 | P29: ='II_Plantejar Ració'!L26 -> 0.434534021 | Q29: ='II_Plantejar Ració'!M26 -> S
A30: Midó/kgMS | B30: =P24 -> 62.88623376 | K30: =CàlculsVL!P1 -> Cl | L30: ='II_Plantejar Ració'!I27 -> 26.82438518 | M30: ='II_Plantejar Ració'!K27 -> 0.2652958233 | N30: ='II_Plantejar Ració'!J27 -> 32.78535967 | O30: ='II_Plantejar Ració'!J27/(1+'II_Plantejar Ració'!$E$24/100) -> 29.80487243 | P30: ='II_Plantejar Ració'!L27 -> 0.02046798904 | Q30: ='II_Plantejar Ració'!M27 -> Cl
A31: dMO inicial | B31: ='II_Plantejar Ració'!B39 -> 0.6115266095 | K31: =CàlculsVL!Q1 -> Co | L31: ='II_Plantejar Ració'!I28 -> 3.499604781 | M31: ='II_Plantejar Ració'!K28 -> 0.2257474484 | N31: ='II_Plantejar Ració'!J28 -> 4.277294732 | O31: ='II_Plantejar Ració'!J28/(1+'II_Plantejar Ració'!$E$24/100) -> 3.888449757 | P31: ='II_Plantejar Ració'!L28 -> 0.01741676986 | Q31: ='II_Plantejar Ració'!M28 -> Co
A32: dMO final | B32: ='II_Plantejar Ració'!B40 -> 0.5804124025 | K32: =CàlculsVL!R1 -> Cu | L32: ='II_Plantejar Ració'!I29 -> 116.6534927 | M32: ='II_Plantejar Ració'!K29 -> 58.91941037 | N32: ='II_Plantejar Ració'!J29 -> 142.5764911 | O32: ='II_Plantejar Ració'!J29/(1+'II_Plantejar Ració'!$E$24/100) -> 129.6149919 | P32: ='II_Plantejar Ració'!L29 -> 4.545724959 | Q32: ='II_Plantejar Ració'!M29 -> Cu
A33: EfProteïna inicial | B33: ='II_Plantejar Ració'!C71 -> 0.7626216434 | K33: =CàlculsVL!S1 -> Mn | L33: ='II_Plantejar Ració'!I30 -> 583.2674635 | M33: ='II_Plantejar Ració'!K30 -> 121.790442 | N33: ='II_Plantejar Ració'!J30 -> 712.8824554 | O33: ='II_Plantejar Ració'!J30/(1+'II_Plantejar Ració'!$E$24/100) -> 648.0749594 | P33: ='II_Plantejar Ració'!L30 -> 9.3963237 | Q33: ='II_Plantejar Ració'!M30 -> Mn
A34: EfProteïna final | B34: ='II_Plantejar Ració'!B71 -> 0.5181478203 | K34: =CàlculsVL!T1 -> Zn | L34: ='II_Plantejar Ració'!I31 -> 583.2674635 | M34: ='II_Plantejar Ració'!K31 -> 183.4538377 | N34: ='II_Plantejar Ració'!J31 -> 712.8824554 | O34: ='II_Plantejar Ració'!J31/(1+'II_Plantejar Ració'!$E$24/100) -> 648.0749594 | P34: ='II_Plantejar Ració'!L31 -> 14.15375143 | Q34: ='II_Plantejar Ració'!M31 -> Zn
K35: =CàlculsVL!V1 -> Se | L35: ='II_Plantejar Ració'!I33 -> 0.135 | M35: ='II_Plantejar Ració'!K33 -> 0.1626757405 | N35: ='II_Plantejar Ració'!J33 -> 0.165 | O35: ='II_Plantejar Ració'!J33/(1+'II_Plantejar Ració'!$E$24/100) -> 0.15 | P35: ='II_Plantejar Ració'!L33 -> 0.01255068863 | Q35: ='II_Plantejar Ració'!M33 -> Se
K36: =CàlculsVL!W1 -> Vit A | L36: ='II_Plantejar Ració'!I34 -> 76991.30518 | M36: ='II_Plantejar Ració'!K34 -> 90661.50733 | N36: ='II_Plantejar Ració'!J34 -> 94100.48411 | O36: ='II_Plantejar Ració'!J34 -> 94100.48411 | P36: ='II_Plantejar Ració'!L34 -> 6994.677545 | Q36: ='II_Plantejar Ració'!M34 -> Vit A
K37: =CàlculsVL!X1 -> Vit D | L37: ='II_Plantejar Ració'!I35 -> 11665.34927 | M37: ='II_Plantejar Ració'!K35 -> 249.4192955 | N37: ='II_Plantejar Ració'!J35 -> 14257.64911 | O37: ='II_Plantejar Ració'!J35 -> 14257.64911 | P37: ='II_Plantejar Ració'!L35 -> 19.24309 | Q37: ='II_Plantejar Ració'!M35 -> Vit D
A38: Racionament alimentari de vaques de llet www.remugants.cat Grup de remugants «RAMON TRIAS TORRENT» | K38: =CàlculsVL!Y1 -> Vit E | L38: ='II_Plantejar Ració'!I36 -> 466.6139708 | M38: ='II_Plantejar Ració'!K36 -> 85.20202644 | N38: ='II_Plantejar Ració'!J36 -> 570.3059643 | O38: ='II_Plantejar Ració'!J36 -> 570.3059643 | P38: ='II_Plantejar Ració'!L36 -> 6.573470028 | Q38: ='II_Plantejar Ració'!M36 -> Vit E
K39: =CàlculsVL!Z1 -> AG | M39: ='II_Plantejar Ració'!K37 -> 447.8728954 | P39: ='II_Plantejar Ració'!L37 -> 34.55409663 | Q39: ='II_Plantejar Ració'!M37 -> 
K40: =CàlculsVL!AC1 -> dMO | M40: ='II_Plantejar Ració'!K40 -> 0.6115266095 | P40: ='II_Plantejar Ració'!L40 -> 0.5804124025 | Q40: ='II_Plantejar Ració'!M40 -> 
K41: =CàlculsVL!AD1 -> MOD | M41: ='II_Plantejar Ració'!K41 -> 6749.462788 | P41: ='II_Plantejar Ració'!L41 -> 520.7316445 | Q41: ='II_Plantejar Ració'!M41 -> 
E42: =(E20-B27)*0.25 -> -2.645636532 | G42: =(E20-B28)*0.25 -> -3.250624095 | K42: =CàlculsVL!AJ1 -> cendres | M42: ='II_Plantejar Ració'!K47 -> 1753.298064 | P42: ='II_Plantejar Ració'!L47 -> 135.2696967 | Q42: ='II_Plantejar Ració'!M47 -> cendres
E43: =B27+E42 -> 20.89840878 | G43: =B28+G42 -> 22.71337147 | K43: =CàlculsVL!AK1 -> Mo | M43: ='II_Plantejar Ració'!K48 -> 1.477204029 | P43: ='II_Plantejar Ració'!L48 -> 0.1139686087 | Q43: ='II_Plantejar Ració'!M48 -> Mo
K44: ='II_Plantejar Ració'!H49 -> DT_N | M44: ='II_Plantejar Ració'!K49 -> 0.6576395451 | P44: ='II_Plantejar Ració'!L49 -> 0.6576395451
K45: ='II_Plantejar Ració'!H50 -> MOF | M45: ='II_Plantejar Ració'!K50 -> 5522.764015 | P45: ='II_Plantejar Ració'!L50 -> 426.0899094
K46: ='II_Plantejar Ració'!H51 -> MO | M46: ='II_Plantejar Ració'!K51 -> 9515.241217 | P46: ='II_Plantejar Ració'!L51 -> 734.11579
K47: MOFconcentrats | P47: ='II_Plantejar Ració'!L58 -> 181.572024
K48: pH | P48: ='II_Plantejar Ració'!L59 -> 6.292086494
K49: C/N | M49: ='II_Plantejar Ració'!J60 -> 26 | P49: ='II_Plantejar Ració'!L60 -> 18.62133565
A224: Tolerable en balanç proteic ruminal (BPR)

Sheet Preus (hidden)
A1: Farratges | B1: cts €/kg | C1: Ús habitual | D1: Data | E1: Concentrats | F1: cts €/kg | G1: Ús habitual | H1: Data | I1: Minerals i altres | J1: cts €/kg | K1: Ús habitual | L1: Data
A2: Ensitjat alfals | B2: 9 | D2: 2026-03-01 | E2: Alfalfs deshidratat | F2: 25 | H2: 2026-03-01 | I2: Bicarbonat sòdic | J2: 43.7 | K2: lactació <= 100 g/vaca i dia | L2: 2024-09-01
A3: Ensitjat blat de moro | B3: 7.5 | D3: 2026-03-01 | E3: Bagàs fresc | F3: 5.5 | G3: <=12 kg/vaca i dia | H3: 2026-03-01 | I3: Carbonat càlcic | J3: 7 | L3: 2024-09-01
A4: Ensitjat pastone | B4: 14 | D4: 2024-09-01 | E4: Blat | F4: 22.8 | I4: CVM | J4: 70 | K4: 60 g/vaca i dia lactació | L4: 2024-09-01
A5: Ensitjat raigràs | B5: 6 | D5: 2024-09-01 | E5: Blat de moro (farina, gra) | F5: 23.9 | H5: 2024-10-01 | I5: Fosfat bicàlcic | J5: 67.5 | L5: 2024-09-01
A6: Ensitjat raigràs 1r dall | B6: 8 | D6: 2026-03-01 | E6: Clovella soja | F6: 16.8 | G6: <=6 | H6: 2024-10-01 | I6: Sal | J6: 7.2 | K6: 60 g/vaca i dia lactació | L6: 2024-09-01
A7: Ensitjat raigràs 2n dall | B7: 5.85 | D7: 2026-03-01 | E7: Cotó (llavor) | F7: 35 | G7: <=3 | H7: 2024-10-01 | L7: 2024-09-01
A8: Ensitjat triticale, cereals | B8: 5 | D8: 2024-09-01 | E8: DDGS blat de moro | F8: 25.3 | H8: 2024-10-01 | L8: 2024-09-01
A9: Fenc alfals | B9: 18 | D9: 2026-03-01 | E9: Garrofa farina | F9: 31.3 | H9: 2024-10-01
A10: Fenc civada | B10: 18 | D10: 2024-10-01 | E10: Garrofa trossejada | F10: 35.5 | H10: 2024-10-01
A11: Fenc festuca | B11: 11.36 | D11: 2024-10-01 | E11: Gluten feed | F11: 93.6
A12: Fenc raigràs | B12: 10 | D12: 2026-03-01 | E12: Gluten meal | F12: 95.5
A13: Palla ordi | B13: 7 | D13: 2026-03-01 | E13: Greix (sabó càlcic, by pass) | F13: 92.5 | G13: <=0,3 | H13: 2024-10-01
E14: Margalló | F14: 19.3
E15: Mill | F15: 38 | H15: 2024-10-01
E16: Ordi (farina, gra) | F16: 22.7 | H16: 2024-10-01
E17: Pèsol | F17: 26.5 | H17: 2024-10-01
E18: Polpa poma fresc | F18: 2.5 | G18: <=8 | H18: 2024-10-01
E19: Polpa remolatxa desh. | F19: 22.1 | G19: <=4 | H19: 2024-10-01
E20: Segó blat | F20: 18
E21: Segó sorgo | F21: 19.2
E22: Tortó colza | F22: 30.8 | G22: <=3 | H22: 2024-10-01
E23: Tortó soja 44% | F23: 38.2 | H23: 2024-10-01
E24: Turtó gira-sol | F24: 20.7 | H24: 2024-10-01
E25: Urea | F25: 102.5 | G25: < 1% ració | H25: 2024-10-01
M31: https://www.interempresas.net/ovino/316017-Lonja-de-Cereales-de-Barcelona-Cotizaciones-de-Cereal.html
M34: https://www.llotjadecereals.com/cotitzacions/
M37: https://www.mercolleida.com/ca/serveis

Sheet Ajuda Emultiple (hidden)

Sheet Paràmetres llet (hidden)
A1: COMPONENTS | B1: POSICIÓ | C1: PARÀMETRES DE CÀLCUL
A2: ='0_Taula Farratges'!B1 -> MS % | B2: 1 | C2: 2
A3: ='0_Taula Farratges'!C1 -> UFL | B3: =1+B2 -> 2 | C3: 1
A4: ='0_Taula Farratges'!$E1 -> MNT_PB | B4: 4 | C4: 1
A5: ='0_Taula Farratges'!F1 -> PDIA | B5: =1+B4 -> 5 | C5: 1
A6: ='0_Taula Farratges'!G1 -> PDI | B6: 6 | C6: 1
A7: ='0_Taula Farratges'!H1 -> BPR | B7: 7 | C7: 1
A8: ='0_Taula Farratges'!I1 -> UEL | B8: 8 | C8: 1
A9: ='0_Taula Farratges'!L1 -> NI ref | B9: 11 | C9: 1
A10: ='0_Taula Farratges'!M1 -> dMO | B10: 12 | C10: 1
A11: ='0_Taula Farratges'!N$1 -> MOD | B11: 13 | C11: 1
A12: ='0_Taula Farratges'!O1 -> EE | B12: 14 | C12: 1
A13: ='0_Taula Farratges'!P1 -> FB | B13: =1+B12 -> 15 | C13: 1
A14: ='0_Taula Farratges'!Q1 -> NDF | B14: 16 | C14: 1
A15: ='0_Taula Farratges'!R1 -> ADF | B15: 17 | C15: 1
A16: ='0_Taula Farratges'!S1 -> Lignina | B16: 18 | C16: 1
A17: ='0_Taula Farratges'!T1 -> cendres | B17: 19 | C17: 1
A18: ='0_Taula Farratges'!U1 -> Ca | B18: 20 | C18: 1
A19: ='0_Taula Farratges'!V1 -> P | B19: 21 | C19: 1
A20: ='0_Taula Farratges'!W1 -> Mg | B20: 22 | C20: 1
A21: ='0_Taula Farratges'!X1 -> Cl | B21: 23 | C21: 1
A22: ='0_Taula Farratges'!Y1 -> K | B22: 24 | C22: 1
A23: ='0_Taula Farratges'!Z1 -> Na | B23: 25 | C23: 1
A24: ='0_Taula Farratges'!AA1 -> S | B24: 26 | C24: 1
A25: ='0_Taula Farratges'!AB1 -> Co | B25: 27 | C25: 1
A26: ='0_Taula Farratges'!AC1 -> Cu | B26: 28 | C26: 1
A27: ='0_Taula Farratges'!AD1 -> Mo | B27: 29 | C27: 1
A28: ='0_Taula Farratges'!AE1 -> MIDÓ | B28: 30 | C28: 1
A29: ='0_Taula Farratges'!AF1 -> Fe | B29: 31 | C29: 1
A30: ='0_Taula Farratges'!AG1 -> Mn | B30: 32 | C30: 1
A31: ='0_Taula Farratges'!AH1 -> Se | B31: 33 | C31: 1
A32: ='0_Taula Farratges'!AI1 -> Zn | B32: 34 | C32: 1
A33: ='0_Taula Farratges'!AJ1 -> Vit A | B33: 35 | C33: 1
A34: ='0_Taula Farratges'!AK1 -> Vit D | B34: 36 | C34: 1
A35: ='0_Taula Farratges'!AL1 -> Vit E | B35: 37 | C35: 1

Sheet CàlculsVL (hidden)
D1: =OFFSET('0_Taula Farratges'!$A$1,0,D2,1,1) -> MS % | E1: =OFFSET('0_Taula Farratges'!$A$1,0,E2,1,1) -> UEL | F1: =OFFSET('0_Taula Farratges'!$A$1,0,F2,1,1) -> UFL | G1: =OFFSET('0_Taula Farratges'!$A$1,0,G2,1,1) -> PDI | H1: =OFFSET('0_Taula Farratges'!$A$1,0,H2,1,1) -> BPR | I1: =OFFSET('0_Taula Farratges'!$A$1,0,I2,1,1) -> NI ref | J1: =OFFSET('0_Taula Farratges'!$A$1,0,J2,1,1) -> Ca | K1: =OFFSET('0_Taula Farratges'!$A$1,0,K2,1,1) -> P | L1: =OFFSET('0_Taula Farratges'!$A$1,0,L2,1,1) -> Mg | M1: =OFFSET('0_Taula Farratges'!$A$1,0,M2,1,1) -> K | N1: =OFFSET('0_Taula Farratges'!$A$1,0,N2,1,1) -> Na | O1: =OFFSET('0_Taula Farratges'!$A$1,0,O2,1,1) -> S | P1: =OFFSET('0_Taula Farratges'!$A$1,0,P2,1,1) -> Cl | Q1: =OFFSET('0_Taula Farratges'!$A$1,0,Q2,1,1) -> Co | R1: =OFFSET('0_Taula Farratges'!$A$1,0,R2,1,1) -> Cu | S1: =OFFSET('0_Taula Farratges'!$A$1,0,S2,1,1) -> Mn | T1: =OFFSET('0_Taula Farratges'!$A$1,0,T2,1,1) -> Zn | U1: =OFFSET('0_Taula Farratges'!$A$1,0,U2,1,1) -> MIDÓ | V1: =OFFSET('0_Taula Farratges'!$A$1,0,V2,1,1) -> Se | W1: =OFFSET('0_Taula Farratges'!$A$1,0,W2,1,1) -> Vit A | X1: =OFFSET('0_Taula Farratges'!$A$1,0,X2,1,1) -> Vit D | Y1: =OFFSET('0_Taula Farratges'!$A$1,0,Y2,1,1) -> Vit E | Z1: =OFFSET('0_Taula Farratges'!$A$1,0,Z2,1,1) -> AG | AA1: =OFFSET('0_Taula Farratges'!$A$1,0,AA2,1,1) -> MNT_PB | AB1: =OFFSET('0_Taula Farratges'!$A$1,0,AB2,1,1) -> PDIA | AC1: =OFFSET('0_Taula Farratges'!$A$1,0,AC2,1,1) -> dMO | AD1: =OFFSET('0_Taula Farratges'!$A$1,0,AD2,1,1) -> MOD | AE1: =OFFSET('0_Taula Farratges'!$A$1,0,AE2,1,1) -> EE | AF1: =OFFSET('0_Taula Farratges'!$A$1,0,AF2,1,1) -> FB | AG1: =OFFSET('0_Taula Farratges'!$A$1,0,AG2,1,1) -> NDF | AH1: =OFFSET('0_Taula Farratges'!$A$1,0,AH2,1,1) -> ADF | AI1: =OFFSET('0_Taula Farratges'!$A$1,0,AI2,1,1) -> Lignina | AJ1: =OFFSET('0_Taula Farratges'!$A$1,0,AJ2,1,1) -> cendres | AK1: =OFFSET('0_Taula Farratges'!$A$1,0,AK2,1,1) -> Mo | AL1: =OFFSET('0_Taula Farratges'!$A$1,0,AL2,1,1) -> DT_N | AM1: =OFFSET('0_Taula Farratges'!$A$1,0,AM2,1,1) -> MOF | BI1: AG | BJ1: MNT_PB | BK1: PDIA | BL1: dMO | BM1: MOD | BN1: EE | BO1: FB | BP1: NDF | BQ1: ADF | BR1: Lignina | BS1: cendres | BT1: Mo
A2: TIPUS | B2: INGREDIENTS UTILITZATS | C2: Nº | D2: 1 | E2: 8 | F2: 2 | G2: 6 | H2: 7 | I2: 11 | J2: 20 | K2: 21 | L2: 22 | M2: 24 | N2: 25 | O2: 26 | P2: 23 | Q2: 27 | R2: 28 | S2: 32 | T2: 34 | U2: 30 | V2: 33 | W2: 35 | X2: 36 | Y2: 37 | Z2: 38 | AA2: 4 | AB2: 5 | AC2: 12 | AD2: 13 | AE2: 14 | AF2: 15 | AG2: 16 | AH2: 17 | AI2: 18 | AJ2: 19 | AK2: 29 | AL2: 39 | AM2: 41 | AN2: UEL | AO2: UFL | AP2: PDI | AQ2: BPR | AR2: NI ref | AS2: Ca | AT2: P | AU2: Mg | AV2: K | AW2: Na | AX2: S | AY2: Cl | AZ2: Co | BA2: Cu | BB2: Mn | BC2: Zn | BD2: Midó | BE2: Se | BF2: Vit A | BG2: Vit D | BH2: Vit E | BI2: AG | BJ2: MNT_PB | BK2: PDIA | BL2: dMO | BM2: MOD | BN2: EE | BO2: FB | BP2: NDF | BQ2: ADF | BR2: Lignina | BS2: cendres | BT2: Mo | BU2: DT_N | BV2: MOF
A3: FARRATGES | B3: =IF(OFFSET('0_Taula Farratges'!$A$1,C3,0,1,1)=0,"",OFFSET('0_Taula Farratges'!$A$1,C3,0,1,1)) -> Ensitjat raigràs italià primer cicle Moises_22 | C3: =Ingredients_Racio!B46-1 -> 108 | D3: =OFFSET('0_Taula Farratges'!$A$1,$C3,$D$2,1,1) -> 25,1 | E3: =OFFSET('0_Taula Farratges'!$A$1,$C3,$E$2,1,1) -> 1.187970696 | F3: =OFFSET('0_Taula Farratges'!$A$1,$C3,$F$2,1,1) -> 0.7467018162 | G3: =OFFSET('0_Taula Farratges'!$A$1,$C3,$G$2,1,1) -> 58.72459543 | H3: =OFFSET('0_Taula Farratges'!$A$1,$C3,$H$2,1,1) -> 52.11242902 | I3: =OFFSET('0_Taula Farratges'!$A$1,$C3,$I$2,1,1) -> 1.842219347 | J3: =OFFSET('0_Taula Farratges'!$A$1,$C3,$J$2,1,1) -> 0.8 | K3: =OFFSET('0_Taula Farratges'!$A$1,$C3,$K$2,1,1) -> 1.2 | L3: =OFFSET('0_Taula Farratges'!$A$1,$C3,$L$2,1,1) -> 0 | M3: =OFFSET('0_Taula Farratges'!$A$1,$C3,$M$2,1,1) -> 0 | N3: =OFFSET('0_Taula Farratges'!$A$1,$C3,$N$2,1,1) -> 0 | O3: =OFFSET('0_Taula Farratges'!$A$1,$C3,$O$2,1,1) -> 0 | P3: =OFFSET('0_Taula Farratges'!$A$1,$C3,$P$2,1,1) -> 0 | Q3: =OFFSET('0_Taula Farratges'!$A$1,$C3,$Q$2,1,1) -> 0 | R3: =OFFSET('0_Taula Farratges'!$A$1,$C3,$R$2,1,1) -> 0 | S3: =OFFSET('0_Taula Farratges'!$A$1,$C3,$S$2,1,1) -> 0 | T3: =OFFSET('0_Taula Farratges'!$A$1,$C3,$T$2,1,1) -> 0 | U3: =OFFSET('0_Taula Farratges'!$A$1,$C3,$U$2,1,1) -> 0 | V3: =OFFSET('0_Taula Farratges'!$A$1,$C3,$V$2,1,1) -> 0 | W3: =OFFSET('0_Taula Farratges'!$A$1,$C3,$W$2,1,1) -> 0 | X3: =OFFSET('0_Taula Farratges'!$A$1,$C3,$X$2,1,1) -> 0 | Y3: =OFFSET('0_Taula Farratges'!$A$1,$C3,$Y$2,1,1) -> 0 | Z3: =OFFSET('0_Taula Farratges'!$A$1,$C3,$Z$2,1,1) -> 21.8591 | AA3: =OFFSET('0_Taula Farratges'!$A$1,$C3,$AA$2,1,1) -> 157.7 | AB3: =OFFSET('0_Taula Farratges'!$A$1,$C3,$AB$2,1,1) -> 15.37575 | AC3: =OFFSET('0_Taula Farratges'!$A$1,$C3,$AC$2,1,1) -> 0.5905643564 | AD3: =OFFSET('0_Taula Farratges'!$A$1,$C3,$AD$2,1,1) -> 527.9645347 | AE3: =OFFSET('0_Taula Farratges'!$A$1,$C3,$AE$2,1,1) -> 31.1 | AF3: =OFFSET('0_Taula Farratges'!$A$1,$C3,$AF$2,1,1) -> 362.3762376 | AG3: =OFFSET('0_Taula Farratges'!$A$1,$C3,$AG$2,1,1) -> 626 | AH3: =OFFSET('0_Taula Farratges'!$A$1,$C3,$AH$2,1,1) -> 324.5 | AI3: =OFFSET('0_Taula Farratges'!$A$1,$C3,$AI$2,1,1) -> 34.8 | AJ3: =OFFSET('0_Taula Farratges'!$A$1,$C3,$AJ$2,1,1) -> 106 | AK3: =OFFSET('0_Taula Farratges'!$A$1,$C3,$AK$2,1,1) -> 0 | AL3: =OFFSET('0_Taula Farratges'!$A$1,$C3,$AL$2,1,1) -> 0.85 | AM3: =OFFSET('0_Taula Farratges'!$A$1,$C3,$AM$2,1,1) -> 362.483602 | AN3: =IF('II_Plantejar Ració'!$E4>0,IF(CàlculsVL!E3>=0,1,"No"),"") -> 1 | AO3: =IF('II_Plantejar Ració'!$E4>0,IF(CàlculsVL!F3>=0,1,"No"),"") -> 1 | AP3: =IF('II_Plantejar Ració'!$E4>0,IF(CàlculsVL!G3>0,1,"No"),"") -> 1 | AQ3: =IF('II_Plantejar Ració'!$E4>0,IF(CàlculsVL!H3=0,"No",1),"") -> 1 | AR3: =IF('II_Plantejar Ració'!$E4>0,IF(CàlculsVL!I3>0,1,"No"),"") -> 1 | AS3: =IF('II_Plantejar Ració'!$E4>0,IF(CàlculsVL!J3>0,1,"No"),"") -> 1 | AT3: =IF('II_Plantejar Ració'!$E4>0,IF(CàlculsVL!K3>0,1,"No"),"") -> 1 | AU3: =IF('II_Plantejar Ració'!$E4>0,IF(CàlculsVL!L3>0,1,"No"),"") -> No | AV3: =IF('II_Plantejar Ració'!$E4>0,IF(CàlculsVL!M3>0,1,"No"),"") -> No | AW3: =IF('II_Plantejar Ració'!$E4>0,IF(CàlculsVL!N3>0,1,"No"),"") -> No | AX3: =IF('II_Plantejar Ració'!$E4>0,IF(CàlculsVL!O3>0,1,"No"),"") -> No | AY3: =IF('II_Plantejar Ració'!$E4>0,IF(CàlculsVL!P3>0,1,"No"),"") -> No | AZ3: =IF('II_Plantejar Ració'!$E4>0,IF(CàlculsVL!Q3>0,1,"No"),"") -> No | BA3: =IF('II_Plantejar Ració'!$E4>0,IF(CàlculsVL!R3>0,1,"No"),"") -> No | BB3: =IF('II_Plantejar Ració'!$E4>0,IF(CàlculsVL!S3>0,1,"No"),"") -> No | BC3: =IF('II_Plantejar Ració'!$E4>0,IF(CàlculsVL!T3>0,1,"No"),"") -> No | BD3: =IF('II_Plantejar Ració'!$E4>0,IF(CàlculsVL!U3>0,1,"No"),"") -> No | BE3: =IF('II_Plantejar Ració'!$E4>0,IF(CàlculsVL!V3>0,1,"No"),"") -> No | BF3: =IF('II_Plantejar Ració'!$E4>0,IF(CàlculsVL!W3>0,1,"No"),"") -> No | BG3: =IF('II_Plantejar Ració'!$E4>0,IF(CàlculsVL!X3>0,1,"No"),"") -> No | BH3: =IF('II_Plantejar Ració'!$E4>0,IF(CàlculsVL!Y3>0,1,"No"),"") -> No | BI3: =IF('II_Plantejar Ració'!$E4>0,IF(CàlculsVL!Z3>0,1,"No"),"") -> 1 | BJ3: =IF('II_Plantejar Ració'!$E4>0,IF(CàlculsVL!AA3>0,1,"No"),"") -> 1 | BK3: =IF('II_Plantejar Ració'!$E4>0,IF(CàlculsVL!AB3>0,1,"No"),"") -> 1 | BL3: =IF('II_Plantejar Ració'!$E4>0,IF(CàlculsVL!AC3>0,1,"No"),"") -> 1 | BM3: =IF('II_Plantejar Ració'!$E4>0,IF(CàlculsVL!AD3>0,1,"No"),"") -> 1 | BN3: =IF('II_Plantejar Ració'!$E4>0,IF(CàlculsVL!AE3>0,1,"No"),"") -> 1 | BO3: =IF('II_Plantejar Ració'!$E4>0,IF(CàlculsVL!AF3>0,1,"No"),"") -> 1 | BP3: =IF('II_Plantejar Ració'!$E4>0,IF(CàlculsVL!AG3>0,1,"No"),"") -> 1 | BQ3: =IF('II_Plantejar Ració'!$E4>0,IF(CàlculsVL!AH3>0,1,"No"),"") -> 1 | BR3: =IF('II_Plantejar Ració'!$E4>0,IF(CàlculsVL!AI3>0,1,"No"),"") -> 1 | BS3: =IF('II_Plantejar Ració'!$E4>0,IF(CàlculsVL!AJ3>0,1,"No"),"") -> 1 | BT3: =IF('II_Plantejar Ració'!$E4>0,IF(CàlculsVL!AK3>0,1,"No"),"") -> No | BU3: =IF('II_Plantejar Ració'!$E4>0,IF(CàlculsVL!AL3>0,1,"No"),"") -> 1 | BV3: =IF('II_Plantejar Ració'!$E4>0,IF(CàlculsVL!AM3>0,1,"No"),"") -> 1 | BW3: =IF(AN3="",0,1) -> 1 | BX3: =IF(AO3="",0,1) -> 1 | BY3: =IF(AP3="",0,1) -> 1 | BZ3: =IF(AQ3="",0,1) -> 1 | CA3: =IF(AR3="",0,1) -> 1 | CB3: =IF(AS3="",0,1) -> 1 | CC3: =IF(AT3="",0,1) -> 1 | CD3: =IF(AU3="",0,1) -> 1 | CE3: =IF(AV3="",0,1) -> 1 | CF3: =IF(AW3="",0,1) -> 1 | CG3: =IF(AX3="",0,1) -> 1 | CH3: =IF(AY3="",0,1) -> 1 | CI3: =IF(AZ3="",0,1) -> 1 | CJ3: =IF(BA3="",0,1) -> 1 | CK3: =IF(BB3="",0,1) -> 1 | CL3: =IF(BC3="",0,1) -> 1 | CM3: =IF(BD3="",0,1) -> 1 | CN3: =IF(BE3="",0,1) -> 1 | CO3: =IF(BF3="",0,1) -> 1 | CP3: =IF(BG3="",0,1) -> 1 | CQ3: =IF(BH3="",0,1) -> 1 | CR3: =IF(BI3="",0,1) -> 1 | CS3: =IF(BJ3="",0,1) -> 1 | CT3: =IF(BK3="",0,1) -> 1 | CU3: =IF(BL3="",0,1) -> 1 | CV3: =IF(BM3="",0,1) -> 1 | CW3: =IF(BN3="",0,1) -> 1 | CX3: =IF(BO3="",0,1) -> 1 | CY3: =IF(BP3="",0,1) -> 1 | CZ3: =IF(BQ3="",0,1) -> 1 | DA3: =IF(BR3="",0,1) -> 1 | DB3: =IF(BS3="",0,1) -> 1 | DC3: =IF(BT3="",0,1) -> 1 | DD3: =IF(BU3="",0,1) -> 1 | DE3: =IF(BV3="",0,1) -> 1
B4: =IF(OFFSET('0_Taula Farratges'!$A$1,C4,0,1,1)=0,"",OFFSET('0_Taula Farratges'!$A$1,C4,0,1,1)) -> PALLA Ordi | C4: =Ingredients_Racio!C46-1 -> 62 | D4: =OFFSET('0_Taula Farratges'!$A$1,$C4,$D$2,1,1) -> 88 | E4: =OFFSET('0_Taula Farratges'!$A$1,$C4,$E$2,1,1) -> 1.212233533 | F4: =OFFSET('0_Taula Farratges'!$A$1,$C4,$F$2,1,1) -> 0.54583885 | G4: =OFFSET('0_Taula Farratges'!$A$1,$C4,$G$2,1,1) -> 36.3914354 | H4: =OFFSET('0_Taula Farratges'!$A$1,$C4,$H$2,1,1) -> -57.86991626 | I4: =OFFSET('0_Taula Farratges'!$A$1,$C4,$I$2,1,1) -> 1.399650714 | J4: =OFFSET('0_Taula Farratges'!$A$1,$C4,$J$2,1,1) -> 1.4 | K4: =OFFSET('0_Taula Farratges'!$A$1,$C4,$K$2,1,1) -> 0.66 | L4: =OFFSET('0_Taula Farratges'!$A$1,$C4,$L$2,1,1) -> 1.4 | M4: =OFFSET('0_Taula Farratges'!$A$1,$C4,$M$2,1,1) -> 16.5 | N4: =OFFSET('0_Taula Farratges'!$A$1,$C4,$N$2,1,1) -> 2.1 | O4: =OFFSET('0_Taula Farratges'!$A$1,$C4,$O$2,1,1) -> 0 | P4: =OFFSET('0_Taula Farratges'!$A$1,$C4,$P$2,1,1) -> 0 | Q4: =OFFSET('0_Taula Farratges'!$A$1,$C4,$Q$2,1,1) -> 0 | R4: =OFFSET('0_Taula Farratges'!$A$1,$C4,$R$2,1,1) -> 3.1 | S4: =OFFSET('0_Taula Farratges'!$A$1,$C4,$S$2,1,1) -> 17.6 | T4: =OFFSET('0_Taula Farratges'!$A$1,$C4,$T$2,1,1) -> 7.3 | U4: =OFFSET('0_Taula Farratges'!$A$1,$C4,$U$2,1,1) -> 0 | V4: =OFFSET('0_Taula Farratges'!$A$1,$C4,$V$2,1,1) -> 0 | W4: =OFFSET('0_Taula Farratges'!$A$1,$C4,$W$2,1,1) -> 50000 | X4: =OFFSET('0_Taula Farratges'!$A$1,$C4,$X$2,1,1) -> 50 | Y4: =OFFSET('0_Taula Farratges'!$A$1,$C4,$Y$2,1,1) -> 5 | Z4: =OFFSET('0_Taula Farratges'!$A$1,$C4,$Z$2,1,1) -> 10.784 | AA4: =OFFSET('0_Taula Farratges'!$A$1,$C4,$AA$2,1,1) -> 38 | AB4: =OFFSET('0_Taula Farratges'!$A$1,$C4,$AB$2,1,1) -> 8.512 | AC4: =OFFSET('0_Taula Farratges'!$A$1,$C4,$AC$2,1,1) -> 0.492002 | AD4: =OFFSET('0_Taula Farratges'!$A$1,$C4,$AD$2,1,1) -> 452.64184 | AE4: =OFFSET('0_Taula Farratges'!$A$1,$C4,$AE$2,1,1) -> 12.5 | AF4: =OFFSET('0_Taula Farratges'!$A$1,$C4,$AF$2,1,1) -> 420 | AG4: =OFFSET('0_Taula Farratges'!$A$1,$C4,$AG$2,1,1) -> 738.8 | AH4: =OFFSET('0_Taula Farratges'!$A$1,$C4,$AH$2,1,1) -> 439 | AI4: =OFFSET('0_Taula Farratges'!$A$1,$C4,$AI$2,1,1) -> 0 | AJ4: =OFFSET('0_Taula Farratges'!$A$1,$C4,$AJ$2,1,1) -> 80 | AK4: =OFFSET('0_Taula Farratges'!$A$1,$C4,$AK$2,1,1) -> 0 | AL4: =OFFSET('0_Taula Farratges'!$A$1,$C4,$AL$2,1,1) -> 0.68 | AM4: =OFFSET('0_Taula Farratges'!$A$1,$C4,$AM$2,1,1) -> 387.2032859 | AN4: =IF('II_Plantejar Ració'!$E5>0,IF(CàlculsVL!E4>=0,1,"No"),"") -> 1 | AO4: =IF('II_Plantejar Ració'!$E5>0,IF(CàlculsVL!F4>=0,1,"No"),"") -> 1 | AP4: =IF('II_Plantejar Ració'!$E5>0,IF(CàlculsVL!G4>0,1,"No"),"") -> 1 | AQ4: =IF('II_Plantejar Ració'!$E5>0,IF(CàlculsVL!H4=0,"No",1),"") -> 1 | AR4: =IF('II_Plantejar Ració'!$E5>0,IF(CàlculsVL!I4>0,1,"No"),"") -> 1 | AS4: =IF('II_Plantejar Ració'!$E5>0,IF(CàlculsVL!J4>0,1,"No"),"") -> 1 | AT4: =IF('II_Plantejar Ració'!$E5>0,IF(CàlculsVL!K4>0,1,"No"),"") -> 1 | AU4: =IF('II_Plantejar Ració'!$E5>0,IF(CàlculsVL!L4>0,1,"No"),"") -> 1 | AV4: =IF('II_Plantejar Ració'!$E5>0,IF(CàlculsVL!M4>0,1,"No"),"") -> 1 | AW4: =IF('II_Plantejar Ració'!$E5>0,IF(CàlculsVL!N4>0,1,"No"),"") -> 1 | AX4: =IF('II_Plantejar Ració'!$E5>0,IF(CàlculsVL!O4>0,1,"No"),"") -> No | AY4: =IF('II_Plantejar Ració'!$E5>0,IF(CàlculsVL!P4>0,1,"No"),"") -> No | AZ4: =IF('II_Plantejar Ració'!$E5>0,IF(CàlculsVL!Q4>0,1,"No"),"") -> No | BA4: =IF('II_Plantejar Ració'!$E5>0,IF(CàlculsVL!R4>0,1,"No"),"") -> 1 | BB4: =IF('II_Plantejar Ració'!$E5>0,IF(CàlculsVL!S4>0,1,"No"),"") -> 1 | BC4: =IF('II_Plantejar Ració'!$E5>0,IF(CàlculsVL!T4>0,1,"No"),"") -> 1 | BD4: =IF('II_Plantejar Ració'!$E5>0,IF(CàlculsVL!U4>0,1,"No"),"") -> No | BE4: =IF('II_Plantejar Ració'!$E5>0,IF(CàlculsVL!V4>0,1,"No"),"") -> No | BF4: =IF('II_Plantejar Ració'!$E5>0,IF(CàlculsVL!W4>0,1,"No"),"") -> 1 | BG4: =IF('II_Plantejar Ració'!$E5>0,IF(CàlculsVL!X4>0,1,"No"),"") -> 1 | BH4: =IF('II_Plantejar Ració'!$E5>0,IF(CàlculsVL!Y4>0,1,"No"),"") -> 1 | BI4: =IF('II_Plantejar Ració'!$E5>0,IF(CàlculsVL!Z4>0,1,"No"),"") -> 1 | BJ4: =IF('II_Plantejar Ració'!$E5>0,IF(CàlculsVL!AA4>0,1,"No"),"") -> 1 | BK4: =IF('II_Plantejar Ració'!$E5>0,IF(CàlculsVL!AB4>0,1,"No"),"") -> 1 | BL4: =IF('II_Plantejar Ració'!$E5>0,IF(CàlculsVL!AC4>0,1,"No"),"") -> 1 | BM4: =IF('II_Plantejar Ració'!$E5>0,IF(CàlculsVL!AD4>0,1,"No"),"") -> 1 | BN4: =IF('II_Plantejar Ració'!$E5>0,IF(CàlculsVL!AE4>0,1,"No"),"") -> 1 | BO4: =IF('II_Plantejar Ració'!$E5>0,IF(CàlculsVL!AF4>0,1,"No"),"") -> 1 | BP4: =IF('II_Plantejar Ració'!$E5>0,IF(CàlculsVL!AG4>0,1,"No"),"") -> 1 | BQ4: =IF('II_Plantejar Ració'!$E5>0,IF(CàlculsVL!AH4>0,1,"No"),"") -> 1 | BR4: =IF('II_Plantejar Ració'!$E5>0,IF(CàlculsVL!AI4>0,1,"No"),"") -> No | BS4: =IF('II_Plantejar Ració'!$E5>0,IF(CàlculsVL!AJ4>0,1,"No"),"") -> 1 | BT4: =IF('II_Plantejar Ració'!$E5>0,IF(CàlculsVL!AK4>0,1,"No"),"") -> No | BU4: =IF('II_Plantejar Ració'!$E5>0,IF(CàlculsVL!AL4>0,1,"No"),"") -> 1 | BV4: =IF('II_Plantejar Ració'!$E5>0,IF(CàlculsVL!AM4>0,1,"No"),"") -> 1 | BW4: 1 | BX4: 1 | BY4: 1 | BZ4: 1 | CA4: 1 | CB4: 1 | CC4: 1 | CD4: 1 | CE4: 1 | CF4: 1 | CG4: 1 | CH4: 1 | CI4: 1 | CJ4: 1 | CK4: 1 | CL4: 1 | CM4: 1 | CN4: 1 | CO4: 1 | CP4: 1 | CQ4: 1 | CR4: 1 | CS4: 1 | CT4: 1 | CU4: 1 | CV4: 1 | CW4: 1 | CX4: 1 | CY4: 1 | CZ4: 1 | DA4: 1 | DB4: 1 | DC4: =IF(BT4="",0,1) -> 1 | DD4: =IF(BU4="",0,1) -> 1 | DE4: =IF(BV4="",0,1) -> 1
B5: =IF(OFFSET('0_Taula Farratges'!$A$1,C5,0,1,1)=0,"",OFFSET('0_Taula Farratges'!$A$1,C5,0,1,1)) -> EBM Nogué | C5: =Ingredients_Racio!D46-1 -> 115 | D5: =OFFSET('0_Taula Farratges'!$A$1,$C5,$D$2,1,1) -> 31 | E5: =OFFSET('0_Taula Farratges'!$A$1,$C5,$E$2,1,1) -> 1.002843778 | F5: =OFFSET('0_Taula Farratges'!$A$1,$C5,$F$2,1,1) -> 1.000050365 | G5: =OFFSET('0_Taula Farratges'!$A$1,$C5,$G$2,1,1) -> 65.13774649 | H5: =OFFSET('0_Taula Farratges'!$A$1,$C5,$H$2,1,1) -> -25.91522889 | I5: =OFFSET('0_Taula Farratges'!$A$1,$C5,$I$2,1,1) -> 1.4 | J5: =OFFSET('0_Taula Farratges'!$A$1,$C5,$J$2,1,1) -> 0.8 | K5: =OFFSET('0_Taula Farratges'!$A$1,$C5,$K$2,1,1) -> 1.26 | L5: =OFFSET('0_Taula Farratges'!$A$1,$C5,$L$2,1,1) -> 1.2 | M5: =OFFSET('0_Taula Farratges'!$A$1,$C5,$M$2,1,1) -> 0 | N5: =OFFSET('0_Taula Farratges'!$A$1,$C5,$N$2,1,1) -> 0 | O5: =OFFSET('0_Taula Farratges'!$A$1,$C5,$O$2,1,1) -> 0 | P5: =OFFSET('0_Taula Farratges'!$A$1,$C5,$P$2,1,1) -> 0 | Q5: =OFFSET('0_Taula Farratges'!$A$1,$C5,$Q$2,1,1) -> 0 | R5: =OFFSET('0_Taula Farratges'!$A$1,$C5,$R$2,1,1) -> 0 | S5: =OFFSET('0_Taula Farratges'!$A$1,$C5,$S$2,1,1) -> 0 | T5: =OFFSET('0_Taula Farratges'!$A$1,$C5,$T$2,1,1) -> 0 | U5: =OFFSET('0_Taula Farratges'!$A$1,$C5,$U$2,1,1) -> 315 | V5: =OFFSET('0_Taula Farratges'!$A$1,$C5,$V$2,1,1) -> 0 | W5: =OFFSET('0_Taula Farratges'!$A$1,$C5,$W$2,1,1) -> 0 | X5: =OFFSET('0_Taula Farratges'!$A$1,$C5,$X$2,1,1) -> 0 | Y5: =OFFSET('0_Taula Farratges'!$A$1,$C5,$Y$2,1,1) -> 0 | Z5: =OFFSET('0_Taula Farratges'!$A$1,$C5,$Z$2,1,1) -> 24 | AA5: =OFFSET('0_Taula Farratges'!$A$1,$C5,$AA$2,1,1) -> 88 | AB5: =OFFSET('0_Taula Farratges'!$A$1,$C5,$AB$2,1,1) -> 15.4 | AC5: =OFFSET('0_Taula Farratges'!$A$1,$C5,$AC$2,1,1) -> 0.717 | AD5: =OFFSET('0_Taula Farratges'!$A$1,$C5,$AD$2,1,1) -> 680.433 | AE5: =OFFSET('0_Taula Farratges'!$A$1,$C5,$AE$2,1,1) -> 30 | AF5: =OFFSET('0_Taula Farratges'!$A$1,$C5,$AF$2,1,1) -> 232 | AG5: =OFFSET('0_Taula Farratges'!$A$1,$C5,$AG$2,1,1) -> 413 | AH5: =OFFSET('0_Taula Farratges'!$A$1,$C5,$AH$2,1,1) -> 263 | AI5: =OFFSET('0_Taula Farratges'!$A$1,$C5,$AI$2,1,1) -> 30 | AJ5: =OFFSET('0_Taula Farratges'!$A$1,$C5,$AJ$2,1,1) -> 51 | AK5: =OFFSET('0_Taula Farratges'!$A$1,$C5,$AK$2,1,1) -> 0 | AL5: =OFFSET('0_Taula Farratges'!$A$1,$C5,$AL$2,1,1) -> 0.75 | AM5: =OFFSET('0_Taula Farratges'!$A$1,$C5,$AM$2,1,1) -> 501.324463 | AN5: =IF('II_Plantejar Ració'!$E6>0,IF(CàlculsVL!E5>=0,1,"No"),"") -> 1 | AO5: =IF('II_Plantejar Ració'!$E6>0,IF(CàlculsVL!F5>=0,1,"No"),"") -> 1 | AP5: =IF('II_Plantejar Ració'!$E6>0,IF(CàlculsVL!G5>0,1,"No"),"") -> 1 | AQ5: =IF('II_Plantejar Ració'!$E6>0,IF(CàlculsVL!H5=0,"No",1),"") -> 1 | AR5: =IF('II_Plantejar Ració'!$E6>0,IF(CàlculsVL!I5>0,1,"No"),"") -> 1 | AS5: =IF('II_Plantejar Ració'!$E6>0,IF(CàlculsVL!J5>0,1,"No"),"") -> 1 | AT5: =IF('II_Plantejar Ració'!$E6>0,IF(CàlculsVL!K5>0,1,"No"),"") -> 1 | AU5: =IF('II_Plantejar Ració'!$E6>0,IF(CàlculsVL!L5>0,1,"No"),"") -> 1 | AV5: =IF('II_Plantejar Ració'!$E6>0,IF(CàlculsVL!M5>0,1,"No"),"") -> No | AW5: =IF('II_Plantejar Ració'!$E6>0,IF(CàlculsVL!N5>0,1,"No"),"") -> No | AX5: =IF('II_Plantejar Ració'!$E6>0,IF(CàlculsVL!O5>0,1,"No"),"") -> No | AY5: =IF('II_Plantejar Ració'!$E6>0,IF(CàlculsVL!P5>0,1,"No"),"") -> No | AZ5: =IF('II_Plantejar Ració'!$E6>0,IF(CàlculsVL!Q5>0,1,"No"),"") -> No | BA5: =IF('II_Plantejar Ració'!$E6>0,IF(CàlculsVL!R5>0,1,"No"),"") -> No | BB5: =IF('II_Plantejar Ració'!$E6>0,IF(CàlculsVL!S5>0,1,"No"),"") -> No | BC5: =IF('II_Plantejar Ració'!$E6>0,IF(CàlculsVL!T5>0,1,"No"),"") -> No | BD5: =IF('II_Plantejar Ració'!$E6>0,IF(CàlculsVL!U5>0,1,"No"),"") -> 1 | BE5: =IF('II_Plantejar Ració'!$E6>0,IF(CàlculsVL!V5>0,1,"No"),"") -> No | BF5: =IF('II_Plantejar Ració'!$E6>0,IF(CàlculsVL!W5>0,1,"No"),"") -> No | BG5: =IF('II_Plantejar Ració'!$E6>0,IF(CàlculsVL!X5>0,1,"No"),"") -> No | BH5: =IF('II_Plantejar Ració'!$E6>0,IF(CàlculsVL!Y5>0,1,"No"),"") -> No | BI5: =IF('II_Plantejar Ració'!$E6>0,IF(CàlculsVL!Z5>0,1,"No"),"") -> 1 | BJ5: =IF('II_Plantejar Ració'!$E6>0,IF(CàlculsVL!AA5>0,1,"No"),"") -> 1 | BK5: =IF('II_Plantejar Ració'!$E6>0,IF(CàlculsVL!AB5>0,1,"No"),"") -> 1 | BL5: =IF('II_Plantejar Ració'!$E6>0,IF(CàlculsVL!AC5>0,1,"No"),"") -> 1 | BM5: =IF('II_Plantejar Ració'!$E6>0,IF(CàlculsVL!AD5>0,1,"No"),"") -> 1 | BN5: =IF('II_Plantejar Ració'!$E6>0,IF(CàlculsVL!AE5>0,1,"No"),"") -> 1 | BO5: =IF('II_Plantejar Ració'!$E6>0,IF(CàlculsVL!AF5>0,1,"No"),"") -> 1 | BP5: =IF('II_Plantejar Ració'!$E6>0,IF(CàlculsVL!AG5>0,1,"No"),"") -> 1 | BQ5: =IF('II_Plantejar Ració'!$E6>0,IF(CàlculsVL!AH5>0,1,"No"),"") -> 1 | BR5: =IF('II_Plantejar Ració'!$E6>0,IF(CàlculsVL!AI5>0,1,"No"),"") -> 1 | BS5: =IF('II_Plantejar Ració'!$E6>0,IF(CàlculsVL!AJ5>0,1,"No"),"") -> 1 | BT5: =IF('II_Plantejar Ració'!$E6>0,IF(CàlculsVL!AK5>0,1,"No"),"") -> No | BU5: =IF('II_Plantejar Ració'!$E6>0,IF(CàlculsVL!AL5>0,1,"No"),"") -> 1 | BV5: =IF('II_Plantejar Ració'!$E6>0,IF(CàlculsVL!AM5>0,1,"No"),"") -> 1 | BW5: 1 | BX5: 1 | BY5: 1 | BZ5: 1 | CA5: 1 | CB5: 1 | CC5: 1 | CD5: 1 | CE5: 1 | CF5: 1 | CG5: 1 | CH5: 1 | CI5: 1 | CJ5: 1 | CK5: 1 | CL5: 1 | CM5: 1 | CN5: 1 | CO5: 1 | CP5: 1 | CQ5: 1 | CR5: 1 | CS5: 1 | CT5: 1 | CU5: 1 | CV5: 1 | CW5: 1 | CX5: 1 | CY5: 1 | CZ5: 1 | DA5: 1 | DB5: 1 | DC5: 1 | DD5: 1 | DE5: 1
B6: =IF(OFFSET('0_Taula Farratges'!$A$1,C6,0,1,1)=0,"",OFFSET('0_Taula Farratges'!$A$1,C6,0,1,1)) -> ENSITJAT Alfals rebrots floració prefenificat | C6: =Ingredients_Racio!E46-1 -> 5 | D6: =OFFSET('0_Taula Farratges'!$A$1,$C6,$D$2,1,1) -> 33.5 | E6: =OFFSET('0_Taula Farratges'!$A$1,$C6,$E$2,1,1) -> 1.01 | F6: =OFFSET('0_Taula Farratges'!$A$1,$C6,$F$2,1,1) -> 0.78 | G6: =OFFSET('0_Taula Farratges'!$A$1,$C6,$G$2,1,1) -> 74 | H6: =OFFSET('0_Taula Farratges'!$A$1,$C6,$H$2,1,1) -> 74 | I6: =OFFSET('0_Taula Farratges'!$A$1,$C6,$I$2,1,1) -> 2.4 | J6: =OFFSET('0_Taula Farratges'!$A$1,$C6,$J$2,1,1) -> 3.6 | K6: =OFFSET('0_Taula Farratges'!$A$1,$C6,$K$2,1,1) -> 1.5 | L6: =OFFSET('0_Taula Farratges'!$A$1,$C6,$L$2,1,1) -> 1.8 | M6: =OFFSET('0_Taula Farratges'!$A$1,$C6,$M$2,1,1) -> 0 | N6: =OFFSET('0_Taula Farratges'!$A$1,$C6,$N$2,1,1) -> 0 | O6: =OFFSET('0_Taula Farratges'!$A$1,$C6,$O$2,1,1) -> 0 | P6: =OFFSET('0_Taula Farratges'!$A$1,$C6,$P$2,1,1) -> 0 | Q6: =OFFSET('0_Taula Farratges'!$A$1,$C6,$Q$2,1,1) -> 0 | R6: =OFFSET('0_Taula Farratges'!$A$1,$C6,$R$2,1,1) -> 0 | S6: =OFFSET('0_Taula Farratges'!$A$1,$C6,$S$2,1,1) -> 0 | T6: =OFFSET('0_Taula Farratges'!$A$1,$C6,$T$2,1,1) -> 0 | U6: =OFFSET('0_Taula Farratges'!$A$1,$C6,$U$2,1,1) -> 0 | V6: =OFFSET('0_Taula Farratges'!$A$1,$C6,$V$2,1,1) -> 0 | W6: =OFFSET('0_Taula Farratges'!$A$1,$C6,$W$2,1,1) -> 3000 | X6: =OFFSET('0_Taula Farratges'!$A$1,$C6,$X$2,1,1) -> 200 | Y6: =OFFSET('0_Taula Farratges'!$A$1,$C6,$Y$2,1,1) -> 5 | Z6: =OFFSET('0_Taula Farratges'!$A$1,$C6,$Z$2,1,1) -> 27.0051 | AA6: =OFFSET('0_Taula Farratges'!$A$1,$C6,$AA$2,1,1) -> 198 | AB6: =OFFSET('0_Taula Farratges'!$A$1,$C6,$AB$2,1,1) -> 27.79205 | AC6: =OFFSET('0_Taula Farratges'!$A$1,$C6,$AC$2,1,1) -> 0.63 | AD6: =OFFSET('0_Taula Farratges'!$A$1,$C6,$AD$2,1,1) -> 564 | AE6: =OFFSET('0_Taula Farratges'!$A$1,$C6,$AE$2,1,1) -> 39 | AF6: =OFFSET('0_Taula Farratges'!$A$1,$C6,$AF$2,1,1) -> 319 | AG6: =OFFSET('0_Taula Farratges'!$A$1,$C6,$AG$2,1,1) -> 488 | AH6: =OFFSET('0_Taula Farratges'!$A$1,$C6,$AH$2,1,1) -> 331 | AI6: =OFFSET('0_Taula Farratges'!$A$1,$C6,$AI$2,1,1) -> 61.9 | AJ6: =OFFSET('0_Taula Farratges'!$A$1,$C6,$AJ$2,1,1) -> 105 | AK6: =OFFSET('0_Taula Farratges'!$A$1,$C6,$AK$2,1,1) -> 0 | AL6: =OFFSET('0_Taula Farratges'!$A$1,$C6,$AL$2,1,1) -> 0.79 | AM6: =OFFSET('0_Taula Farratges'!$A$1,$C6,$AM$2,1,1) -> 551.9218578 | AN6: =IF('II_Plantejar Ració'!$E7>0,IF(CàlculsVL!E6>=0,1,"No"),"") -> 1 | AO6: =IF('II_Plantejar Ració'!$E7>0,IF(CàlculsVL!F6>=0,1,"No"),"") -> 1 | AP6: =IF('II_Plantejar Ració'!$E7>0,IF(CàlculsVL!G6>0,1,"No"),"") -> 1 | AQ6: =IF('II_Plantejar Ració'!$E7>0,IF(CàlculsVL!H6=0,"No",1),"") -> 1 | AR6: =IF('II_Plantejar Ració'!$E7>0,IF(CàlculsVL!I6>0,1,"No"),"") -> 1 | AS6: =IF('II_Plantejar Ració'!$E7>0,IF(CàlculsVL!J6>0,1,"No"),"") -> 1 | AT6: =IF('II_Plantejar Ració'!$E7>0,IF(CàlculsVL!K6>0,1,"No"),"") -> 1 | AU6: =IF('II_Plantejar Ració'!$E7>0,IF(CàlculsVL!L6>0,1,"No"),"") -> 1 | AV6: =IF('II_Plantejar Ració'!$E7>0,IF(CàlculsVL!M6>0,1,"No"),"") -> No | AW6: =IF('II_Plantejar Ració'!$E7>0,IF(CàlculsVL!N6>0,1,"No"),"") -> No | AX6: =IF('II_Plantejar Ració'!$E7>0,IF(CàlculsVL!O6>0,1,"No"),"") -> No | AY6: =IF('II_Plantejar Ració'!$E7>0,IF(CàlculsVL!P6>0,1,"No"),"") -> No | AZ6: =IF('II_Plantejar Ració'!$E7>0,IF(CàlculsVL!Q6>0,1,"No"),"") -> No | BA6: =IF('II_Plantejar Ració'!$E7>0,IF(CàlculsVL!R6>0,1,"No"),"") -> No | BB6: =IF('II_Plantejar Ració'!$E7>0,IF(CàlculsVL!S6>0,1,"No"),"") -> No | BC6: =IF('II_Plantejar Ració'!$E7>0,IF(CàlculsVL!T6>0,1,"No"),"") -> No | BD6: =IF('II_Plantejar Ració'!$E7>0,IF(CàlculsVL!U6>0,1,"No"),"") -> No | BE6: =IF('II_Plantejar Ració'!$E7>0,IF(CàlculsVL!V6>0,1,"No"),"") -> No | BF6: =IF('II_Plantejar Ració'!$E7>0,IF(CàlculsVL!W6>0,1,"No"),"") -> 1 | BG6: =IF('II_Plantejar Ració'!$E7>0,IF(CàlculsVL!X6>0,1,"No"),"") -> 1 | BH6: =IF('II_Plantejar Ració'!$E7>0,IF(CàlculsVL!Y6>0,1,"No"),"") -> 1 | BI6: =IF('II_Plantejar Ració'!$E7>0,IF(CàlculsVL!Z6>0,1,"No"),"") -> 1 | BJ6: =IF('II_Plantejar Ració'!$E7>0,IF(CàlculsVL!AA6>0,1,"No"),"") -> 1 | BK6: =IF('II_Plantejar Ració'!$E7>0,IF(CàlculsVL!AB6>0,1,"No"),"") -> 1 | BL6: =IF('II_Plantejar Ració'!$E7>0,IF(CàlculsVL!AC6>0,1,"No"),"") -> 1 | BM6: =IF('II_Plantejar Ració'!$E7>0,IF(CàlculsVL!AD6>0,1,"No"),"") -> 1 | BN6: =IF('II_Plantejar Ració'!$E7>0,IF(CàlculsVL!AE6>0,1,"No"),"") -> 1 | BO6: =IF('II_Plantejar Ració'!$E7>0,IF(CàlculsVL!AF6>0,1,"No"),"") -> 1 | BP6: =IF('II_Plantejar Ració'!$E7>0,IF(CàlculsVL!AG6>0,1,"No"),"") -> 1 | BQ6: =IF('II_Plantejar Ració'!$E7>0,IF(CàlculsVL!AH6>0,1,"No"),"") -> 1 | BR6: =IF('II_Plantejar Ració'!$E7>0,IF(CàlculsVL!AI6>0,1,"No"),"") -> 1 | BS6: =IF('II_Plantejar Ració'!$E7>0,IF(CàlculsVL!AJ6>0,1,"No"),"") -> 1 | BT6: =IF('II_Plantejar Ració'!$E7>0,IF(CàlculsVL!AK6>0,1,"No"),"") -> No | BU6: =IF('II_Plantejar Ració'!$E7>0,IF(CàlculsVL!AL6>0,1,"No"),"") -> 1 | BV6: =IF('II_Plantejar Ració'!$E7>0,IF(CàlculsVL!AM6>0,1,"No"),"") -> 1 | BW6: 1 | BX6: 1 | BY6: 1 | BZ6: 1 | CA6: 1 | CB6: 1 | CC6: 1 | CD6: 1 | CE6: 1 | CF6: 1 | CG6: 1 | CH6: 1 | CI6: 1 | CJ6: 1 | CK6: 1 | CL6: 1 | CM6: 1 | CN6: 1 | CO6: 1 | CP6: 1 | CQ6: 1 | CR6: 1 | CS6: 1 | CT6: 1 | CU6: 1 | CV6: 1 | CW6: 1 | CX6: 1 | CY6: 1 | CZ6: 1 | DA6: 1 | DB6: 1 | DC6: 1 | DD6: 1 | DE6: 1
A7: CONCENTRATS | B7: =IF(OFFSET('0_Taula Concentrats'!$A$1,C7,0,1,1)=0,"",OFFSET('0_Taula Concentrats'!$A$1,C7,0,1,1)) -> Blat de moro gra | C7: =Ingredients_Racio!F46-1 -> 9 | D7: =OFFSET('0_Taula Concentrats'!$A$1,$C7,$D$2,1,1) -> 86 | E7: =OFFSET('0_Taula Concentrats'!$A$1,$C7,$E$2,1,1) -> 0.3291 | F7: =OFFSET('0_Taula Concentrats'!$A$1,$C7,$F$2,1,1) -> 1.24475541 | G7: =OFFSET('0_Taula Concentrats'!$A$1,$C7,$G$2,1,1) -> 94 | H7: =OFFSET('0_Taula Concentrats'!$A$1,$C7,$H$2,1,1) -> -53 | I7: =OFFSET('0_Taula Concentrats'!$A$1,$C7,$I$2,1,1) -> 2 | J7: =OFFSET('0_Taula Concentrats'!$A$1,$C7,$J$2,1,1) -> 0.275 | K7: =OFFSET('0_Taula Concentrats'!$A$1,$C7,$K$2,1,1) -> 2.175 | L7: =OFFSET('0_Taula Concentrats'!$A$1,$C7,$L$2,1,1) -> 1.4 | M7: =OFFSET('0_Taula Concentrats'!$A$1,$C7,$M$2,1,1) -> 3.6 | N7: =OFFSET('0_Taula Concentrats'!$A$1,$C7,$N$2,1,1) -> 0.33 | O7: =OFFSET('0_Taula Concentrats'!$A$1,$C7,$O$2,1,1) -> 0 | P7: =OFFSET('0_Taula Concentrats'!$A$1,$C7,$P$2,1,1) -> 0 | Q7: =OFFSET('0_Taula Concentrats'!$A$1,$C7,$Q$2,1,1) -> 0.02 | R7: =OFFSET('0_Taula Concentrats'!$A$1,$C7,$R$2,1,1) -> 2.3 | S7: =OFFSET('0_Taula Concentrats'!$A$1,$C7,$S$2,1,1) -> 10.8 | T7: =OFFSET('0_Taula Concentrats'!$A$1,$C7,$T$2,1,1) -> 21.4 | U7: =OFFSET('0_Taula Concentrats'!$A$1,$C7,$U$2,1,1) -> 739 | V7: =OFFSET('0_Taula Concentrats'!$A$1,$C7,$V$2,1,1) -> 0.02 | W7: =OFFSET('0_Taula Concentrats'!$A$1,$C7,$W$2,1,1) -> 0 | X7: =OFFSET('0_Taula Concentrats'!$A$1,$C7,$X$2,1,1) -> 0 | Y7: =OFFSET('0_Taula Concentrats'!$A$1,$C7,$Y$2,1,1) -> 0 | Z7: =OFFSET('0_Taula Concentrats'!$A$1,$C7,$Z$2,1,1) -> 36.55 | AA7: =OFFSET('0_Taula Concentrats'!$A$1,$C7,$AA$2,1,1) -> 89 | AB7: =OFFSET('0_Taula Concentrats'!$A$1,$C7,$AB$2,1,1) -> 43 | AC7: =OFFSET('0_Taula Concentrats'!$A$1,$C7,$AC$2,1,1) -> 0.882846 | AD7: =OFFSET('0_Taula Concentrats'!$A$1,$C7,$AD$2,1,1) -> 870.486156 | AE7: =OFFSET('0_Taula Concentrats'!$A$1,$C7,$AE$2,1,1) -> 43 | AF7: =OFFSET('0_Taula Concentrats'!$A$1,$C7,$AF$2,1,1) -> 26 | AG7: =OFFSET('0_Taula Concentrats'!$A$1,$C7,$AG$2,1,1) -> 125 | AH7: =OFFSET('0_Taula Concentrats'!$A$1,$C7,$AH$2,1,1) -> 31 | AI7: =OFFSET('0_Taula Concentrats'!$A$1,$C7,$AI$2,1,1) -> 60 | AJ7: =OFFSET('0_Taula Concentrats'!$A$1,$C7,$AJ$2,1,1) -> 14 | AK7: =OFFSET('0_Taula Concentrats'!$A$1,$C7,$AK$2,1,1) -> 0.3 | AL7: =OFFSET('0_Taula Concentrats'!$A$1,$C7,$AL$2,1,1) -> 0.4465708975 | AM7: =OFFSET('0_Taula Concentrats'!$A$1,$C7,$AM$2,1,1) -> 778.2309659 | AN7: =IF('II_Plantejar Ració'!$E8>0,IF(CàlculsVL!E7>=0,1,"No"),"") -> 1 | AO7: =IF('II_Plantejar Ració'!$E8>0,IF(CàlculsVL!F7>=0,1,"No"),"") -> 1 | AP7: =IF('II_Plantejar Ració'!$E8>0,IF(CàlculsVL!G7>0,1,"No"),"") -> 1 | AQ7: =IF('II_Plantejar Ració'!$E8>0,IF(CàlculsVL!H7=0,"No",1),"") -> 1 | AR7: =IF('II_Plantejar Ració'!$E8>0,IF(CàlculsVL!I7>0,1,"No"),"") -> 1 | AS7: =IF('II_Plantejar Ració'!$E8>0,IF(CàlculsVL!J7>0,1,"No"),"") -> 1 | AT7: =IF('II_Plantejar Ració'!$E8>0,IF(CàlculsVL!K7>0,1,"No"),"") -> 1 | AU7: =IF('II_Plantejar Ració'!$E8>0,IF(CàlculsVL!L7>0,1,"No"),"") -> 1 | AV7: =IF('II_Plantejar Ració'!$E8>0,IF(CàlculsVL!M7>0,1,"No"),"") -> 1 | AW7: =IF('II_Plantejar Ració'!$E8>0,IF(CàlculsVL!N7>0,1,"No"),"") -> 1 | AX7: =IF('II_Plantejar Ració'!$E8>0,IF(CàlculsVL!O7>0,1,"No"),"") -> No | AY7: =IF('II_Plantejar Ració'!$E8>0,IF(CàlculsVL!P7>0,1,"No"),"") -> No | AZ7: =IF('II_Plantejar Ració'!$E8>0,IF(CàlculsVL!Q7>0,1,"No"),"") -> 1 | BA7: =IF('II_Plantejar Ració'!$E8>0,IF(CàlculsVL!R7>0,1,"No"),"") -> 1 | BB7: =IF('II_Plantejar Ració'!$E8>0,IF(CàlculsVL!S7>0,1,"No"),"") -> 1 | BC7: =IF('II_Plantejar Ració'!$E8>0,IF(CàlculsVL!T7>0,1,"No"),"") -> 1 | BD7: =IF('II_Plantejar Ració'!$E8>0,IF(CàlculsVL!U7>0,1,"No"),"") -> 1 | BE7: =IF('II_Plantejar Ració'!$E8>0,IF(CàlculsVL!V7>0,1,"No"),"") -> 1 | BF7: =IF('II_Plantejar Ració'!$E8>0,IF(CàlculsVL!W7>0,1,"No"),"") -> No | BG7: =IF('II_Plantejar Ració'!$E8>0,IF(CàlculsVL!X7>0,1,"No"),"") -> No | BH7: =IF('II_Plantejar Ració'!$E8>0,IF(CàlculsVL!Y7>0,1,"No"),"") -> No | BI7: =IF('II_Plantejar Ració'!$E8>0,IF(CàlculsVL!Z7>0,1,"No"),"") -> 1 | BJ7: =IF('II_Plantejar Ració'!$E8>0,IF(CàlculsVL!AA7>0,1,"No"),"") -> 1 | BK7: =IF('II_Plantejar Ració'!$E8>0,IF(CàlculsVL!AB7>0,1,"No"),"") -> 1 | BL7: =IF('II_Plantejar Ració'!$E8>0,IF(CàlculsVL!AC7>0,1,"No"),"") -> 1 | BM7: =IF('II_Plantejar Ració'!$E8>0,IF(CàlculsVL!AD7>0,1,"No"),"") -> 1 | BN7: =IF('II_Plantejar Ració'!$E8>0,IF(CàlculsVL!AE7>0,1,"No"),"") -> 1 | BO7: =IF('II_Plantejar Ració'!$E8>0,IF(CàlculsVL!AF7>0,1,"No"),"") -> 1 | BP7: =IF('II_Plantejar Ració'!$E8>0,IF(CàlculsVL!AG7>0,1,"No"),"") -> 1 | BQ7: =IF('II_Plantejar Ració'!$E8>0,IF(CàlculsVL!AH7>0,1,"No"),"") -> 1 | BR7: =IF('II_Plantejar Ració'!$E8>0,IF(CàlculsVL!AI7>0,1,"No"),"") -> 1 | BS7: =IF('II_Plantejar Ració'!$E8>0,IF(CàlculsVL!AJ7>0,1,"No"),"") -> 1 | BT7: =IF('II_Plantejar Ració'!$E8>0,IF(CàlculsVL!AK7>0,1,"No"),"") -> 1 | BU7: =IF('II_Plantejar Ració'!$E8>0,IF(CàlculsVL!AL7>0,1,"No"),"") -> 1 | BV7: =IF('II_Plantejar Ració'!$E8>0,IF(CàlculsVL!AM7>0,1,"No"),"") -> 1 | BW7: 1 | BX7: 1 | BY7: 1 | BZ7: 1 | CA7: 1 | CB7: 1 | CC7: 1 | CD7: 1 | CE7: 1 | CF7: 1 | CG7: 1 | CH7: 1 | CI7: 1 | CJ7: 1 | CK7: 1 | CL7: 1 | CM7: 1 | CN7: 1 | CO7: 1 | CP7: 1 | CQ7: 1 | CR7: 1 | CS7: 1 | CT7: 1 | CU7: 1 | CV7: 1 | CW7: 1 | CX7: 1 | CY7: 1 | CZ7: 1 | DA7: 1 | DB7: 1 | DC7: 1 | DD7: 1 | DE7: 1
B8: =IF(OFFSET('0_Taula Concentrats'!$A$1,C8,0,1,1)=0,"",OFFSET('0_Taula Concentrats'!$A$1,C8,0,1,1)) -> Soja tortó 44 | C8: =Ingredients_Racio!G46-1 -> 74 | D8: =OFFSET('0_Taula Concentrats'!$A$1,$C8,$D$2,1,1) -> 87.2 | E8: =OFFSET('0_Taula Concentrats'!$A$1,$C8,$E$2,1,1) -> 0.2781056 | F8: =OFFSET('0_Taula Concentrats'!$A$1,$C8,$F$2,1,1) -> 1.165625863 | G8: =OFFSET('0_Taula Concentrats'!$A$1,$C8,$G$2,1,1) -> 207.0695265 | H8: =OFFSET('0_Taula Concentrats'!$A$1,$C8,$H$2,1,1) -> 219.1726116 | I8: =OFFSET('0_Taula Concentrats'!$A$1,$C8,$I$2,1,1) -> 2 | J8: =OFFSET('0_Taula Concentrats'!$A$1,$C8,$J$2,1,1) -> 1.87 | K8: =OFFSET('0_Taula Concentrats'!$A$1,$C8,$K$2,1,1) -> 4.9 | L8: =OFFSET('0_Taula Concentrats'!$A$1,$C8,$L$2,1,1) -> 2.7 | M8: =OFFSET('0_Taula Concentrats'!$A$1,$C8,$M$2,1,1) -> 20 | N8: =OFFSET('0_Taula Concentrats'!$A$1,$C8,$N$2,1,1) -> 1.95 | O8: =OFFSET('0_Taula Concentrats'!$A$1,$C8,$O$2,1,1) -> 0 | P8: =OFFSET('0_Taula Concentrats'!$A$1,$C8,$P$2,1,1) -> 0 | Q8: =OFFSET('0_Taula Concentrats'!$A$1,$C8,$Q$2,1,1) -> 0.3 | R8: =OFFSET('0_Taula Concentrats'!$A$1,$C8,$R$2,1,1) -> 17.1 | S8: =OFFSET('0_Taula Concentrats'!$A$1,$C8,$S$2,1,1) -> 43.7 | T8: =OFFSET('0_Taula Concentrats'!$A$1,$C8,$T$2,1,1) -> 54.6 | U8: =OFFSET('0_Taula Concentrats'!$A$1,$C8,$U$2,1,1) -> 68 | V8: =OFFSET('0_Taula Concentrats'!$A$1,$C8,$V$2,1,1) -> 0.2 | W8: =OFFSET('0_Taula Concentrats'!$A$1,$C8,$W$2,1,1) -> 0 | X8: =OFFSET('0_Taula Concentrats'!$A$1,$C8,$X$2,1,1) -> 0 | Y8: =OFFSET('0_Taula Concentrats'!$A$1,$C8,$Y$2,1,1) -> 7 | Z8: =OFFSET('0_Taula Concentrats'!$A$1,$C8,$Z$2,1,1) -> 16.5 | AA8: =OFFSET('0_Taula Concentrats'!$A$1,$C8,$AA$2,1,1) -> 488 | AB8: =OFFSET('0_Taula Concentrats'!$A$1,$C8,$AB$2,1,1) -> 153.419998 | AC8: =OFFSET('0_Taula Concentrats'!$A$1,$C8,$AC$2,1,1) -> 0.849655 | AD8: =OFFSET('0_Taula Concentrats'!$A$1,$C8,$AD$2,1,1) -> 779.133635 | AE8: =OFFSET('0_Taula Concentrats'!$A$1,$C8,$AE$2,1,1) -> 22 | AF8: =OFFSET('0_Taula Concentrats'!$A$1,$C8,$AF$2,1,1) -> 84 | AG8: =OFFSET('0_Taula Concentrats'!$A$1,$C8,$AG$2,1,1) -> 163 | AH8: =OFFSET('0_Taula Concentrats'!$A$1,$C8,$AH$2,1,1) -> 104 | AI8: =OFFSET('0_Taula Concentrats'!$A$1,$C8,$AI$2,1,1) -> 8 | AJ8: =OFFSET('0_Taula Concentrats'!$A$1,$C8,$AJ$2,1,1) -> 83 | AK8: =OFFSET('0_Taula Concentrats'!$A$1,$C8,$AK$2,1,1) -> 2.3 | AL8: =OFFSET('0_Taula Concentrats'!$A$1,$C8,$AL$2,1,1) -> 0.6819996035 | AM8: =OFFSET('0_Taula Concentrats'!$A$1,$C8,$AM$2,1,1) -> 601.9494415 | AN8: =IF('II_Plantejar Ració'!$E9>0,IF(CàlculsVL!E8>=0,1,"No"),"") -> 1 | AO8: =IF('II_Plantejar Ració'!$E9>0,IF(CàlculsVL!F8>=0,1,"No"),"") -> 1 | AP8: =IF('II_Plantejar Ració'!$E9>0,IF(CàlculsVL!G8>0,1,"No"),"") -> 1 | AQ8: =IF('II_Plantejar Ració'!$E9>0,IF(CàlculsVL!H8=0,"No",1),"") -> 1 | AR8: =IF('II_Plantejar Ració'!$E9>0,IF(CàlculsVL!I8>0,1,"No"),"") -> 1 | AS8: =IF('II_Plantejar Ració'!$E9>0,IF(CàlculsVL!J8>0,1,"No"),"") -> 1 | AT8: =IF('II_Plantejar Ració'!$E9>0,IF(CàlculsVL!K8>0,1,"No"),"") -> 1 | AU8: =IF('II_Plantejar Ració'!$E9>0,IF(CàlculsVL!L8>0,1,"No"),"") -> 1 | AV8: =IF('II_Plantejar Ració'!$E9>0,IF(CàlculsVL!M8>0,1,"No"),"") -> 1 | AW8: =IF('II_Plantejar Ració'!$E9>0,IF(CàlculsVL!N8>0,1,"No"),"") -> 1 | AX8: =IF('II_Plantejar Ració'!$E9>0,IF(CàlculsVL!O8>0,1,"No"),"") -> No | AY8: =IF('II_Plantejar Ració'!$E9>0,IF(CàlculsVL!P8>0,1,"No"),"") -> No | AZ8: =IF('II_Plantejar Ració'!$E9>0,IF(CàlculsVL!Q8>0,1,"No"),"") -> 1 | BA8: =IF('II_Plantejar Ració'!$E9>0,IF(CàlculsVL!R8>0,1,"No"),"") -> 1 | BB8: =IF('II_Plantejar Ració'!$E9>0,IF(CàlculsVL!S8>0,1,"No"),"") -> 1 | BC8: =IF('II_Plantejar Ració'!$E9>0,IF(CàlculsVL!T8>0,1,"No"),"") -> 1 | BD8: =IF('II_Plantejar Ració'!$E9>0,IF(CàlculsVL!U8>0,1,"No"),"") -> 1 | BE8: =IF('II_Plantejar Ració'!$E9>0,IF(CàlculsVL!V8>0,1,"No"),"") -> 1 | BF8: =IF('II_Plantejar Ració'!$E9>0,IF(CàlculsVL!W8>0,1,"No"),"") -> No | BG8: =IF('II_Plantejar Ració'!$E9>0,IF(CàlculsVL!X8>0,1,"No"),"") -> No | BH8: =IF('II_Plantejar Ració'!$E9>0,IF(CàlculsVL!Y8>0,1,"No"),"") -> 1 | BI8: =IF('II_Plantejar Ració'!$E9>0,IF(CàlculsVL!Z8>0,1,"No"),"") -> 1 | BJ8: =IF('II_Plantejar Ració'!$E9>0,IF(CàlculsVL!AA8>0,1,"No"),"") -> 1 | BK8: =IF('II_Plantejar Ració'!$E9>0,IF(CàlculsVL!AB8>0,1,"No"),"") -> 1 | BL8: =IF('II_Plantejar Ració'!$E9>0,IF(CàlculsVL!AC8>0,1,"No"),"") -> 1 | BM8: =IF('II_Plantejar Ració'!$E9>0,IF(CàlculsVL!AD8>0,1,"No"),"") -> 1 | BN8: =IF('II_Plantejar Ració'!$E9>0,IF(CàlculsVL!AE8>0,1,"No"),"") -> 1 | BO8: =IF('II_Plantejar Ració'!$E9>0,IF(CàlculsVL!AF8>0,1,"No"),"") -> 1 | BP8: =IF('II_Plantejar Ració'!$E9>0,IF(CàlculsVL!AG8>0,1,"No"),"") -> 1 | BQ8: =IF('II_Plantejar Ració'!$E9>0,IF(CàlculsVL!AH8>0,1,"No"),"") -> 1 | BR8: =IF('II_Plantejar Ració'!$E9>0,IF(CàlculsVL!AI8>0,1,"No"),"") -> 1 | BS8: =IF('II_Plantejar Ració'!$E9>0,IF(CàlculsVL!AJ8>0,1,"No"),"") -> 1 | BT8: =IF('II_Plantejar Ració'!$E9>0,IF(CàlculsVL!AK8>0,1,"No"),"") -> 1 | BU8: =IF('II_Plantejar Ració'!$E9>0,IF(CàlculsVL!AL8>0,1,"No"),"") -> 1 | BV8: =IF('II_Plantejar Ració'!$E9>0,IF(CàlculsVL!AM8>0,1,"No"),"") -> 1 | BW8: 1 | BX8: 1 | BY8: 1 | BZ8: 1 | CA8: 1 | CB8: 1 | CC8: 1 | CD8: 1 | CE8: 1 | CF8: 1 | CG8: 1 | CH8: 1 | CI8: 1 | CJ8: 1 | CK8: 1 | CL8: 1 | CM8: 1 | CN8: 1 | CO8: 1 | CP8: 1 | CQ8: 1 | CR8: 1 | CS8: 1 | CT8: 1 | CU8: 1 | CV8: 1 | CW8: 1 | CX8: 1 | CY8: 1 | CZ8: 1 | DA8: 1 | DB8: 1 | DC8: 1 | DD8: 1 | DE8: 1
B9: =IF(OFFSET('0_Taula Concentrats'!$A$1,C9,0,1,1)=0,"",OFFSET('0_Taula Concentrats'!$A$1,C9,0,1,1)) -> Polpes (cítrics) | C9: =Ingredients_Racio!H46-1 -> 62 | D9: =OFFSET('0_Taula Concentrats'!$A$1,$C9,$D$2,1,1) -> 90 | E9: =OFFSET('0_Taula Concentrats'!$A$1,$C9,$E$2,1,1) -> 0.2212 | F9: =OFFSET('0_Taula Concentrats'!$A$1,$C9,$F$2,1,1) -> 1.09457765 | G9: =OFFSET('0_Taula Concentrats'!$A$1,$C9,$G$2,1,1) -> 82.57976854 | H9: =OFFSET('0_Taula Concentrats'!$A$1,$C9,$H$2,1,1) -> -65.70818372 | I9: =OFFSET('0_Taula Concentrats'!$A$1,$C9,$I$2,1,1) -> 2 | J9: =OFFSET('0_Taula Concentrats'!$A$1,$C9,$J$2,1,1) -> 4.6 | K9: =OFFSET('0_Taula Concentrats'!$A$1,$C9,$K$2,1,1) -> 1.17 | L9: =OFFSET('0_Taula Concentrats'!$A$1,$C9,$L$2,1,1) -> 0 | M9: =OFFSET('0_Taula Concentrats'!$A$1,$C9,$M$2,1,1) -> 0 | N9: =OFFSET('0_Taula Concentrats'!$A$1,$C9,$N$2,1,1) -> 0 | O9: =OFFSET('0_Taula Concentrats'!$A$1,$C9,$O$2,1,1) -> 0 | P9: =OFFSET('0_Taula Concentrats'!$A$1,$C9,$P$2,1,1) -> 0 | Q9: =OFFSET('0_Taula Concentrats'!$A$1,$C9,$Q$2,1,1) -> 0 | R9: =OFFSET('0_Taula Concentrats'!$A$1,$C9,$R$2,1,1) -> 0 | S9: =OFFSET('0_Taula Concentrats'!$A$1,$C9,$S$2,1,1) -> 0 | T9: =OFFSET('0_Taula Concentrats'!$A$1,$C9,$T$2,1,1) -> 0 | U9: =OFFSET('0_Taula Concentrats'!$A$1,$C9,$U$2,1,1) -> 62 | V9: =OFFSET('0_Taula Concentrats'!$A$1,$C9,$V$2,1,1) -> 0 | W9: =OFFSET('0_Taula Concentrats'!$A$1,$C9,$W$2,1,1) -> 0 | X9: =OFFSET('0_Taula Concentrats'!$A$1,$C9,$X$2,1,1) -> 0 | Y9: =OFFSET('0_Taula Concentrats'!$A$1,$C9,$Y$2,1,1) -> 0 | Z9: =OFFSET('0_Taula Concentrats'!$A$1,$C9,$Z$2,1,1) -> 16.8 | AA9: =OFFSET('0_Taula Concentrats'!$A$1,$C9,$AA$2,1,1) -> 70 | AB9: =OFFSET('0_Taula Concentrats'!$A$1,$C9,$AB$2,1,1) -> 20.49453097 | AC9: =OFFSET('0_Taula Concentrats'!$A$1,$C9,$AC$2,1,1) -> 0.87931 | AD9: =OFFSET('0_Taula Concentrats'!$A$1,$C9,$AD$2,1,1) -> 822.15485 | AE9: =OFFSET('0_Taula Concentrats'!$A$1,$C9,$AE$2,1,1) -> 28 | AF9: =OFFSET('0_Taula Concentrats'!$A$1,$C9,$AF$2,1,1) -> 137 | AG9: =OFFSET('0_Taula Concentrats'!$A$1,$C9,$AG$2,1,1) -> 223 | AH9: =OFFSET('0_Taula Concentrats'!$A$1,$C9,$AH$2,1,1) -> 158 | AI9: =OFFSET('0_Taula Concentrats'!$A$1,$C9,$AI$2,1,1) -> 14 | AJ9: =OFFSET('0_Taula Concentrats'!$A$1,$C9,$AJ$2,1,1) -> 65 | AK9: =OFFSET('0_Taula Concentrats'!$A$1,$C9,$AK$2,1,1) -> 0 | AL9: =OFFSET('0_Taula Concentrats'!$A$1,$C9,$AL$2,1,1) -> 0.6799461392 | AM9: =OFFSET('0_Taula Concentrats'!$A$1,$C9,$AM$2,1,1) -> 771.7510797 | AN9: =IF('II_Plantejar Ració'!$E10>0,IF(CàlculsVL!E9>=0,1,"No"),"") -> 1 | AO9: =IF('II_Plantejar Ració'!$E10>0,IF(CàlculsVL!F9>=0,1,"No"),"") -> 1 | AP9: =IF('II_Plantejar Ració'!$E10>0,IF(CàlculsVL!G9>0,1,"No"),"") -> 1 | AQ9: =IF('II_Plantejar Ració'!$E10>0,IF(CàlculsVL!H9=0,"No",1),"") -> 1 | AR9: =IF('II_Plantejar Ració'!$E10>0,IF(CàlculsVL!I9>0,1,"No"),"") -> 1 | AS9: =IF('II_Plantejar Ració'!$E10>0,IF(CàlculsVL!J9>0,1,"No"),"") -> 1 | AT9: =IF('II_Plantejar Ració'!$E10>0,IF(CàlculsVL!K9>0,1,"No"),"") -> 1 | AU9: =IF('II_Plantejar Ració'!$E10>0,IF(CàlculsVL!L9>0,1,"No"),"") -> No | AV9: =IF('II_Plantejar Ració'!$E10>0,IF(CàlculsVL!M9>0,1,"No"),"") -> No | AW9: =IF('II_Plantejar Ració'!$E10>0,IF(CàlculsVL!N9>0,1,"No"),"") -> No | AX9: =IF('II_Plantejar Ració'!$E10>0,IF(CàlculsVL!O9>0,1,"No"),"") -> No | AY9: =IF('II_Plantejar Ració'!$E10>0,IF(CàlculsVL!P9>0,1,"No"),"") -> No | AZ9: =IF('II_Plantejar Ració'!$E10>0,IF(CàlculsVL!Q9>0,1,"No"),"") -> No | BA9: =IF('II_Plantejar Ració'!$E10>0,IF(CàlculsVL!R9>0,1,"No"),"") -> No | BB9: =IF('II_Plantejar Ració'!$E10>0,IF(CàlculsVL!S9>0,1,"No"),"") -> No | BC9: =IF('II_Plantejar Ració'!$E10>0,IF(CàlculsVL!T9>0,1,"No"),"") -> No | BD9: =IF('II_Plantejar Ració'!$E10>0,IF(CàlculsVL!U9>0,1,"No"),"") -> 1 | BE9: =IF('II_Plantejar Ració'!$E10>0,IF(CàlculsVL!V9>0,1,"No"),"") -> No | BF9: =IF('II_Plantejar Ració'!$E10>0,IF(CàlculsVL!W9>0,1,"No"),"") -> No | BG9: =IF('II_Plantejar Ració'!$E10>0,IF(CàlculsVL!X9>0,1,"No"),"") -> No | BH9: =IF('II_Plantejar Ració'!$E10>0,IF(CàlculsVL!Y9>0,1,"No"),"") -> No | BI9: =IF('II_Plantejar Ració'!$E10>0,IF(CàlculsVL!Z9>0,1,"No"),"") -> 1 | BJ9: =IF('II_Plantejar Ració'!$E10>0,IF(CàlculsVL!AA9>0,1,"No"),"") -> 1 | BK9: =IF('II_Plantejar Ració'!$E10>0,IF(CàlculsVL!AB9>0,1,"No"),"") -> 1 | BL9: =IF('II_Plantejar Ració'!$E10>0,IF(CàlculsVL!AC9>0,1,"No"),"") -> 1 | BM9: =IF('II_Plantejar Ració'!$E10>0,IF(CàlculsVL!AD9>0,1,"No"),"") -> 1 | BN9: =IF('II_Plantejar Ració'!$E10>0,IF(CàlculsVL!AE9>0,1,"No"),"") -> 1 | BO9: =IF('II_Plantejar Ració'!$E10>0,IF(CàlculsVL!AF9>0,1,"No"),"") -> 1 | BP9: =IF('II_Plantejar Ració'!$E10>0,IF(CàlculsVL!AG9>0,1,"No"),"") -> 1 | BQ9: =IF('II_Plantejar Ració'!$E10>0,IF(CàlculsVL!AH9>0,1,"No"),"") -> 1 | BR9: =IF('II_Plantejar Ració'!$E10>0,IF(CàlculsVL!AI9>0,1,"No"),"") -> 1 | BS9: =IF('II_Plantejar Ració'!$E10>0,IF(CàlculsVL!AJ9>0,1,"No"),"") -> 1 | BT9: =IF('II_Plantejar Ració'!$E10>0,IF(CàlculsVL!AK9>0,1,"No"),"") -> No | BU9: =IF('II_Plantejar Ració'!$E10>0,IF(CàlculsVL!AL9>0,1,"No"),"") -> 1 | BV9: =IF('II_Plantejar Ració'!$E10>0,IF(CàlculsVL!AM9>0,1,"No"),"") -> 1 | BW9: 1 | BX9: 1 | BY9: 1 | BZ9: 1 | CA9: 1 | CB9: 1 | CC9: 1 | CD9: 1 | CE9: 1 | CF9: 1 | CG9: 1 | CH9: 1 | CI9: 1 | CJ9: 1 | CK9: 1 | CL9: 1 | CM9: 1 | CN9: 1 | CO9: 1 | CP9: 1 | CQ9: 1 | CR9: 1 | CS9: 1 | CT9: 1 | CU9: 1 | CV9: 1 | CW9: 1 | CX9: 1 | CY9: 1 | CZ9: 1 | DA9: 1 | DB9: 1 | DC9: 1 | DD9: 1 | DE9: 1
B10: =IF(OFFSET('0_Taula Concentrats'!$A$1,C10,0,1,1)=0,"",OFFSET('0_Taula Concentrats'!$A$1,C10,0,1,1)) -> Alfals deshidratat i aglomerats | C10: =Ingredients_Racio!I46-1 -> 2 | D10: =OFFSET('0_Taula Concentrats'!$A$1,$C10,$D$2,1,1) -> 90.2 | E10: =OFFSET('0_Taula Concentrats'!$A$1,$C10,$E$2,1,1) -> 0.3789 | F10: =OFFSET('0_Taula Concentrats'!$A$1,$C10,$F$2,1,1) -> 0.7398701174 | G10: =OFFSET('0_Taula Concentrats'!$A$1,$C10,$G$2,1,1) -> 116.147103 | H10: =OFFSET('0_Taula Concentrats'!$A$1,$C10,$H$2,1,1) -> 51.38002158 | I10: =OFFSET('0_Taula Concentrats'!$A$1,$C10,$I$2,1,1) -> 2 | J10: =OFFSET('0_Taula Concentrats'!$A$1,$C10,$J$2,1,1) -> 3.84 | K10: =OFFSET('0_Taula Concentrats'!$A$1,$C10,$K$2,1,1) -> 1.768 | L10: =OFFSET('0_Taula Concentrats'!$A$1,$C10,$L$2,1,1) -> 0 | M10: =OFFSET('0_Taula Concentrats'!$A$1,$C10,$M$2,1,1) -> 0 | N10: =OFFSET('0_Taula Concentrats'!$A$1,$C10,$N$2,1,1) -> 0 | O10: =OFFSET('0_Taula Concentrats'!$A$1,$C10,$O$2,1,1) -> 0 | P10: =OFFSET('0_Taula Concentrats'!$A$1,$C10,$P$2,1,1) -> 0 | Q10: =OFFSET('0_Taula Concentrats'!$A$1,$C10,$Q$2,1,1) -> 0 | R10: =OFFSET('0_Taula Concentrats'!$A$1,$C10,$R$2,1,1) -> 0 | S10: =OFFSET('0_Taula Concentrats'!$A$1,$C10,$S$2,1,1) -> 0 | T10: =OFFSET('0_Taula Concentrats'!$A$1,$C10,$T$2,1,1) -> 0 | U10: =OFFSET('0_Taula Concentrats'!$A$1,$C10,$U$2,1,1) -> 0 | V10: =OFFSET('0_Taula Concentrats'!$A$1,$C10,$V$2,1,1) -> 0 | W10: =OFFSET('0_Taula Concentrats'!$A$1,$C10,$W$2,1,1) -> 0 | X10: =OFFSET('0_Taula Concentrats'!$A$1,$C10,$X$2,1,1) -> 0 | Y10: =OFFSET('0_Taula Concentrats'!$A$1,$C10,$Y$2,1,1) -> 0 | Z10: =OFFSET('0_Taula Concentrats'!$A$1,$C10,$Z$2,1,1) -> 17 | AA10: =OFFSET('0_Taula Concentrats'!$A$1,$C10,$AA$2,1,1) -> 233 | AB10: =OFFSET('0_Taula Concentrats'!$A$1,$C10,$AB$2,1,1) -> 68.64631679 | AC10: =OFFSET('0_Taula Concentrats'!$A$1,$C10,$AC$2,1,1) -> 0.6658 | AD10: =OFFSET('0_Taula Concentrats'!$A$1,$C10,$AD$2,1,1) -> 579.9118 | AE10: =OFFSET('0_Taula Concentrats'!$A$1,$C10,$AE$2,1,1) -> 34 | AF10: =OFFSET('0_Taula Concentrats'!$A$1,$C10,$AF$2,1,1) -> 237 | AG10: =OFFSET('0_Taula Concentrats'!$A$1,$C10,$AG$2,1,1) -> 405 | AH10: =OFFSET('0_Taula Concentrats'!$A$1,$C10,$AH$2,1,1) -> 280 | AI10: =OFFSET('0_Taula Concentrats'!$A$1,$C10,$AI$2,1,1) -> 76 | AJ10: =OFFSET('0_Taula Concentrats'!$A$1,$C10,$AJ$2,1,1) -> 129 | AK10: =OFFSET('0_Taula Concentrats'!$A$1,$C10,$AK$2,1,1) -> 0 | AL10: =OFFSET('0_Taula Concentrats'!$A$1,$C10,$AL$2,1,1) -> 0.6663643659 | AM10: =OFFSET('0_Taula Concentrats'!$A$1,$C10,$AM$2,1,1) -> 468.1746973 | AN10: =IF('II_Plantejar Ració'!$E11>0,IF(CàlculsVL!E10>=0,1,"No"),"") -> 1 | AO10: =IF('II_Plantejar Ració'!$E11>0,IF(CàlculsVL!F10>=0,1,"No"),"") -> 1 | AP10: =IF('II_Plantejar Ració'!$E11>0,IF(CàlculsVL!G10>0,1,"No"),"") -> 1 | AQ10: =IF('II_Plantejar Ració'!$E11>0,IF(CàlculsVL!H10=0,"No",1),"") -> 1 | AR10: =IF('II_Plantejar Ració'!$E11>0,IF(CàlculsVL!I10>0,1,"No"),"") -> 1 | AS10: =IF('II_Plantejar Ració'!$E11>0,IF(CàlculsVL!J10>0,1,"No"),"") -> 1 | AT10: =IF('II_Plantejar Ració'!$E11>0,IF(CàlculsVL!K10>0,1,"No"),"") -> 1 | AU10: =IF('II_Plantejar Ració'!$E11>0,IF(CàlculsVL!L10>0,1,"No"),"") -> No | AV10: =IF('II_Plantejar Ració'!$E11>0,IF(CàlculsVL!M10>0,1,"No"),"") -> No | AW10: =IF('II_Plantejar Ració'!$E11>0,IF(CàlculsVL!N10>0,1,"No"),"") -> No | AX10: =IF('II_Plantejar Ració'!$E11>0,IF(CàlculsVL!O10>0,1,"No"),"") -> No | AY10: =IF('II_Plantejar Ració'!$E11>0,IF(CàlculsVL!P10>0,1,"No"),"") -> No | AZ10: =IF('II_Plantejar Ració'!$E11>0,IF(CàlculsVL!Q10>0,1,"No"),"") -> No | BA10: =IF('II_Plantejar Ració'!$E11>0,IF(CàlculsVL!R10>0,1,"No"),"") -> No | BB10: =IF('II_Plantejar Ració'!$E11>0,IF(CàlculsVL!S10>0,1,"No"),"") -> No | BC10: =IF('II_Plantejar Ració'!$E11>0,IF(CàlculsVL!T10>0,1,"No"),"") -> No | BD10: =IF('II_Plantejar Ració'!$E11>0,IF(CàlculsVL!U10>0,1,"No"),"") -> No | BE10: =IF('II_Plantejar Ració'!$E11>0,IF(CàlculsVL!V10>0,1,"No"),"") -> No | BF10: =IF('II_Plantejar Ració'!$E11>0,IF(CàlculsVL!W10>0,1,"No"),"") -> No | BG10: =IF('II_Plantejar Ració'!$E11>0,IF(CàlculsVL!X10>0,1,"No"),"") -> No | BH10: =IF('II_Plantejar Ració'!$E11>0,IF(CàlculsVL!Y10>0,1,"No"),"") -> No | BI10: =IF('II_Plantejar Ració'!$E11>0,IF(CàlculsVL!Z10>0,1,"No"),"") -> 1 | BJ10: =IF('II_Plantejar Ració'!$E11>0,IF(CàlculsVL!AA10>0,1,"No"),"") -> 1 | BK10: =IF('II_Plantejar Ració'!$E11>0,IF(CàlculsVL!AB10>0,1,"No"),"") -> 1 | BL10: =IF('II_Plantejar Ració'!$E11>0,IF(CàlculsVL!AC10>0,1,"No"),"") -> 1 | BM10: =IF('II_Plantejar Ració'!$E11>0,IF(CàlculsVL!AD10>0,1,"No"),"") -> 1 | BN10: =IF('II_Plantejar Ració'!$E11>0,IF(CàlculsVL!AE10>0,1,"No"),"") -> 1 | BO10: =IF('II_Plantejar Ració'!$E11>0,IF(CàlculsVL!AF10>0,1,"No"),"") -> 1 | BP10: =IF('II_Plantejar Ració'!$E11>0,IF(CàlculsVL!AG10>0,1,"No"),"") -> 1 | BQ10: =IF('II_Plantejar Ració'!$E11>0,IF(CàlculsVL!AH10>0,1,"No"),"") -> 1 | BR10: =IF('II_Plantejar Ració'!$E11>0,IF(CàlculsVL!AI10>0,1,"No"),"") -> 1 | BS10: =IF('II_Plantejar Ració'!$E11>0,IF(CàlculsVL!AJ10>0,1,"No"),"") -> 1 | BT10: =IF('II_Plantejar Ració'!$E11>0,IF(CàlculsVL!AK10>0,1,"No"),"") -> No | BU10: =IF('II_Plantejar Ració'!$E11>0,IF(CàlculsVL!AL10>0,1,"No"),"") -> 1 | BV10: =IF('II_Plantejar Ració'!$E11>0,IF(CàlculsVL!AM10>0,1,"No"),"") -> 1 | BW10: 1 | BX10: 1 | BY10: 1 | BZ10: 1 | CA10: 1 | CB10: 1 | CC10: 1 | CD10: 1 | CE10: 1 | CF10: 1 | CG10: 1 | CH10: 1 | CI10: 1 | CJ10: 1 | CK10: 1 | CL10: 1 | CM10: 1 | CN10: 1 | CO10: 1 | CP10: 1 | CQ10: 1 | CR10: 1 | CS10: 1 | CT10: 1 | CU10: 1 | CV10: 1 | CW10: 1 | CX10: 1 | CY10: 1 | CZ10: 1 | DA10: 1 | DB10: 1 | DC10: 1 | DD10: 1 | DE10: 1
B11: =IF(OFFSET('0_Taula Concentrats'!$A$1,C11,0,1,1)=0,"",OFFSET('0_Taula Concentrats'!$A$1,C11,0,1,1)) -> Grassa vegetal, mantega de porc (tots els tipus) | C11: =Ingredients_Racio!J46-1 -> 38 | D11: =OFFSET('0_Taula Concentrats'!$A$1,$C11,$D$2,1,1) -> 99.9 | E11: =OFFSET('0_Taula Concentrats'!$A$1,$C11,$E$2,1,1) -> 0.25 | F11: =OFFSET('0_Taula Concentrats'!$A$1,$C11,$F$2,1,1) -> 3.61 | G11: =OFFSET('0_Taula Concentrats'!$A$1,$C11,$G$2,1,1) -> 1e-07 | H11: =OFFSET('0_Taula Concentrats'!$A$1,$C11,$H$2,1,1) -> -14 | I11: =OFFSET('0_Taula Concentrats'!$A$1,$C11,$I$2,1,1) -> 2 | J11: =OFFSET('0_Taula Concentrats'!$A$1,$C11,$J$2,1,1) -> 5.5e-08 | K11: =OFFSET('0_Taula Concentrats'!$A$1,$C11,$K$2,1,1) -> 6.8e-08 | L11: =OFFSET('0_Taula Concentrats'!$A$1,$C11,$L$2,1,1) -> 1e-07 | M11: =OFFSET('0_Taula Concentrats'!$A$1,$C11,$M$2,1,1) -> 1e-07 | N11: =OFFSET('0_Taula Concentrats'!$A$1,$C11,$N$2,1,1) -> 1e-07 | O11: =OFFSET('0_Taula Concentrats'!$A$1,$C11,$O$2,1,1) -> 1e-07 | P11: =OFFSET('0_Taula Concentrats'!$A$1,$C11,$P$2,1,1) -> 1e-07 | Q11: =OFFSET('0_Taula Concentrats'!$A$1,$C11,$Q$2,1,1) -> 1e-07 | R11: =OFFSET('0_Taula Concentrats'!$A$1,$C11,$R$2,1,1) -> 1e-07 | S11: =OFFSET('0_Taula Concentrats'!$A$1,$C11,$S$2,1,1) -> 1e-07 | T11: =OFFSET('0_Taula Concentrats'!$A$1,$C11,$T$2,1,1) -> 1e-07 | U11: =OFFSET('0_Taula Concentrats'!$A$1,$C11,$U$2,1,1) -> 0 | V11: =OFFSET('0_Taula Concentrats'!$A$1,$C11,$V$2,1,1) -> 1e-07 | W11: =OFFSET('0_Taula Concentrats'!$A$1,$C11,$W$2,1,1) -> 1300 | X11: =OFFSET('0_Taula Concentrats'!$A$1,$C11,$X$2,1,1) -> 1e-07 | Y11: =OFFSET('0_Taula Concentrats'!$A$1,$C11,$Y$2,1,1) -> 95 | Z11: =OFFSET('0_Taula Concentrats'!$A$1,$C11,$Z$2,1,1) -> 999 | AA11: =OFFSET('0_Taula Concentrats'!$A$1,$C11,$AA$2,1,1) -> 1e-07 | AB11: =OFFSET('0_Taula Concentrats'!$A$1,$C11,$AB$2,1,1) -> 1e-07 | AC11: =OFFSET('0_Taula Concentrats'!$A$1,$C11,$AC$2,1,1) -> 0.9 | AD11: =OFFSET('0_Taula Concentrats'!$A$1,$C11,$AD$2,1,1) -> 1e-07 | AE11: =OFFSET('0_Taula Concentrats'!$A$1,$C11,$AE$2,1,1) -> 999 | AF11: =OFFSET('0_Taula Concentrats'!$A$1,$C11,$AF$2,1,1) -> 1e-07 | AG11: =OFFSET('0_Taula Concentrats'!$A$1,$C11,$AG$2,1,1) -> 1e-07 | AH11: =OFFSET('0_Taula Concentrats'!$A$1,$C11,$AH$2,1,1) -> 1e-07 | AI11: =OFFSET('0_Taula Concentrats'!$A$1,$C11,$AI$2,1,1) -> 1e-07 | AJ11: =OFFSET('0_Taula Concentrats'!$A$1,$C11,$AJ$2,1,1) -> 1e-07 | AK11: =OFFSET('0_Taula Concentrats'!$A$1,$C11,$AK$2,1,1) -> 1e-07 | AL11: =OFFSET('0_Taula Concentrats'!$A$1,$C11,$AL$2,1,1) -> 0 | AM11: =OFFSET('0_Taula Concentrats'!$A$1,$C11,$AM$2,1,1) -> 0 | AN11: =IF('II_Plantejar Ració'!$E12>0,IF(CàlculsVL!E11>=0,1,"No"),"") -> 1 | AO11: =IF('II_Plantejar Ració'!$E12>0,IF(CàlculsVL!F11>=0,1,"No"),"") -> 1 | AP11: =IF('II_Plantejar Ració'!$E12>0,IF(CàlculsVL!G11>0,1,"No"),"") -> 1 | AQ11: =IF('II_Plantejar Ració'!$E12>0,IF(CàlculsVL!H11=0,"No",1),"") -> 1 | AR11: =IF('II_Plantejar Ració'!$E12>0,IF(CàlculsVL!I11>0,1,"No"),"") -> 1 | AS11: =IF('II_Plantejar Ració'!$E12>0,IF(CàlculsVL!J11>0,1,"No"),"") -> 1 | AT11: =IF('II_Plantejar Ració'!$E12>0,IF(CàlculsVL!K11>0,1,"No"),"") -> 1 | AU11: =IF('II_Plantejar Ració'!$E12>0,IF(CàlculsVL!L11>0,1,"No"),"") -> 1 | AV11: =IF('II_Plantejar Ració'!$E12>0,IF(CàlculsVL!M11>0,1,"No"),"") -> 1 | AW11: =IF('II_Plantejar Ració'!$E12>0,IF(CàlculsVL!N11>0,1,"No"),"") -> 1 | AX11: =IF('II_Plantejar Ració'!$E12>0,IF(CàlculsVL!O11>0,1,"No"),"") -> 1 | AY11: =IF('II_Plantejar Ració'!$E12>0,IF(CàlculsVL!P11>0,1,"No"),"") -> 1 | AZ11: =IF('II_Plantejar Ració'!$E12>0,IF(CàlculsVL!Q11>0,1,"No"),"") -> 1 | BA11: =IF('II_Plantejar Ració'!$E12>0,IF(CàlculsVL!R11>0,1,"No"),"") -> 1 | BB11: =IF('II_Plantejar Ració'!$E12>0,IF(CàlculsVL!S11>0,1,"No"),"") -> 1 | BC11: =IF('II_Plantejar Ració'!$E12>0,IF(CàlculsVL!T11>0,1,"No"),"") -> 1 | BD11: =IF('II_Plantejar Ració'!$E12>0,IF(CàlculsVL!U11>0,1,"No"),"") -> No | BE11: =IF('II_Plantejar Ració'!$E12>0,IF(CàlculsVL!V11>0,1,"No"),"") -> 1 | BF11: =IF('II_Plantejar Ració'!$E12>0,IF(CàlculsVL!W11>0,1,"No"),"") -> 1 | BG11: =IF('II_Plantejar Ració'!$E12>0,IF(CàlculsVL!X11>0,1,"No"),"") -> 1 | BH11: =IF('II_Plantejar Ració'!$E12>0,IF(CàlculsVL!Y11>0,1,"No"),"") -> 1 | BI11: =IF('II_Plantejar Ració'!$E12>0,IF(CàlculsVL!Z11>0,1,"No"),"") -> 1 | BJ11: =IF('II_Plantejar Ració'!$E12>0,IF(CàlculsVL!AA11>0,1,"No"),"") -> 1 | BK11: =IF('II_Plantejar Ració'!$E12>0,IF(CàlculsVL!AB11>0,1,"No"),"") -> 1 | BL11: =IF('II_Plantejar Ració'!$E12>0,IF(CàlculsVL!AC11>0,1,"No"),"") -> 1 | BM11: =IF('II_Plantejar Ració'!$E12>0,IF(CàlculsVL!AD11>0,1,"No"),"") -> 1 | BN11: =IF('II_Plantejar Ració'!$E12>0,IF(CàlculsVL!AE11>0,1,"No"),"") -> 1 | BO11: =IF('II_Plantejar Ració'!$E12>0,IF(CàlculsVL!AF11>0,1,"No"),"") -> 1 | BP11: =IF('II_Plantejar Ració'!$E12>0,IF(CàlculsVL!AG11>0,1,"No"),"") -> 1 | BQ11: =IF('II_Plantejar Ració'!$E12>0,IF(CàlculsVL!AH11>0,1,"No"),"") -> 1 | BR11: =IF('II_Plantejar Ració'!$E12>0,IF(CàlculsVL!AI11>0,1,"No"),"") -> 1 | BS11: =IF('II_Plantejar Ració'!$E12>0,IF(CàlculsVL!AJ11>0,1,"No"),"") -> 1 | BT11: =IF('II_Plantejar Ració'!$E12>0,IF(CàlculsVL!AK11>0,1,"No"),"") -> 1 | BU11: =IF('II_Plantejar Ració'!$E12>0,IF(CàlculsVL!AL11>0,1,"No"),"") -> No | BV11: =IF('II_Plantejar Ració'!$E12>0,IF(CàlculsVL!AM11>0,1,"No"),"") -> No | BW11: 1 | BX11: 1 | BY11: 1 | BZ11: 1 | CA11: 1 | CB11: 1 | CC11: 1 | CD11: 1 | CE11: 1 | CF11: 1 | CG11: 1 | CH11: 1 | CI11: 1 | CJ11: 1 | CK11: 1 | CL11: 1 | CM11: 1 | CN11: 1 | CO11: 1 | CP11: 1 | CQ11: 1 | CR11: 1 | CS11: 1 | CT11: 1 | CU11: 1 | CV11: 1 | CW11: 1 | CX11: 1 | CY11: 1 | CZ11: 1 | DA11: 1 | DB11: 1 | DC11: 1 | DD11: 1 | DE11: 1
B12: =IF(OFFSET('0_Taula Concentrats'!$A$1,C12,0,1,1)=0,"",OFFSET('0_Taula Concentrats'!$A$1,C12,0,1,1)) -> Ordi bagàs cerveseria fresc | C12: =Ingredients_Racio!K46-1 -> 54 | D12: =OFFSET('0_Taula Concentrats'!$A$1,$C12,$D$2,1,1) -> 20.5 | E12: =OFFSET('0_Taula Concentrats'!$A$1,$C12,$E$2,1,1) -> 0.4951 | F12: =OFFSET('0_Taula Concentrats'!$A$1,$C12,$F$2,1,1) -> 0.8640921799 | G12: =OFFSET('0_Taula Concentrats'!$A$1,$C12,$G$2,1,1) -> 172.9796551 | H12: =OFFSET('0_Taula Concentrats'!$A$1,$C12,$H$2,1,1) -> 53.5641575 | I12: =OFFSET('0_Taula Concentrats'!$A$1,$C12,$I$2,1,1) -> 2 | J12: =OFFSET('0_Taula Concentrats'!$A$1,$C12,$J$2,1,1) -> 1.815 | K12: =OFFSET('0_Taula Concentrats'!$A$1,$C12,$K$2,1,1) -> 4.446 | L12: =OFFSET('0_Taula Concentrats'!$A$1,$C12,$L$2,1,1) -> 1.6 | M12: =OFFSET('0_Taula Concentrats'!$A$1,$C12,$M$2,1,1) -> 0.7 | N12: =OFFSET('0_Taula Concentrats'!$A$1,$C12,$N$2,1,1) -> 1.6 | O12: =OFFSET('0_Taula Concentrats'!$A$1,$C12,$O$2,1,1) -> 0 | P12: =OFFSET('0_Taula Concentrats'!$A$1,$C12,$P$2,1,1) -> 0 | Q12: =OFFSET('0_Taula Concentrats'!$A$1,$C12,$Q$2,1,1) -> 0.08 | R12: =OFFSET('0_Taula Concentrats'!$A$1,$C12,$R$2,1,1) -> 22.2 | S12: =OFFSET('0_Taula Concentrats'!$A$1,$C12,$S$2,1,1) -> 38.5 | T12: =OFFSET('0_Taula Concentrats'!$A$1,$C12,$T$2,1,1) -> 85 | U12: =OFFSET('0_Taula Concentrats'!$A$1,$C12,$U$2,1,1) -> 64 | V12: =OFFSET('0_Taula Concentrats'!$A$1,$C12,$V$2,1,1) -> 0.06 | W12: =OFFSET('0_Taula Concentrats'!$A$1,$C12,$W$2,1,1) -> 0 | X12: =OFFSET('0_Taula Concentrats'!$A$1,$C12,$X$2,1,1) -> 0 | Y12: =OFFSET('0_Taula Concentrats'!$A$1,$C12,$Y$2,1,1) -> 29 | Z12: =OFFSET('0_Taula Concentrats'!$A$1,$C12,$Z$2,1,1) -> 38.7 | AA12: =OFFSET('0_Taula Concentrats'!$A$1,$C12,$AA$2,1,1) -> 300 | AB12: =OFFSET('0_Taula Concentrats'!$A$1,$C12,$AB$2,1,1) -> 129.9487159 | AC12: =OFFSET('0_Taula Concentrats'!$A$1,$C12,$AC$2,1,1) -> 0.6385 | AD12: =OFFSET('0_Taula Concentrats'!$A$1,$C12,$AD$2,1,1) -> 606.575 | AE12: =OFFSET('0_Taula Concentrats'!$A$1,$C12,$AE$2,1,1) -> 86 | AF12: =OFFSET('0_Taula Concentrats'!$A$1,$C12,$AF$2,1,1) -> 150 | AG12: =OFFSET('0_Taula Concentrats'!$A$1,$C12,$AG$2,1,1) -> 525 | AH12: =OFFSET('0_Taula Concentrats'!$A$1,$C12,$AH$2,1,1) -> 206 | AI12: =OFFSET('0_Taula Concentrats'!$A$1,$C12,$AI$2,1,1) -> 47 | AJ12: =OFFSET('0_Taula Concentrats'!$A$1,$C12,$AJ$2,1,1) -> 50 | AK12: =OFFSET('0_Taula Concentrats'!$A$1,$C12,$AK$2,1,1) -> 0.5 | AL12: =OFFSET('0_Taula Concentrats'!$A$1,$C12,$AL$2,1,1) -> 0.5325076887 | AM12: =OFFSET('0_Taula Concentrats'!$A$1,$C12,$AM$2,1,1) -> 380.3273066 | AN12: =IF('II_Plantejar Ració'!$E13>0,IF(CàlculsVL!E12>=0,1,"No"),"") -> 1 | AO12: =IF('II_Plantejar Ració'!$E13>0,IF(CàlculsVL!F12>=0,1,"No"),"") -> 1 | AP12: =IF('II_Plantejar Ració'!$E13>0,IF(CàlculsVL!G12>0,1,"No"),"") -> 1 | AQ12: =IF('II_Plantejar Ració'!$E13>0,IF(CàlculsVL!H12=0,"No",1),"") -> 1 | AR12: =IF('II_Plantejar Ració'!$E13>0,IF(CàlculsVL!I12>0,1,"No"),"") -> 1 | AS12: =IF('II_Plantejar Ració'!$E13>0,IF(CàlculsVL!J12>0,1,"No"),"") -> 1 | AT12: =IF('II_Plantejar Ració'!$E13>0,IF(CàlculsVL!K12>0,1,"No"),"") -> 1 | AU12: =IF('II_Plantejar Ració'!$E13>0,IF(CàlculsVL!L12>0,1,"No"),"") -> 1 | AV12: =IF('II_Plantejar Ració'!$E13>0,IF(CàlculsVL!M12>0,1,"No"),"") -> 1 | AW12: =IF('II_Plantejar Ració'!$E13>0,IF(CàlculsVL!N12>0,1,"No"),"") -> 1 | AX12: =IF('II_Plantejar Ració'!$E13>0,IF(CàlculsVL!O12>0,1,"No"),"") -> No | AY12: =IF('II_Plantejar Ració'!$E13>0,IF(CàlculsVL!P12>0,1,"No"),"") -> No | AZ12: =IF('II_Plantejar Ració'!$E13>0,IF(CàlculsVL!Q12>0,1,"No"),"") -> 1 | BA12: =IF('II_Plantejar Ració'!$E13>0,IF(CàlculsVL!R12>0,1,"No"),"") -> 1 | BB12: =IF('II_Plantejar Ració'!$E13>0,IF(CàlculsVL!S12>0,1,"No"),"") -> 1 | BC12: =IF('II_Plantejar Ració'!$E13>0,IF(CàlculsVL!T12>0,1,"No"),"") -> 1 | BD12: =IF('II_Plantejar Ració'!$E13>0,IF(CàlculsVL!U12>0,1,"No"),"") -> 1 | BE12: =IF('II_Plantejar Ració'!$E13>0,IF(CàlculsVL!V12>0,1,"No"),"") -> 1 | BF12: =IF('II_Plantejar Ració'!$E13>0,IF(CàlculsVL!W12>0,1,"No"),"") -> No | BG12: =IF('II_Plantejar Ració'!$E13>0,IF(CàlculsVL!X12>0,1,"No"),"") -> No | BH12: =IF('II_Plantejar Ració'!$E13>0,IF(CàlculsVL!Y12>0,1,"No"),"") -> 1 | BI12: =IF('II_Plantejar Ració'!$E13>0,IF(CàlculsVL!Z12>0,1,"No"),"") -> 1 | BJ12: =IF('II_Plantejar Ració'!$E13>0,IF(CàlculsVL!AA12>0,1,"No"),"") -> 1 | BK12: =IF('II_Plantejar Ració'!$E13>0,IF(CàlculsVL!AB12>0,1,"No"),"") -> 1 | BL12: =IF('II_Plantejar Ració'!$E13>0,IF(CàlculsVL!AC12>0,1,"No"),"") -> 1 | BM12: =IF('II_Plantejar Ració'!$E13>0,IF(CàlculsVL!AD12>0,1,"No"),"") -> 1 | BN12: =IF('II_Plantejar Ració'!$E13>0,IF(CàlculsVL!AE12>0,1,"No"),"") -> 1 | BO12: =IF('II_Plantejar Ració'!$E13>0,IF(CàlculsVL!AF12>0,1,"No"),"") -> 1 | BP12: =IF('II_Plantejar Ració'!$E13>0,IF(CàlculsVL!AG12>0,1,"No"),"") -> 1 | BQ12: =IF('II_Plantejar Ració'!$E13>0,IF(CàlculsVL!AH12>0,1,"No"),"") -> 1 | BR12: =IF('II_Plantejar Ració'!$E13>0,IF(CàlculsVL!AI12>0,1,"No"),"") -> 1 | BS12: =IF('II_Plantejar Ració'!$E13>0,IF(CàlculsVL!AJ12>0,1,"No"),"") -> 1 | BT12: =IF('II_Plantejar Ració'!$E13>0,IF(CàlculsVL!AK12>0,1,"No"),"") -> 1 | BU12: =IF('II_Plantejar Ració'!$E13>0,IF(CàlculsVL!AL12>0,1,"No"),"") -> 1 | BV12: =IF('II_Plantejar Ració'!$E13>0,IF(CàlculsVL!AM12>0,1,"No"),"") -> 1 | BW12: 1 | BX12: 1 | BY12: 1 | BZ12: 1 | CA12: 1 | CB12: 1 | CC12: 1 | CD12: 1 | CE12: 1 | CF12: 1 | CG12: 1 | CH12: 1 | CI12: 1 | CJ12: 1 | CK12: 1 | CL12: 1 | CM12: 1 | CN12: 1 | CO12: 1 | CP12: 1 | CQ12: 1 | CR12: 1 | CS12: 1 | CT12: 1 | CU12: 1 | CV12: 1 | CW12: 1 | CX12: 1 | CY12: 1 | CZ12: 1 | DA12: 1 | DB12: 1 | DC12: 1 | DD12: 1 | DE12: 1
B13: =IF(OFFSET('0_Taula Concentrats'!$A$1,C13,0,1,1)=0,"",OFFSET('0_Taula Concentrats'!$A$1,C13,0,1,1)) -> Colza, turtó | C13: =Ingredients_Racio!L46-1 -> 23 | D13: =OFFSET('0_Taula Concentrats'!$A$1,$C13,$D$2,1,1) -> 90 | E13: =OFFSET('0_Taula Concentrats'!$A$1,$C13,$E$2,1,1) -> 0.3125 | F13: =OFFSET('0_Taula Concentrats'!$A$1,$C13,$F$2,1,1) -> 0.958005025 | G13: =OFFSET('0_Taula Concentrats'!$A$1,$C13,$G$2,1,1) -> 155.8627084 | H13: =OFFSET('0_Taula Concentrats'!$A$1,$C13,$H$2,1,1) -> 193.047004 | I13: =OFFSET('0_Taula Concentrats'!$A$1,$C13,$I$2,1,1) -> 2 | J13: =OFFSET('0_Taula Concentrats'!$A$1,$C13,$J$2,1,1) -> 4.62 | K13: =OFFSET('0_Taula Concentrats'!$A$1,$C13,$K$2,1,1) -> 8.804 | L13: =OFFSET('0_Taula Concentrats'!$A$1,$C13,$L$2,1,1) -> 5.15 | M13: =OFFSET('0_Taula Concentrats'!$A$1,$C13,$M$2,1,1) -> 12.4 | N13: =OFFSET('0_Taula Concentrats'!$A$1,$C13,$N$2,1,1) -> 0.75 | O13: =OFFSET('0_Taula Concentrats'!$A$1,$C13,$O$2,1,1) -> 0 | P13: =OFFSET('0_Taula Concentrats'!$A$1,$C13,$P$2,1,1) -> 0 | Q13: =OFFSET('0_Taula Concentrats'!$A$1,$C13,$Q$2,1,1) -> 0.1 | R13: =OFFSET('0_Taula Concentrats'!$A$1,$C13,$R$2,1,1) -> 5.5 | S13: =OFFSET('0_Taula Concentrats'!$A$1,$C13,$S$2,1,1) -> 63.5 | T13: =OFFSET('0_Taula Concentrats'!$A$1,$C13,$T$2,1,1) -> 64.5 | U13: =OFFSET('0_Taula Concentrats'!$A$1,$C13,$U$2,1,1) -> 62 | V13: =OFFSET('0_Taula Concentrats'!$A$1,$C13,$V$2,1,1) -> 0.07 | W13: =OFFSET('0_Taula Concentrats'!$A$1,$C13,$W$2,1,1) -> 0 | X13: =OFFSET('0_Taula Concentrats'!$A$1,$C13,$X$2,1,1) -> 0 | Y13: =OFFSET('0_Taula Concentrats'!$A$1,$C13,$Y$2,1,1) -> 20 | Z13: =OFFSET('0_Taula Concentrats'!$A$1,$C13,$Z$2,1,1) -> 20.8 | AA13: =OFFSET('0_Taula Concentrats'!$A$1,$C13,$AA$2,1,1) -> 418 | AB13: =OFFSET('0_Taula Concentrats'!$A$1,$C13,$AB$2,1,1) -> 103.9119909 | AC13: =OFFSET('0_Taula Concentrats'!$A$1,$C13,$AC$2,1,1) -> 0.7842 | AD13: =OFFSET('0_Taula Concentrats'!$A$1,$C13,$AD$2,1,1) -> 704.9958 | AE13: =OFFSET('0_Taula Concentrats'!$A$1,$C13,$AE$2,1,1) -> 26 | AF13: =OFFSET('0_Taula Concentrats'!$A$1,$C13,$AF$2,1,1) -> 120 | AG13: =OFFSET('0_Taula Concentrats'!$A$1,$C13,$AG$2,1,1) -> 287 | AH13: =OFFSET('0_Taula Concentrats'!$A$1,$C13,$AH$2,1,1) -> 182 | AI13: =OFFSET('0_Taula Concentrats'!$A$1,$C13,$AI$2,1,1) -> 74 | AJ13: =OFFSET('0_Taula Concentrats'!$A$1,$C13,$AJ$2,1,1) -> 101 | AK13: =OFFSET('0_Taula Concentrats'!$A$1,$C13,$AK$2,1,1) -> 0.5 | AL13: =OFFSET('0_Taula Concentrats'!$A$1,$C13,$AL$2,1,1) -> 0.7277738088 | AM13: =OFFSET('0_Taula Concentrats'!$A$1,$C13,$AM$2,1,1) -> 565.2052521 | AN13: =IF('II_Plantejar Ració'!$E14>0,IF(CàlculsVL!E13>=0,1,"No"),"") -> 1 | AO13: =IF('II_Plantejar Ració'!$E14>0,IF(CàlculsVL!F13>=0,1,"No"),"") -> 1 | AP13: =IF('II_Plantejar Ració'!$E14>0,IF(CàlculsVL!G13>0,1,"No"),"") -> 1 | AQ13: =IF('II_Plantejar Ració'!$E14>0,IF(CàlculsVL!H13=0,"No",1),"") -> 1 | AR13: =IF('II_Plantejar Ració'!$E14>0,IF(CàlculsVL!I13>0,1,"No"),"") -> 1 | AS13: =IF('II_Plantejar Ració'!$E14>0,IF(CàlculsVL!J13>0,1,"No"),"") -> 1 | AT13: =IF('II_Plantejar Ració'!$E14>0,IF(CàlculsVL!K13>0,1,"No"),"") -> 1 | AU13: =IF('II_Plantejar Ració'!$E14>0,IF(CàlculsVL!L13>0,1,"No"),"") -> 1 | AV13: =IF('II_Plantejar Ració'!$E14>0,IF(CàlculsVL!M13>0,1,"No"),"") -> 1 | AW13: =IF('II_Plantejar Ració'!$E14>0,IF(CàlculsVL!N13>0,1,"No"),"") -> 1 | AX13: =IF('II_Plantejar Ració'!$E14>0,IF(CàlculsVL!O13>0,1,"No"),"") -> No | AY13: =IF('II_Plantejar Ració'!$E14>0,IF(CàlculsVL!P13>0,1,"No"),"") -> No | AZ13: =IF('II_Plantejar Ració'!$E14>0,IF(CàlculsVL!Q13>0,1,"No"),"") -> 1 | BA13: =IF('II_Plantejar Ració'!$E14>0,IF(CàlculsVL!R13>0,1,"No"),"") -> 1 | BB13: =IF('II_Plantejar Ració'!$E14>0,IF(CàlculsVL!S13>0,1,"No"),"") -> 1 | BC13: =IF('II_Plantejar Ració'!$E14>0,IF(CàlculsVL!T13>0,1,"No"),"") -> 1 | BD13: =IF('II_Plantejar Ració'!$E14>0,IF(CàlculsVL!U13>0,1,"No"),"") -> 1 | BE13: =IF('II_Plantejar Ració'!$E14>0,IF(CàlculsVL!V13>0,1,"No"),"") -> 1 | BF13: =IF('II_Plantejar Ració'!$E14>0,IF(CàlculsVL!W13>0,1,"No"),"") -> No | BG13: =IF('II_Plantejar Ració'!$E14>0,IF(CàlculsVL!X13>0,1,"No"),"") -> No | BH13: =IF('II_Plantejar Ració'!$E14>0,IF(CàlculsVL!Y13>0,1,"No"),"") -> 1 | BI13: =IF('II_Plantejar Ració'!$E14>0,IF(CàlculsVL!Z13>0,1,"No"),"") -> 1 | BJ13: =IF('II_Plantejar Ració'!$E14>0,IF(CàlculsVL!AA13>0,1,"No"),"") -> 1 | BK13: =IF('II_Plantejar Ració'!$E14>0,IF(CàlculsVL!AB13>0,1,"No"),"") -> 1 | BL13: =IF('II_Plantejar Ració'!$E14>0,IF(CàlculsVL!AC13>0,1,"No"),"") -> 1 | BM13: =IF('II_Plantejar Ració'!$E14>0,IF(CàlculsVL!AD13>0,1,"No"),"") -> 1 | BN13: =IF('II_Plantejar Ració'!$E14>0,IF(CàlculsVL!AE13>0,1,"No"),"") -> 1 | BO13: =IF('II_Plantejar Ració'!$E14>0,IF(CàlculsVL!AF13>0,1,"No"),"") -> 1 | BP13: =IF('II_Plantejar Ració'!$E14>0,IF(CàlculsVL!AG13>0,1,"No"),"") -> 1 | BQ13: =IF('II_Plantejar Ració'!$E14>0,IF(CàlculsVL!AH13>0,1,"No"),"") -> 1 | BR13: =IF('II_Plantejar Ració'!$E14>0,IF(CàlculsVL!AI13>0,1,"No"),"") -> 1 | BS13: =IF('II_Plantejar Ració'!$E14>0,IF(CàlculsVL!AJ13>0,1,"No"),"") -> 1 | BT13: =IF('II_Plantejar Ració'!$E14>0,IF(CàlculsVL!AK13>0,1,"No"),"") -> 1 | BU13: =IF('II_Plantejar Ració'!$E14>0,IF(CàlculsVL!AL13>0,1,"No"),"") -> 1 | BV13: =IF('II_Plantejar Ració'!$E14>0,IF(CàlculsVL!AM13>0,1,"No"),"") -> 1 | BW13: =IF(AN13="",0,1) -> 1 | BX13: 1 | BY13: 1 | BZ13: 1 | CA13: 1 | CB13: 1 | CC13: 1 | CD13: 1 | CE13: 1 | CF13: 1 | CG13: =IF(AX13="",0,1) -> 1 | CH13: 1 | CI13: 1 | CJ13: 1 | CK13: 1 | CL13: 1 | CM13: 1 | CN13: 1 | CO13: 1 | CP13: 1 | CQ13: =IF(BH13="",0,1) -> 1 | CR13: 1 | CS13: 1 | CT13: 1 | CU13: 1 | CV13: 1 | CW13: 1 | CX13: 1 | CY13: 1 | CZ13: 1 | DA13: =IF(BR13="",0,1) -> 1 | DB13: 1 | DC13: 1 | DD13: 1 | DE13: 1
B14: =IF(OFFSET('0_Taula Concentrats'!$A$1,C14,0,1,1)=0,"",OFFSET('0_Taula Concentrats'!$A$1,C14,0,1,1)) ->  | C14: =Ingredients_Racio!M46-1 -> 1 | D14: =OFFSET('0_Taula Concentrats'!$A$1,$C14,$D$2,1,1) -> 0 | E14: =OFFSET('0_Taula Concentrats'!$A$1,$C14,$E$2,1,1) -> 0 | F14: =OFFSET('0_Taula Concentrats'!$A$1,$C14,$F$2,1,1) -> 0 | G14: =OFFSET('0_Taula Concentrats'!$A$1,$C14,$G$2,1,1) -> 0 | H14: =OFFSET('0_Taula Concentrats'!$A$1,$C14,$H$2,1,1) -> 0 | I14: =OFFSET('0_Taula Concentrats'!$A$1,$C14,$I$2,1,1) -> 0 | J14: =OFFSET('0_Taula Concentrats'!$A$1,$C14,$J$2,1,1) -> 0 | K14: =OFFSET('0_Taula Concentrats'!$A$1,$C14,$K$2,1,1) -> 0 | L14: =OFFSET('0_Taula Concentrats'!$A$1,$C14,$L$2,1,1) -> 0 | M14: =OFFSET('0_Taula Concentrats'!$A$1,$C14,$M$2,1,1) -> 0 | N14: =OFFSET('0_Taula Concentrats'!$A$1,$C14,$N$2,1,1) -> 0 | O14: =OFFSET('0_Taula Concentrats'!$A$1,$C14,$O$2,1,1) -> 0 | P14: =OFFSET('0_Taula Concentrats'!$A$1,$C14,$P$2,1,1) -> 0 | Q14: =OFFSET('0_Taula Concentrats'!$A$1,$C14,$Q$2,1,1) -> 0 | R14: =OFFSET('0_Taula Concentrats'!$A$1,$C14,$R$2,1,1) -> 0 | S14: =OFFSET('0_Taula Concentrats'!$A$1,$C14,$S$2,1,1) -> 0 | T14: =OFFSET('0_Taula Concentrats'!$A$1,$C14,$T$2,1,1) -> 0 | U14: =OFFSET('0_Taula Concentrats'!$A$1,$C14,$U$2,1,1) -> 0 | V14: =OFFSET('0_Taula Concentrats'!$A$1,$C14,$V$2,1,1) -> 0 | W14: =OFFSET('0_Taula Concentrats'!$A$1,$C14,$W$2,1,1) -> 0 | X14: =OFFSET('0_Taula Concentrats'!$A$1,$C14,$X$2,1,1) -> 0 | Y14: =OFFSET('0_Taula Concentrats'!$A$1,$C14,$Y$2,1,1) -> 0 | Z14: =OFFSET('0_Taula Concentrats'!$A$1,$C14,$Z$2,1,1) -> 0 | AA14: =OFFSET('0_Taula Concentrats'!$A$1,$C14,$AA$2,1,1) -> 0 | AB14: =OFFSET('0_Taula Concentrats'!$A$1,$C14,$AB$2,1,1) -> 0 | AC14: =OFFSET('0_Taula Concentrats'!$A$1,$C14,$AC$2,1,1) -> 0 | AD14: =OFFSET('0_Taula Concentrats'!$A$1,$C14,$AD$2,1,1) -> 0 | AE14: =OFFSET('0_Taula Concentrats'!$A$1,$C14,$AE$2,1,1) -> 0 | AF14: =OFFSET('0_Taula Concentrats'!$A$1,$C14,$AF$2,1,1) -> 0 | AG14: =OFFSET('0_Taula Concentrats'!$A$1,$C14,$AG$2,1,1) -> 0 | AH14: =OFFSET('0_Taula Concentrats'!$A$1,$C14,$AH$2,1,1) -> 0 | AI14: =OFFSET('0_Taula Concentrats'!$A$1,$C14,$AI$2,1,1) -> 0 | AJ14: =OFFSET('0_Taula Concentrats'!$A$1,$C14,$AJ$2,1,1) -> 0 | AK14: =OFFSET('0_Taula Concentrats'!$A$1,$C14,$AK$2,1,1) -> 0 | AL14: =OFFSET('0_Taula Concentrats'!$A$1,$C14,$AL$2,1,1) -> 0 | AM14: =OFFSET('0_Taula Concentrats'!$A$1,$C14,$AM$2,1,1) -> 0 | AN14: =IF('II_Plantejar Ració'!$E15>0,IF(CàlculsVL!E14>=0,1,"No"),"") ->  | AO14: =IF('II_Plantejar Ració'!$E15>0,IF(CàlculsVL!F14>=0,1,"No"),"") ->  | AP14: =IF('II_Plantejar Ració'!$E15>0,IF(CàlculsVL!G14>0,1,"No"),"") ->  | AQ14: =IF('II_Plantejar Ració'!$E15>0,IF(CàlculsVL!H14=0,"No",1),"") ->  | AR14: =IF('II_Plantejar Ració'!$E15>0,IF(CàlculsVL!I14>0,1,"No"),"") ->  | AS14: =IF('II_Plantejar Ració'!$E15>0,IF(CàlculsVL!J14>0,1,"No"),"") ->  | AT14: =IF('II_Plantejar Ració'!$E15>0,IF(CàlculsVL!K14>0,1,"No"),"") ->  | AU14: =IF('II_Plantejar Ració'!$E15>0,IF(CàlculsVL!L14>0,1,"No"),"") ->  | AV14: =IF('II_Plantejar Ració'!$E15>0,IF(CàlculsVL!M14>0,1,"No"),"") ->  | AW14: =IF('II_Plantejar Ració'!$E15>0,IF(CàlculsVL!N14>0,1,"No"),"") ->  | AX14: =IF('II_Plantejar Ració'!$E15>0,IF(CàlculsVL!O14>0,1,"No"),"") ->  | AY14: =IF('II_Plantejar Ració'!$E15>0,IF(CàlculsVL!P14>0,1,"No"),"") ->  | AZ14: =IF('II_Plantejar Ració'!$E15>0,IF(CàlculsVL!Q14>0,1,"No"),"") ->  | BA14: =IF('II_Plantejar Ració'!$E15>0,IF(CàlculsVL!R14>0,1,"No"),"") ->  | BB14: =IF('II_Plantejar Ració'!$E15>0,IF(CàlculsVL!S14>0,1,"No"),"") ->  | BC14: =IF('II_Plantejar Ració'!$E15>0,IF(CàlculsVL!T14>0,1,"No"),"") ->  | BD14: =IF('II_Plantejar Ració'!$E15>0,IF(CàlculsVL!U14>0,1,"No"),"") ->  | BE14: =IF('II_Plantejar Ració'!$E15>0,IF(CàlculsVL!V14>0,1,"No"),"") ->  | BF14: =IF('II_Plantejar Ració'!$E15>0,IF(CàlculsVL!W14>0,1,"No"),"") ->  | BG14: =IF('II_Plantejar Ració'!$E15>0,IF(CàlculsVL!X14>0,1,"No"),"") ->  | BH14: =IF('II_Plantejar Ració'!$E15>0,IF(CàlculsVL!Y14>0,1,"No"),"") ->  | BI14: =IF('II_Plantejar Ració'!$E15>0,IF(CàlculsVL!Z14>0,1,"No"),"") ->  | BJ14: =IF('II_Plantejar Ració'!$E15>0,IF(CàlculsVL!AA14>0,1,"No"),"") ->  | BK14: =IF('II_Plantejar Ració'!$E15>0,IF(CàlculsVL!AB14>0,1,"No"),"") ->  | BL14: =IF('II_Plantejar Ració'!$E15>0,IF(CàlculsVL!AC14>0,1,"No"),"") ->  | BM14: =IF('II_Plantejar Ració'!$E15>0,IF(CàlculsVL!AD14>0,1,"No"),"") ->  | BN14: =IF('II_Plantejar Ració'!$E15>0,IF(CàlculsVL!AE14>0,1,"No"),"") ->  | BO14: =IF('II_Plantejar Ració'!$E15>0,IF(CàlculsVL!AF14>0,1,"No"),"") ->  | BP14: =IF('II_Plantejar Ració'!$E15>0,IF(CàlculsVL!AG14>0,1,"No"),"") ->  | BQ14: =IF('II_Plantejar Ració'!$E15>0,IF(CàlculsVL!AH14>0,1,"No"),"") ->  | BR14: =IF('II_Plantejar Ració'!$E15>0,IF(CàlculsVL!AI14>0,1,"No"),"") ->  | BS14: =IF('II_Plantejar Ració'!$E15>0,IF(CàlculsVL!AJ14>0,1,"No"),"") ->  | BT14: =IF('II_Plantejar Ració'!$E15>0,IF(CàlculsVL!AK14>0,1,"No"),"") ->  | BU14: =IF('II_Plantejar Ració'!$E15>0,IF(CàlculsVL!AL14>0,1,"No"),"") ->  | BV14: =IF('II_Plantejar Ració'!$E15>0,IF(CàlculsVL!AM14>0,1,"No"),"") ->  | BW14: 0 | BX14: 0 | BY14: 0 | BZ14: 0 | CA14: 0 | CB14: 0 | CC14: 0 | CD14: 0 | CE14: 0 | CF14: 0 | CG14: 0 | CH14: 0 | CI14: 0 | CJ14: 0 | CK14: 0 | CL14: 0 | CM14: 0 | CN14: 0 | CO14: 0 | CP14: 0 | CQ14: 0 | CR14: 0 | CS14: 0 | CT14: 0 | CU14: 0 | CV14: 0 | CW14: 0 | CX14: 0 | CY14: 0 | CZ14: 0 | DA14: 0 | DB14: 0 | DC14: 0 | DD14: 0 | DE14: 0
A15: MINERALS | B15: =IF(OFFSET('0_Taula Minerals-aa'!$A$1,C15,0,1,1)=0,"",OFFSET('0_Taula Minerals-aa'!$A$1,C15,0,1,1)) -> Carbonat càlcic | C15: =Ingredients_Racio!N46-1 -> 3 | D15: =OFFSET('0_Taula Minerals-aa'!$A$1,$C15,D2,1,1) -> 98 | E15: =OFFSET('0_Taula Minerals-aa'!$A$1,$C15,E2,1,1) -> 0 | F15: =OFFSET('0_Taula Minerals-aa'!$A$1,$C15,F2,1,1) -> 0 | G15: =OFFSET('0_Taula Minerals-aa'!$A$1,$C15,G2,1,1) -> 0 | H15: =OFFSET('0_Taula Minerals-aa'!$A$1,$C15,H2,1,1) -> 0 | I15: =OFFSET('0_Taula Minerals-aa'!$A$1,$C15,I2,1,1) -> 0 | J15: =OFFSET('0_Taula Minerals-aa'!$A$1,$C15,J2,1,1) -> 145.54 | K15: =OFFSET('0_Taula Minerals-aa'!$A$1,$C15,K2,1,1) -> 0 | L15: =OFFSET('0_Taula Minerals-aa'!$A$1,$C15,L$2,1,1) -> 14 | M15: =OFFSET('0_Taula Minerals-aa'!$A$1,$C15,M$2,1,1) -> 0.7 | N15: =OFFSET('0_Taula Minerals-aa'!$A$1,$C15,N$2,1,1) -> 0.7 | O15: =OFFSET('0_Taula Minerals-aa'!$A$1,$C15,O$2,1,1) -> 0.7 | P15: =OFFSET('0_Taula Minerals-aa'!$A$1,$C15,P$2,1,1) -> 0.2 | Q15: =OFFSET('0_Taula Minerals-aa'!$A$1,$C15,Q$2,1,1) -> 0 | R15: =OFFSET('0_Taula Minerals-aa'!$A$1,$C15,R$2,1,1) -> 12 | S15: =OFFSET('0_Taula Minerals-aa'!$A$1,$C15,S$2,1,1) -> 0 | T15: =OFFSET('0_Taula Minerals-aa'!$A$1,$C15,T$2,1,1) -> 0 | U15: =OFFSET('0_Taula Minerals-aa'!$A$1,$C15,U$2,1,1) -> 0 | V15: =OFFSET('0_Taula Minerals-aa'!$A$1,$C15,V$2,1,1) -> 0 | W15: =OFFSET('0_Taula Minerals-aa'!$A$1,$C15,W$2,1,1) -> 0 | X15: =OFFSET('0_Taula Minerals-aa'!$A$1,$C15,X$2,1,1) -> 0 | Y15: =OFFSET('0_Taula Minerals-aa'!$A$1,$C15,Y$2,1,1) -> 0 | Z15: =OFFSET('0_Taula Minerals-aa'!$A$1,$C15,Z$2,1,1) -> 0 | AA15: =OFFSET('0_Taula Minerals-aa'!$A$1,$C15,AA$2,1,1) -> 0 | AB15: =OFFSET('0_Taula Minerals-aa'!$A$1,$C15,AB$2,1,1) -> 0 | AC15: =OFFSET('0_Taula Minerals-aa'!$A$1,$C15,AC$2,1,1) -> 0 | AD15: =OFFSET('0_Taula Minerals-aa'!$A$1,$C15,AD$2,1,1) -> 0 | AE15: =OFFSET('0_Taula Minerals-aa'!$A$1,$C15,AE$2,1,1) -> 0 | AF15: =OFFSET('0_Taula Minerals-aa'!$A$1,$C15,AF$2,1,1) -> 0 | AG15: =OFFSET('0_Taula Minerals-aa'!$A$1,$C15,AG$2,1,1) -> 0 | AH15: =OFFSET('0_Taula Minerals-aa'!$A$1,$C15,AH$2,1,1) -> 0 | AI15: =OFFSET('0_Taula Minerals-aa'!$A$1,$C15,AI$2,1,1) -> 0 | AJ15: =OFFSET('0_Taula Minerals-aa'!$A$1,$C15,AJ$2,1,1) -> 955 | AK15: =OFFSET('0_Taula Minerals-aa'!$A$1,$C15,AK$2,1,1) -> 0 | AL15: =OFFSET('0_Taula Minerals-aa'!$A$1,$C15,AL$2,1,1) -> 0 | AM15: =OFFSET('0_Taula Minerals-aa'!$A$1,$C15,AM$2,1,1) -> 0 | AN15: =SUM(AN3:AN14) -> 11 | AO15: =SUM(AO3:AO14) -> 11 | AP15: =SUM(AP3:AP14) -> 11 | AQ15: 11 | AR15: 11 | AS15: 11 | AT15: 11 | AU15: 8 | AV15: 6 | AW15: 6 | AX15: 1 | AY15: 1 | AZ15: 5 | BA15: 6 | BB15: 6 | BC15: 6 | BD15: 6 | BE15: 5 | BF15: 3 | BG15: 3 | BH15: 6 | BI15: 11 | BJ15: 11 | BK15: 11 | BL15: 11 | BM15: 11 | BN15: 11 | BO15: 11 | BP15: 11 | BQ15: 11 | BR15: 10 | BS15: 11 | BT15: 5 | BU15: 10 | BV15: 10 | BW15: 11 | BX15: 11 | BY15: 11 | BZ15: 11 | CA15: 11 | CB15: 11 | CC15: 11 | CD15: 11 | CE15: 11 | CF15: 11 | CG15: 11 | CH15: 11 | CI15: 11 | CJ15: 11 | CK15: 11 | CL15: 11 | CM15: 11 | CN15: 11 | CO15: 11 | CP15: 11 | CQ15: 11 | CR15: 11 | CS15: 11 | CT15: 11 | CU15: 11 | CV15: 11 | CW15: 11 | CX15: =SUM(CX3:CX12) -> 10 | CY15: 10 | CZ15: 10 | DA15: 10 | DB15: 10 | DC15: 10 | DD15: 10 | DE15: 10
B16: =IF(OFFSET('0_Taula Minerals-aa'!$A$1,C16,0,1,1)=0,"",OFFSET('0_Taula Minerals-aa'!$A$1,C16,0,1,1)) -> Fosfat bicàlcic | C16: =Ingredients_Racio!O46-1 -> 10 | D16: =OFFSET('0_Taula Minerals-aa'!$A$1,$C16,D2,1,1) -> 98.8 | E16: =OFFSET('0_Taula Minerals-aa'!$A$1,$C16,E2,1,1) -> 0 | F16: =OFFSET('0_Taula Minerals-aa'!$A$1,$C16,F2,1,1) -> 0 | G16: =OFFSET('0_Taula Minerals-aa'!$A$1,$C16,G2,1,1) -> 0 | H16: =OFFSET('0_Taula Minerals-aa'!$A$1,$C16,H2,1,1) -> 0 | I16: =OFFSET('0_Taula Minerals-aa'!$A$1,$C16,I2,1,1) -> 0 | J16: =OFFSET('0_Taula Minerals-aa'!$A$1,$C16,J2,1,1) -> 244 | K16: =OFFSET('0_Taula Minerals-aa'!$A$1,$C16,K2,1,1) -> 122.4 | L16: =OFFSET('0_Taula Minerals-aa'!$A$1,$C16,L$2,1,1) -> 5 | M16: =OFFSET('0_Taula Minerals-aa'!$A$1,$C16,M$2,1,1) -> 1.2 | N16: =OFFSET('0_Taula Minerals-aa'!$A$1,$C16,N$2,1,1) -> 0.8 | O16: =OFFSET('0_Taula Minerals-aa'!$A$1,$C16,O$2,1,1) -> 11 | P16: =OFFSET('0_Taula Minerals-aa'!$A$1,$C16,P$2,1,1) -> 0.4 | Q16: =OFFSET('0_Taula Minerals-aa'!$A$1,$C16,Q$2,1,1) -> 0 | R16: =OFFSET('0_Taula Minerals-aa'!$A$1,$C16,R$2,1,1) -> 15 | S16: =OFFSET('0_Taula Minerals-aa'!$A$1,$C16,S$2,1,1) -> 0 | T16: =OFFSET('0_Taula Minerals-aa'!$A$1,$C16,T$2,1,1) -> 0 | U16: =OFFSET('0_Taula Minerals-aa'!$A$1,$C16,U$2,1,1) -> 0 | V16: =OFFSET('0_Taula Minerals-aa'!$A$1,$C16,V$2,1,1) -> 0 | W16: =OFFSET('0_Taula Minerals-aa'!$A$1,$C16,W$2,1,1) -> 0 | X16: =OFFSET('0_Taula Minerals-aa'!$A$1,$C16,X$2,1,1) -> 0 | Y16: =OFFSET('0_Taula Minerals-aa'!$A$1,$C16,Y$2,1,1) -> 0 | Z16: =OFFSET('0_Taula Minerals-aa'!$A$1,$C16,Z$2,1,1) -> 0 | AA16: =OFFSET('0_Taula Minerals-aa'!$A$1,$C16,AA$2,1,1) -> 0 | AB16: =OFFSET('0_Taula Minerals-aa'!$A$1,$C16,AB$2,1,1) -> 0 | AC16: =OFFSET('0_Taula Minerals-aa'!$A$1,$C16,AC$2,1,1) -> 0 | AD16: =OFFSET('0_Taula Minerals-aa'!$A$1,$C16,AD$2,1,1) -> 0 | AE16: =OFFSET('0_Taula Minerals-aa'!$A$1,$C16,AE$2,1,1) -> 0 | AF16: =OFFSET('0_Taula Minerals-aa'!$A$1,$C16,AF$2,1,1) -> 0 | AG16: =OFFSET('0_Taula Minerals-aa'!$A$1,$C16,AG$2,1,1) -> 0 | AH16: =OFFSET('0_Taula Minerals-aa'!$A$1,$C16,AH$2,1,1) -> 0 | AI16: =OFFSET('0_Taula Minerals-aa'!$A$1,$C16,AI$2,1,1) -> 0 | AJ16: =OFFSET('0_Taula Minerals-aa'!$A$1,$C16,AJ$2,1,1) -> 836 | AK16: =OFFSET('0_Taula Minerals-aa'!$A$1,$C16,AK$2,1,1) -> 0 | AL16: =OFFSET('0_Taula Minerals-aa'!$A$1,$C16,AL$2,1,1) -> 0 | AM16: =OFFSET('0_Taula Minerals-aa'!$A$1,$C16,AM$2,1,1) -> 0 | AN16: =IF(AN15/BW15=1,"",AN2) ->  | AU16: =IF(AU15/CD15=1,"", AU2) -> Mg | AV16: K | AW16: Na | AX16: S | AY16: Cl | AZ16: Co | BA16: Cu | BB16: Mn | BC16: Zn | BD16: Midó | BE16: Se | BF16: Vit A | BG16: Vit D | BH16: Vit E | BO16: FB | BP16: NDF | BQ16: ADF | BS16: cendres | BT16: Mo
B17: =IF(OFFSET('0_Taula Minerals-aa'!$A$1,C17,0,1,1)=0,"",OFFSET('0_Taula Minerals-aa'!$A$1,C17,0,1,1)) ->  | C17: =Ingredients_Racio!P46-1 -> 1 | D17: =OFFSET('0_Taula Minerals-aa'!$A$1,$C17,D2,1,1) -> 0 | E17: =OFFSET('0_Taula Minerals-aa'!$A$1,$C17,E2,1,1) -> 0 | F17: =OFFSET('0_Taula Minerals-aa'!$A$1,$C17,F2,1,1) -> 0 | G17: =OFFSET('0_Taula Minerals-aa'!$A$1,$C17,G2,1,1) -> 0 | H17: =OFFSET('0_Taula Minerals-aa'!$A$1,$C17,H2,1,1) -> 0 | I17: =OFFSET('0_Taula Minerals-aa'!$A$1,$C17,I2,1,1) -> 0 | J17: =OFFSET('0_Taula Minerals-aa'!$A$1,$C17,J2,1,1) -> 0 | K17: =OFFSET('0_Taula Minerals-aa'!$A$1,$C17,K2,1,1) -> 0 | L17: =OFFSET('0_Taula Minerals-aa'!$A$1,$C17,L$2,1,1) -> 0 | M17: =OFFSET('0_Taula Minerals-aa'!$A$1,$C17,M$2,1,1) -> 0 | N17: =OFFSET('0_Taula Minerals-aa'!$A$1,$C17,N$2,1,1) -> 0 | O17: =OFFSET('0_Taula Minerals-aa'!$A$1,$C17,O$2,1,1) -> 0 | P17: =OFFSET('0_Taula Minerals-aa'!$A$1,$C17,P$2,1,1) -> 0 | Q17: =OFFSET('0_Taula Minerals-aa'!$A$1,$C17,Q$2,1,1) -> 0 | R17: =OFFSET('0_Taula Minerals-aa'!$A$1,$C17,R$2,1,1) -> 0 | S17: =OFFSET('0_Taula Minerals-aa'!$A$1,$C17,S$2,1,1) -> 0 | T17: =OFFSET('0_Taula Minerals-aa'!$A$1,$C17,T$2,1,1) -> 0 | U17: =OFFSET('0_Taula Minerals-aa'!$A$1,$C17,U$2,1,1) -> 0 | V17: =OFFSET('0_Taula Minerals-aa'!$A$1,$C17,V$2,1,1) -> 0 | W17: =OFFSET('0_Taula Minerals-aa'!$A$1,$C17,W$2,1,1) -> 0 | X17: =OFFSET('0_Taula Minerals-aa'!$A$1,$C17,X$2,1,1) -> 0 | Y17: =OFFSET('0_Taula Minerals-aa'!$A$1,$C17,Y$2,1,1) -> 0 | Z17: =OFFSET('0_Taula Minerals-aa'!$A$1,$C17,Z$2,1,1) -> 0 | AA17: =OFFSET('0_Taula Minerals-aa'!$A$1,$C17,AA$2,1,1) -> 0 | AB17: =OFFSET('0_Taula Minerals-aa'!$A$1,$C17,AB$2,1,1) -> 0 | AC17: =OFFSET('0_Taula Minerals-aa'!$A$1,$C17,AC$2,1,1) -> 0 | AD17: =OFFSET('0_Taula Minerals-aa'!$A$1,$C17,AD$2,1,1) -> 0 | AE17: =OFFSET('0_Taula Minerals-aa'!$A$1,$C17,AE$2,1,1) -> 0 | AF17: =OFFSET('0_Taula Minerals-aa'!$A$1,$C17,AF$2,1,1) -> 0 | AG17: =OFFSET('0_Taula Minerals-aa'!$A$1,$C17,AG$2,1,1) -> 0 | AH17: =OFFSET('0_Taula Minerals-aa'!$A$1,$C17,AH$2,1,1) -> 0 | AI17: =OFFSET('0_Taula Minerals-aa'!$A$1,$C17,AI$2,1,1) -> 0 | AJ17: =OFFSET('0_Taula Minerals-aa'!$A$1,$C17,AJ$2,1,1) -> 0 | AK17: =OFFSET('0_Taula Minerals-aa'!$A$1,$C17,AK$2,1,1) -> 0 | AL17: =OFFSET('0_Taula Minerals-aa'!$A$1,$C17,AL$2,1,1) -> 0 | AM17: =OFFSET('0_Taula Minerals-aa'!$A$1,$C17,AM$2,1,1) -> 0
E18: =SUMPRODUCT(E3:E17,'II_Plantejar Ració'!$E$4:$E$18) -> 9.833725264 | F18: =SUMPRODUCT(F3:F17,'II_Plantejar Ració'!$E$4:$E$18) -> 10.42423752 | G18: =SUMPRODUCT(G3:G17,'II_Plantejar Ració'!$E$4:$E$18) -> 1056.391226 | H18: =SUMPRODUCT(H3:H17,'II_Plantejar Ració'!$E$4:$E$18) -> 253.5836818 | I18: =SUMPRODUCT(I3:I17,'II_Plantejar Ració'!$E$4:$E$18)/SUM('II_Plantejar Ració'!$E$4:$E$18) -> 1.696106011 | J18: =SUMPRODUCT(J3:J17,'II_Plantejar Ració'!$E$4:$E$18) -> 194.7265612 | K18: =SUMPRODUCT(K3:K17,'II_Plantejar Ració'!$E$4:$E$18) -> 82.91610786 | L18: =SUMPRODUCT(L3:L17,'II_Plantejar Ració'!$E$4:$E$18) -> 18.14102001 | M18: =SUMPRODUCT(M3:M17,'II_Plantejar Ració'!$E$4:$E$18) -> 38.93297563 | N18: =SUMPRODUCT(N3:N17,'II_Plantejar Ració'!$E$4:$E$18) -> 7.614666253 | O18: =SUMPRODUCT(O3:O17,'II_Plantejar Ració'!$E$4:$E$18) -> 5.632212361 | P18: =SUMPRODUCT(P3:P17,'II_Plantejar Ració'!$E$4:$E$18) -> 0.2652958233 | Q18: =SUMPRODUCT(Q3:Q17,'II_Plantejar Ració'!$E$4:$E$18) -> 0.2257474484 | R18: =SUMPRODUCT(R3:R17,'II_Plantejar Ració'!$E$4:$E$18) -> 58.91941037 | S18: =SUMPRODUCT(S3:S17,'II_Plantejar Ració'!$E$4:$E$18) -> 121.790442 | T18: =SUMPRODUCT(T3:T17,'II_Plantejar Ració'!$E$4:$E$18) -> 183.4538377 | U18: =SUMPRODUCT(U3:U17,'II_Plantejar Ració'!$E$4:$E$18) -> 815.0998678 | V18: =SUMPRODUCT(V3:V17,'II_Plantejar Ració'!$E$4:$E$18) -> 0.1626757405 | W18: =SUMPRODUCT(W3:W17,'II_Plantejar Ració'!$E$4:$E$18) -> 90661.50733 | X18: =SUMPRODUCT(X3:X17,'II_Plantejar Ració'!$E$4:$E$18) -> 249.4192955 | Y18: =SUMPRODUCT(Y3:Y17,'II_Plantejar Ració'!$E$4:$E$18) -> 85.20202644 | Z18: =SUMPRODUCT(Z3:Z17,'II_Plantejar Ració'!$E$4:$E$18) -> 447.8728954 | AA18: =SUMPRODUCT(AA3:AA17,'II_Plantejar Ració'!$E$4:$E$18) -> 1991.526859 | AB18: =SUMPRODUCT(AB3:AB17,'II_Plantejar Ració'!$E$4:$E$18) -> 521.7934566 | AC18: =SUMPRODUCT(AC3:AC17,'II_Plantejar Ració'!$E$4:$E$18)/SUM('II_Plantejar Ració'!$E$4:$E$18) -> 0.6115266095 | AD18: =SUMPRODUCT(AD3:AD17,'II_Plantejar Ració'!$E$4:$E$18) -> 7111.281696 | AE18: =SUMPRODUCT(AE3:AE17,'II_Plantejar Ració'!$E$4:$E$18) -> 617.0494034 | AF18: =SUMPRODUCT(AF3:AF17,'II_Plantejar Ració'!$E$4:$E$18) -> 3222.716413 | AG18: =SUMPRODUCT(AG3:AG17,'II_Plantejar Ració'!$E$4:$E$18) -> 6008.737985 | AH18: =SUMPRODUCT(AH3:AH17,'II_Plantejar Ració'!$E$4:$E$18) -> 3431.463428 | AI18: =SUMPRODUCT(AI3:AI17,'II_Plantejar Ració'!$E$4:$E$18) -> 442.6733471 | AJ18: =SUMPRODUCT(AJ3:AJ17,'II_Plantejar Ració'!$E$4:$E$18) -> 1753.298064 | AK18: =SUMPRODUCT(AK3:AK17,'II_Plantejar Ració'!$E$4:$E$18) -> 1.477204029 | AL18: =SUMPRODUCT(AL3:AL17,'II_Plantejar Ració'!$E$4:$E$18)/SUM('II_Plantejar Ració'!$E$4:$E$18) -> 0.6576395451 | AM18: =SUMPRODUCT(AM3:AM17,'II_Plantejar Ració'!$E$4:$E$18) -> 5522.764015
E19: =SUMPRODUCT(E7:E12,'II_Plantejar Ració'!$E$8:$E$13) -> 1.801553562 | F19: =SUMPRODUCT(F7:F17,'II_Plantejar Ració'!$E$8:$E$18) -> 5.004630488 | G19: =SUMPRODUCT(G7:G17,'II_Plantejar Ració'!$E$8:$E$18) -> 656.5846075 | H19: =SUMPRODUCT(H7:H17,'II_Plantejar Ració'!$E$8:$E$18) -> 206.4740649 | I19: =SUMPRODUCT(I7:I17,'II_Plantejar Ració'!$E$8:$E$18) -> 10.12111305 | J19: =SUMPRODUCT(J7:J17,'II_Plantejar Ració'!$E$8:$E$18) -> 185.759147 | K19: =SUMPRODUCT(K7:K17,'II_Plantejar Ració'!$E$8:$E$18) -> 75.03546292 | AG19: =SUMPRODUCT(AG7:AG12,'II_Plantejar Ració'!$E$8:$E$13) -> 1817.272128 | AM19: =SUMPRODUCT(AM7:AM12,'II_Plantejar Ració'!$E$8:$E$13) -> 2353.445642
E20: =E18-E19 -> 8.032171702 | F20: =F18-F19 -> 5.419607036 | G20: =G18-G19 -> 399.8066181 | H20: 47.10961685 | I20: -8.425007036 | J20: 8.967414135 | K20: 7.88064494 | AG20: =AG18-AG19 -> 4191.465856
F21: Ració possible 1 | H21: BPR | I21: UE | J21: Ca | K21: P | AG21: NDFND_Fa
F22: =IF('III_1_Redistribució Ració'!B7="","",F3*'III_1_Redistribució Ració'!B7) -> 3.175193854 | G22: =IF('III_1_Redistribució Ració'!B7="","",'III_1_Redistribució Ració'!B7*CàlculsVL!G3) -> 249.7141033 | H22: =IF('III_1_Redistribució Ració'!B7="","",'III_1_Redistribució Ració'!B7*CàlculsVL!H3) -> 221.5972437 | I22: =IF('III_1_Redistribució Ració'!B7="","",E3*'III_1_Redistribució Ració'!B7) -> 5.051597801 | J22: =IF('III_1_Redistribució Ració'!B7="","",J3*'III_1_Redistribució Ració'!B7) -> 3.401833273 | K22: =IF('III_1_Redistribució Ració'!B7="","",K3*'III_1_Redistribució Ració'!B7) -> 5.102749909 | AG22: =IF(AC3>0,785-8.62*AC3*100,0) -> 275.9335248
F23: =IF('III_1_Redistribució Ració'!B8="","",F4*'III_1_Redistribució Ració'!B8) -> 1.548941779 | G23: =IF('III_1_Redistribució Ració'!B8="","",'III_1_Redistribució Ració'!B8*CàlculsVL!G4) -> 103.2689679 | H23: =IF('III_1_Redistribució Ració'!B8="","",'III_1_Redistribució Ració'!B8*CàlculsVL!H4) -> -164.2190384 | I23: =IF('III_1_Redistribució Ració'!B8="","",E4*'III_1_Redistribució Ració'!B8) -> 3.439988131 | J23: =IF('III_1_Redistribució Ració'!B8="","",J4*'III_1_Redistribució Ració'!B8) -> 3.972818151 | K23: =IF('III_1_Redistribució Ració'!B8="","",K4*'III_1_Redistribució Ració'!B8) -> 1.872899985 | AG23: =IF(AC4>0,785-8.62*AC4*100,0) -> 360.894276
F24: =IF('III_1_Redistribució Ració'!B9="","",F5*'III_1_Redistribució Ració'!B9) -> 2.999112796 | G24: =IF('III_1_Redistribució Ració'!B9="","",'III_1_Redistribució Ració'!B9*CàlculsVL!G5) -> 195.3456104 | H24: =IF('III_1_Redistribució Ració'!B9="","",'III_1_Redistribució Ració'!B9*CàlculsVL!H5) -> -77.71878027 | I24: =IF('III_1_Redistribució Ració'!B9="","",E5*'III_1_Redistribució Ració'!B9) -> 3.007490136 | J24: =IF('III_1_Redistribució Ració'!B9="","",J5*'III_1_Redistribució Ració'!B9) -> 2.399169403 | K24: =IF('III_1_Redistribució Ració'!B9="","",K5*'III_1_Redistribució Ració'!B9) -> 3.77869181 | AG24: =IF(AC5>0,785-8.62*AC5*100,0) -> 166.946
F25: =IF('III_1_Redistribució Ració'!B10="","",F6*'III_1_Redistribució Ració'!B10) -> 1.015028035 | G25: =IF('III_1_Redistribució Ració'!B10="","",'III_1_Redistribució Ració'!B10*CàlculsVL!G6) -> 96.29753149 | H25: =IF('III_1_Redistribució Ració'!B10="","",'III_1_Redistribució Ració'!B10*CàlculsVL!H6) -> 96.29753149 | I25: =IF('III_1_Redistribució Ració'!B10="","",E6*'III_1_Redistribució Ració'!B10) -> 1.314331173 | J25: =IF('III_1_Redistribució Ració'!B10="","",J6*'III_1_Redistribució Ració'!B10) -> 4.684744775 | K25: =IF('III_1_Redistribució Ració'!B10="","",K6*'III_1_Redistribució Ració'!B10) -> 1.95197699 | AG25: =IF(AC6>0,785-8.62*AC6*100,0) -> 241.94
F26: =IF('III_1_Redistribució Ració'!B11="","",F7*'III_1_Redistribució Ració'!B11) -> 0.08246569379 | G26: =IF('III_1_Redistribució Ració'!B11="","",'III_1_Redistribució Ració'!B11*CàlculsVL!G7) -> 6.227548927 | H26: =IF('III_1_Redistribució Ració'!B11="","",'III_1_Redistribució Ració'!B11*CàlculsVL!H7) -> -3.511277587 | I26: =IF('III_1_Redistribució Ració'!B11="","",E7*'III_1_Redistribució Ració'!B11) -> 0.0218030463 | J26: =IF('III_1_Redistribució Ració'!B11="","",J7*'III_1_Redistribució Ració'!B11) -> 0.01821889314 | K26: =IF('III_1_Redistribució Ració'!B11="","",K7*'III_1_Redistribució Ració'!B11) -> 0.1440948821 | AG26: =IF(AC7>0,785-8.62*AC7*100,0) -> 23.986748
F27: =IF('III_1_Redistribució Ració'!B12="","",F8*'III_1_Redistribució Ració'!B12) -> 0.4118539783 | G27: =IF('III_1_Redistribució Ració'!B12="","",'III_1_Redistribució Ració'!B12*CàlculsVL!G8) -> 73.16447842 | H27: =IF('III_1_Redistribució Ració'!B12="","",'III_1_Redistribució Ració'!B12*CàlculsVL!H8) -> 77.44089672 | I27: =IF('III_1_Redistribució Ració'!B12="","",E8*'III_1_Redistribució Ració'!B12) -> 0.098263861 | J27: =IF('III_1_Redistribució Ració'!B12="","",J8*'III_1_Redistribució Ració'!B12) -> 0.6607325421 | K27: =IF('III_1_Redistribució Ració'!B12="","",K8*'III_1_Redistribució Ració'!B12) -> 1.73133126 | AG27: =SUM(AG22:AG26) -> 1069.700549
F28: =IF('III_1_Redistribució Ració'!B13="","",F9*'III_1_Redistribució Ració'!B13) -> 1.750288933 | G28: =IF('III_1_Redistribució Ració'!B13="","",'III_1_Redistribució Ració'!B13*CàlculsVL!G9) -> 132.0495216 | H28: =IF('III_1_Redistribució Ració'!B13="","",'III_1_Redistribució Ració'!B13*CàlculsVL!H9) -> -105.0709438 | I28: =IF('III_1_Redistribució Ració'!B13="","",E9*'III_1_Redistribució Ració'!B13) -> 0.3537107779 | J28: =IF('III_1_Redistribució Ració'!B13="","",J9*'III_1_Redistribució Ració'!B13) -> 7.355649089 | K28: =IF('III_1_Redistribució Ració'!B13="","",K9*'III_1_Redistribució Ració'!B13) -> 1.870893355 | AG28: NDFD_Fa
B29: =CàlculsVL!B3 -> Ensitjat raigràs italià primer cicle Moises_22 | F29: =IF('III_1_Redistribució Ració'!B14="","",F10*'III_1_Redistribució Ració'!B14) -> 2.030461251 | G29: =IF('III_1_Redistribució Ració'!B14="","",'III_1_Redistribució Ració'!B14*CàlculsVL!G10) -> 318.7480971 | H29: =IF('III_1_Redistribució Ració'!B14="","",'III_1_Redistribució Ració'!B14*CàlculsVL!H10) -> 141.0046715 | I29: =IF('III_1_Redistribució Ració'!B14="","",E10*'III_1_Redistribució Ració'!B14) -> 1.039833546 | J29: =IF('III_1_Redistribució Ració'!B14="","",J10*'III_1_Redistribució Ració'!B14) -> 10.53829722 | K29: =IF('III_1_Redistribució Ració'!B14="","",K10*'III_1_Redistribució Ració'!B14) -> 4.85200768 | AG29: =AG20-AG27 -> 3121.765308
B30: =CàlculsVL!B4 -> PALLA Ordi | F30: =IF('III_1_Redistribució Ració'!B15="","",F11*'III_1_Redistribució Ració'!B15) -> 1.075541561 | G30: =IF('III_1_Redistribució Ració'!B15="","",'III_1_Redistribució Ració'!B15*CàlculsVL!G11) -> 2.979339504e-08 | H30: =IF('III_1_Redistribució Ració'!B15="","",'III_1_Redistribució Ració'!B15*CàlculsVL!H11) -> -4.171075305 | I30: =IF('III_1_Redistribució Ració'!B15="","",E11*'III_1_Redistribució Ració'!B15) -> 0.0744834876 | J30: =IF('III_1_Redistribució Ració'!B15="","",J11*'III_1_Redistribució Ració'!B15) -> 1.638636727e-08 | K30: =IF('III_1_Redistribució Ració'!B15="","",K11*'III_1_Redistribució Ració'!B15) -> 2.025950863e-08 | AG30: =100*AG29/AG20 -> 74.47908237
B31: =CàlculsVL!B5 -> EBM Nogué | F31: =IF('III_1_Redistribució Ració'!B16="","",F12*'III_1_Redistribució Ració'!B16) -> 2.297900894 | G31: =IF('III_1_Redistribució Ració'!B16="","",'III_1_Redistribució Ració'!B16*CàlculsVL!G12) -> 460.0089126 | H31: =IF('III_1_Redistribució Ració'!B16="","",'III_1_Redistribució Ració'!B16*CàlculsVL!H12) -> 142.4444385 | I31: =IF('III_1_Redistribució Ració'!B16="","",E12*'III_1_Redistribució Ració'!B16) -> 1.31663121 | J31: =IF('III_1_Redistribució Ració'!B16="","",J12*'III_1_Redistribució Ració'!B16) -> 4.826672685 | K31: =IF('III_1_Redistribució Ració'!B16="","",K12*'III_1_Redistribució Ració'!B16) -> 11.82335359
B32: =CàlculsVL!B6 -> ENSITJAT Alfals rebrots floració prefenificat | F32: =IF('III_1_Redistribució Ració'!B17="","",F13*'III_1_Redistribució Ració'!B17) -> 0.420678778 | G32: =IF('III_1_Redistribució Ració'!B17="","",'III_1_Redistribució Ració'!B17*CàlculsVL!G13) -> 68.44236928 | H32: =IF('III_1_Redistribució Ració'!B17="","",'III_1_Redistribució Ració'!B17*CàlculsVL!H13) -> 84.77072209 | I32: =IF('III_1_Redistribució Ració'!B17="","",E13*'III_1_Redistribució Ració'!B17) -> 0.1372248733 | J32: =IF('III_1_Redistribució Ració'!B17="","",J13*'III_1_Redistribució Ració'!B17) -> 2.028732526 | K32: =IF('III_1_Redistribució Ració'!B17="","",K13*'III_1_Redistribució Ració'!B17) -> 3.866008909
F33: =IF('III_1_Redistribució Ració'!B18="","",F14*'III_1_Redistribució Ració'!B18) ->  | G33: =IF('III_1_Redistribució Ració'!B18="","",'III_1_Redistribució Ració'!B18*CàlculsVL!G14) ->  | H33: =IF('III_1_Redistribució Ració'!B18="","",'III_1_Redistribució Ració'!B18*CàlculsVL!H14) ->  | I33: =IF('III_1_Redistribució Ració'!B18="","",E14*'III_1_Redistribució Ració'!B18) ->  | J33: =IF('III_1_Redistribució Ració'!B18="","",J14*'III_1_Redistribució Ració'!B18) ->  | K33: =IF('III_1_Redistribució Ració'!B18="","",K14*'III_1_Redistribució Ració'!B18) -> 
B34: =CàlculsVL!B7 -> Blat de moro gra | F34: =IF('III_1_Redistribució Ració'!B19="","",F15*'III_1_Redistribució Ració'!B19) -> 0 | G34: =IF('III_1_Redistribució Ració'!B19="","",'III_1_Redistribució Ració'!B19*CàlculsVL!G15) -> 0 | H34: =IF('III_1_Redistribució Ració'!B19="","",'III_1_Redistribució Ració'!B19*CàlculsVL!H15) -> 0 | I34: =IF('III_1_Redistribució Ració'!B19="","",E15*'III_1_Redistribució Ració'!B19) -> 0 | J34: =IF('III_1_Redistribució Ració'!B19="","",J15*'III_1_Redistribució Ració'!B19) -> 81.3207983 | K34: =IF('III_1_Redistribució Ració'!B19="","",K15*'III_1_Redistribució Ració'!B19) -> 0
B35: =CàlculsVL!B8 -> Soja tortó 44 | F35: =IF('III_1_Redistribució Ració'!B20="","",F16*'III_1_Redistribució Ració'!B20) -> 0 | G35: =IF('III_1_Redistribució Ració'!B20="","",'III_1_Redistribució Ració'!B20*CàlculsVL!G16) -> 0 | H35: =IF('III_1_Redistribució Ració'!B20="","",'III_1_Redistribució Ració'!B20*CàlculsVL!H16) -> 0 | I35: =IF('III_1_Redistribució Ració'!B20="","",E16*'III_1_Redistribució Ració'!B20) -> 0 | J35: =IF('III_1_Redistribució Ració'!B20="","",J16*'III_1_Redistribució Ració'!B20) -> 192.758736 | K35: =IF('III_1_Redistribució Ració'!B20="","",K16*'III_1_Redistribució Ració'!B20) -> 96.69536593
B36: =CàlculsVL!B9 -> Polpes (cítrics) | F36: =IF('III_1_Redistribució Ració'!B21="","",F17*'III_1_Redistribució Ració'!B21) ->  | G36: =IF('III_1_Redistribució Ració'!B21="","",'III_1_Redistribució Ració'!B21*CàlculsVL!G17) ->  | H36: =IF('III_1_Redistribució Ració'!B21="","",'III_1_Redistribució Ració'!B21*CàlculsVL!H17) ->  | I36: =IF('III_1_Redistribució Ració'!B21="","",E17*'III_1_Redistribució Ració'!B21) ->  | J36: =IF('III_1_Redistribució Ració'!B21="","",J17*'III_1_Redistribució Ració'!B21) ->  | K36: =IF('III_1_Redistribució Ració'!B21="","",K17*'III_1_Redistribució Ració'!B21) -> 
B37: =CàlculsVL!B10 -> Alfals deshidratat i aglomerats | F37: =SUM(F22:F36) -> 16.80746755 | G37: 1703.267141 | H37: 408.8643887 | I37: 15.85535804 | J37: 313.9664029 | K37: 133.6893743
B38: =CàlculsVL!B11 -> Grassa vegetal, mantega de porc (tots els tipus)
B39: =CàlculsVL!B12 -> Ordi bagàs cerveseria fresc
B40: =CàlculsVL!B13 -> Colza, turtó
F46: Ració possible NRC | H46: BPR | I46: UE | J46: Ca | K46: P
F47: =IF('III_1_Redistribució Ració'!G7="","",F3*'III_1_Redistribució Ració'!G7) -> 3.4509497 | G47: =IF('III_1_Redistribució Ració'!G7="","",'III_1_Redistribució Ració'!G7*CàlculsVL!G3) -> 271.4010071 | H47: =IF('III_1_Redistribució Ració'!G7="","",'III_1_Redistribució Ració'!G7*CàlculsVL!H3) -> 240.8422845 | I47: =IF('III_1_Redistribució Ració'!G7="","",E3*'III_1_Redistribució Ració'!G7) -> 5.490313573 | J47: =IF('III_1_Redistribució Ració'!G7="","",J3*'III_1_Redistribució Ració'!G7) -> 3.697272056 | K47: =IF('III_1_Redistribució Ració'!G7="","",K3*'III_1_Redistribució Ració'!G7) -> 5.545908085
F48: =IF('III_1_Redistribució Ració'!G8="","",F4*'III_1_Redistribució Ració'!G8) -> 1.683462621 | G48: =IF('III_1_Redistribució Ració'!G8="","",'III_1_Redistribució Ració'!G8*CàlculsVL!G4) -> 112.237561 | H48: =IF('III_1_Redistribució Ració'!G8="","",'III_1_Redistribució Ració'!G8*CàlculsVL!H4) -> -178.4809581 | I48: =IF('III_1_Redistribució Ració'!G8="","",E4*'III_1_Redistribució Ració'!G8) -> 3.738740547 | J48: =IF('III_1_Redistribució Ració'!G8="","",J4*'III_1_Redistribució Ració'!G8) -> 4.31784522 | K48: =IF('III_1_Redistribució Ració'!G8="","",K4*'III_1_Redistribució Ració'!G8) -> 2.035555604
F49: =IF('III_1_Redistribució Ració'!G9="","",F5*'III_1_Redistribució Ració'!G9) -> 3.259576541 | G49: =IF('III_1_Redistribució Ració'!G9="","",'III_1_Redistribució Ració'!G9*CàlculsVL!G5) -> 212.3107774 | H49: =IF('III_1_Redistribució Ració'!G9="","",'III_1_Redistribució Ració'!G9*CàlculsVL!H5) -> -84.46841791 | I49: =IF('III_1_Redistribució Ració'!G9="","",E5*'III_1_Redistribució Ració'!G9) -> 3.268681428 | J49: =IF('III_1_Redistribució Ració'!G9="","",J5*'III_1_Redistribució Ració'!G9) -> 2.607529905 | K49: =IF('III_1_Redistribució Ració'!G9="","",K5*'III_1_Redistribució Ració'!G9) -> 4.106859601
F50: =IF('III_1_Redistribució Ració'!G10="","",F6*'III_1_Redistribució Ració'!G10) -> 1.103180106 | G50: =IF('III_1_Redistribució Ració'!G10="","",'III_1_Redistribució Ració'!G10*CàlculsVL!G6) -> 104.6606767 | H50: =IF('III_1_Redistribució Ració'!G10="","",'III_1_Redistribució Ració'!G10*CàlculsVL!H6) -> 104.6606767 | I50: =IF('III_1_Redistribució Ració'!G10="","",E6*'III_1_Redistribució Ració'!G10) -> 1.428476803 | J50: =IF('III_1_Redistribució Ració'!G10="","",J6*'III_1_Redistribució Ració'!G10) -> 5.091600487 | K50: =IF('III_1_Redistribució Ració'!G10="","",K6*'III_1_Redistribució Ració'!G10) -> 2.121500203
F51: =IF('III_1_Redistribució Ració'!G11="","",F7*'III_1_Redistribució Ració'!G11) -> 0.08962758631 | G51: =IF('III_1_Redistribució Ració'!G11="","",'III_1_Redistribució Ració'!G11*CàlculsVL!G7) -> 6.768392447 | H51: =IF('III_1_Redistribució Ració'!G11="","",'III_1_Redistribució Ració'!G11*CàlculsVL!H7) -> -3.816221273 | I51: =IF('III_1_Redistribució Ració'!G11="","",E7*'III_1_Redistribució Ració'!G11) -> 0.02369657398 | J51: =IF('III_1_Redistribució Ració'!G11="","",J7*'III_1_Redistribució Ració'!G11) -> 0.01980114812 | K51: =IF('III_1_Redistribució Ració'!G11="","",K7*'III_1_Redistribució Ració'!G11) -> 0.1566090806
F52: =IF('III_1_Redistribució Ració'!G12="","",F8*'III_1_Redistribució Ració'!G12) -> 0.4476222328 | G52: =IF('III_1_Redistribució Ració'!G12="","",'III_1_Redistribució Ració'!G12*CàlculsVL!G8) -> 79.51858892 | H52: =IF('III_1_Redistribució Ració'!G12="","",'III_1_Redistribució Ració'!G12*CàlculsVL!H8) -> 84.16640102 | I52: =IF('III_1_Redistribució Ració'!G12="","",E8*'III_1_Redistribució Ració'!G12) -> 0.1067977759 | J52: =IF('III_1_Redistribució Ració'!G12="","",J8*'III_1_Redistribució Ració'!G12) -> 0.7181151364 | K52: =IF('III_1_Redistribució Ració'!G12="","",K8*'III_1_Redistribució Ració'!G12) -> 1.881692069
F53: =IF('III_1_Redistribució Ració'!G13="","",F9*'III_1_Redistribució Ració'!G13) -> 1.902296157 | G53: =IF('III_1_Redistribució Ració'!G13="","",'III_1_Redistribució Ració'!G13*CàlculsVL!G9) -> 143.5176174 | H53: =IF('III_1_Redistribució Ració'!G13="","",'III_1_Redistribució Ració'!G13*CàlculsVL!H9) -> -114.196033 | I53: =IF('III_1_Redistribució Ració'!G13="","",E9*'III_1_Redistribució Ració'!G13) -> 0.3844294739 | J53: =IF('III_1_Redistribució Ració'!G13="","",J9*'III_1_Redistribució Ració'!G13) -> 7.994464647 | K53: =IF('III_1_Redistribució Ració'!G13="","",K9*'III_1_Redistribució Ració'!G13) -> 2.033374704
F54: =IF('III_1_Redistribució Ració'!G14="","",F10*'III_1_Redistribució Ració'!G14) -> 2.206800582 | G54: =IF('III_1_Redistribució Ració'!G14="","",'III_1_Redistribució Ració'!G14*CàlculsVL!G10) -> 346.4303915 | H54: =IF('III_1_Redistribució Ració'!G14="","",'III_1_Redistribució Ració'!G14*CàlculsVL!H10) -> 153.2504947 | I54: =IF('III_1_Redistribució Ració'!G14="","",E10*'III_1_Redistribució Ració'!G14) -> 1.1301399 | J54: =IF('III_1_Redistribució Ració'!G14="","",J10*'III_1_Redistribució Ració'!G14) -> 11.45351601 | K54: =IF('III_1_Redistribució Ració'!G14="","",K10*'III_1_Redistribució Ració'!G14) -> 5.273389662
F55: =IF('III_1_Redistribució Ració'!G15="","",F11*'III_1_Redistribució Ració'!G15) -> 1.168949046 | G55: =IF('III_1_Redistribució Ració'!G15="","",'III_1_Redistribució Ració'!G15*CàlculsVL!G11) -> 3.238086e-08 | H55: =IF('III_1_Redistribució Ració'!G15="","",'III_1_Redistribució Ració'!G15*CàlculsVL!H11) -> -4.5333204 | I55: =IF('III_1_Redistribució Ració'!G15="","",E11*'III_1_Redistribució Ració'!G15) -> 0.08095215 | J55: =IF('III_1_Redistribució Ració'!G15="","",J11*'III_1_Redistribució Ració'!G15) -> 1.7809473e-08 | K55: =IF('III_1_Redistribució Ració'!G15="","",K11*'III_1_Redistribució Ració'!G15) -> 2.20189848e-08
F56: =IF('III_1_Redistribució Ració'!G16="","",F12*'III_1_Redistribució Ració'!G16) -> 2.497466537 | G56: =IF('III_1_Redistribució Ració'!G16="","",'III_1_Redistribució Ració'!G16*CàlculsVL!G12) -> 499.9592754 | H56: =IF('III_1_Redistribució Ració'!G16="","",'III_1_Redistribució Ració'!G16*CàlculsVL!H12) -> 154.815301 | I56: =IF('III_1_Redistribució Ració'!G16="","",E12*'III_1_Redistribució Ració'!G16) -> 1.430976592 | J56: =IF('III_1_Redistribució Ració'!G16="","",J12*'III_1_Redistribució Ració'!G16) -> 5.245854401 | K56: =IF('III_1_Redistribució Ració'!G16="","",K12*'III_1_Redistribució Ració'!G16) -> 12.85017557
F57: =IF('III_1_Redistribució Ració'!G17="","",F13*'III_1_Redistribució Ració'!G17) -> 0.4572134393 | G57: =IF('III_1_Redistribució Ració'!G17="","",'III_1_Redistribució Ració'!G17*CàlculsVL!G13) -> 74.38637908 | H57: =IF('III_1_Redistribució Ració'!G17="","",'III_1_Redistribució Ració'!G17*CàlculsVL!H13) -> 92.13279925 | I57: =IF('III_1_Redistribució Ració'!G17="","",E13*'III_1_Redistribució Ració'!G17) -> 0.1491424325 | J57: =IF('III_1_Redistribució Ració'!G17="","",J13*'III_1_Redistribució Ració'!G17) -> 2.204921722 | K57: =IF('III_1_Redistribució Ració'!G17="","",K13*'III_1_Redistribució Ració'!G17) -> 4.201759923
F58: =IF('III_1_Redistribució Ració'!G18="","",F14*'III_1_Redistribució Ració'!G18) ->  | G58: =IF('III_1_Redistribució Ració'!G18="","",'III_1_Redistribució Ració'!G18*CàlculsVL!G14) ->  | H58: =IF('III_1_Redistribució Ració'!G18="","",'III_1_Redistribució Ració'!G18*CàlculsVL!H14) ->  | I58: =IF('III_1_Redistribució Ració'!G18="","",E14*'III_1_Redistribució Ració'!G18) ->  | J58: =IF('III_1_Redistribució Ració'!G18="","",J14*'III_1_Redistribució Ració'!G18) ->  | K58: =IF('III_1_Redistribució Ració'!G18="","",K14*'III_1_Redistribució Ració'!G18) -> 
F59: =IF('III_1_Redistribució Ració'!G19="","",F15*'III_1_Redistribució Ració'!G19) -> 0 | G59: =IF('III_1_Redistribució Ració'!G19="","",'III_1_Redistribució Ració'!G19*CàlculsVL!G15) -> 0 | H59: =IF('III_1_Redistribució Ració'!G19="","",'III_1_Redistribució Ració'!G19*CàlculsVL!H15) -> 0 | I59: =IF('III_1_Redistribució Ració'!G19="","",E15*'III_1_Redistribució Ració'!G19) -> 0 | J59: =IF('III_1_Redistribució Ració'!G19="","",J15*'III_1_Redistribució Ració'!G19) -> 88.38326016 | K59: =IF('III_1_Redistribució Ració'!G19="","",K15*'III_1_Redistribució Ració'!G19) -> 0
F60: =IF('III_1_Redistribució Ració'!G20="","",F16*'III_1_Redistribució Ració'!G20) -> 0 | G60: =IF('III_1_Redistribució Ració'!G20="","",'III_1_Redistribució Ració'!G20*CàlculsVL!G16) -> 0 | H60: =IF('III_1_Redistribució Ració'!G20="","",'III_1_Redistribució Ració'!G20*CàlculsVL!H16) -> 0 | I60: =IF('III_1_Redistribució Ració'!G20="","",E16*'III_1_Redistribució Ració'!G20) -> 0 | J60: =IF('III_1_Redistribució Ració'!G20="","",J16*'III_1_Redistribució Ració'!G20) -> 209.4992409 | K60: =IF('III_1_Redistribució Ració'!G20="","",K16*'III_1_Redistribució Ració'!G20) -> 105.0930618
F61: =IF('III_1_Redistribució Ració'!G21="","",F17*'III_1_Redistribució Ració'!G21) ->  | G61: =IF('III_1_Redistribució Ració'!G21="","",'III_1_Redistribució Ració'!G21*CàlculsVL!G17) ->  | H61: =IF('III_1_Redistribució Ració'!G21="","",'III_1_Redistribució Ració'!G21*CàlculsVL!H17) ->  | I61: =IF('III_1_Redistribució Ració'!G21="","",E17*'III_1_Redistribució Ració'!G21) ->  | J61: =IF('III_1_Redistribució Ració'!G21="","",J17*'III_1_Redistribució Ració'!G21) ->  | K61: =IF('III_1_Redistribució Ració'!G21="","",K17*'III_1_Redistribució Ració'!G21) -> 
F62: =SUM(F47:F61) -> 18.26714455 | G62: 1851.190667 | H62: 444.3730065 | I62: 17.23234725 | J62: 341.2334218 | K62: 145.2998863

Sheet Criteris (hidden)
A1: Paritat
A2: Primípar
A3: Multípar
A4: Estat lactació
A5: 3 primeres setmanes
A6: 4 a 6 primeres setmanes
A7: 7 a 12 primeres setmanes
A8: Pic (90 a 150 dies en lactació)
A9: Resta lactació
A10: Eixugat
A11: Mitjana producció explotació
A12: < 5.000
A13: 5.000 a 6.000
A14: 6.000 a 8.000
A15: 8.000 a 10.000
A16: >10.000
A17: Edat primer part
A18: < 28 mesos
A19: > 28 mesos
A20: Gestació
A21: No
A22: 7è mes
A23: 8è mes
A24: 9è mes

Sheet I_Necessitats1 (hidden)
A1: Entorn o modalitat explotació ----------------------> | E1: 2 | K1: ICI | L1: =0.6+(1-0.6)*(1-EXP(-0.25*I12)) -> 0.9458658867 | M1: =(14.25+(0.015*(I7-600))+(0.11*I18)+((2.5-I16))) -> 19.70832114 | O1: CI MS aprox INRA | Q1: ???
A2: Dades explotació per a la formulació | F2: Dades per a una vaca en lactació | K2: ICG | L2: =0.8+0.2*(1-EXP(-0.25*(40-I14))) -> 0.99999092 | N2: =(14.24+0.015*(I7-600)+0.11*I18+(2.5-I16))*AV5*AW5*AY5 -> 18.45157236 | O2: =M5/0.85 -> 21.82419578 | P2: =N5/0.85 -> 22.1364582 | AU2: 0.6 | AV2: 0.7 | BR2: Autor: Antoni Seguí Parpal
A3: Producció mitjana explotació, vaca present i any | D3: 12000 | I3: 2 | K3: ICmadu | L3: =-0.1+1.1*(1-EXP(-0.08*I8)) -> 0.9763570385 | M3: CI UE | O3: CI MS | Q3: Energia | S3: Proteïna | U3: Fòsfor | W3: Calci | Y3: Mg | AA3: K | AC3: Na | AE3: S | AG3: Cl | AI3: Co mg/dia | AK3: Cu mg/dia | AM3: Mn mg/dia | AO3: Zn mg/dia | AQ3: I mg/dia | AS3: Se mg/dia | AU3: IL | AW3: IG | AX3: IM prim | AY3: IM multi | AZ3: I_CI PDI prim | BA3: I_CI PDI multi
A4: Taxa de greix (%) | D4: 3.8 | F4: Producció a 305 dies | I4: 9084 | K4: ICIPDI | L4: =0.91+(0.115/(1+EXP(0.13*(90-(S5/Q5))))) -> 1.019232501 | M4: prim | N4: multi | O4: prim | P4: multi | Q4: prim | R4: multi | S4: prim | T4: multi | U4: prim | V4: multi | W4: prim | X4: multi | Y4: prim | Z4: multi | AA4: prim | AB4: multi | AC4: prim | AD4: multi | AE4: prim | AF4: multi | AG4: prim | AH4: multi | AI4: prim | AJ4: multi | AK4: prim | AL4: multi | AM4: prim | AN4: multi | AO4: prim | AP4: multi | AQ4: prim | AR4: multi | AS4: prim | AT4: multi | AU4: prim | AV4: multi
A5: Taxa de proteïna (%) | D5: 3.1 | F5: Taxa de greix (%) | I5: 4 | L5: =M1*L1*L2*L3*L4 -> 18.55056641 | M5: =(14.25+(0.015*(I7-600))+(0.11*I18)+((2.5-I16)))*AU5*AW5*AX5*AZ5 -> 18.55056641 | N5: =(14.25+(0.015*(I7-600))+(0.11*I18)+((2.5-I16)))*AV5*AW5*AY5*BA5 -> 18.81598947 | O5: =0.372*I18+0.0968*I7^0.75*(1-EXP(-0.192*(I12+3.67))) -> 25.93162661 | P5: =0.372*I18+0.0968*I7^0.75*(1-EXP(-0.192*(I12+3.67))) -> 25.93162661 | Q5: =(0.0536*I7^0.75)*K6+I18*0.42+(3.14-0.077*I8)+IF(I23="",0,(0.000695*I10*EXP(0.116*I23)))-I20 -> 22.06908564 | R5: =(0.0536*I7^0.75)*K6+I18*0.42+(3.14-0.077*I8)+ IF(I23="",0,(0.000695*I10*EXP(0.116*I23)))-I20 -> 22.06908564 | S5: =0.312*I7+(0.2*I7^0.6)/I19+19.8*O5+IF(I8<40,((270-6.66*I8)/I19),0)+(I18*31/I19)+IF(I23>24,(0.0448*I10*EXP(0.111*I23)/I19),0)-I21 -> 2485.529078 | T5: =0.312*I7+(0.2*I7^0.6)/I19+19.8*O5+IF(I8<40,((270-6.66*I8)/I19),0)+I18*31/I19+IF(I23>24,(0.0448*I10*EXP(0.111*I23)/I19),0)-I21 -> 2485.529078 | U5: =(0.83*O5+0.002*I7+0.9*I18+IF(I23>0,(7.38/(1+EXP(19.1-5.46*LN(I23)))),0)) -> 57.18064318 | V5: =(0.83*P5+0.002*I7+0.9*I18+IF(I23>0,(7.38/(1+EXP(19.1-(5.46*LN(I23))))),0)) -> 57.18064318 | W5: =(0.663*O5+0.008*I7+1.25*I18+IF(I23>0,(23.5/(1+EXP(18.8-(5.03*LN(I23))))),0)) -> 70.37238108 | X5: =(0.663*P5+0.008*I7+1.25*I18+IF(I23>0,(23.5/(1+EXP(18.8-(5.03*LN(I23))))),0)) -> 70.37238108 | Y5: =(0.011*I7+0.15*I18+IF(I23>36,0.33,0)) -> 13.40956552 | Z5: =(0.011*I7+0.15*I18+IF(I23>36,0.33,0)) -> 13.40956552 | AA5: =IF(I18>0,0.115*I7,0.07*I7)+IF(I23>24,1,0)+1.5*I18 -> 137.5956552 | AB5: =IF(I18>0,0.115*I7,0.07*I7)+IF(I23>24,1,0)+1.5*I18 -> 137.5956552 | AC5: =IF(I18>0,0.023*I7,0.015*I7)+IF(I23>24,1.3,0)+0.45*I18 -> 33.22869655 | AD5: =IF(I18>0,0.023*I7,0.015*I7)+IF(I23>24,1.3,0)+0.45*I18 -> 33.22869655 | AE5: =2*O5 -> 51.86325322 | AF5: =2*P5 -> 51.86325322 | AG5: =IF(I18>0,0.035*I7,0.023*I7)+IF(I23>24,1,0)+0.15*I18 -> 30.20956552 | AH5: =IF(I18>0,0.035*I7,0.023*I7)+IF(I23>24,1,0)+0.15*I18 -> 30.20956552 | AI5: =0.3*O5 -> 7.779487983 | AJ5: =0.3*P5 -> 7.779487983 | AK5: =10*O5 -> 259.3162661 | AL5: =10*P5 -> 259.3162661 | AM5: =50*O5 -> 1296.581331 | AN5: =50*P5 -> 1296.581331 | AO5: =50*O5 -> 1296.581331 | AP5: =50*P5 -> 1296.581331 | AQ5: =IF(I18>0,0.65*O5,0.45*O5) -> 16.8555573 | AR5: =IF(I18>0,0.65*O5,0.45*O5) -> 16.8555573 | AS5: =IF(I18>0,0.15,0) -> 0.15 | AT5: =IF(I18>0,0.15,0) -> 0.15 | AU5: =$AU$2+(1-$AU$2)*(1-EXP(-0.25*I22)) -> 0.9458658867 | AV5: =$AV$2+(1-$AV$2)*(1-EXP(-0.25*I22)) -> 0.959399415 | AW5: =0.8+0.2*(1-EXP(-0.25*(40-I23))) -> 0.99999092 | AX5: =-0.1+1.1*(1-EXP(-0.08*I8)) -> 0.9763570385 | AY5: =-0.1+1.1*(1-EXP(-0.08*I8)) -> 0.9763570385 | AZ5: =0.91+(0.115/(1+EXP(0.13*(90-(S5/Q5))))) -> 1.019232501 | BA5: =0.91+(0.115/(1+EXP(0.13*(90-(T5/R5))))) -> 1.019232501
A6: Interval entre parts (dies) IP | D6: 417 | F6: Taxa de proteïna (%) | I6: 3.1 | K6: =IF(E1=1,0.95,IF(E1=2,1,IF(E1=3,1.1,IF(E1=4,1.2,1.3)))) -> 1 | M6: període lactació explotació | P6: UFL_VPR>
A7: Temps eixugament (dies) TE | D7: 60 | F7: Pes vaca adulta (kg) | I7: 700 | N7: =(D6-D7)/7 -> 51 | O7: setmanes lact | Q7: =INT((9*30.5+10)/7) -> 40 | R7: Setmanes gestació
A8: Vaques presents | D8: 222 | F8: Edat mesos | H8: =IF(I3=1,IF(I8>36,"edat en mesos?",""),IF(I8<36,"edat en mesos?","")) ->  | I8: 48 | L8: 394 | N8: =D10*0.9 -> 630 | O8: pes prim | Q8: =Q7-(61/7) -> 31.28571429 | T8: A | U8: =-9.5+0.4*N19+1.89*D11 -> 15.56654507 | V8: =-13.2+0.4*O19+1.89*D11 -> 14.27326834 | AQ8: 100 | AR8: =AQ8/7 -> 14.28571429 | BC8: =16*I7*0.9 -> 10080
A9: Vaques primera lactació (%) | D9: 0.354 | F9: Condició corporal vaca eixuta al part | I9: 3.5 | L9: 900 | N9: =1.5*(3-D11) -> -0.75 | O9: =D11-1.5 -> 2 | T9: B | U9: =1/D11 -> 0.2857142857 | AQ9: 225 | AR9: =AQ9/7 -> 32.14285714 | BC9: =30*I7*0.9 -> 18900
A10: Pes vaca adulta (kg) | D10: 700 | F10: Pes vedell al naixement | I10: 45 | T10: K | U10: =U8/(52*U9) -> 1.047748226 | V10: =V8/(52*U9) -> 0.9607007537
A11: Condició corporal vaques eixutes | D11: 3.5 | F11: Interval entre parts (dies) | I11: 365 | K11: =INT(L11-8) -> 44 | L11: =INT(I11/7) -> 52 | R11: =5*(0.57+0.0074*280)/0.67 -> 19.71641791 | CJ11: =DATE(2023,4,1) -> 2023-04-01
A12: Pes vedell al naixement | D12: 40 | F12: Setmana lactació-----> | G12: Valor entre 1 i | H12: =K11 -> 44 | I12: 8 | J12: =L11-40 -> 12 | CJ12: =TODAY() -> 2026-03-06
A13: Nombre mitjà de lactació (anys) | D13: 2.35 | F13: Setmana fecundació | J13: =K13-8 -> 44 | K13: =L11-I13 -> 52 | CJ13: =CJ11+365*2 -> 2025-03-31
A14: MS farratgera, % mínim a la ració | D14: 50 | F14: Setmana gestació calculada en lactació | I14: =IF(I13="",0,IF((I12+1)-I13>0,I12-I13,"")) -> 0 | K14: màx gest
A15: Límits de tolerància (%) en el compliment necessitats proteiques | D15: 12.5 | F15: Setmana en gestació període sec | I15: =IF(I12<=K11,"",I12-J12) ->  | AA15: =(14.25+(0.015*($D$10-600))+(0.11*N20)+((2.5-U20))) -> 19.08831104 | AB15: =(14.25+(0.015*($D$10-600))+0.11*O20+((2.5-V20))) -> 20.393396 | BH15: =EXP(-0.25*0) -> 1 | BM15: =0.8+0.2*(1-EXP(-0.25*(40-0))) -> 0.99999092
A16: EfPDI teòrica | D16: 0.67 | F16: Condició corporal calculada | I16: =IF(I18=0,I9,IF(I13>I12,"Revisar setmana fecundació",I9-(7/206)*((L148/L149)-L150*I12+(L148/(1-L149))*(EXP(-I12)-(EXP(-L149*I12)/L149))))) -> 2.728693574 | N16: =D13*D26+D7*D13 -> 979.95 | O16: =N16/365 -> 2.684794521 | P16: =D26/7 -> 51 | BP16: =0.6+(1-0.6)*(1-EXP(-0.16*0)) -> 0.6 | BQ16: =0.8+0.2*(1-EXP(-0.25*(40-34))) -> 0.955373968
F17: Producció màxima potencial diària 4% (pic) | I17: =IF(I3=1,I4*(1+(0.0055*(I5*10-40)+0.0033*(I6*10-31)))/260,I4*(1+(0.0055*(I5*10-40)+0.0033*(I6*10-31)))/230) -> 39.49565217 | K17: data part | L17: =I13+9*4.5 -> 40.5 | M17: =IF(I14="","",L17-I14) -> 40.5 | N17: Producció | R17: setmana IA | T17: Setmana part des d'inici lact | AW17: mg/vaca i dia | BK17: 0.6 | BL17: 0.7
F18: Producció diària a la setmana de lactació 4% | I18: =IF(I15="",IF(I13>I12,"Revisar setmana fecundació",IF(I12>1,IF(I3=1,I17*(-0.55+1.66*EXP(-0.0065*I12)-0.72*EXP(-0.44*I12)-0.69*EXP(-0.16*(45-I14))),I17*(-0.83+1.92*EXP(-0.0083*I12)-0.74*EXP(-0.88*I12)-0.5*EXP(-0.12*(45-I14)))),0)),0) -> 38.06377011 | N18: Pic prim | O18: Pic multi | R18: =D25 -> 19 | T18: =R18+Q7 -> 59 | W18: UFL_VPR pot | Y18: PDI_VPR pot | AA18: CI | AC18: CI MS | AE18: Energia | AG18: Proteïna | AI18: Fòsfor | AK18: Calci | AM18: Mg | AO18: K | AQ18: Na | AS18: S | AU18: Cl | AW18: Fe | AX18: No 2018 | AY18: Co | BA18: Cu | BC18: Mn | BE18: Zn | BG18: I | BI18: Se | BK18: IL | BM18: IG | BN18: IM prim | BO18: IM multi | BP18: I_CI PDI | BQ18: I_CI PDI
F19: EfPDI teòrica | I19: =D16 -> 0.67 | L19: setmL teòrica | N19: =D29/260 -> 46.12886268 | O19: =D29/230 -> 52.14567085 | P19: període | Q19: setmL | R19: setmG | S19: setmG | T19: edat mesos prim | U19: CC prim | V19: CC mult | W19: prim | X19: multi | Y19: prim | Z19: multi | AA19: prim | AB19: multi | AC19: prim | AD19: multi | AE19: prim | AF19: multi | AG19: prim | AH19: multi | AI19: prim | AJ19: multi | AK19: prim | AL19: multi | AM19: prim | AN19: multi | AO19: prim | AP19: multi | AQ19: prim | AR19: multi | AS19: prim | AT19: multi | AU19: prim | AV19: multi | AW19: prim | AX19: multi | AY19: prim | AZ19: multi | BA19: prim | BB19: multi | BC19: prim | BD19: multi | BE19: prim | BF19: multi | BG19: prim | BH19: multi | BI19: prim | BJ19: multi | BK19: prim | BL19: multi | BP19: PRIM
F20: UFL_VPR pot | H20: Variació reserves corporals UFL | I20: =-L150+L152*(EXP(-L149*I22)-EXP(-I22)) -> 0.687351727 | K20: =IF(L20<$N$7,L20,$N$7) -> 2 | L20: 2 | M20: =IF(Q20<$R$18,0,Q20-$R$18) -> 0 | N20: =IF(Q20=0,0,IF(R20="",N$19*(-0.55+1.66*EXP(-0.0065*Q20)-0.72*EXP(-0.44*Q20)),N$19*(-0.55+1.66*EXP(-0.0065*Q20)-0.72*EXP(-0.44*Q20)-(0.69*EXP(-0.16*(45-R20)))))) -> 36.4379252 | O20: =IF(Q20=0,0,IF(R20="",O$19*(-0.83+1.92*EXP(-0.0083*Q20)-0.74*EXP(-0.88*Q20)),O$19*(-0.83+1.92*EXP(-0.0083*Q20)-0.74*EXP(-0.88*Q20)-(0.5*EXP(-0.12*(45-R20)))))) -> 48.5516807 | P20: tres 1es | Q20: =IF(K20=K19,0,K20) -> 2 | R20: =IF(Q20=0,R18+4,IF((Q20-$D$25)<0,"",Q20-$D$25)) ->  | S20: =IF(R20>40,0,R20) -> 0 | T20: =IF(Q20=0,"",24+(Q20/4)) -> 24.5 | U20: =$D$11-(7/260)*(($U$8/$U$9)-$U$10*Q20+($U$8/(1-$U$9))*(EXP(-Q20)-EXP(-$U$9*Q20)/$U$9)) -> 3.169860731 | V20: =$D$11-(7/260)*(($V$8/$U$9)-$V$10*Q20+($V$8/(1-$U$9))*(EXP(-Q20)-EXP(-$U$9*Q20)/$U$9)) -> 3.197288874 | W20: =-$U$10+($U$8/(1-$U$9))*(EXP(-$U$9*Q20)-EXP(-Q20)) -> 8.309862011 | X20: =-$V$10+($V$8/(1-$U$9))*(EXP(-$U$9*Q20)-EXP(-Q20)) -> 7.619474317 | Y20: =50+33*W20 -> 324.2254464 | Z20: =50+33*X20 -> 301.4426524 | AA20: =(14.25+(0.015*($D$10-600))+(0.11*N20)+((2.5-U20)))*BK20*BM20*BN20*BP20 -> 12.52070129 | AB20: =(14.25+(0.015*($D$10-600))+0.11*O20+((2.5-V20)))*BL20*BM20*BO20*BQ20 -> 17.05020119 | AC20: =0.372*N20+0.0968*$D$10^0.75*(1-EXP(-0.192*(Q20+3.67))) -> 22.29318641 | AD20: =0.372*O20+0.0968*$D$10^0.75*(1-EXP(-0.192*(Q20+3.67))) -> 26.79950346 | AE20: =(0.0536*$D$10^0.75)*$K$6+N20*0.42+(3.14-0.077*T20)+IF(S20="",0,(0.000695*$D$12*EXP(0.116*S20)))-W20 -> 15.56974549 | AF20: =(0.0536*$D$10^0.75)*$K$6+O20*0.42+(3.14-0.077*U20)+IF(S20="",0,(0.000695*$D$12*EXP(0.116*S20)))-X20 -> 22.99033122 | AG20: =IF(S20="",19.8*AC20+0.312*$D$10+0.2*$D$10^0.6/$D$16+((270-6.66*T20)/$D$16)+(N20*31/$D$16)-Y20,19.8*AC20+0.312*$D$10+0.2*$D$10^0.6/$D$16+((270-6.66*T20)/$D$16)+(N20*31/$D$16)+0.0448*$D$12*EXP(0.111*S20)/$D$16-Y20) -> 2198.841851 | AH20: =IF(S20="",19.8*AD20+0.312*$D$10+0.2*$D$10^0.6/$D$16+(O20*31/$D$16)-Z20,19.8*AD20+0.312*$D$10+0.2*$D$10^0.6/$D$16+(O20*31/$D$16)+0.0448*$D$12*EXP(0.111*S20)/$D$16)-Z20 -> 2711.889156 | AI20: =(0.83*AC20+0.002*$D$10+0.9*N20+IF($S20=0,0,(7.38/(1+EXP(19.1-5.46*LN(S20)))))) -> 52.6974774 | AJ20: =(0.83*AD20+0.002*$D$10+0.9*O20+IF($S20=0,0,(7.38/(1+EXP(19.1-5.46*LN(S20)))))) -> 67.3401005 | AK20: =(0.663*AC20+0.008*$D$10+1.25*N20+IF(S20=0,0,(23.5/(1+EXP(18.8-(5.03*LN(S20))))))) -> 65.92778909 | AL20: =(0.663*AD20+0.008*$D$10+1.25*O20+IF(S20=0,0,(23.5/(1+EXP(18.8-(5.03*LN(S20))))))) -> 84.05767167 | AM20: =(0.011*$D$10+0.15*N20+IF(S20>36,0.33,0)) -> 13.16568878 | AN20: =(0.011*$D$10+0.15*O20+IF(S20>36,0.33,0)) -> 14.98275211 | AO20: =IF(N20>0,0.115*$D$10,0.07*$D$10)+IF(S20>24,1,0)+1.5*N20 -> 135.1568878 | AP20: =IF(O20>0,0.115*$D$10,0.07*$D$10)+IF(S20>24,1,0)+1.5*O20 -> 153.3275211 | AQ20: =IF(N20>0,0.023*$D$10,0.015*$D$10)+IF($S20>24,1.3,0)+0.45*N20 -> 32.49706634 | AR20: =IF(O20>0,0.023*$D$10,0.015*$D$10)+IF($S20>24,1.3,0)+0.45*O20 -> 37.94825632 | AS20: =2*AC20 -> 44.58637282 | AT20: =2*AD20 -> 53.59900691 | AU20: =IF(N20>0,0.035*$D$10,0.023*$D$10)+IF($S20>24,1,0)+0.15*N20 -> 29.96568878 | AV20: =IF(O20>0,0.035*$D$10,0.023*$D$10)+IF($S20>24,1,0)+0.15*O20 -> 31.78275211 | AW20: =IF(S20="",0,IF(S20<27,N20/0.1,(N20+18)/0.1)) -> 364.379252 | AX20: =IF(S20="",0,IF(S20<27,O20/0.1,(O20+18)/0.1)) -> 485.516807 | AY20: =0.3*AC20 -> 6.687955923 | AZ20: =0.3*AD20 -> 8.039851037 | BA20: =10*AC20 -> 222.9318641 | BB20: =10*AD20 -> 267.9950346 | BC20: =50*AC20 -> 1114.659321 | BD20: =50*AD20 -> 1339.975173 | BE20: =50*AC20 -> 1114.659321 | BF20: =50*AD20 -> 1339.975173 | BG20: =IF(N20>0,0.65*AC20,0.45*AC20) -> 14.49057117 | BH20: =IF(O20>0,0.65*AD20,0.45*AD20) -> 17.41967725 | BI20: =IF(N20>0,0.15,0) -> 0.15 | BJ20: =IF(O20>0,0.15,0) -> 0.15 | BK20: =$BK$17+(1-$BK$17)*(1-EXP(-0.25*Q20)) -> 0.7573877361 | BL20: =$BL$17+(1-$BL$17)*(1-EXP(-0.25*Q20)) -> 0.8180408021 | BM20: =0.8+0.2*(1-EXP(-0.25*(40-S20))) -> 0.99999092 | BN20: =-0.1+1.1*(1-EXP(-0.08*T20)) -> 0.845055737 | BO20: 1 | BP20: =0.91+0.115/(1+EXP(0.13*(90-(AG20/AE20)))) -> 1.024852752 | BQ20: =0.91+0.115/(1+EXP(0.13*(90-AH20/AF20))) -> 1.022042447
F21: PDI_VPR pot | H21: Variació reserves corporals PDI | I21: =IF(I22=1,100+33*I20,IF(I22=2,50+33*I20,33*I20)) -> 22.68260699
F22: Setmana lactació | I22: =IF(I15="",I12,0) -> 8 | K22: ici
F23: Setmana gestació | I23: =IF(I15="",I14,I15) -> 0 | BR23: Exemples segons valor interval entre parts
A24: Interval part fecundació (dies) | D24: =D6-284 -> 133 | J24: =IF(K24=K20,0,K24) -> 5 | K24: =IF(L24<$N$7,L24,$N$7) -> 5 | L24: 5 | M24: 0 | N24: =IF(Q24=0,0,IF(R24="",N$19*(-0.55+1.66*EXP(-0.0065*Q24)-0.72*EXP(-0.44*Q24)),N$19*(-0.55+1.66*EXP(-0.0065*Q24)-0.72*EXP(-0.44*Q24)-(0.69*EXP(-0.16*(45-R24)))))) -> 45.07431041 | O24: =IF(Q24=0,0,IF(R24="",O$19*(-0.83+1.92*EXP(-0.0083*Q24)-0.74*EXP(-0.88*Q24)),O$19*(-0.83+1.92*EXP(-0.0083*Q24)-0.74*EXP(-0.88*Q24)-(0.5*EXP(-0.12*(45-R24)))))) -> 52.29509387 | P24: 4 a 6 | Q24: =IF(K24=K20,0,K24) -> 5 | R24: =IF(Q24=0,R20+4,IF((Q24-$D$25)<0,"",Q24-$D$25)) ->  | S24: =IF(R24>40,0,R24) -> 0 | T24: =IF(Q24=0,T20+1,24+(Q24/4)) -> 25.25 | U24: 2.662386236 | V24: 2.731975627 | W24: 4.02816472 | X24: 3.693502682 | Y24: =33*W24 -> 132.9294358 | Z24: =33*X24 -> 121.8855885 | AA24: =(14.25+(0.015*($D$10-600))+(0.11*N24)+((2.5-U24)))*BK24*BM24*BN24*BP24 -> 15.90130688 | AB24: =(14.25+(0.015*($D$10-600))+0.11*O24+((2.5-V24)))*BL24*BM24*BO24*BQ24 -> 19.76864917 | AC24: =IF(Q24>0,0.372*N24+0.0968*$D$10^0.75*(1-EXP(-0.192*(Q24+3.67))),0.372*N24+0.0968*$D$10^0.75*(1-EXP(-0.192*($N$7+1+3.67)))) -> 27.44788667 | AD24: =IF(Q24>0,0.372*O24+0.0968*$D$10^0.75*(1-EXP(-0.192*(Q24+3.67))),0.372*O24+0.0968*$D$10^0.75*(1-EXP(-0.192*($N$7+1+3.67)))) -> 30.13401812 | AE24: =(0.0536*$D$10^0.75)*$K$6+N24*0.42+(3.14-0.077*T24)+IF(S24="",0,(0.000695*$D$12*EXP(0.116*S24)))-W24 -> 23.42097457 | AF24: =(0.0536*$D$10^0.75)*$K$6+O24*0.42+(3.14-0.077*U24)+IF(S24="",0,(0.000695*$D$12*EXP(0.116*S24)))-X24 -> 28.52761192 | AG24: =IF(S24="",19.8*AC24+0.312*$D$10+0.2*$D$10^0.6/$D$16+((270-6.66*T24)/$D$16)+(N24*31/$D$16)-Y24,19.8*AC24+0.312*$D$10+0.2*$D$10^0.6/$D$16+((270-6.66*T24)/$D$16)+(N24*31/$D$16)+0.0448*$D$12*EXP(0.111*S24)/$D$16-Y24) -> 2884.339646 | AH24: =IF(S24="",19.8*AD24+0.312*$D$10+0.2*$D$10^0.6/$D$16+(O24*31/$D$16)-Z24,19.8*AD24+0.312*$D$10+0.2*$D$10^0.6/$D$16+(O24*31/$D$16)+0.0448*$D$12*EXP(0.111*S24)/$D$16)-Z24 -> 3130.672309 | AI24: =(0.83*AC24+0.002*$D$10+0.9*N24+IF($S24=0,0,(7.38/(1+EXP(19.1-5.46*LN(S24)))))) -> 64.74862531 | AJ24: =(0.83*AD24+0.002*$D$10+0.9*O24+IF($S24=0,0,(7.38/(1+EXP(19.1-5.46*LN(S24)))))) -> 73.47681952 | AK24: =(0.663*AC24+0.008*$D$10+1.25*N24+IF(S24=0,0,(23.5/(1+EXP(18.8-(5.03*LN(S24))))))) -> 80.14083688 | AL24: =(0.663*AD24+0.008*$D$10+1.25*O24+IF(S24=0,0,(23.5/(1+EXP(18.8-(5.03*LN(S24))))))) -> 90.94772135 | AM24: =(0.011*$D$10+0.15*N24+IF(S24>36,0.33,0)) -> 14.46114656 | AN24: =(0.011*$D$10+0.15*O24+IF(S24>36,0.33,0)) -> 15.54426408 | AO24: =IF(N24>0,0.115*$D$10,0.07*$D$10)+IF(S24>24,1,0)+1.5*N24 -> 148.1114656 | AP24: =IF(O24>0,0.115*$D$10,0.07*$D$10)+IF(S24>24,1,0)+1.5*O24 -> 158.9426408 | AQ24: =IF(N24>0,0.023*$D$10,0.015*$D$10)+IF($S24>24,1.3,0)+0.45*N24 -> 36.38343968 | AR24: =IF(O24>0,0.023*$D$10,0.015*$D$10)+IF($S24>24,1.3,0)+0.45*O24 -> 39.63279224 | AS24: =2*AC24 -> 54.89577334 | AT24: 60.26803624 | AU24: =IF(N24>0,0.035*$D$10,0.023*$D$10)+IF($S24>24,1,0)+0.15*N24 -> 31.26114656 | AV24: =IF(O24>0,0.035*$D$10,0.023*$D$10)+IF($S24>24,1,0)+0.15*O24 -> 32.34426408 | AW24: =IF(S24="",0,IF(S24<27,N24/0.1,(N24+18)/0.1)) -> 450.7431041 | AX24: =IF(S24="",0,IF(S24<27,O24/0.1,(O24+18)/0.1)) -> 522.9509387 | AY24: =0.3*AC24 -> 8.234366001 | AZ24: =0.3*AD24 -> 9.040205436 | BA24: =10*AC24 -> 274.4788667 | BB24: =10*AD24 -> 301.3401812 | BC24: =50*AC24 -> 1372.394334 | BD24: =50*AD24 -> 1506.700906 | BE24: =50*AC24 -> 1372.394334 | BF24: =50*AD24 -> 1506.700906 | BG24: =IF(N24>0,0.65*AC24,0.45*AC24) -> 17.84112634 | BH24: =IF(O24>0,0.65*AD24,0.45*AD24) -> 19.58711178 | BI24: =IF(N24>0,0.15,0) -> 0.15 | BJ24: 0.15 | BK24: =$BK$17+(1-$BK$17)*(1-EXP(-0.25*Q24)) -> 0.8853980813 | BL24: =$BL$17+(1-$BL$17)*(1-EXP(-0.25*Q24)) -> 0.9140485609 | BM24: =0.8+0.2*(1-EXP(-0.25*(40-S24))) -> 0.99999092 | BN24: 0.8540789884 | BO24: 1 | BP24: =0.91+0.115/(1+EXP(0.13*(90-AG24/AE24))) -> 1.023475257 | BQ24: =0.91+0.115/(1+EXP(0.13*(90-AH24/AF24))) -> 1.01679706 | BR24: 365 | BS24: =BR24+10 -> 375 | BT24: =BS24+10 -> 385 | BU24: 395 | BV24: 405 | BW24: 415 | BX24: 425 | BY24: 435 | BZ24: 445 | CA24: 455 | CB24: 465
A25: Setmana inseminació fecundant | D25: =D24/7 -> 19 | J25: =IF(K25=K24,0,K25) -> 9.5 | K25: 9.5 | L25: 9.5 | M25: 0 | N25: =IF(Q25=0,0,IF(R25="",N$19*(-0.55+1.66*EXP(-0.0065*Q25)-0.72*EXP(-0.44*Q25)),N$19*(-0.55+1.66*EXP(-0.0065*Q25)-0.72*EXP(-0.44*Q25)-(0.69*EXP(-0.16*(45-R25)))))) -> 46.10952393 | O25: =IF(Q25=0,0,IF(R25="",O$19*(-0.83+1.92*EXP(-0.0083*Q25)-0.74*EXP(-0.88*Q25)),O$19*(-0.83+1.92*EXP(-0.0083*Q25)-0.74*EXP(-0.88*Q25)-(0.5*EXP(-0.12*(45-R25)))))) -> 49.23852914 | P25: 7 a 12 | Q25: =IF(K25=K24,0,K25) -> 9.5 | R25: =IF(Q25=0,R24+4,IF((Q25-$D$25)<0,"",Q25-$D$25)) ->  | S25: 0 | T25: =IF(Q25=0,T24+1,24+(Q25/4)) -> 26.375 | U25: 2.437145069 | V25: 2.525447615 | W25: 0.3944668053 | X25: 0.3616942962 | Y25: =33*W25 -> 13.01740458 | Z25: 11.93591178 | AA25: =(14.25+(0.015*($D$10-600))+(0.11*N25)+((2.5-U25)))*BK25*BM25*BN25*BP25 -> 17.75703374 | AB25: =(14.25+(0.015*($D$10-600))+0.11*O25+((2.5-V25)))*BL25*BM25*BO25*BQ25 -> 20.63163602 | AC25: =IF(Q25>0,0.372*N25+0.0968*$D$10^0.75*(1-EXP(-0.192*(Q25+3.67))),0.372*N25+0.0968*$D$10^0.75*(1-EXP(-0.192*($N$7+1+3.67)))) -> 29.27536278 | AD25: =IF(Q25>0,0.372*O25+0.0968*$D$10^0.75*(1-EXP(-0.192*(Q25+3.67))),0.372*O25+0.0968*$D$10^0.75*(1-EXP(-0.192*($N$7+1+3.67)))) -> 30.43935272 | AE25: =(0.0536*$D$10^0.75)*$K$6+N25*0.42+(3.14-0.077*T25)+IF(S25="",0,(0.000695*$D$12*EXP(0.116*S25)))-W25 -> 27.40283716 | AF25: =(0.0536*$D$10^0.75)*$K$6+O25*0.42+(3.14-0.077*U25)+IF(S25="",0,(0.000695*$D$12*EXP(0.116*S25)))-X25 -> 30.59300669 | AG25: =IF(S25="",19.8*AC25+0.312*$D$10+0.2*$D$10^0.6/$D$16+((270-6.66*T25)/$D$16)+(N25*31/$D$16)-Y25,19.8*AC25+0.312*$D$10+0.2*$D$10^0.6/$D$16+((270-6.66*T25)/$D$16)+(N25*31/$D$16)+0.0448*$D$12*EXP(0.111*S25)/$D$16-Y25) -> 3077.150807 | AH25: =IF(S25="",19.8*AD25+0.312*$D$10+0.2*$D$10^0.6/$D$16+(O25*31/$D$16)-Z25,19.8*AD25+0.312*$D$10+0.2*$D$10^0.6/$D$16+(O25*31/$D$16)+0.0448*$D$12*EXP(0.111*S25)/$D$16)-Z25 -> 3105.244467 | AI25: 67.19712264 | AJ25: 70.97933898 | AK25: 82.64647043 | AL25: 87.32945227 | AM25: 14.61642859 | AN25: 15.08577937 | AO25: =IF(N25>0,0.115*$D$10,0.07*$D$10)+IF(S25>24,1,0)+1.5*N25 -> 149.6642859 | AP25: =IF(O25>0,0.115*$D$10,0.07*$D$10)+IF(S25>24,1,0)+1.5*O25 -> 154.3577937 | AQ25: =IF(N25>0,0.023*$D$10,0.015*$D$10)+IF($S25>24,1.3,0)+0.45*N25 -> 36.84928577 | AR25: 38.25733811 | AS25: 58.55072556 | AT25: 60.87870543 | AU25: =IF(N25>0,0.035*$D$10,0.023*$D$10)+IF($S25>24,1,0)+0.15*N25 -> 31.41642859 | AV25: 31.88577937 | AW25: 461.0952393 | AX25: 492.3852914 | AY25: =0.3*AC25 -> 8.782608834 | AZ25: 9.131805815 | BA25: =10*AC25 -> 292.7536278 | BB25: 304.3935272 | BC25: =50*AC25 -> 1463.768139 | BD25: 1521.967636 | BE25: =50*AC25 -> 1463.768139 | BF25: 1521.967636 | BG25: =IF(N25>0,0.65*AC25,0.45*AC25) -> 19.02898581 | BH25: 19.78557927 | BI25: 0.15 | BJ25: 0.15 | BK25: =$BK$17+(1-$BK$17)*(1-EXP(-0.25*Q25)) -> 0.9627942043 | BL25: =$BL$17+(1-$BL$17)*(1-EXP(-0.25*Q25)) -> 0.9720956532 | BM25: 0.99999092 | BN25: 0.8666382369 | BO25: 1 | BP25: =0.91+0.115/(1+EXP(0.13*(90-AG25/AE25))) -> 1.018991581 | BQ25: 1.003939138
A26: Període lactació (dies): IP - TE | D26: =D6-D7 -> 357 | F26: =D3*(1+(0.0055*(D4*10-40)+0.0033*(D5*10-31))) -> 11868 | J26: 16 | K26: 16 | L26: 16 | M26: 0 | N26: 43.61037358 | O26: 44.38788749 | P26: 13 a 16 | Q26: 16 | S26: 0 | T26: 28 | U26: 2.505730716 | V26: 2.58833513 | W26: -0.822340218 | X26: -0.7540197613 | Y26: -27.13722719 | Z26: -24.88265212 | AA26: 18.28463935 | AB26: 20.30725943 | AC26: 29.09482452 | AD26: 29.3840597 | AE26: 27.44487604 | AF26: 29.66617016 | AG26: 2981.945467 | AH26: 2896.735556 | AI26: 64.79804058 | AJ26: 65.73786829 | AK26: 79.40283564 | AL26: 80.56649095 | AM26: 14.24155604 | AN26: 14.35818312 | AO26: 145.9155604 | AP26: 147.0818312 | AQ26: 35.72466811 | AR26: 36.07454937 | AS26: 58.18964905 | AT26: 58.76811939 | AU26: 31.04155604 | AV26: 31.15818312 | AW26: 436.1037358 | AX26: 443.8788749 | AY26: 8.728447357 | AZ26: 8.815217909 | BA26: 290.9482452 | BB26: 293.840597 | BC26: 1454.741226 | BD26: 1469.202985 | BE26: 1454.741226 | BF26: 1469.202985 | BG26: 18.91163594 | BH26: 19.0996388 | BI26: 0.15 | BJ26: 0.15 | BK26: 0.9926737444 | BL26: 0.9945053083 | BM26: 0.99999092 | BN26: 0.8828956452 | BO26: 1 | BP26: 1.015650235 | BQ26: 0.9939307336
A27: % dies productius (IP - TE)/IP | D27: =D26/D6 -> 0.8561151079 | J27: 20 | K27: 20 | L27: =L26+4 -> 20 | M27: 1 | N27: 41.8354354 | O27: 41.39232293 | P27: 17 a 20 | Q27: 20 | R27: 1 | S27: 1 | T27: 29 | U27: 2.604098371 | V27: 2.678530348 | W27: -0.9758633969 | X27: -0.894788154 | Y27: -32.2034921 | Z27: -29.52800908 | AA27: 18.27284593 | AB27: 19.86875784 | AC27: 28.59625807 | AD27: 28.43142023 | AE27: 26.77934447 | AF27: 28.54464641 | AG27: 2885.389799 | AH27: 2744.23189 | AI27: 62.78678609 | AJ27: 62.25116946 | AK27: 76.85361351 | AL27: 76.19043543 | AM27: 13.97531531 | AN27: 13.90884844 | AO27: 143.2531531 | AP27: 142.5884844 | AQ27: 34.92594593 | AR27: 34.72654532 | AS27: 57.19251614 | AT27: 56.86284046 | AU27: 30.77531531 | AV27: 30.70884844 | AW27: 418.354354 | AX27: 413.9232293 | AY27: 8.578877421 | AZ27: 8.529426069 | BA27: 285.9625807 | BB27: 284.3142023 | BC27: 1429.812903 | BD27: 1421.571011 | BE27: 1429.812903 | BF27: 1421.571011 | BG27: 18.58756775 | BH27: 18.48042315 | BI27: 0.15 | BJ27: 0.15 | BK27: 0.9973048212 | BL27: 0.9979786159 | BM27: 0.9999883411 | BN27: 0.8918990558 | BO27: 1 | BP27: 1.014588186 | BQ27: 0.9892971185
A28: Producció mitjana explotació, vaca munyida i any, estàndard, Pl vp 4% | D28: =(D3*(1+(0.0055*(D4*10-40)+0.0033*(D5*10-31))))/D27 -> 13862.62185 | J28: 24 | K28: 24 | L28: =L27+4 -> 24 | M28: 5 | N28: 40.08889285 | O28: 38.541191 | P28: 21 a 24 | Q28: 24 | R28: 5 | S28: 5 | T28: 30 | U28: 2.712319228 | V28: 2.77776016 | W28: -1.024823669 | X28: -0.9396807811 | Y28: -33.81918108 | Z28: -31.00946578 | AA28: 18.18368221 | AB28: 19.39433509 | AC28: 28.02156824 | AD28: 27.44582315 | AE28: 26.03618945 | AF28: 27.40216321 | AG28: 2786.546581 | AH28: 2595.950908 | AI28: 60.73815033 | AJ28: 58.86735025 | AK28: 74.28994321 | AL28: 71.9735969 | AM28: 13.71333393 | AN28: 13.48117865 | AO28: 140.6333393 | AP28: 138.3117865 | AQ28: 34.14000178 | AR28: 33.44353595 | AS28: 56.04313648 | AT28: 54.8916463 | AU28: 30.51333393 | AV28: 30.28117865 | AW28: 400.8889285 | AX28: 385.41191 | AY28: 8.406470472 | AZ28: 8.233746945 | BA28: 280.2156824 | BB28: 274.4582315 | BC28: 1401.078412 | BD28: 1372.291158 | BE28: 1401.078412 | BF28: 1372.291158 | BG28: 18.21401936 | BH28: 17.83978505 | BI28: 0.15 | BJ28: 0.15 | BK28: 0.9990084991 | BL28: 0.9992563743 | BM28: 0.9999683077 | BN28: 0.9002102514 | BO28: 1 | BP28: 1.013665997 | BQ28: 0.9846595327
A29: Producció mitjana explotació, vaca 305 lactació Pl vl 4% | D29: =D28*385/(365+80) -> 11993.5043 | E29: =D28*385/(D6+80) -> 10738.65073 | F29: =D28*D27 -> 11868 | J29: 28 | K29: 28 | L29: 28 | M29: 9 | N29: 38.3607966 | O29: 35.73009656 | P29: 25 a 28 | Q29: 28 | R29: 9 | S29: 9 | T29: 31 | U29: 2.823682356 | V29: 2.87987118 | W29: -1.040437434 | X29: -0.9539973464 | Y29: -34.33443533 | Z29: -31.48191243 | AA29: 18.0546598 | AB29: 18.89875869 | AC29: 27.41352307 | AD29: 26.43490265 | AE29: 25.2783184 | AF29: 26.25656075 | AG29: 2687.729631 | AH29: 2448.945646 | AI29: 58.6840062 | AJ29: 55.50412121 | AK29: 71.73630029 | AL29: 67.79909989 | AM29: 13.45411949 | AN29: 13.05951448 | AO29: 138.0411949 | AP29: 134.0951448 | AQ29: 33.36235847 | AR29: 32.17854345 | AS29: 54.82704614 | AT29: 52.8698053 | AU29: 30.25411949 | AV29: 29.85951448 | AW29: 383.607966 | AX29: 357.3009656 | AY29: 8.224056921 | AZ29: 7.930470796 | BA29: 274.1352307 | BB29: 264.3490265 | BC29: 1370.676153 | BD29: 1321.745133 | BE29: 1370.676153 | BF29: 1321.745133 | BG29: 17.81878999 | BH29: 17.18268672 | BI29: 0.15 | BJ29: 0.15 | BK29: 0.9996352472 | BL29: 0.9997264354 | BM29: 0.9999138515 | BN29: 0.9078824518 | BO29: 1 | BP29: 1.01270111 | BQ29: 0.9795403299
A30: Vaques primera lactació | D30: =D8*D9 -> 78.588 | J30: 32 | K30: 32 | L30: 32 | M30: 13 | N30: 36.6327599 | O30: 32.9250408 | P30: 29 a 32 | Q30: 32 | R30: 13 | S30: 13 | T30: 32 | U30: 2.936047574 | V30: 2.982901037 | W30: -1.045416766 | X30: -0.9585629932 | Y30: -34.49875329 | Z30: -31.63257877 | AA30: 17.8973843 | AB30: 18.38676842 | AC30: 26.78684161 | AD30: 25.4075701 | AE30: 24.52714652 | AF30: 25.12097507 | AG30: 2589.651001 | AH30: 2303.028547 | AI30: 56.64748976 | AJ30: 52.16574723 | AK30: 69.21493557 | AL30: 63.66582969 | AM30: 13.19491398 | AN30: 12.63875612 | AO30: 135.4491398 | AP30: 129.8875612 | AQ30: 32.58474195 | AR30: 30.91626836 | AS30: 53.57368321 | AT30: 50.81514021 | AU30: 29.99491398 | AV30: 29.43875612 | AW30: 366.327599 | AX30: 329.250408 | AY30: 8.036052482 | AZ30: 7.622271031 | BA30: 267.8684161 | BB30: 254.075701 | BC30: 1339.34208 | BD30: 1270.378505 | BE30: 1339.34208 | BF30: 1270.378505 | BG30: 17.41144704 | BH30: 16.51492057 | BI30: 0.15 | BJ30: 0.15 | BK30: 0.9998658149 | BL30: 0.9998993612 | BM30: 0.9997658241 | BN30: 0.9149647855 | BO30: 1 | BP30: 1.011600095 | BQ30: 0.973744979
A31: Vaques adultes | D31: =D8*(1-D9) -> 143.412 | F31: =D28/D27 -> 16192.47426 | J31: 36 | K31: 36 | L31: 36 | M31: 17 | N31: 34.86606098 | O31: 30.07299366 | P31: 33 a 36 | Q31: 36 | R31: 17 | S31: 17 | T31: 33 | U31: 3.048732365 | V31: 3.086223917 | W31: -1.047004708 | X31: -0.9600190079 | Y31: -34.55115537 | Z31: -31.68062726 | AA31: 17.71026309 | AB31: 17.8521927 | AC31: 26.1371214 | AD31: 24.35410036 | AE31: 23.78387313 | AF31: 23.99004677 | AG31: 2491.484463 | AH31: 2156.586108 | AI31: 54.66377856 | AJ31: 48.8701105 | AK31: 66.75747896 | AL31: 59.58400186 | AM31: 12.92990915 | AN31: 12.21094905 | AO31: 132.7990915 | AP31: 125.6094905 | AQ31: 31.78972744 | AR31: 29.63284715 | AS31: 52.2742428 | AT31: 48.70820072 | AU31: 29.72990915 | AV31: 29.01094905 | AW31: 348.6606098 | AX31: 300.7299366 | AY31: 7.84113642 | AZ31: 7.306230107 | BA31: 261.371214 | BB31: 243.5410036 | BC31: 1306.85607 | BD31: 1217.705018 | BE31: 1306.85607 | BF31: 1217.705018 | BG31: 16.98912891 | BH31: 15.83016523 | BI31: 0.15 | BJ31: 0.15 | BK31: 0.9999506361 | BL31: 0.9999629771 | BM31: 0.9993634438 | BN31: 0.9215026035 | BO31: 1 | BP31: 1.010272518 | BQ31: 0.9671077017
A32: Vaques adultes en lactació | D32: =D31*D27 -> 122.7771799 | G32: =11000*385/480 -> 8822.916667 | J32: 40 | K32: 40 | L32: 40 | M32: 21 | N32: 32.98744307 | O32: 27.09010769 | P32: 37 a 40 | Q32: 40 | R32: 21 | S32: 21 | T32: 34 | U32: 3.16151907 | V32: 3.189640244 | W32: -1.047511113 | X32: -0.9604833405 | Y32: -34.56786674 | Z32: -31.69595024 | AA32: 17.4789635 | AB32: 17.27814914 | AC32: 25.44175128 | AD32: 23.24794252 | AE32: 23.0362934 | AF32: 22.8469478 | AG32: 2390.737275 | AH32: 2006.551233 | AI32: 52.77725059 | AJ32: 45.64878748 | AK32: 64.40041002 | AL32: 55.57424559 | AM32: 12.64811646 | AN32: 11.76351615 | AO32: 129.9811646 | AP32: 121.1351615 | AQ32: 30.94434938 | AR32: 28.29054846 | AS32: 50.88350256 | AT32: 46.49588504 | AU32: 29.44811646 | AV32: 28.56351615 | AW32: 329.8744307 | AX32: 270.9010769 | AY32: 7.632525384 | AZ32: 6.974382756 | BA32: 254.4175128 | BB32: 232.4794252 | BC32: 1272.087564 | BD32: 1162.397126 | BE32: 1272.087564 | BF32: 1162.397126 | BG32: 16.53713833 | BH32: 15.11116264 | BI32: 0.15 | BJ32: 0.15 | BK32: 0.99998184 | BL32: 0.99998638 | BM32: 0.998269661 | BN32: 0.9275377701 | BO32: 1 | BP32: 1.00856881 | BQ32: 0.9594275596
A33: Vaques adultes eixutes | D33: =D31*(1-D27) -> 20.63482014 | J33: 44 | K33: 44 | L33: 44 | M33: 25 | N33: 30.85882614 | O33: 23.84267189 | P33: 41 a 44 | Q33: 44 | R33: 25 | S33: 25 | T33: 35 | U33: 3.274338277 | V33: 3.293086371 | W33: -1.047672609 | X33: -0.9606314192 | Y33: -34.5731961 | Z33: -31.70083683 | AA33: 17.16608747 | AB33: 16.63010975 | AC33: 24.65151832 | AD33: 22.04150894 | AE33: 22.25299975 | AF33: 21.66204972 | AG33: 2282.047628 | AH33: 1847.794423 | AI33: 50.9527719 | AJ33: 42.47192529 | AK33: 62.12860115 | AL33: 51.62797211 | AM33: 12.32882392 | AN33: 11.27640078 | AO33: 127.7882392 | AP33: 117.2640078 | AQ33: 31.28647176 | AR33: 28.12920235 | AS33: 49.30303663 | AT33: 44.08301787 | AU33: 30.12882392 | AV33: 29.07640078 | AW33: 308.5882614 | AX33: 238.4267189 | AY33: 7.395455495 | AZ33: 6.612452681 | BA33: 246.5151832 | BB33: 220.4150894 | BC33: 1232.575916 | BD33: 1102.075447 | BE33: 1232.575916 | BF33: 1102.075447 | BG33: 16.02348691 | BH33: 14.32698081 | BI33: 0.15 | BJ33: 0.15 | BK33: 0.9999933193 | BL33: 0.9999949895 | BM33: 0.9952964508 | BN33: 0.9331089311 | BO33: 1 | BP33: 1.006183357 | BQ33: 0.9504639753
A34: Vaques primípares en lactació | D34: =D30*D27 -> 67.2803741 | J34: 48 | K34: 48 | L34: 48 | M34: 29 | N34: 28.21928863 | O34: 20.11633341 | P34: 45 a 48 | Q34: 48 | R34: 29 | S34: 29 | T34: 36 | U34: 3.387167848 | V34: 3.396542002 | W34: -1.047724111 | X34: -0.9606786425 | Y34: -34.57489567 | Z34: -31.7023952 | AA34: 16.68221737 | AB34: 15.83821439 | AC34: 23.67035849 | AD34: 20.65605914 | AE34: 21.36575153 | AF34: 20.38665295 | AG34: 2154.530842 | AH34: 1671.928033 | AI34: 48.86875874 | AJ34: 39.07423059 | AK34: 59.72623325 | AL34: 47.59905876 | AM34: 11.9328933 | AN34: 10.71745001 | AO34: 123.828933 | AP34: 111.6745001 | AQ34: 30.09867989 | AR34: 26.45235004 | AS34: 47.34071697 | AT34: 41.31211829 | AU34: 29.7328933 | AV34: 28.51745001 | AW34: 462.1928863 | AX34: 381.1633341 | AY34: 7.101107546 | AZ34: 6.196817743 | BA34: 236.7035849 | BB34: 206.5605914 | BC34: 1183.517924 | BD34: 1032.802957 | BE34: 1183.517924 | BF34: 1032.802957 | BG34: 15.38573302 | BH34: 13.42643844 | BI34: 0.15 | BJ34: 0.15 | BK34: 0.9999975423 | BL34: 0.9999981567 | BM34: 0.9872144278 | BN34: 0.9382517609 | BO34: 1 | BP34: 1.002419503 | BQ34: 0.9400637414
A35: Vaques primípares eixutes | D35: =D30*(1-D27) -> 11.3076259 | J35: 51 | K35: 51 | L35: 52 | M35: 32 | N35: 25.62102081 | O35: 16.80684545 | P35: 49 a 52 | Q35: 51 | R35: 32 | S35: 32 | T35: 36.75 | U35: 3.471792358 | V35: 3.474135864 | W35: -1.047737992 | X35: -0.9606913703 | Y35: -34.57535375 | Z35: -31.70281522 | AA35: 16.08765366 | AB35: 15.06693609 | AC35: 22.70408636 | AD35: 19.42521312 | AE35: 20.55120522 | AF35: 19.32462693 | AG35: 2034.150597 | AH35: 1520.857209 | AI35: 46.66744527 | AJ35: 36.01322265 | AK35: 57.4507271 | AL35: 44.25911494 | AM35: 11.54315312 | AN35: 10.22102682 | AO35: 119.9315312 | AP35: 106.7102682 | AQ35: 28.92945937 | AR35: 24.96308045 | AS35: 45.40817271 | AT35: 38.85042624 | AU35: 29.34315312 | AV35: 28.02102682 | AW35: 436.2102081 | AX35: 348.0684545 | AY35: 6.811225907 | AZ35: 5.827563936 | BA35: 227.0408636 | BB35: 194.2521312 | BC35: 1135.204318 | BD35: 971.260656 | BE35: 1135.204318 | BF35: 971.260656 | BG35: 14.75765613 | BH35: 12.62638853 | BI35: 0.15 | BJ35: 0.15 | BK35: 0.9999988391 | BL35: 0.9999991293 | BM35: 0.9729329434 | BN35: 0.9418476984 | BO35: 1 | BP35: 0.9977065809 | BQ35: 0.9315169527
A36: Vaques adultes en lactació (%) | D36: =D32/D8 -> 0.5530503597 | J36: 0 | K36: 51 | L36: 56 | M36: 0 | N36: 0 | O36: 0 | P36: 53 a 56 | Q36: 0 | R36: 36 | S36: 36 | T36: 37.75 | U36: 3.5 | V36: 3.5 | W36: -1.047748226 | X36: -0.9607007537 | Y36: -34.57569146 | Z36: -31.70312487 | AA36: 7.10653182 | AB36: 8.712181215 | AC36: 13.1731302 | AD36: 13.1731302 | AE36: 10.3852937 | AF36: 12.93549623 | AG36: 702.1951683 | AH36: 671.5837957 | AI36: 16.86826342 | AJ36: 16.86826342 | AK36: 21.74615881 | AL36: 21.74615881 | AM36: 7.7 | AN36: 7.7 | AO36: 50 | AP36: 50 | AQ36: 11.8 | AR36: 11.8 | AS36: 26.34626039 | AT36: 26.34626039 | AU36: 17.1 | AV36: 17.1 | AW36: 180 | AX36: 180 | AY36: 3.951939059 | AZ36: 3.951939059 | BA36: 131.731302 | BB36: 131.731302 | BC36: 658.6565098 | BD36: 658.6565098 | BE36: 658.6565098 | BF36: 658.6565098 | BG36: 5.927908589 | BH36: 5.927908589 | BI36: 0 | BJ36: 0 | BK36: 0.6 | BL36: 0.7 | BM36: 0.9264241118 | BN36: 0.9463186598 | BO36: 1 | BP36: 0.9159403274 | BQ36: 0.9108083221
A37: Vaques adultes eixutes (%) | D37: =D33/D8 -> 0.09294964029 | J37: 0 | K37: 51 | L37: 60 | M37: 0 | N37: 0 | O37: 0 | P37: 57 a 60 | Q37: 0 | R37: 40 | S37: 40 | T37: 38.75 | U37: 3.5 | V37: 3.5 | W37: -1.047748226 | X37: -0.9607007537 | Y37: -34.57569146 | Z37: -31.70312487 | AA37: 6.165413355 | AB37: 7.525068575 | AC37: 13.1731302 | AD37: 13.1731302 | AE37: 11.37691001 | AF37: 14.00411254 | AG37: 773.5494794 | AH37: 752.8784054 | AI37: 17.78823583 | AJ37: 17.78823583 | AK37: 24.65193565 | AL37: 24.65193565 | AM37: 8.03 | AN37: 8.03 | AO37: 50 | AP37: 50 | AQ37: 11.8 | AR37: 11.8 | AS37: 26.34626039 | AT37: 26.34626039 | AU37: 17.1 | AV37: 17.1 | AW37: 180 | AX37: 180 | AY37: 3.951939059 | AZ37: 3.951939059 | BA37: 131.731302 | BB37: 131.731302 | BC37: 658.6565098 | BD37: 658.6565098 | BE37: 658.6565098 | BF37: 658.6565098 | BG37: 5.927908589 | BH37: 5.927908589 | BI37: 0 | BJ37: 0 | BK37: 0.6 | BL37: 0.7 | BM37: 0.8 | BN37: 0.9504458774 | BO37: 1 | BP37: 0.9162237599 | BQ37: 0.9110252512
A38: Vaques primípares en lactació (%) | D38: =D34/D8 -> 0.3030647482 | J38: 0 | K38: 51 | L38: 64 | M38: 0 | N38: 0 | O38: 0 | P38: 61 a 64 | Q38: 0 | R38: 44 | S38: 0 | T38: 39.75 | U38: 3.5 | V38: 3.5 | W38: -1.047748226 | X38: -0.9607007537 | Y38: -34.57569146 | Z38: -31.70312487 | AA38: 7.716438408 | AB38: 9.400325581 | AC38: 13.1731302 | AD38: 13.1731302 | AE38: 8.449177144 | AF38: 11.15337967 | AG38: 539.5424712 | AH38: 528.8116957 | AI38: 12.33369806 | AJ38: 12.33369806 | AK38: 14.33378532 | AL38: 14.33378532 | AM38: 7.7 | AN38: 7.7 | AO38: 49 | AP38: 49 | AQ38: 10.5 | AR38: 10.5 | AS38: 26.34626039 | AT38: 26.34626039 | AU38: 16.1 | AV38: 16.1 | AW38: 0 | AX38: 0 | AY38: 3.951939059 | AZ38: 3.951939059 | BA38: 131.731302 | BB38: 131.731302 | BC38: 658.6565098 | BD38: 658.6565098 | BE38: 658.6565098 | BF38: 658.6565098 | BG38: 5.927908589 | BH38: 5.927908589 | BI38: 0 | BJ38: 0 | BK38: 0.6 | BL38: 0.7 | BM38: 0.99999092 | BN38: 0.9542557794 | BO38: 1 | BP38: 0.9137192358 | BQ38: 0.9104514224
A39: Vaques primípares eixutes (%) | D39: =D35/D8 -> 0.0509352518 | J39: 0 | K39: 51 | L39: 68 | M39: 0 | N39: 0 | O39: 0 | P39: 65 a 68 | Q39: 0 | R39: 48 | S39: 0 | T39: 40.75 | U39: 3.5 | V39: 3.5 | W39: -1.047748226 | X39: -0.9607007537 | Y39: -34.57569146 | Z39: -31.70312487 | AA39: 7.742583381 | AB39: 9.400325581 | AC39: 13.1731302 | AD39: 13.1731302 | AE39: 8.372177144 | AF39: 11.15337967 | AG39: 529.6021727 | AH39: 528.8116957 | AI39: 12.33369806 | AJ39: 12.33369806 | AK39: 14.33378532 | AL39: 14.33378532 | AM39: 7.7 | AN39: 7.7 | AO39: 49 | AP39: 49 | AQ39: 10.5 | AR39: 10.5 | AS39: 26.34626039 | AT39: 26.34626039 | AU39: 16.1 | AV39: 16.1 | AW39: 0 | AX39: 0 | AY39: 3.951939059 | AZ39: 3.951939059 | BA39: 131.731302 | BB39: 131.731302 | BC39: 658.6565098 | BD39: 658.6565098 | BE39: 658.6565098 | BF39: 658.6565098 | BG39: 5.927908589 | BH39: 5.927908589 | BI39: 0 | BJ39: 0 | BK39: 0.6 | BL39: 0.7 | BM39: 0.99999092 | BN39: 0.9577727622 | BO39: 1 | BP39: 0.9134485309 | BQ39: 0.9104514224
J40: 0 | K40: 51 | L40: 72 | M40: 0 | N40: 0 | O40: 0 | P40: 69 a 71 | Q40: 0 | R40: 52 | S40: 0 | T40: 41.75 | U40: 3.5 | V40: 3.5 | W40: -1.047748226 | X40: -0.9607007537 | Y40: -34.57569146 | Z40: -31.70312487 | AA40: 7.766650773 | AB40: 9.400325581 | AC40: 13.1731302 | AD40: 13.1731302 | AE40: 8.295177144 | AF40: 11.15337967 | AG40: 519.6618742 | AH40: 528.8116957 | AI40: 12.33369806 | AJ40: 12.33369806 | AK40: 14.33378532 | AL40: 14.33378532 | AM40: 7.7 | AN40: 7.7 | AO40: 49 | AP40: 49 | AQ40: 10.5 | AR40: 10.5 | AS40: 26.34626039 | AT40: 26.34626039 | AU40: 16.1 | AV40: 16.1 | AW40: 0 | AX40: 0 | AY40: 3.951939059 | AZ40: 3.951939059 | BA40: 131.731302 | BB40: 131.731302 | BC40: 658.6565098 | BD40: 658.6565098 | BE40: 658.6565098 | BF40: 658.6565098 | BG40: 5.927908589 | BH40: 5.927908589 | BI40: 0 | BJ40: 0 | BK40: 0.6 | BL40: 0.7 | BM40: 0.99999092 | BN40: 0.9610193465 | BO40: 1 | BP40: 0.9131924656 | BQ40: 0.9104514224
J41: 0 | K41: 51 | L41: 76 | M41: 0 | N41: 0 | O41: 0 | P41: 72 a 75 | Q41: 0 | R41: 56 | S41: 0 | T41: 42.75 | U41: 3.5 | V41: 3.5 | W41: -1.047748226 | X41: -0.9607007537 | Y41: -34.57569146 | Z41: -31.70312487 | AA41: 7.788808131 | AB41: 9.400325581 | AC41: 13.1731302 | AD41: 13.1731302 | AE41: 8.218177144 | AF41: 11.15337967 | AG41: 509.7215757 | AH41: 528.8116957 | AI41: 12.33369806 | AJ41: 12.33369806 | AK41: 14.33378532 | AL41: 14.33378532 | AM41: 7.7 | AN41: 7.7 | AO41: 49 | AP41: 49 | AQ41: 10.5 | AR41: 10.5 | AS41: 26.34626039 | AT41: 26.34626039 | AU41: 16.1 | AV41: 16.1 | AW41: 0 | AX41: 0 | AY41: 3.951939059 | AZ41: 3.951939059 | BA41: 131.731302 | BB41: 131.731302 | BC41: 658.6565098 | BD41: 658.6565098 | BE41: 658.6565098 | BF41: 658.6565098 | BG41: 5.927908589 | BH41: 5.927908589 | BI41: 0 | BJ41: 0 | BK41: 0.6 | BL41: 0.7 | BM41: 0.99999092 | BN41: 0.9640163216 | BO41: 1 | BP41: 0.9129506273 | BQ41: 0.9104514224
J42: 0 | K42: 51 | L42: 80 | M42: 0 | N42: 0 | O42: 0 | P42: 76 a 79 | Q42: 0 | R42: 60 | S42: 0 | T42: 43.75 | U42: 3.5 | V42: 3.5 | W42: -1.047748226 | X42: -0.9607007537 | Y42: -34.57569146 | Z42: -31.70312487 | AA42: 7.809209555 | AB42: 9.400325581 | AC42: 13.1731302 | AD42: 13.1731302 | AE42: 8.141177144 | AF42: 11.15337967 | AG42: 499.7812772 | AH42: 528.8116957 | AI42: 12.33369806 | AJ42: 12.33369806 | AK42: 14.33378532 | AL42: 14.33378532 | AM42: 7.7 | AN42: 7.7 | AO42: 49 | AP42: 49 | AQ42: 10.5 | AR42: 10.5 | AS42: 26.34626039 | AT42: 26.34626039 | AU42: 16.1 | AV42: 16.1 | AW42: 0 | AX42: 0 | AY42: 3.951939059 | AZ42: 3.951939059 | BA42: 131.731302 | BB42: 131.731302 | BC42: 658.6565098 | BD42: 658.6565098 | BE42: 658.6565098 | BF42: 658.6565098 | BG42: 5.927908589 | BH42: 5.927908589 | BI42: 0 | BJ42: 0 | BK42: 0.6 | BL42: 0.7 | BM42: 0.99999092 | BN42: 0.9667828782 | BO42: 1 | BP42: 0.9127225895 | BQ42: 0.9104514224
J43: 0 | K43: 51 | L43: 84 | M43: 0 | N43: 0 | O43: 0 | P43: 80 a 83 | Q43: 0 | R43: 64 | S43: 0 | T43: 44.75 | U43: 3.5 | V43: 3.5 | W43: -1.047748226 | X43: -0.9607007537 | Y43: -34.57569146 | Z43: -31.70312487 | AA43: 7.827996759 | AB43: 9.400325581 | AC43: 13.1731302 | AD43: 13.1731302 | AE43: 8.064177144 | AF43: 11.15337967 | AG43: 489.8409787 | AH43: 528.8116957 | AI43: 12.33369806 | AJ43: 12.33369806 | AK43: 14.33378532 | AL43: 14.33378532 | AM43: 7.7 | AN43: 7.7 | AO43: 49 | AP43: 49 | AQ43: 10.5 | AR43: 10.5 | AS43: 26.34626039 | AT43: 26.34626039 | AU43: 16.1 | AV43: 16.1 | AW43: 0 | AX43: 0 | AY43: 3.951939059 | AZ43: 3.951939059 | BA43: 131.731302 | BB43: 131.731302 | BC43: 658.6565098 | BD43: 658.6565098 | BE43: 658.6565098 | BF43: 658.6565098 | BG43: 5.927908589 | BH43: 5.927908589 | BI43: 0 | BJ43: 0 | BK43: 0.6 | BL43: 0.7 | BM43: 0.99999092 | BN43: 0.9693367319 | BO43: 1 | BP43: 0.9125079141 | BQ43: 0.9104514224
J44: 0 | K44: 51 | L44: 88 | M44: 0 | N44: 0 | O44: 0 | P44: 84 a 87 | Q44: 0 | R44: 68 | S44: 0 | T44: 45.75 | U44: 3.5 | V44: 3.5 | W44: -1.047748226 | X44: -0.9607007537 | Y44: -34.57569146 | Z44: -31.70312487 | AA44: 7.84530004 | AB44: 9.400325581 | AC44: 13.1731302 | AD44: 13.1731302 | AE44: 7.987177144 | AF44: 11.15337967 | AG44: 479.9006802 | AH44: 528.8116957 | AI44: 12.33369806 | AJ44: 12.33369806 | AK44: 14.33378532 | AL44: 14.33378532 | AM44: 7.7 | AN44: 7.7 | AO44: 49 | AP44: 49 | AQ44: 10.5 | AR44: 10.5 | AS44: 26.34626039 | AT44: 26.34626039 | AU44: 16.1 | AV44: 16.1 | AW44: 0 | AX44: 0 | AY44: 3.951939059 | AZ44: 3.951939059 | BA44: 131.731302 | BB44: 131.731302 | BC44: 658.6565098 | BD44: 658.6565098 | BE44: 658.6565098 | BF44: 658.6565098 | BG44: 5.927908589 | BH44: 5.927908589 | BI44: 0 | BJ44: 0 | BK44: 0.6 | BL44: 0.7 | BM44: 0.99999092 | BN44: 0.971694236 | BO44: 1 | BP44: 0.9123061527 | BQ44: 0.9104514224
J45: 0 | K45: 51 | L45: 92 | M45: 0 | N45: =IF(Q45=0,0,IF(R45="",N$19*(-0.55+1.66*EXP(-0.0065*Q45)-0.72*EXP(-0.44*Q45))/$D$27,N$19*(-0.55+1.66*EXP(-0.0065*Q45)-0.72*EXP(-0.44*Q45)-(0.69*EXP(-0.16*(45-R45)))))/$D$27) -> 0 | O45: =IF(Q45=0,0,IF(R45="",O$19*(-0.83+1.92*EXP(-0.0083*Q45)-0.74*EXP(-0.88*Q45))/$D$27,O$19*(-0.83+1.92*EXP(-0.0083*Q45)-0.74*EXP(-0.88*Q45)-(0.5*EXP(-0.12*(45-R45)))))/$D$27) -> 0 | P45: 88 a 91 | Q45: 0 | R45: 72 | S45: 0 | T45: 46.75 | U45: 3.5 | V45: 3.5 | W45: -1.047748226 | X45: -0.9607007537 | Y45: -34.57569146 | Z45: -31.70312487 | AA45: 7.861239183 | AB45: 9.400325581 | AC45: 13.1731302 | AD45: 13.1731302 | AE45: 7.910177144 | AF45: 11.15337967 | AG45: 469.9603817 | AH45: 528.8116957 | AI45: 12.33369806 | AJ45: 12.33369806 | AK45: 14.33378532 | AL45: 14.33378532 | AM45: 7.7 | AN45: 7.7 | AO45: 49 | AP45: 49 | AQ45: 10.5 | AR45: 10.5 | AS45: 26.34626039 | AT45: 26.34626039 | AU45: 16.1 | AV45: 16.1 | AW45: 0 | AX45: 0 | AY45: 3.951939059 | AZ45: 3.951939059 | BA45: 131.731302 | BB45: 131.731302 | BC45: 658.6565098 | BD45: 658.6565098 | BE45: 658.6565098 | BF45: 658.6565098 | BG45: 5.927908589 | BH45: 5.927908589 | BI45: 0 | BJ45: 0 | BK45: 0.6 | BL45: 0.7 | BM45: 0.99999092 | BN45: 0.9738704866 | BO45: 1 | BP45: 0.9121168489 | BQ45: 0.9104514224
BB46: =IF(AB46="","",15.7*AD46) ->  | BG46: =IF(AA46="","",IF(Q46=0,0.33*AC46,0.45*AC46)) ->  | BH46: =IF(AB46="","",IF(Q46=0,0.33*AD46,0.45*AD46)) -> 
F47: durada | AW47: =IF(S47="","",IF(S47<27,N47,N47+18)) ->  | BG47: =IF(AA47="","",IF(Q47=0,0.33*AC47,0.45*AC47)) ->  | BH47: =IF(AB47="","",IF(Q47=0,0.33*AD47,0.45*AD47)) -> 
A48: Necessitats tres primeres setmanes des del part | D48: =IF(Q20>0,"Lactació",IF(S20=0,"","Eixugat")) -> Lactació
A49: Necessitats 4a a 6a setmanes des del part | D49: =IF(Q24>0,"Lactació",IF(S24=0,"","Eixugat")) -> Lactació
A50: Necessitats 7 a 12 setmanes des del part | D50: =IF(Q25>0,"Lactació",IF(S25=0,"","Eixugat")) -> Lactació | L50: Un grup | M50: Durada, dies | O50: Total vaques | P50: prim | Q50: multi | R50: Producció llet | T50: CI | U50: CI MS | V50: UFL | W50: PDI | X50: P | Y50: UFL_VPR | Z50: PDI_VPR | AA50: Ca | AB50: Mg | AC50: K | AD50: Na | AE50: S | AF50: Cl | AG50: Fe | AH50: Co | AI50: Cu | AJ50: Mn | AK50: Zn | AL50: I | AM50: Se
A51: Necessitats 13 a 16 setmanes des del part | D51: =IF(Q26>0,"Lactació",IF(S26=0,"","Eixugat")) -> Lactació | M51: =IF(D48="","",IF(Q20=0,IF(S20="","",30),3*7)) -> 21 | N51: =IF(D48="","",IF(M51="","",M51/$M$86)) -> 0.05035971223 | O51: =IF(M51="","",IF(N51="","",N51*$D$8)) -> 11.17985612 | P51: =IF(D48="","",IF(O51="","",O51*$D$9)) -> 3.957669065 | Q51: =IF($D48="","",IF(O51="","",O51*(1-$D$9))) -> 7.22218705 | R51: =IF($D48="","",IF(N20="","",N20*$D$9+O20*(1-$D$9))) -> 44.26341126 | T51: =IF(AA20="","",IF($D48="","",AA20*$D$9+AB20*(1-$D$9))) -> 15.44675823 | U51: =IF(AA20="","",IF($D48="","",AC20*$D$9+AD20*(1-$D$9))) -> 25.20426722 | V51: =IF(AA20="","",IF($D48="","",AE20*$D$9+AF20*(1-$D$9))) -> 20.36344387 | W51: =IF(AB20="","",IF($D48="","",AG20*$D$9+AH20*(1-$D$9))) -> 2530.27041 | X51: =IF(AB20="","",IF($D48="","",AI20*$D$9+AJ20*(1-$D$9))) -> 62.15661192 | Y51: =IF(AA20="","",IF($D48="","",W20*$D$9+X20*(1-$D$9))) -> 7.863871561 | Z51: =IF(AB20="","",IF($D48="","",Y20*$D$9+Z20*(1-$D$9))) -> 309.5077615 | AA51: =IF(AB20="","",IF($D48="","",AK20*$D$9+AL20*(1-$D$9))) -> 77.63969324 | AB51: =IF(AB20="","",IF($D48="","",AM20*$D$9+AN20*(1-$D$9))) -> 14.33951169 | AC51: =IF(AB20="","",IF($D48="","",AO20*$D$9+AP20*(1-$D$9))) -> 146.8951169 | AD51: =IF(AB20="","",IF($D48="","",AQ20*$D$9+AR20*(1-$D$9))) -> 36.01853506 | AE51: =IF(AB20="","",IF($D48="","",AS20*$D$9+AT20*(1-$D$9))) -> 50.40853445 | AF51: =IF(AB20="","",IF($D48="","",AU20*$D$9+AV20*(1-$D$9))) -> 31.13951169 | AG51: =IF(AB20="","",IF($D48="","",AW20*$D$9+AX20*(1-$D$9))) -> 442.6341126 | AH51: =IF(AB20="","",IF($D48="","",AY20*$D$9+AZ20*(1-$D$9))) -> 7.561280167 | AI51: =IF(AB20="","",IF($D48="","",BA20*$D$9+BB20*(1-$D$9))) -> 252.0426722 | AJ51: =IF(AB20="","",IF($D48="","",BC20*$D$9+BD20*(1-$D$9))) -> 1260.213361 | AK51: =IF(AB20="","",IF($D48="","",BE20*$D$9+BF20*(1-$D$9))) -> 1260.213361 | AL51: =IF(AB20="","",IF($D48="","",BG20*$D$9+BH20*(1-$D$9))) -> 16.38277369 | AM51: =IF(AB20="","",IF($D48="","",BI20*$D$9+BJ20*(1-$D$9))) -> 0.15
A52: Necessitats 17 a 20 setmanes des del part | D52: Lactació | M52: =IF(D49="","",IF(Q24=0,IF(S24="","",30),3*7)) -> 21 | N52: =IF(D49="","",IF(M52="","",M52/$M$86)) -> 0.05035971223 | O52: 11.17985612 | P52: 3.957669065 | Q52: 7.22218705 | R52: =IF($D49="","",IF(N24="","",N24*$D$9+O24*(1-$D$9))) -> 49.73893653 | T52: =IF(AA24="","",IF($D49="","",AA24*$D$9+AB24*(1-$D$9))) -> 18.39961 | U52: =IF(AA24="","",IF($D49="","",AC24*$D$9+AD24*(1-$D$9))) -> 29.18312759 | V52: =IF(AA24="","",IF($D49="","",AE24*$D$9+AF24*(1-$D$9))) -> 26.7198623 | W52: =IF(AB24="","",IF($D49="","",AG24*$D$9+AH24*(1-$D$9))) -> 3043.470547 | X52: =IF(AB24="","",IF($D49="","",AI24*$D$9+AJ24*(1-$D$9))) -> 70.38703877 | Y52: =IF(AA24="","",IF($D49="","",W24*$D$9+X24*(1-$D$9))) -> 3.811973044 | Z52: =IF(AB24="","",IF($D49="","",Y24*$D$9+Z24*(1-$D$9))) -> 125.7951104 | AA52: =IF(AB24="","",IF($D49="","",AK24*$D$9+AL24*(1-$D$9))) -> 87.12208425 | AB52: =IF(AB24="","",IF($D49="","",AM24*$D$9+AN24*(1-$D$9))) -> 15.16084048 | AC52: =IF(AB24="","",IF($D49="","",AO24*$D$9+AP24*(1-$D$9))) -> 155.1084048 | AD52: =IF(AB24="","",IF($D49="","",AQ24*$D$9+AR24*(1-$D$9))) -> 38.48252144 | AE52: =IF(AB24="","",IF($D49="","",AS24*$D$9+AT24*(1-$D$9))) -> 58.36625517 | AF52: =IF(AB24="","",IF($D49="","",AU24*$D$9+AV24*(1-$D$9))) -> 31.96084048 | AG52: =IF(AB24="","",IF($D49="","",AW24*$D$9+AX24*(1-$D$9))) -> 497.3893653 | AH52: =IF(AB24="","",IF($D49="","",AY24*$D$9+AZ24*(1-$D$9))) -> 8.754938276 | AI52: =IF(AB24="","",IF($D49="","",BA24*$D$9+BB24*(1-$D$9))) -> 291.8312759 | AJ52: =IF(AB24="","",IF($D49="","",BC24*$D$9+BD24*(1-$D$9))) -> 1459.156379 | AK52: =IF(AB24="","",IF($D49="","",BE24*$D$9+BF24*(1-$D$9))) -> 1459.156379 | AL52: =IF(AB24="","",IF($D49="","",BG24*$D$9+BH24*(1-$D$9))) -> 18.96903293 | AM52: =IF(AB24="","",IF($D49="","",BI24*$D$9+BJ24*(1-$D$9))) -> 0.15
A53: Necessitats 21 a 24 setmanes des del part | D53: Lactació | M53: =IF(D50="","",IF(Q25=0,IF(S25="","",30),6*7)) -> 42 | N53: 0.1007194245 | O53: 22.35971223 | P53: 7.915338129 | Q53: 14.4443741 | R53: 48.13086129 | T53: 19.61402682 | U53: 30.02730028 | V53: 29.46368668 | W53: 3095.299311 | X53: 69.64043439 | Y53: 0.3732957645 | Z53: 12.31876023 | AA53: 85.6716767 | AB53: 14.91962919 | AC53: 152.6962919 | AD53: 37.75888758 | AE53: 60.05460056 | AF53: 31.71962919 | AG53: 481.3086129 | AH53: 9.008190084 | AI53: 300.2730028 | AJ53: 1501.365014 | AK53: 1501.365014 | AL53: 19.51774518 | AM53: 0.15
A54: Necessitats 25 a 28 setmanes des del part | D54: Lactació | M54: =IF(D51="","",IF(Q26=0,IF(S26="","",30),4*7)) -> 28 | N54: 0.06714628297 | O54: 14.90647482 | P54: 5.276892086 | Q54: 9.629582734 | R54: 44.11264757 | T54: 19.59125192 | U54: 29.28167045 | V54: 28.87983204 | W54: 2926.899864 | X54: 65.40516928 | Y54: -0.778205203 | Z54: -25.6807717 | AA54: 80.15455697 | AB54: 14.31689714 | AC54: 146.6689714 | AD54: 35.95069141 | AE54: 58.56334089 | AF54: 31.11689714 | AG54: 441.1264757 | AH54: 8.784501134 | AI54: 292.8167045 | AJ54: 1464.083522 | AK54: 1464.083522 | AL54: 19.03308579 | AM54: 0.15
A55: Necessitats 29 a 32 setmanes des del part | D55: Lactació | M55: =IF(D52="","",IF(Q27=0,IF(S27="","",30),(Q27-Q26)*7)) -> 28 | N55: 0.06714628297 | O55: 14.90647482 | P55: 5.276892086 | Q55: 9.629582734 | R55: 41.54918474 | T55: 19.30380502 | U55: 28.48977283 | V55: 27.91972952 | W55: 2794.20179 | X55: 62.44077775 | Y55: -0.92348879 | Z55: -30.47513007 | AA55: 76.42520047 | AB55: 13.93237771 | AC55: 142.8237771 | AD55: 34.79713313 | AE55: 56.97954565 | AF55: 30.73237771 | AG55: 415.4918474 | AH55: 8.546931848 | AI55: 284.8977283 | AJ55: 1424.488641 | AK55: 1424.488641 | AL55: 18.51835234 | AM55: 0.15
A56: Necessitats 33 a 36 setmanes des del part | D56: Lactació | M56: =IF(D53="","",IF(Q28=0,IF(S28="","",30),(Q28-Q27)*7)) -> 28 | N56: 0.06714628297 | O56: 14.90647482 | P56: 5.276892086 | Q56: 9.629582734 | R56: 39.08907746 | T56: 18.96576397 | U56: 27.64963691 | V56: 26.9186085 | W56: 2663.421777 | X56: 59.52961348 | Y56: -0.9698213634 | Z56: -32.00410499 | AA56: 72.7935835 | AB56: 13.56336162 | AC56: 139.1336162 | AD56: 33.69008486 | AE56: 55.29927383 | AF56: 30.36336162 | AG56: 390.8907746 | AH56: 8.294891074 | AI56: 276.4963691 | AJ56: 1382.481846 | AK56: 1382.481846 | AL56: 17.97226399 | AM56: 0.15
A57: Necessitats 37 a 40 setmanes des del part | D57: Lactació | M57: 28 | N57: 0.06714628297 | O57: 14.90647482 | P57: 5.276892086 | Q57: 9.629582734 | R57: 36.66136437 | T57: 18.59994768 | U57: 26.78133428 | V57: 25.91026296 | W57: 2533.475177 | X57: 56.6298005 | Y57: -0.9845971375 | Z57: -32.49170554 | AA57: 69.19286883 | AB57: 13.19920466 | AC57: 135.4920466 | AD57: 32.59761397 | AE57: 53.56266856 | AF57: 29.99920466 | AG57: 366.6136437 | AH57: 8.034400284 | AI57: 267.8133428 | AJ57: 1339.066714 | AK57: 1339.066714 | AL57: 17.40786728 | AM57: 0.15
A58: Necessitats 41 a 44 setmanes des del part | D58: Lactació | M58: 28 | N58: 0.06714628297 | O58: 14.90647482 | P58: 5.276892086 | Q58: 9.629582734 | R58: 34.23757336 | T58: 18.21352644 | U58: 25.89583222 | V58: 24.91075976 | W58: 2404.492896 | X58: 53.75228409 | Y58: -0.9893092289 | Z58: -32.64720455 | AA58: 65.63021317 | AB58: 12.835636 | AC58: 131.85636 | AD58: 31.50690801 | AE58: 51.79166443 | AF58: 29.635636 | AG58: 342.3757336 | AH58: 7.768749665 | AI58: 258.9583222 | AJ58: 1294.791611 | AK58: 1294.791611 | AL58: 16.83229094 | AM58: 0.15
A59: Necessitats 45 a 48 setmanes des del part | D59: Lactació | M59: 28 | N59: 0.06714628297 | O59: 14.90647482 | P59: 5.276892086 | Q59: 9.629582734 | R59: 31.76973949 | T59: 17.80194962 | U59: 24.98528981 | V59: 23.9170613 | W59: 2275.140126 | X59: 50.92106899 | Y59: -0.9908119458 | Z59: -32.69679421 | AA59: 62.12341275 | AB59: 12.46546092 | AC59: 128.1546092 | AD59: 30.39638277 | AE59: 49.97057961 | AF59: 29.26546092 | AG59: 317.6973949 | AH59: 7.495586942 | AI59: 249.8528981 | AJ59: 1249.26449 | AK59: 1249.26449 | AL59: 16.24043837 | AM59: 0.15
A60: Necessitats 49 a 52 setmanes des del part | D60: Lactació | M60: 28 | N60: 0.06714628297 | O60: 14.90647482 | P60: 5.276892086 | Q60: 9.629582734 | R60: 29.17776442 | T60: 17.34923742 | U60: 24.02455082 | V60: 22.91397614 | W60: 2142.553092 | X60: 48.17226343 | Y60: -0.9912911721 | Z60: -32.71260868 | AA60: 58.6987078 | AB60: 12.07666466 | AC60: 124.2666466 | AD60: 29.22999399 | AE60: 48.04910164 | AF60: 28.87666466 | AG60: 291.7776442 | AH60: 7.207365246 | AI60: 240.2455082 | AJ60: 1201.227541 | AK60: 1201.227541 | AL60: 15.61595803 | AM60: 0.15
A61: Necessitats 53 a 56 setmanes des del part | D61: Eixugat | M61: 28 | N61: 0.06714628297 | O61: 14.90647482 | P61: 5.276892086 | Q61: 9.629582734 | R61: 26.32639049 | T61: 16.81984586 | U61: 22.96545226 | V61: 21.87124603 | W61: 2001.520058 | X61: 45.47414499 | Y61: -0.9914440005 | Z61: -32.71765201 | AA61: 55.34519479 | AB61: 11.64895857 | AC61: 120.9895857 | AD61: 29.24687572 | AE61: 45.93090451 | AF61: 29.44895857 | AG61: 263.2639049 | AH61: 6.889635677 | AI61: 229.6545226 | AJ61: 1148.272613 | AK61: 1148.272613 | AL61: 14.92754397 | AM61: 0.15
A62: Necessitats 57 a 60 setmanes des del part | D62: Eixugat | M62: 28 | N62: 0.06714628297 | O62: 14.90647482 | P62: 5.276892086 | Q62: 9.629582734 | R62: 22.98477956 | T62: 16.13699145 | U62: 21.72312111 | V62: 20.73325385 | W62: 1842.769427 | X62: 42.54149355 | Y62: -0.9914927384 | Z62: -32.71926037 | AA62: 51.89207853 | AB62: 11.14771693 | AC62: 115.9771693 | AD62: 27.7431508 | AE62: 43.44624222 | AF62: 28.94771693 | AG62: 409.8477956 | AH62: 6.516936333 | AI62: 217.2312111 | AJ62: 1086.156056 | AK62: 1086.156056 | AL62: 14.12002872 | AM62: 0.15
A63: Necessitats 61 a 64 setmanes des del part | M63: 21 | N63: 0.05035971223 | O63: 11.17985612 | P63: 3.957669065 | Q63: 7.22218705 | R63: 19.92706353 | T63: 15.42827011 | U63: 20.58593425 | V63: 19.75883565 | W63: 1702.563069 | X63: 39.78481746 | Y63: -0.9915058745 | Z63: -32.71969386 | AA63: 48.92894565 | AB63: 10.68905953 | AC63: 111.3905953 | AD63: 26.36717859 | AE63: 41.17186849 | AF63: 28.48905953 | AG63: 379.2706353 | AH63: 6.175780274 | AI63: 205.8593425 | AJ63: 1029.296712 | AK63: 1029.296712 | AL63: 13.38085726 | AM63: 0.15
A64: Necessitats 65 a 68 setmanes des del part | M64: 30 | N64: 0.07194244604 | O64: 15.97122302 | P64: 5.65381295 | Q64: 10.31741007 | R64: 0 | T64: 8.143781329 | U64: 13.1731302 | V64: 12.03272453 | W64: 682.4202216 | X64: 16.86826342 | Y64: -0.9915155589 | Z64: -32.72001344 | AA64: 21.74615881 | AB64: 7.7 | AC64: 50 | AD64: 11.8 | AE64: 26.34626039 | AF64: 17.1 | AG64: 180 | AH64: 3.951939059 | AI64: 131.731302 | AJ64: 658.6565098 | AK64: 658.6565098 | AL64: 5.927908589 | AM64: 0
M65: 30 | N65: 0.07194244604 | O65: 15.97122302 | P65: 5.65381295 | Q65: 10.31741007 | R65: 0 | T65: 7.043750627 | U65: 13.1731302 | V65: 13.07408284 | W65: 760.1959656 | X65: 17.78823583 | Y65: -0.9915155589 | Z65: -32.72001344 | AA65: 24.65193565 | AB65: 8.03 | AC65: 50 | AD65: 11.8 | AE65: 26.34626039 | AF65: 17.1 | AG65: 180 | AH65: 3.951939059 | AI65: 131.731302 | AJ65: 658.6565098 | AK65: 658.6565098 | AL65: 5.927908589 | AM65: 0
A83: Totals
D85: =IF($D54="Lactació",D54,"") -> Lactació
D86: =IF($D55="Lactació",D55,"") -> Lactació | L86: Un grup >>> | M86: =SUM(M51:M85) -> 417 | N86: =SUM(N51:N85) -> 1 | O86: =SUM(O51:O85) -> 222 | P86: =SUM(P51:P85) -> 78.588 | Q86: =SUM(Q51:Q85) -> 143.412 | AA86: =IF($D83="","",AI50*$D$9+AJ50*(1-$D$9)) ->  | AE86: =IF($D83="","",AQ50*$D$9+AR50*(1-$D$9)) ->  | AF86: =IF($D83="","",AS50*$D$9+AT50*(1-$D$9)) ->  | AG86: =IF($D83="","",AU50*$D$9+AV50*(1-$D$9)) ->  | AH86: =IF($D83="","",AW50*$D$9+AX50*(1-$D$9)) ->  | AI86: =IF($D83="","",AY50*$D$9+AZ50*(1-$D$9)) ->  | AJ86: =IF($D83="","",BA50*$D$9+BB50*(1-$D$9)) ->  | AK86: =IF($D83="","",BC50*$D$9+BD50*(1-$D$9)) ->  | AL86: =IF($D83="","",BE50*$D$9+BF50*(1-$D$9)) ->  | AM86: =IF($D83="","",BG50*$D$9+BH50*(1-$D$9)) ->  | AQ86: =IF($D83="","",#REF!*$D$9+#REF!*(1-$D$9)) -> 
D87: =IF($D56="Lactació",D56,"") -> Lactació | L87: I | M87: Durada, dies | O87: Total vaques | P87: prim | Q87: multi | R87: Producció llet | T87: CI | U87: CI MS | V87: UFL | W87: PDI | X87: P | Y87: UFL_VPR | Z87: PDI_VPR | AA87: Ca | AB87: Mg | AC87: K | AD87: Na | AE87: S | AF87: Cl | AG87: Fe | AH87: Co | AI87: Cu | AJ87: Mn | AK87: Zn | AL87: I | AM87: Se
D88: Lactació | M88: =IF($D53="Lactació",M56,"") -> 28 | N88: 0.06714628297 | O88: 14.90647482 | P88: 5.276892086 | Q88: 9.629582734 | R88: 39.08907746 | T88: =IF($D53="Lactació",T56,"") -> 18.96576397 | U88: 27.64963691 | V88: 26.9186085 | W88: 2663.421777 | X88: 59.52961348 | Y88: -0.9698213634 | Z88: -32.00410499 | AA88: 72.7935835 | AB88: 13.56336162 | AC88: 139.1336162 | AD88: 33.69008486 | AE88: 55.29927383 | AF88: 30.36336162 | AG88: 390.8907746 | AH88: 8.294891074 | AI88: 276.4963691 | AJ88: 1382.481846 | AK88: 1382.481846 | AL88: 17.97226399 | AM88: 0.15
D89: Lactació | M89: 28 | N89: 0.06714628297 | O89: 14.90647482 | P89: 5.276892086 | Q89: 9.629582734 | R89: 36.66136437 | T89: 18.59994768 | U89: 26.78133428 | V89: 25.91026296 | W89: 2533.475177 | X89: 56.6298005 | Y89: -0.9845971375 | Z89: -32.49170554 | AA89: 69.19286883 | AB89: 13.19920466 | AC89: 135.4920466 | AD89: 32.59761397 | AE89: 53.56266856 | AF89: 29.99920466 | AG89: 366.6136437 | AH89: 8.034400284 | AI89: 267.8133428 | AJ89: 1339.066714 | AK89: 1339.066714 | AL89: 17.40786728 | AM89: 0.15
D90: Lactació | M90: 28 | N90: 0.06714628297 | O90: 14.90647482 | P90: 5.276892086 | Q90: 9.629582734 | R90: 34.23757336 | T90: 18.21352644 | U90: 25.89583222 | V90: 24.91075976 | W90: 2404.492896 | X90: 53.75228409 | Y90: -0.9893092289 | Z90: -32.64720455 | AA90: 65.63021317 | AB90: 12.835636 | AC90: 131.85636 | AD90: 31.50690801 | AE90: 51.79166443 | AF90: 29.635636 | AG90: 342.3757336 | AH90: 7.768749665 | AI90: 258.9583222 | AJ90: 1294.791611 | AK90: 1294.791611 | AL90: 16.83229094 | AM90: 0.15
D91: Lactació | M91: 28 | N91: 0.06714628297 | O91: 14.90647482 | P91: 5.276892086 | Q91: 9.629582734 | R91: 31.76973949 | T91: 17.80194962 | U91: 24.98528981 | V91: 23.9170613 | W91: 2275.140126 | X91: 50.92106899 | Y91: -0.9908119458 | Z91: -32.69679421 | AA91: 62.12341275 | AB91: 12.46546092 | AC91: 128.1546092 | AD91: 30.39638277 | AE91: 49.97057961 | AF91: 29.26546092 | AG91: 317.6973949 | AH91: 7.495586942 | AI91: 249.8528981 | AJ91: 1249.26449 | AK91: 1249.26449 | AL91: 16.24043837 | AM91: 0.15
M92: 28 | N92: 0.06714628297 | O92: 14.90647482 | P92: 5.276892086 | Q92: 9.629582734 | R92: 29.17776442 | T92: 17.34923742 | U92: 24.02455082 | V92: 22.91397614 | W92: 2142.553092 | X92: 48.17226343 | Y92: -0.9912911721 | Z92: -32.71260868 | AA92: 58.6987078 | AB92: 12.07666466 | AC92: 124.2666466 | AD92: 29.22999399 | AE92: 48.04910164 | AF92: 28.87666466 | AG92: 291.7776442 | AH92: 7.207365246 | AI92: 240.2455082 | AJ92: 1201.227541 | AK92: 1201.227541 | AL92: 15.61595803 | AM92: 0.15
M93: 28 | N93: 0.06714628297 | O93: 14.90647482 | P93: 5.276892086 | Q93: 9.629582734 | R93: 26.32639049 | T93: 16.81984586 | U93: 22.96545226 | V93: 21.87124603 | W93: 2001.520058 | X93: 45.47414499 | Y93: -0.9914440005 | Z93: -32.71765201 | AA93: 55.34519479 | AB93: 11.64895857 | AC93: 120.9895857 | AD93: 29.24687572 | AE93: 45.93090451 | AF93: 29.44895857 | AG93: 263.2639049 | AH93: 6.889635677 | AI93: 229.6545226 | AJ93: 1148.272613 | AK93: 1148.272613 | AL93: 14.92754397 | AM93: 0.15
M94: 28 | N94: 0.06714628297 | O94: 14.90647482 | P94: 5.276892086 | Q94: 9.629582734 | R94: 22.98477956 | T94: 16.13699145 | U94: 21.72312111 | V94: 20.73325385 | W94: 1842.769427 | X94: 42.54149355 | Y94: -0.9914927384 | Z94: -32.71926037 | AA94: 51.89207853 | AB94: 11.14771693 | AC94: 115.9771693 | AD94: 27.7431508 | AE94: 43.44624222 | AF94: 28.94771693 | AG94: 409.8477956 | AH94: 6.516936333 | AI94: 217.2312111 | AJ94: 1086.156056 | AK94: 1086.156056 | AL94: 14.12002872 | AM94: 0.15
M95: 21 | N95: 0.05035971223 | O95: 11.17985612 | P95: 3.957669065 | Q95: 7.22218705 | R95: 19.92706353 | T95: 15.42827011 | U95: 20.58593425 | V95: 19.75883565 | W95: 1702.563069 | X95: 39.78481746 | Y95: -0.9915058745 | Z95: -32.71969386 | AA95: 48.92894565 | AB95: 10.68905953 | AC95: 111.3905953 | AD95: 26.36717859 | AE95: 41.17186849 | AF95: 28.48905953 | AG95: 379.2706353 | AH95: 6.175780274 | AI95: 205.8593425 | AJ95: 1029.296712 | AK95: 1029.296712 | AL95: 13.38085726 | AM95: 0.15
AI100: =IF($D65="Lactació",AI68,"") -> 
D101: =IF($D82="Lactació",D82,"") -> 
D102: =IF($D83="Lactació",D83,"") -> 
A103: Resta lactació
D104: =IF($D54="Eixugat",D54,"") ->  | L104: =SUM(O88:O104) -> 115.5251799 | M104: =IF($D69="Lactació",M72,"") ->  | X104: =IF($D82="Lactació",X85,"") ->  | AD104: =IF($D82="Lactació",AD85,"") ->  | AK104: =IF($D82="Lactació",AK85,"") -> 
D105: =IF($D55="Eixugat",D55,"") ->  | M105: Dies | N105: Pl | O105: CI | P105: UFL | Q105: PDI | R105: P | T105: Ca | V105: Mg | W105: K | X105: Na | Y105: UFL_VPR | Z105: PDI_VPR | AA105: S | AB105: Cl | AC105: Fe | AD105: Co | AE105: Cu | AF105: Mn | AG105: Zn | AH105: I | AI105: Se | AJ105: CI kg MS
D106: =IF($D56="Eixugat",D56,"") ->  | M106: =SUM(M88:M104) -> 217 | N106: =SUMPRODUCT($N$88:$N$104,R88:R104)/SUM($N$88:$N$104) -> 30.34735314 | O106: =SUMPRODUCT($N$88:$N$104,T88:T104)/SUM($N$88:$N$104) -> 17.47851162 | P106: =SUMPRODUCT($N$88:$N$104,V88:V104)/SUM($N$88:$N$104) -> 23.48313487 | Q106: =SUMPRODUCT($N$88:$N$104,W88:W104)/SUM($N$88:$N$104) -> 2211.650949 | R106: =SUMPRODUCT($N$88:$N$104,X88:X104)/SUM($N$88:$N$104) -> 49.91732673 | T106: =SUMPRODUCT($N$88:$N$104,AA88:AA104)/SUM($N$88:$N$104) -> 60.95132498 | V106: =SUMPRODUCT($N$88:$N$104,AB88:AB104)/SUM($N$88:$N$104) -> 12.25210297 | W106: =SUMPRODUCT($N$88:$N$104,AC88:AC104)/SUM($N$88:$N$104) -> 126.3758684 | X106: =SUMPRODUCT($N$88:$N$104,AD88:AD104)/SUM($N$88:$N$104) -> 30.21759923 | Y106: =SUMPRODUCT($N$88:$N$104,Y88:Y104)/SUM($N$88:$N$104) -> -0.9874060635 | Z106: =SUMPRODUCT($N$88:$N$104,Z88:Z104)/SUM($N$88:$N$104) -> -32.5844001 | AA106: =SUMPRODUCT($N$88:$N$104,AE88:AE104)/SUM($N$88:$N$104) -> 48.89410789 | AB106: 29.40694168 | AC106: 344.1186926 | AD106: 7.334116184 | AE106: 244.4705395 | AF106: 1222.352697 | AG106: 1222.352697 | AH106: 15.89058507 | AI106: 0.15 | AJ106: =SUMPRODUCT($N$88:$N$104,U88:U104)/SUM($N$88:$N$104) -> 24.44705395
D107: =IF($D57="Eixugat",D57,"") ->  | M107: =IF($D54="Eixugat",M57,"") ->  | Y107: =IF($D54="Eixugat",Y57,"") ->  | Z107: =IF($D54="Eixugat",Z57,"") ->  | AN107: =IF($D54="Eixugat",U57,"") -> 
D108: =IF($D58="Eixugat",D58,"") ->  | N108: =IF($D55="Eixugat",N58,"") ->  | O108: =IF($D55="Eixugat",O58,"") ->  | P108: =IF($D55="Eixugat",P58,"") ->  | Q108: =IF($D55="Eixugat",Q58,"") ->  | R108: =IF($D55="Eixugat",R58,"") ->  | AN108: =IF($D55="Eixugat",U58,"") -> 
M114: 30 | N114: 0.07194244604 | O114: 15.97122302 | P114: 5.65381295 | Q114: 10.31741007 | R114: 0 | T114: 8.143781329 | U114: 13.1731302 | V114: 12.03272453 | W114: 682.4202216 | X114: 16.86826342 | Y114: -0.9915155589 | Z114: -32.72001344 | AA114: 21.74615881 | AB114: 7.7 | AC114: 50 | AD114: 11.8 | AE114: 26.34626039 | AF114: 17.1 | AG114: 180 | AH114: 3.951939059 | AI114: 131.731302 | AJ114: 658.6565098 | AK114: 658.6565098 | AL114: 5.927908589 | AM114: 0 | AN114: 13.1731302
M115: 30 | N115: 0.07194244604 | O115: 15.97122302 | P115: 5.65381295 | Q115: 10.31741007 | R115: 0 | T115: 7.043750627 | U115: 13.1731302 | V115: 13.07408284 | W115: 760.1959656 | X115: 17.78823583 | Y115: -0.9915155589 | Z115: -32.72001344 | AA115: 24.65193565 | AB115: 8.03 | AC115: 50 | AD115: 11.8 | AE115: 26.34626039 | AF115: 17.1 | AG115: 180 | AH115: 3.951939059 | AI115: 131.731302 | AJ115: 658.6565098 | AK115: 658.6565098 | AL115: 5.927908589 | AM115: 0 | AN115: 13.1731302
O117: =IF($D64="Eixugat",O67,"") ->  | T117: =IF($D64="Eixugat",T67,"") -> 
D118: =IF($D59="Eixugat",D59,"") -> 
D120: Eixugat
D121: Eixugat
A125: Eixugat
AI129: =IF($D76="Eixugat",AI79,"") ->  | AJ129: =IF($D76="Eixugat",AJ79,"") ->  | AK129: =IF($D76="Eixugat",AK79,"") ->  | AL129: =IF($D76="Eixugat",AL79,"") ->  | AM129: =IF($D76="Eixugat",AM79,"") -> 
D130: =IF($D67="Eixugat",D67,"") ->  | T130: =IF($D77="Eixugat",T80,"") -> 
D131: =IF($D68="Eixugat",D68,"") ->  | L131: III) | M131: Dies | N131: CI | O131: UFL | P131: PDI | Q131: P | R131: Ca | T131: Mg | V131: K | W131: Na | X131: S | Y131: UFL_VPR | Z131: PDI_VPR | AA131: Cl | AB131: Fe | AC131: Co | AD131: Cu | AE131: Mn | AF131: Zn | AG131: I | AH131: Se | AI131: CI kg MS
D132: =IF($D69="Eixugat",D69,"") ->  | K132: =SUM(O107:O130) -> 31.94244604 | M132: =SUM(M107:M130) -> 60 | N132: =SUMPRODUCT($N$107:$N$130,T107:T130)/SUM($N$107:$N$130) -> 7.593765978 | O132: =SUMPRODUCT($N$107:$N$130,V107:V130)/SUM($N$107:$N$130) -> 12.55340369 | P132: =SUMPRODUCT($N$107:$N$130,W107:W130)/SUM($N$107:$N$130) -> 721.3080936 | Q132: =SUMPRODUCT($N$107:$N$130,X107:X130)/SUM($N$107:$N$130) -> 17.32824962 | R132: =SUMPRODUCT($N$107:$N$130,AA107:AA130)/SUM($N$107:$N$130) -> 23.19904723 | T132: =SUMPRODUCT($N$107:$N$130,AB107:AB130)/SUM($N$107:$N$130) -> 7.865 | V132: =SUMPRODUCT($N$107:$N$130,AC107:AC130)/SUM($N$107:$N$130) -> 50 | W132: =SUMPRODUCT($N$107:$N$130,AD107:AD130)/SUM($N$107:$N$130) -> 11.8 | X132: =SUMPRODUCT($N$107:$N$130,AE107:AE130)/SUM($N$107:$N$130) -> 26.34626039 | Y132: =SUMPRODUCT($N$107:$N$130,Y107:Y130)/SUM($N$107:$N$130) -> -0.9915155589 | Z132: =SUMPRODUCT($N$107:$N$130,Z107:Z130)/SUM($N$107:$N$130) -> -32.72001344 | AA132: =SUMPRODUCT($N$107:$N$130,AF107:AF130)/SUM($N$107:$N$130) -> 17.1 | AB132: 180 | AC132: 3.951939059 | AD132: 131.731302 | AE132: 658.6565098 | AF132: 658.6565098 | AG132: 5.927908589 | AH132: 0 | AI132: 13.1731302
D133: =IF($D82="Eixugat",D82,"") -> 
D134: =IF($D83="Eixugat",D83,"") -> 
D135: =IF($D84="Eixugat",D84,"") -> 
A136: Necessitats grup postpart (dades explotació)
A137: Necessitats grup al voltant del pic (dades explotació)
A138: Necessitats grup resta de lactació, del pic al final (dades explotació) | L138: N vaques | M138: Dies | N138: Pl | O138: CI | P138: UFL | Q138: PDI | R138: P | T138: Ca | V138: Mg | W138: K | X138: Na | Y138: UFL_VPR | Z138: PDI_VPR | AA138: S | AB138: Cl | AC138: Fe | AD138: Co | AE138: Cu | AF138: Mn | AG138: Zn | AH138: I | AI138: Se | AJ138: CI kg MS
A139: Necessitats un sol grup de lactació (dades explotació) | L139: =IF(D48="","",IF(D48="Lactació",SUM(O51:O53))) -> 44.71942446 | M139: =IF(D48="","",IF(D48="Lactació",SUM(M51:M52))) -> 42 | N139: =SUMPRODUCT($N$51:$N$52,R51:R52)/SUM($N$51:$N$52) -> 47.00117389 | O139: =SUMPRODUCT($N$51:$N$52,T51:T52)/SUM($N$51:$N$52) -> 16.92318411 | P139: =SUMPRODUCT($N$51:$N$52,V51:V52)/SUM($N$51:$N$52) -> 23.54165309 | Q139: =SUMPRODUCT($N$51:$N$52,W51:W52)/SUM($N$51:$N$52) -> 2786.870478 | R139: =SUMPRODUCT($N$51:$N$52,X51:X52)/SUM($N$51:$N$52) -> 66.27182535 | T139: =SUMPRODUCT($N$51:$N$52,AA51:AA52)/SUM($N$51:$N$52) -> 82.38088874 | V139: =SUMPRODUCT($N$51:$N$52,AB51:AB52)/SUM($N$51:$N$52) -> 14.75017608 | W139: 151.0017608 | X139: 37.25052825 | Y139: 54.38739481 | Z139: 31.55017608 | AA139: 470.0117389 | AB139: 8.158109221 | AD139: =SUMPRODUCT($N$51:$N$52,AH51:AH52)/SUM($N$51:$N$52) -> 8.158109221 | AE139: 271.936974 | AF139: 1359.68487 | AG139: 1359.68487 | AH139: 17.67590331 | AI139: 0.15 | AJ139: =SUMPRODUCT($N$51:$N$52,U51:U52)/SUM($N$51:$N$52) -> 27.1936974
A140: Necessitats grup eixugat (dades explotació) | L140: =SUM(O54:O56) -> 44.71942446 | M140: =SUM(M53:M55) -> 98 | N140: =SUMPRODUCT($N$53:$N$55,R53:R55)/SUM($N$53:$N$55) -> 45.10232121 | O140: =SUMPRODUCT($N$53:$N$55,T53:T55)/SUM($N$53:$N$55) -> 19.51888491 | P140: =SUMPRODUCT($N$53:$N$55,V53:V55)/SUM($N$53:$N$55) -> 28.85574045 | Q140: =SUMPRODUCT($N$53:$N$55,W53:W55)/SUM($N$53:$N$55) -> 2961.15732 | R140: =SUMPRODUCT($N$53:$N$55,X53:X55)/SUM($N$53:$N$55) -> 66.37331389 | T140: =SUMPRODUCT($N$53:$N$55,AA53:AA55)/SUM($N$53:$N$55) -> 81.45350642 | V140: =SUMPRODUCT($N$53:$N$55,AB53:AB55)/SUM($N$53:$N$55) -> 14.46534818 | W140: =SUMPRODUCT($N$53:$N$55,AC53:AC55)/SUM($N$53:$N$55) -> 148.1534818 | X140: =SUMPRODUCT($N$53:$N$55,AD53:AD55)/SUM($N$53:$N$55) -> 36.39604455 | Y140: =SUMPRODUCT($N$53:$N$55,Y53:Y55)/SUM($N$53:$N$55) -> -0.3262143847 | Z140: =SUMPRODUCT($N$53:$N$55,Z53:Z55)/SUM($N$53:$N$55) -> -10.76507469 | AA140: =SUMPRODUCT($N$53:$N$55,AE53:AE55)/SUM($N$53:$N$55) -> 58.74993925 | AB140: =SUMPRODUCT($N$53:$N$55,AF53:AF55)/SUM($N$53:$N$55) -> 31.26534818 | AD140: =SUMPRODUCT($N$53:$N$55,AH53:AH55)/SUM($N$53:$N$55) -> 8.812490888 | AE140: 293.7496963 | AF140: 1468.748481 | AG140: 1468.748481 | AH140: 19.09373026 | AI140: 0.15 | AJ140: =SUMPRODUCT($N$53:$N$55,U53:U55)/SUM($N$53:$N$55) -> 29.37496963
A141: Necessitats per a una vaca (segons dades individuals) | L141: =L104 -> 115.5251799 | M141: =M106 -> 217 | N141: 30.34735314 | O141: 17.47851162 | P141: 23.48313487 | Q141: 2211.650949 | R141: 49.91732673 | T141: 60.95132498 | V141: 12.25210297 | W141: 126.3758684 | X141: 30.21759923 | Y141: =Y106 -> -0.9874060635 | Z141: =Z106 -> -32.5844001 | AA141: 48.89410789 | AB141: 29.40694168 | AD141: 7.334116184 | AE141: 244.4705395 | AF141: 1222.352697 | AG141: 1222.352697 | AH141: 15.89058507 | AI141: 0.15 | AJ141: 24.44705395
D142: 2 | L142: =SUM(L139:L141)-L143 -> 173.0215827 | N142: =SUMPRODUCT($M$139:$M$141,N139:N141)/SUM($M$139:$M$141) -> 36.35700956 | O142: 17.97328144 | P142: 24.96485227 | Q142: 2485.070682 | R142: 56.3587152 | T142: 69.10049994 | V142: 13.15355143 | W142: 135.2512006 | X142: 32.74104646 | Y142: =SUMPRODUCT($M$139:$M$141,Y139:Y141)/SUM($M$139:$M$141) -> 5.70877999 | Z142: =SUMPRODUCT($M$139:$M$141,Z139:Z141)/SUM($M$139:$M$141) -> -19.0495371 | AA142: 101.1428809 | AB142: 27.41722984 | AD142: 7.836884891 | AE142: 261.2294964 | AF142: 1306.147482 | AG142: 1306.147482 | AH142: 16.97991726 | AI142: 0.15 | AJ142: =AJ106 -> 24.44705395 | BR142: Exemples segons valor interval entre parts
E143: <------- Elegir tipus de racionament | L143: =K132 -> 31.94244604 | M143: =M132 -> 60 | N143: 0 | O143: =N132 -> 7.593765978 | P143: 12.55340369 | Q143: 721.3080936 | R143: 17.32824962 | T143: =R132 -> 23.19904723 | V143: =T132 -> 7.865 | W143: 50 | X143: 11.8 | Y143: =Y132 -> -0.9915155589 | Z143: =Z132 -> -32.72001344 | AA143: =X132 -> 26.34626039 | AB143: =AA132 -> 17.1 | AD143: 3.951939059 | AE143: 131.731302 | AF143: 658.6565098 | AG143: 658.6565098 | AH143: 5.927908589 | AI143: 0 | AJ143: =AI132 -> 13.1731302 | BR143: IP = 365 dies | BT143: IP = 375 dies | BV143: IP = 385 dies | BX143: IP = 395 dies | BZ143: IP = 410 dies | CB143: IP = 425 dies | CD143: IP = 435 dies
K144: =IF(K20=K19,0,K20) -> 2 | N144: =I18 -> 38.06377011 | O144: =IF(I3=1,M5,N5) -> 18.81598947 | P144: =IF($I$3=1,Q5,R5) -> 22.06908564 | Q144: =IF($I$3=1,S5,T5) -> 2485.529078 | R144: =IF($I$3=1,U5,V5) -> 57.18064318 | T144: =IF($I$3=1,W5,X5) -> 70.37238108 | V144: =IF($I$3=1,Y5,Z5) -> 13.40956552 | W144: =IF($I$3=1,AA5,AB5) -> 137.5956552 | X144: =IF($I$3=1,AC5,AD5) -> 33.22869655 | Y144: =I20 -> 0.687351727 | Z144: =I21 -> 22.68260699 | AA144: =IF($I$3=1,AE5,AF5) -> 51.86325322 | AB144: =IF($I$3=1,AG5,AH5) -> 30.20956552 | AD144: =IF($I$3=1,AI5,AJ5) -> 7.779487983 | AE144: =IF($I$3=1,AK5,AL5) -> 259.3162661 | AF144: =IF($I$3=1,AM5,AN5) -> 1296.581331 | AG144: =IF($I$3=1,AO5,AP5) -> 1296.581331 | AH144: =IF($I$3=1,AQ5,AR5) -> 16.8555573 | AI144: =IF($I$3=1,AS5,AT5) -> 0.15 | AJ144: =IF($I$3=1,O5,P5) -> 25.93162661 | BR144: setmL | BS144: setmG | BT144: setmL | BU144: setmG | BV144: setmL | BW144: setmG | BX144: setmL | BY144: setmG | BZ144: setmL | CA144: setmG | CB144: setmL | CC144: setmG | CD144: setmL | CE144: setmG
A145: Necessitats | BR145: 2 | BS145: 0 | BT145: 2 | BU145: 0 | BV145: 2 | BW145: 0 | BX145: 2 | BY145: 0 | BZ145: 2 | CA145: 0 | CB145: 2 | CC145: 0 | CD145: 2 | CE145: 0
A146: Dies de racionament | D146: =M148 -> 98 | BR146: 5 | BS146: 0 | BT146: 5 | BU146: 0 | BV146: 5 | BW146: 0 | BX146: 5 | BY146: 0 | BZ146: 5 | CA146: 0 | CB146: 5 | CC146: 0 | CD146: 5 | CE146: 0
A147: Producció de llet estàndard l/vaca i dia | D147: =N148 -> 45.10232121 | M147: Dies | N147: Pl | O147: CI | P147: UFL | Q147: PDI | R147: P | T147: Ca | V147: Mg | W147: K | X147: Na | Y147: UFL_VPR | Z147: PDI_VPR | AA147: S | AB147: Cl | AC147: Fe | AD147: Co | AE147: Cu | AF147: Mn | AG147: Zn | AH147: I | AI147: Se | AJ147: CI kg MS | BR147: 9.5 | BS147: 0 | BT147: 9.5 | BU147: 0 | BV147: 9.5 | BW147: 0 | BX147: 9.5 | BY147: 0 | BZ147: 9.5 | CA147: 0 | CB147: 9.5 | CC147: 0 | CD147: 9.5 | CE147: 0
A148: Capacitat ingestió (UE) | D148: =O148 -> 19.51888491 | K148: A | L148: =IF(I3=1,-9.5+0.4*I17+1.89*I9,-13.2+0.4*I17+1.89*I9) -> 9.21326087 | M148: =IF($D$142=6,M144,IF($D$142<5,IF($D$142<4,IF($D$142<3,IF($D$142<2,M139,M140),M141),M142),M143)) -> 98 | N148: =IF($D$142=6,N144,IF($D$142<5,IF($D$142<4,IF($D$142<3,IF($D$142<2,N139,N140),N141),N142),N143)) -> 45.10232121 | O148: =IF($D$142=6,O144,IF($D$142<5,IF($D$142<4,IF($D$142<3,IF($D$142<2,O139,O140),O141),O142),O143)) -> 19.51888491 | P148: 28.85574045 | Q148: 2961.15732 | R148: 66.37331389 | S148: 0 | T148: 81.45350642 | U148: 0 | V148: 14.46534818 | W148: 148.1534818 | X148: 36.39604455 | Y148: -0.3262143847 | Z148: -10.76507469 | AA148: 58.74993925 | AB148: 31.26534818 | AC148: 0 | AD148: 8.812490888 | AE148: 293.7496963 | AF148: 1468.748481 | AG148: 1468.748481 | AH148: 19.09373026 | AI148: 0.15 | AJ148: 29.37496963 | BR148: 16 | BS148: 4.428571429 | BT148: 16 | BU148: 3 | BV148: 16 | BW148: 1.571428571 | BX148: 16 | BY148: 0.1428571429 | BZ148: 16 | CA148: 0 | CB148: 16 | CC148: 0 | CD148: 16 | CE148: 0
A149: Energia (UFL) | D149: =P148 -> 28.85574045 | K149: B | L149: =1/I9 -> 0.2857142857 | M149: N vaques | BR149: 20 | BS149: 8.428571429 | BT149: 20 | BU149: 7 | BV149: 20 | BW149: 5.571428571 | BX149: 20 | BY149: 4.142857143 | BZ149: 20 | CA149: 2 | CB149: 20 | CC149: 0 | CD149: 20 | CE149: 0
A150: Proteïna (g PDI) | D150: =Q148 -> 2961.15732 | K150: K | L150: =L148/(52*L149) -> 0.6201233278 | M150: =IF($D$142=6,1,IF($D$142<5,IF($D$142<4,IF($D$142<3,IF($D$142<2,L139,L140),L141),L142),L143)) -> 44.71942446 | BR150: 24 | BS150: 12.42857143 | BT150: 24 | BU150: 11 | BV150: 24 | BW150: 9.571428571 | BX150: 24 | BY150: 8.142857143 | BZ150: 24 | CA150: 6 | CB150: 24 | CC150: 3.857142857 | CD150: 24 | CE150: 2.428571429
A151: Ca (g) | D151: =T148 -> 81.45350642 | K151: A/B | L151: =L148/L149 -> 32.24641304 | BR151: 28 | BS151: 16.42857143 | BT151: 28 | BU151: 15 | BV151: 28 | BW151: 13.57142857 | BX151: 28 | BY151: 12.14285714 | BZ151: 28 | CA151: 10 | CB151: 28 | CC151: 7.857142857 | CD151: 28 | CE151: 6.428571429
A152: P (g) | D152: =R148 -> 66.37331389 | K152: A/1-B | L152: =L148/(1-L149) -> 12.89856522 | BR152: 32 | BS152: 20.42857143 | BT152: 32 | BU152: 19 | BV152: 32 | BW152: 17.57142857 | BX152: 32 | BY152: 16.14285714 | BZ152: 32 | CA152: 14 | CB152: 32 | CC152: 11.85714286 | CD152: 32 | CE152: 10.42857143
A153: Mg (g) | D153: =V148 -> 14.46534818 | K153: exp(-sl) | L153: =EXP(-I12) -> 0.0003354626279 | BR153: 36 | BS153: 24.42857143 | BT153: 36 | BU153: 23 | BV153: 36 | BW153: 21.57142857 | BX153: 36 | BY153: 20.14285714 | BZ153: 36 | CA153: 18 | CB153: 36 | CC153: 15.85714286 | CD153: 36 | CE153: 14.42857143
A154: K (g) | D154: =W148 -> 148.1534818 | K154: exp(-b*sl)/B | L154: =EXP(-L149*I12)/L149 -> 0.3559548731 | P154: Travada | BR154: 40 | BS154: 28.42857143 | BT154: 40 | BU154: 27 | BV154: 40 | BW154: 25.57142857 | BX154: 40 | BY154: 24.14285714 | BZ154: 40 | CA154: 22 | CB154: 40 | CC154: 19.85714286 | CD154: 40 | CE154: 18.42857143
A155: Na (g) | D155: =X148 -> 36.39604455 | P155: Lliure | BR155: 43.57142857 | BS155: 32 | BT155: 44 | BU155: 31 | BV155: 44 | BW155: 29.57142857 | BX155: 44 | BY155: 28.14285714 | BZ155: 44 | CA155: 26 | CB155: 44 | CC155: 23.85714286 | CD155: 44 | CE155: 22.42857143
A156: S (g) | D156: =AA148 -> 58.74993925 | M156: =I18*224 -> 8526.284504 | P156: Pastura pla | BR156: 0 | BS156: 36 | BT156: 45 | BU156: 32 | BV156: 46.42857143 | BW156: 32 | BX156: 47.85714286 | BY156: 32 | BZ156: 48 | CA156: 30 | CB156: 48 | CC156: 27.85714286 | CD156: 48 | CE156: 26.42857143
A157: Cl (g) | D157: =AB148 -> 31.26534818 | P157: Pastura llarga distància o dificultosa | BR157: 0 | BS157: 40 | BT157: 0 | BU157: 36 | BV157: 0 | BW157: 36 | BX157: 0 | BY157: 36 | BZ157: 50 | CA157: 32 | CB157: 52 | CC157: 31.85714286 | CD157: 52 | CE157: 30.42857143
A158: Co (mg) | D158: =AD148 -> 8.812490888 | K158: -0.83 | M158: =12000/224 -> 53.57142857 | P158: Pastura muntanyosa | BT158: 0 | BU158: 40 | BV158: 0 | BW158: 40 | BX158: 0 | BY158: 40 | BZ158: 0 | CA158: 36 | CB158: 52.14285714 | CC158: 32 | CD158: 53.57142857 | CE158: 32
A159: Cu (mg) | D159: =AE148 -> 293.7496963 | K159: =1.92*EXP(-0.0083*I12) -> 1.796652455 | BZ159: 0 | CA159: 40 | CB159: 0 | CC159: 36 | CD159: 0 | CE159: 36
A160: Mn (mg) | D160: =AF148 -> 1468.748481 | K160: =0.74*EXP(-0.88*I12) -> 0.0006483336561 | CB160: 0 | CC160: 40 | CD160: 0 | CE160: 40
A161: Zn (mg) | D161: =AG148 -> 1468.748481 | K161: =0.5*EXP(-0.12*(45-I14)) -> 0.002258290471 | M161: =I17/(-0.55+1.66*EXP(-0.0065*I12)-0.72*EXP(-0.44*I12)-N161) -> 39.33598029 | N161: =0.69*EXP(-0.16*(45-I14)) -> 0.0005151442078
A162: I (mg) | D162: =AH148 -> 19.09373026 | K162: =K158+K159-K160-K161 -> 0.9637458306 | L162: =I17/K162 -> 40.98139875
A163: Se (mg) | D163: =AI148 -> 0.15
A164: Pes vaca adulta | D164: =IF(D142=6,I7,D10) -> 700
A165: EN mant | D165: =0.0536*D164^0.75*K6 -> 7.294378918
A166: EN llet | D166: =D147*0.42 -> 18.94297491
A167: CI kg MSI | D167: =AJ148 -> 29.37496963
A168: MP | D168: =D147*31 -> 1398.171958
A169: UFL_VPR | D169: =Y148 -> -0.3262143847
A170: PDI_VPR | D170: =Z148 -> -10.76507469
A171: PDI/UFL | D171: =D150/D149 -> 102.6193497
A172: Nombre de vaques | D172: =INT(M150) -> 44
A173: =IF(D173=1,P154,IF(D173=2,P155,IF(D173=3,P156,IF(D173=4,P157,P158)))) -> Lliure | D173: =E1 -> 2
A174: =IF(D174=1,A136,IF(D174=2,A137,IF(D174=3,A138,IF(D174=4,A139,A140)))) -> Necessitats grup al voltant del pic (dades explotació) | D174: =D142 -> 2
H175: =394+144 -> 538

Sheet I_Necessitats (hidden)
A1: Entorn o modalitat explotació ----------------------> | E1: 2 | K1: ICI | L1: =0.6+(1-0.6)*(1-EXP(-0.25*I12)) -> 0.9905929017 | M1: =(14.25+(0.015*(I7-600))+(0.11*I18)+((2.5-I16))) -> 19.77799752 | O1: CI MS aprox INRA | Q1: ???
A2: Dades explotació per a la formulació | F2: Dades per a una vaca en lactació | K2: ICG | L2: =0.8+0.2*(1-EXP(-0.25*(40-I14))) -> 0.9999477483 | N2: =(14.24+0.015*(I7-600)+0.11*I18+(2.5-I16))*AV5*AW5*AY5 -> 19.23206301 | O2: =M5/0.85 -> 22.95436203 | P2: =N5/0.85 -> 23.00885816 | AU2: 0.6 | AV2: 0.7 | BR2: Autor: Antoni Seguí Parpal
A3: Producció mitjana explotació, vaca present i any | D3: 11000 | I3: 2 | K3: ICmadu | L3: =-0.1+1.1*(1-EXP(-0.08*I8)) -> 0.9798527972 | M3: CI UE | O3: CI MS | Q3: Energia | S3: Proteïna | U3: Fòsfor | W3: Calci | Y3: Mg | AA3: K | AC3: Na | AE3: S | AG3: Cl | AI3: Co mg/dia | AK3: Cu mg/dia | AM3: Mn mg/dia | AO3: Zn mg/dia | AQ3: I mg/dia | AS3: Se mg/dia | AU3: IL | AW3: IG | AX3: IM prim | AY3: IM multi | AZ3: I_CI PDI prim | BA3: I_CI PDI multi
A4: Taxa de greix (%) | D4: 3.8 | F4: Producció a 305 dies | I4: 9500 | K4: ICIPDI | L4: =0.91+(0.115/(1+EXP(0.13*(90-(S5/Q5))))) -> 1.016408947 | M4: prim | N4: multi | O4: prim | P4: multi | Q4: prim | R4: multi | S4: prim | T4: multi | U4: prim | V4: multi | W4: prim | X4: multi | Y4: prim | Z4: multi | AA4: prim | AB4: multi | AC4: prim | AD4: multi | AE4: prim | AF4: multi | AG4: prim | AH4: multi | AI4: prim | AJ4: multi | AK4: prim | AL4: multi | AM4: prim | AN4: multi | AO4: prim | AP4: multi | AQ4: prim | AR4: multi | AS4: prim | AT4: multi | AU4: prim | AV4: multi
A5: Taxa de proteïna (%) | D5: 3.2 | F5: Taxa de greix (%) | I5: 3.8 | L5: =M1*L1*L2*L3*L4 -> 19.51120772 | M5: =(14.25+(0.015*(I7-600))+(0.11*I18)+((2.5-I16)))*AU5*AW5*AX5*AZ5 -> 19.51120772 | N5: =(14.25+(0.015*(I7-600))+(0.11*I18)+((2.5-I16)))*AV5*AW5*AY5*BA5 -> 19.55752944 | O5: =0.372*I18+0.0968*I7^0.75*(1-EXP(-0.192*(I12+3.67))) -> 25.96399557 | P5: =0.372*I18+0.0968*I7^0.75*(1-EXP(-0.192*(I12+3.67))) -> 25.96399557 | Q5: =(0.0536*I7^0.75)*K6+I18*0.42+(3.14-0.077*I8)+IF(I23="",0,(0.000695*I10*EXP(0.116*I23)))-I20 -> 21.92818974 | R5: =(0.0536*I7^0.75)*K6+I18*0.42+(3.14-0.077*I8)+ IF(I23="",0,(0.000695*I10*EXP(0.116*I23)))-I20 -> 21.92818974 | S5: =0.312*I7+(0.2*I7^0.6)/I19+19.8*O5+IF(I8<40,((270-6.66*I8)/I19),0)+(I18*31/I19)+IF(I23>24,(0.0448*I10*EXP(0.111*I23)/I19),0)-I21 -> 2398.027754 | T5: =0.312*I7+(0.2*I7^0.6)/I19+19.8*O5+IF(I8<40,((270-6.66*I8)/I19),0)+I18*31/I19+IF(I23>24,(0.0448*I10*EXP(0.111*I23)/I19),0)-I21 -> 2398.027754 | U5: =(0.83*O5+0.002*I7+0.9*I18+IF(I23>0,(7.38/(1+EXP(19.1-5.46*LN(I23)))),0)) -> 54.78088965 | V5: =(0.83*P5+0.002*I7+0.9*I18+IF(I23>0,(7.38/(1+EXP(19.1-(5.46*LN(I23))))),0)) -> 54.78088965 | W5: =(0.663*O5+0.008*I7+1.25*I18+IF(I23>0,(23.5/(1+EXP(18.8-(5.03*LN(I23))))),0)) -> 67.02426426 | X5: =(0.663*P5+0.008*I7+1.25*I18+IF(I23>0,(23.5/(1+EXP(18.8-(5.03*LN(I23))))),0)) -> 67.02426426 | Y5: =(0.011*I7+0.15*I18+IF(I23>36,0.33,0)) -> 13.00487243 | Z5: =(0.011*I7+0.15*I18+IF(I23>36,0.33,0)) -> 13.00487243 | AA5: =IF(I18>0,0.115*I7,0.07*I7)+IF(I23>24,1,0)+1.5*I18 -> 133.5487243 | AB5: =IF(I18>0,0.115*I7,0.07*I7)+IF(I23>24,1,0)+1.5*I18 -> 133.5487243 | AC5: =IF(I18>0,0.023*I7,0.015*I7)+IF(I23>24,1.3,0)+0.45*I18 -> 32.01461728 | AD5: =IF(I18>0,0.023*I7,0.015*I7)+IF(I23>24,1.3,0)+0.45*I18 -> 32.01461728 | AE5: =2*O5 -> 51.92799114 | AF5: =2*P5 -> 51.92799114 | AG5: =IF(I18>0,0.035*I7,0.023*I7)+IF(I23>24,1,0)+0.15*I18 -> 29.80487243 | AH5: =IF(I18>0,0.035*I7,0.023*I7)+IF(I23>24,1,0)+0.15*I18 -> 29.80487243 | AI5: =0.3*O5 -> 7.789198671 | AJ5: =0.3*P5 -> 7.789198671 | AK5: =10*O5 -> 259.6399557 | AL5: =10*P5 -> 259.6399557 | AM5: =50*O5 -> 1298.199779 | AN5: =50*P5 -> 1298.199779 | AO5: =50*O5 -> 1298.199779 | AP5: =50*P5 -> 1298.199779 | AQ5: =IF(I18>0,0.65*O5,0.45*O5) -> 16.87659712 | AR5: =IF(I18>0,0.65*O5,0.45*O5) -> 16.87659712 | AS5: =IF(I18>0,0.15,0) -> 0.15 | AT5: =IF(I18>0,0.15,0) -> 0.15 | AU5: =$AU$2+(1-$AU$2)*(1-EXP(-0.25*I22)) -> 0.9905929017 | AV5: =$AV$2+(1-$AV$2)*(1-EXP(-0.25*I22)) -> 0.9929446762 | AW5: =0.8+0.2*(1-EXP(-0.25*(40-I23))) -> 0.9999477483 | AX5: =-0.1+1.1*(1-EXP(-0.08*I8)) -> 0.9798527972 | AY5: =-0.1+1.1*(1-EXP(-0.08*I8)) -> 0.9798527972 | AZ5: =0.91+(0.115/(1+EXP(0.13*(90-(S5/Q5))))) -> 1.016408947 | BA5: =0.91+(0.115/(1+EXP(0.13*(90-(T5/R5))))) -> 1.016408947
A6: Interval entre parts (dies) IP | D6: 417 | F6: Taxa de proteïna (%) | I6: 3.3 | K6: =IF(E1=1,0.95,IF(E1=2,1,IF(E1=3,1.1,IF(E1=4,1.2,1.3)))) -> 1 | M6: període lactació explotació | P6: UFL_VPR>
